{"text_format":"1","workbook":"xlsx","n_sheets":11,"sheets":["Liste versions","Parametre","Introduction","Debit","Projet","Coeff","Stockage","Orifice_Qfixe","Orifice_Qvar","Deversoir","Réseau"],"not_rendered":{"charts":1,"images":12,"macros":1,"external_links":0,"defined_names":67,"comments":0,"pivot_tables":0},"unopened":[],"bounds":{"document_bytes":16777216,"sheet_cells":100000,"rows_first":2000,"rows_last":500,"rows_between":2000,"halvings":0,"cell_chars":16384,"cell_head_chars":4096},"cells_cut":0,"cells_raw":0,"read":"whole","date_system":"1900"}

{"sheet":"Liste versions","index":0,"n_rows":8,"n_cols":3,"rows_kept":8,"cut":false,"hidden":true,"merged":[]}
["Liste des versions de la feuille excel"]
[]
["Date","Version","Observation"]
["2024-01-31",1,"1ère émission"]
["2024-02-05",2,"Test suplémentaire sur calcul stockage avec pluie optionnelle - Modification forme - Protection VBA - Ajout onglet \"Coeff\""]
["2025-02-26",3,"Modification mineure forme\nFiche calcul débit : Refonte pour prise en compte a et b fournis par utilisateur et coef. ruissellement variable en fonction de la période de retour.\nOnglet Coefficient : indication de la période de retour"]
["2025-03-18",4,"Modification mineure forme\nFiche Stockage - calcul avec Montana optionnel \nCalcul V1-V3 réalisé avec I(mm/h)=at(mn)-b\nCorrection pour réaliser calcul avec t en h"]
["2025-04-21",5,"Modification des unités perméabilités pour infiltration. Calcul en mm/h"]

{"sheet":"Parametre","index":1,"n_rows":18,"n_cols":5,"rows_kept":18,"cut":false,"hidden":true,"merged":[]}
["Données pluies"]
[]
["Pluie Guide sur les modalités de Gestion des eaux Pluviales à la Réunion - 2012 (0,1 h à 2h)"]
[null,null,null,null,"i en mm/h et d en h"]
["Zone","Coefficient A","Coefficient B"]
[1,60,0.33]
[2,72,0.33]
[3,85,0.33]
[4,100,0.33]
[5,130,0.33]
["Retenu",{"$f":"IF(Projet!C1=TRUE, CHOOSE(Projet!C7,Parametre!B6,Parametre!B7,Parametre!B8,Parametre!B9,Parametre!B10),\"\")","v":""},{"$f":"IF(Projet!C1=TRUE,0.33,\"\")","v":""}]
[]
["T (ans)","Ratio pluie iT/i10ans"]
[2,{"$f":"0.186*LN(A14)+0.572","v":0.7009253755841498}]
[5,{"$f":"0.186*LN(A15)+0.572","v":0.87135545171274265}]
[10,1]
[20,{"$f":"0.186*LN(A17)+0.572","v":1.1292062028810421}]
[30,{"$f":"0.186*LN(A18)+0.572","v":1.2046227129891609}]

{"sheet":"Introduction","index":2,"n_rows":43,"n_cols":8,"rows_kept":43,"cut":false,"hidden":false,"merged":[[25,0,25,7],[0,0,0,7],[6,0,6,7],[19,0,19,7]]}
["Introduction"]
["La présente feuille de calcul comprend des outils d'aide au dimensionnement pour les  projets liés aux eaux pluviales"]
["en application du Guide sur la gestion des eaux pluviales à la Réunion (octobre 2012)"]
["Les fiches proposées permettent de conduire les calculs courants. Elles permettent aussi de présenter les résultats"]
["attendus dans le cadre de la demande simplifiée relative à la rubrique 2.1.5.0 de la nomenclature."]
[]
["Fiche de calculs proposées"]
["Les fiches mettent en œuvre les méthodes présentées dans les documents suivants :"]
[" - Guide sur la gestion des eaux pluviales à la Réunion - octobre 2012"]
[" - Doctrine pour l'instruction de la rubrique 2.1.5.0 - Complément au Guide"]
[]
["Les fiches de calculs proposées sont les suivantes :"]
[" - Fiche \"Debit\": Calcul de débit avant et après aménagement."]
[" - Fiche \"Stockage\" : Calcul d'un ouvrage de stockage avec un débit de fuite fixe."]
[" - Fiche \"Orifice_Qfixe\" : Calcul d'une régulation avec un orifice"]
[" - Fiche \"Orifice_Qvar\" : Calcul d'un ouvrage de régulation composé de 1 ou deux orifices."]
[" - Fiche \"Deversoir\" : Calcul d'un ouvrage déversoir."]
[" - Fiche \"Réseau\" : Calcul de la capacité d'évacuation d'un élément de réseau à surface libre"]
[]
["Information pour remplir les fiches"]
[null,"  Case à renseigner pour que le calcul soit exécuté."]
[null,null," Bouton à cliquer pour lancer certains calculs"]
[null,null,"(Temps de concentration par la méthode de Richards par exemple)"]
[]
[]
["Prérequis technique"]
["La macro excel est dotée de fonctions d’optimisation, notamment pour la recherche de l’optimum des multi-orifices."]
[]
["Il faut au préalable activer le solveur. Pour cela :"]
["a. Ouvrir Excel."]
["b. Cliquez sur \"Fichier\" ou l'onglet \"Office\" (selon votre version d'Excel)."]
["c. Choisissez \"Options\"."]
["d. Dans la boîte de dialogue \"Options Excel\", cliquez sur \"Add-Ins\" (ou \"Compléments\" en français)."]
["e. Au bas de la fenêtre, dans la zone \"Gérer\", assurez-vous que \"Compléments Excel\" est sélectionné,"]
["puis cliquez sur \"Atteindre...\"."]
["f. Cochez la case \"Solveur\" et cliquez sur \"OK\"."]
[]
["Puis"]
["a. Ouvrir l'éditeur VBA : soit cliquer sur onglet \"Développeur\" / icone \"Visual Basic\" ou utiliser le racouci : ALT + F11"]
["b. Aller dans le menu \"Outils\" > \"Références\"."]
["b. Dans la liste des références disponibles, cherchez \"Solver\" ou \"Solveur\" et cochez la case correspondante."]
["c. Cliquez sur \"OK\"."]
[{"$f":"CONCATENATE(\"Version \",(MAX('Liste versions'!$B$4:$B$30)),\" de la feuille Excel du \",DAY(MAX('Liste versions'!$A$4:$A$30)),\"/\",MONTH(MAX('Liste versions'!$A$4:$A$30)),\"/\",YEAR(MAX('Liste versions'!$A$4:$A$30)),\" -  hydro-expertise.com\")","v":"Version 5 de la feuille Excel du 21/4/2025 -  hydro-expertise.com"},null,null,null,null,null,null,"DEAL Réunion"]

{"sheet":"Debit","index":3,"n_rows":75,"n_cols":41,"rows_kept":75,"cut":false,"hidden":true,"merged":[[64,24,64,31],[64,33,64,40],[74,10,74,11],[64,1,64,11],[65,2,65,4],[65,7,65,9],[64,15,64,18],[64,19,64,22],[60,9,60,11],[62,1,62,4],[62,7,62,10],[63,1,63,5],[63,7,63,11],[59,1,60,2],[59,3,59,5],[59,7,60,8],[59,9,59,11],[60,3,60,5],[37,0,43,0],[38,5,43,5],[38,11,43,11],[45,1,45,5],[45,7,45,11],[5,1,5,12],[6,2,6,12],[34,1,34,11],[35,1,35,5],[35,7,35,11],[19,1,19,4],[25,4,25,5],[34,14,34,15],[34,17,34,18],[7,0,7,1],[9,1,9,11],[12,1,12,4],[13,1,13,4],[15,1,15,4],[16,1,16,4],[17,1,17,4],[22,1,22,11],[26,2,26,3],[47,1,47,5],[47,7,47,11],[56,1,56,5],[56,7,56,11],[58,1,58,11]]}
[]
[]
[]
[]
["N° Fiche"]
["Nom Projet",{"$f":"IF(Projet!C1=TRUE,Projet!C6,\"\")","v":""}]
["Nom du bassin versant"]
["Zone pluviométrique",null,{"$f":"IF(Projet!C1=TRUE,Projet!C7,\"\")","v":""}]
[]
[null,"Données bassin versant"]
[null,null,null,null,null,"Actuel",null,"Projet"]
[null,null,null,null,null,null,null,null,null,null,null,null,null,null,"Test"]
[null,"Surface (m²)",null,null,null,null,null,null,null,null,null,null,null,null,"Test IN 1",{"$f":"Projet!C1","v":false}]
[null,"Coefficient de ruissellement décennal (Cr)",null,null,null,null,null,null,null,null,null,null,null,null,"Test IN 2",{"$f":"IF(AND(F13<>\"\",F14<>\"\",F16<>\"\",F17<>\"\",F18<>\"\"),TRUE,FALSE)","v":false},null,{"$f":"IF(AND(H13<>\"\",H14<>\"\",H16<>\"\",H17<>\"\",H18<>\"\"),TRUE,FALSE)","v":false}]
[null,null,null,null,null,null,null,null,null,null,null,null,null,null,"Test IN 2 et 3",{"$f":"AND(P14,C39<>\"\",D39<>\"\")","v":false},null,{"$f":"AND(R14,I39<>\"\",J39<>\"\")","v":false}]
[null,"Plus long cheminement hydraulique  (m)",null,null,null,null,null,null,null,null,null,null,null,null,"Test QE IN 4",{"$f":"IF(AND(C39<>\"\",D39<>\"\"),TRUE,FALSE)","v":false}]
[null,"Altitude point haut (m)"]
[null,"Altitude point bas (m)",null,null,null,null,null,null,null,null,null,null,null,null,"Test IN 1 : Données de projet et pluie"]
[null,null,null,null,null,null,null,null,null,null,null,null,null,null,"Test In 2 : Données \"Données\""]
[null,"Pente",null,null,null,{"$f":"IF(P14=TRUE,(F17-F18)/F16,\"\")","v":""},null,{"$f":"IF(R14=TRUE,(H17-H18)/H16,\"\")","v":""},null,null,null,null,null,null,"Test In 3 : Données \"Calcul temps de concentration\""]
[null,null,null,null,null,null,null,null,null,null,null,null,null,null,"Test In 4 : Données Vitesse de \"Calcul temps de concentration\""]
[]
[null,"Données pluviographiques",null,null,null,null,null,null,null,null,null,null,null,null,"Type données",1]
[null,"Données de pluies utilisées",null,null,null,null,null,null,null,null,null,null,null,null,"Guide 2012"]
[null,"Si choix \"Guide 2012\", les paramètres de pluie ne sont pas à renseigner.",null,null,null,null,null,null,null,null,null,null,null,null,"Valeurs a et b ci-dessous"]
[null,null,null,null,"Durée de validité intervalle (mn)",null,null,"Avec : I (mm/heure)=a. t(heure)-b",null,null,null,null,null,null,"2 ans",{"$f":"AND(E28<>\"\",F28<>\"\")","v":false},{"$f":"AND(E28<>\"\",F28<>\"\",H28<>\"\",I28<>\"\")","v":false}]
[null,null,null,null,"tmin","tmax",null,"a","b",null,null,null,null,null,"5 ans",{"$f":"AND(E29<>\"\",F29<>\"\")","v":false},{"$f":"AND(E29<>\"\",F29<>\"\",H29<>\"\",I29<>\"\")","v":false}]
[null,null,"2 ans",null,null,null,null,null,null,{"$f":"IF(AND(P26,F28<=E28),\"Intervalle temps décroissant\",\"\")","v":""},null,null,null,null,"10 ans",{"$f":"AND(E30<>\"\",F30<>\"\")","v":false},{"$f":"AND(E30<>\"\",F30<>\"\",H30<>\"\",I30<>\"\")","v":false}]
[null,null,"5 ans",null,null,null,null,null,null,{"$f":"IF(AND(P27,F29<=E29),\"Intervalle temps décroissant\",\"\")","v":""},null,null,null,null,"20 ans",{"$f":"AND(E31<>\"\",F31<>\"\")","v":false},{"$f":"AND(E31<>\"\",F31<>\"\",H31<>\"\",I31<>\"\")","v":false}]
[null,null,"10 ans",null,null,null,null,null,null,"",null,null,null,null,"30 ans",{"$f":"AND(E32<>\"\",F32<>\"\")","v":false},{"$f":"AND(E32<>\"\",F32<>\"\",H32<>\"\",I32<>\"\")","v":false}]
[null,null,"20 ans",null,null,null,null,null,null,""]
[null,null,"30 ans",null,null,null,null,null,null,""]
[]
[null,null,null,null,null,null,null,null,null,null,null,null,null,null,"Paramètre pluie Guide 2012"]
[null,"Calcul du temps de concentration"]
[null,"Actuel",null,null,null,null,null,"Projet",null,null,null,null,null,null,"a","b"]
[null,null,null,null,null,null,null,null,null,null,null,null,null,null,{"$f":"Parametre!$B$11","v":""},{"$f":"Parametre!$C$11","v":""}]
["Tc : Méthode rectangles équivalent (mn)","Tronçon","L. tronçon\n(m)","V. tronçon (m/s)","Tci (mn)","Tc (mn)",null,"Tronçon","L. tronçon\n(m)","V. tronçon (m/s)","Tci","Tc (mn)"]
[null,1,null,null,{"$f":"IF(AND(C39<>0,D39<>0),C39/D39/60,\"\")","v":""},{"$f":"IF(AND(C39<>0,D39<>0),SUM(E39:E44),\"\")","v":""},null,1,null,null,{"$f":"IF(AND(I39<>0,J39<>0),I39/J39/60,\"\")","v":""},{"$f":"IF(AND(I39<>0,J39<>0),SUM(K39:K44),\"\")","v":""}]
[null,2,null,null,{"$f":"IF(AND(C40<>0,D40<>0),C40/D40/60,\"\")","v":""},null,null,2,null,null,{"$f":"IF(AND(I40<>0,J40<>0),I40/J40/60,\"\")","v":""}]
[null,3,null,null,"",null,null,3,null,null,""]
[null,4,null,null,"",null,null,4,null,null,""]
[null,5,null,null,"",null,null,5,null,null,""]
[null,6,null,null,"",null,null,6,null,null,""]
[]
["Tc :Kirpich2 (mn)",{"$f":"IF(P15,4*(F13/100/10000*F16/1000)^0.25/F20^0.375,\"\")","v":""},null,null,null,null,null,{"$f":"IF(R15,4*(H13/100/10000*H16/1000)^0.25/H20^0.375,\"\")","v":""}]
[]
["Tc : Richards (mn)"]
[]
["Itc Richards (mm/h)",null,null,null,null,{"$f":"$O$37*(0.186*LN(10)+0.572)*(B48/60)^-P37","v":{"$error":"#VALUE!"}},null,null,null,null,null,{"$f":"$O$37*(0.186*LN(10)+0.572)*(H48/60)^-0.33","v":{"$error":"#VALUE!"}}]
["Htc Richards (mm)",null,null,null,null,{"$f":"F50/60*B48","v":{"$error":"#VALUE!"}},null,null,null,null,null,{"$f":"L50/60*H48","v":{"$error":"#VALUE!"}}]
["R",null,null,null,null,{"$f":"F51+F51/(B48/60)","v":{"$error":"#VALUE!"}},null,null,null,null,null,{"$f":"L51+L51/(H48/60)","v":{"$error":"#VALUE!"}}]
["K",null,null,null,null,{"$f":"0.094/(F14*F52-8)^0.478","v":{"$error":"#VALUE!"}},null,null,null,null,null,{"$f":"0.094/(H14*L52-8)^0.478","v":{"$error":"#VALUE!"}}]
["A=Tc3/(Tc+1)",null,null,null,null,{"$f":"((B48/60)^3)/(B48/60+1)","v":0},null,null,null,null,null,{"$f":"((H48/60)^3)/(H48/60+1)","v":0}]
["B=9.81 KL²/(CRP)",null,null,null,null,{"$f":"((9.81*F53*(F16/1000)^2))/F14/F52/F20","v":{"$error":"#VALUE!"}},null,null,null,null,null,{"$f":"((9.81*L53*(H16/1000)^2))/H14/L52/H20","v":{"$error":"#VALUE!"}}]
["A=B",null,null,null,null,{"$f":"F54-F55","v":{"$error":"#VALUE!"}},null,null,null,null,null,{"$f":"L54-L55","v":{"$error":"#VALUE!"}}]
["Tc : Passini (mn)",{"$f":"IF(P15,0.108*(F13/100/10000*F16/1000)^(1/3)/SQRT(F20)*60,\"\")","v":""},null,null,null,null,null,{"$f":"IF(R15,0.108*(H13/100/10000*H16/1000)^(1/3)/SQRT(H20)*60,\"\")","v":""}]
[]
[null,"Calcul selon Guide 2012 et valeurs retenues"]
[null,"Tc Guide 2012 (mn)",null,{"$f":"IF(P14=TRUE,IF(F13/10000<=20,\" Moyenne : Méthode rectangles équivalents / Kirpich2 / Richards\",IF(AND(F13/10000>20,F13/10000<=200),\" Moyenne Méthode rectangles équivalents / Passini / Richards\",\"Passini / Richards\")),\"\")","v":""},null,null,null,"Tc Guide 2012 (mn)",null,{"$f":"IF(R14=TRUE,IF(H13/10000<=20,\" Moyenne : Méthode rectangles équivalents / Kirpich2 / Richards\",IF(AND(H13/10000>20,H13/10000<=200),\" Moyenne Méthode rectangles équivalents / Passini / Richards\",\"Passini / Richards\")),\"\")","v":""}]
[null,null,null,{"$f":"IF(P15,IF(F13/10000<=20,AVERAGE(F39,B46,B48),IF(AND(F13/10000>20,F13/10000<=200),AVERAGE(F39,B48,B57),AVERAGE(B48,B57))),\"\")","v":""},null,null,null,null,null,{"$f":"IF(R15,IF(H13/10000<=20,AVERAGE(L39,H46,H48),IF(AND(H13/10000>20,H13/10000<=200),AVERAGE(L39,H48,H57),AVERAGE(H48,H57))),\"\")","v":""}]
[]
[null,"Tc Actuel retenu (mn)",null,null,null,null,null,"Tc Projet retenu (mn)"]
[]
[null,"Résultats - débits",null,null,null,null,null,null,null,null,null,null,null,null,null,"Guide 2012",null,null,null,"Retenu",null,null,null,null,"Etat actuel",null,null,null,null,null,null,null,null,"Etat Projet"]
[null,null,"Actuel",null,null,null,null,"Projet",null,null,null,"Incidence",null,null,null,"Tmin","Tmax","a","b","Tmin","Tmax","a","b",null,"Tc","Données","Présence tc","Test a et b","Tc dans plage","Tc pas dans la plage + autre valeurs prsentes","I","Q",null,"Tc","Données","Présence tc","Test a et b","Tc dans plage","Tc pas dans la plage + autre valeurs prsentes","I","Q"]
[null,null,null,null,null,null,null,null,null,null,null,null,null,null,"2 ans",6,120,{"$f":"IF($O$37=\"\",\"\",$O$37*Parametre!B14)","v":""},{"$f":"$P$37","v":""},{"$f":"IF($P$23=1,P67,E28)","v":6},120,{"$f":"IF($P$23=1,R67,H28)","v":""},"",null,{"$f":"$F$63","v":0},{"$f":"$P$14","v":false},{"$f":"IF($F$63<>\"\",TRUE,FALSE)","v":false},{"$f":"AND($T67<>0,$U67<>0,V67<>0,W67<>0)","v":true},{"$f":"AND(Y67>=$T67,Y67<=$U67)","v":false},{"$f":"AND(NOT(AC67),AA67:AB67)","v":false},{"$f":"IF(AND(Z67:AC67),V67*(Y67/60)^-W67,\"\")","v":""},{"$f":"IF(AND(Z67:AC67),(1/6)*C69*AE67/60*$F$13/10000*1000,\"\")","v":""},null,{"$f":"$L$63","v":0},{"$f":"$R$14","v":false},{"$f":"IF($L$63<>\"\",TRUE,FALSE)","v":false},{"$f":"AND($T67<>0,$U67<>0,V67<>0,W67<>0)","v":true},{"$f":"AND(AH67>=$T67,AH67<=$U67)","v":false},{"$f":"AND(NOT(AL67),AJ67:AK67)","v":false},{"$f":"IF(AND(AI67:AL67),V67*(AH67/60)^-W67,\"\")","v":""},{"$f":"IF(AND(AI67:AL67),(1/6)*H69*AN67/60*$H$13/10000*1000,\"\")","v":""}]
[null,null,"Cr","I (mm/h)","Qea (l/s)",null,null,"Cr","I (mm/h)","Qep (l/s)",null,"Qep-Qea (l/s)",null,null,"5 ans",{"$f":"P67","v":6},120,{"$f":"IF($O$37=\"\",\"\",$O$37*Parametre!B15)","v":""},{"$f":"$P$37","v":""},6,120,"","",null,{"$f":"$F$63","v":0},{"$f":"$P$14","v":false},{"$f":"IF($F$63<>\"\",TRUE,FALSE)","v":false},{"$f":"AND($T68<>0,$U68<>0,V68<>0,W68<>0)","v":true},{"$f":"AND(Y68>=$T68,Y68<=$U68)","v":false},{"$f":"AND(NOT(AC68),AA68:AB68)","v":false},{"$f":"IF(AND(Z68:AC68),V68*(Y68/60)^-W68,\"\")","v":""},{"$f":"IF(AND(Z68:AC68),(1/6)*C70*AE68/60*$F$13/10000*1000,\"\")","v":""},null,{"$f":"$L$63","v":0},{"$f":"$R$14","v":false},{"$f":"IF($L$63<>\"\",TRUE,FALSE)","v":false},{"$f":"AND($T68<>0,$U68<>0,V68<>0,W68<>0)","v":true},{"$f":"AND(AH68>=$T68,AH68<=$U68)","v":false},{"$f":"AND(NOT(AL68),AJ68:AK68)","v":false},{"$f":"IF(AND(AI68:AL68),V68*(AH68/60)^-W68,\"\")","v":""},{"$f":"IF(AND(AI68:AL68),(1/6)*H70*AN68/60*$H$13/10000*1000,\"\")","v":""}]
[null,"2 ans",null,{"$f":"IF(AND(AA67:AC67),AE67,\"\")","v":""},{"$f":"IF(AND(C69<>\"\",D69<>\"\"),AF67,\"\")","v":""},null,null,null,{"$f":"IF(AND(AJ67:AL67),AN67,\"\")","v":""},{"$f":"IF(AND(H69<>\"\",I69<>\"\"),AO67,\"\")","v":""},null,{"$f":"IF(AND(E69<>\"\",J69<>\"\"),J69-E69,\"\")","v":""},null,null,"10 ans",{"$f":"P68","v":6},120,{"$f":"IF($O$37=\"\",\"\",$O$37*Parametre!B16)","v":""},"",6,120,"","",null,0,false,{"$f":"IF($F$63<>\"\",TRUE,FALSE)","v":false},true,false,false,"","",null,0,false,{"$f":"IF($L$63<>\"\",TRUE,FALSE)","v":false},true,false,false,"",""]
[null,"5 ans",null,{"$f":"IF(AND(AA68:AC68),AE68,\"\")","v":""},{"$f":"IF(AND(C70<>\"\",D70<>\"\"),AF68,\"\")","v":""},null,null,null,{"$f":"IF(AND(AJ68:AL68),AN68,\"\")","v":""},{"$f":"IF(AND(H70<>\"\",I70<>\"\"),AO68,\"\")","v":""},null,{"$f":"IF(AND(E70<>\"\",J70<>\"\"),J70-E70,\"\")","v":""},null,null,"20 ans",6,120,{"$f":"IF($O$37=\"\",\"\",$O$37*Parametre!B17)","v":""},"",6,120,"","",null,0,false,{"$f":"IF($F$63<>\"\",TRUE,FALSE)","v":false},true,false,false,"","",null,0,false,{"$f":"IF($L$63<>\"\",TRUE,FALSE)","v":false},true,false,false,"",""]
[null,"10 ans",{"$f":"IF(F14<>\"\",F14,\"\")","v":""},"",{"$f":"IF(AND(C71<>\"\",D71<>\"\"),AF69,\"\")","v":""},null,null,{"$f":"IF(H14<>\"\",H14,\"\")","v":""},"",{"$f":"IF(AND(H71<>\"\",I71<>\"\"),AO69,\"\")","v":""},null,"",null,null,"30 ans",6,120,{"$f":"IF($O$37=\"\",\"\",$O$37*Parametre!B18)","v":""},"",6,120,"","",null,0,false,{"$f":"IF($F$63<>\"\",TRUE,FALSE)","v":false},true,false,false,"","",null,0,false,{"$f":"IF($L$63<>\"\",TRUE,FALSE)","v":false},true,false,false,"",""]
[null,"20 ans",null,"",{"$f":"IF(AND(C72<>\"\",D72<>\"\"),AF70,\"\")","v":""},null,null,null,"",{"$f":"IF(AND(H72<>\"\",I72<>\"\"),AO70,\"\")","v":""},null,""]
[null,"30 ans",null,"",{"$f":"IF(AND(C73<>\"\",D73<>\"\"),AF71,\"\")","v":""},null,null,null,"",{"$f":"IF(AND(H73<>\"\",I73<>\"\"),AO71,\"\")","v":""},null,""]
[null,null,{"$f":"IF(OR(AD67:AD71),\"Tc hors zone validité coef. pluie\",\"\")","v":""},null,null,null,null,{"$f":"IF(OR(AM67:AM71),\"Tc hors zone validité coef. pluie\",\"\")","v":""}]
[{"$f":"CONCATENATE(\"Version \",(MAX('Liste versions'!$B$4:$B$30)),\" de la feuille Excel du \",DAY(MAX('Liste versions'!$A$4:$A$30)),\"/\",MONTH(MAX('Liste versions'!$A$4:$A$30)),\"/\",YEAR(MAX('Liste versions'!$A$4:$A$30)),\" -  hydro-expertise.com\")","v":"Version 5 de la feuille Excel du 21/4/2025 -  hydro-expertise.com"},null,null,null,null,null,null,null,null,null,{"$f":"Introduction!$H$43","v":"DEAL Réunion"}]

{"sheet":"Projet","index":4,"n_rows":43,"n_cols":8,"rows_kept":43,"cut":false,"hidden":false,"merged":[[8,0,8,1],[6,0,6,1],[5,2,5,7],[5,0,5,1]]}
[null,"Test 1",{"$f":"IF(AND(C7<>\"\"),TRUE,FALSE)","v":false},"Test zone pluie"]
[]
[]
[]
[]
["Nom du projet"]
["Zone pluie"]
[]
["Date"]
[]
[]
[]
[]
[]
[]
[]
[]
[]
[]
[]
[]
[]
[]
[]
[]
[]
[]
[]
[]
[]
[]
[]
[]
[]
[]
[]
[]
[]
[]
[]
[]
[]
[{"$f":"CONCATENATE(\"Version \",(MAX('Liste versions'!$B$4:$B$30)),\" de la feuille Excel du \",DAY(MAX('Liste versions'!$A$4:$A$30)),\"/\",MONTH(MAX('Liste versions'!$A$4:$A$30)),\"/\",YEAR(MAX('Liste versions'!$A$4:$A$30)),\" -  hydro-expertise.com\")","v":"Version 5 de la feuille Excel du 21/4/2025 -  hydro-expertise.com"},null,null,null,null,null,null,{"$f":"Introduction!$H$43","v":"DEAL Réunion"}]

{"sheet":"Coeff","index":5,"n_rows":51,"n_cols":12,"rows_kept":51,"cut":false,"hidden":true,"merged":[[19,0,19,1],[22,0,22,1],[26,0,26,1],[44,0,44,1],[33,0,33,1],[21,0,21,1],[4,1,4,6],[5,2,5,6],[6,0,6,1],[11,1,11,6],[31,1,31,6],[13,0,13,1],[14,0,14,1],[15,0,15,1],[16,0,16,1],[17,0,17,1],[20,0,20,1],[18,0,18,1],[8,0,8,6],[23,0,23,1],[24,0,24,1],[25,0,25,1],[45,0,45,1],[46,0,46,1],[34,0,34,1],[35,0,35,1],[36,0,36,1],[37,0,37,1],[38,0,38,1],[39,0,39,1],[40,0,40,1],[41,0,41,1],[42,0,42,1],[43,0,43,1]]}
[]
[]
[]
["N° Fiche"]
["Nom Projet",{"$f":"IF(Projet!C1=TRUE,Projet!C6,\"\")","v":""}]
["Nom du bassin versant"]
["Zone pluviométrique",null,{"$f":"IF(Projet!C1=TRUE,Projet!C7,\"\")","v":""}]
[]
["Période de retour des coefficients de ruissellements proposés"]
[]
[null,null,null,null,null,null,null,null,null,null,null,"Période de retour"]
[null,"Etat initial"]
[null,null,null,null,null,null,null,null,"Indicateur présence valeur","Indicateur complétude",null,2]
["Information complémentaire (optionnelle)",null,"Nature occupation des sols","Surface en m² (S)","Coefficient ruissel (Cr)","Surface active (S.Cr) en m²",null,null,{"$f":"OR(C15<>\"\",D15<>\"\",E15<>\"\")","v":false},{"$f":"AND(C15<>\"\",D15<>\"\",E15<>\"\")","v":false},{"$f":"IF(I14,AND(I14,J14),TRUE)","v":true},5]
[null,null,null,null,null,{"$f":"IF(AND(C15<>\"\",D15<>\"\",E15<>\"\"),D15*E15,\"\")","v":""},null,null,false,false,{"$f":"IF(I15,AND(I15,J15),TRUE)","v":true},10]
[null,null,null,null,null,{"$f":"IF(AND(C16<>\"\",D16<>\"\",E16<>\"\"),D16*E16,\"\")","v":""},null,null,false,false,true,20]
[null,null,null,null,null,"",null,null,false,false,true,30]
[null,null,null,null,null,"",null,null,false,false,true,"Retenue"]
[null,null,null,null,null,"",null,null,false,false,true,1]
[null,null,null,null,null,"",null,null,false,false,true]
[null,null,null,null,null,"",null,null,false,false,true]
[null,null,null,null,null,"",null,null,false,false,true]
[null,null,null,null,null,"",null,null,false,false,true]
[null,null,null,null,null,"",null,null,false,false,true]
[null,null,null,null,null,"",null,null,false,false,true]
[null,null,null,null,null,"",null,null,false,false,true]
[null,null,null,null,null,"",null,null,null,"Indicateur",{"$f":"AND(K14:K26)","v":true}]
[null,null,"Surface totale (ST) - m²",{"$f":"IF(AND(K27,SUM(F15:F27)>0,L19>1),SUM(D15:D27),\"\")","v":""},null,null,null,null,null,"Indicateur présence"]
[null,null,"Surface active totale (ST.Cm) - m²",{"$f":"IF(AND(K27,SUM(F15:F27)>0,L19>1),SUM(F15:F27),\"\")","v":""}]
[null,null,"Coeff. de ruissell. moyen (Cm)\nEtat initial",{"$f":"IF(AND(K27,SUM(F15:F27)>0,L19>1),D29/D28,\"\")","v":""}]
[]
[null,"Etat projet"]
[null,null,null,null,null,null,null,null,"Indicateur présence valeur","Indicateur complétude"]
["Information complémentaire (optionnelle)",null,"Nature occupation des sols","Surface en m² (S)","Coefficient ruissel (Cr)","Surface active (S.Cr) en m²",null,null,{"$f":"OR(C35<>\"\",D35<>\"\",E35<>\"\")","v":false},{"$f":"AND(C35<>\"\",D35<>\"\",E35<>\"\")","v":false},{"$f":"IF(I34,AND(I34,J34),TRUE)","v":true}]
[null,null,null,null,null,{"$f":"IF(AND(C35<>\"\",D35<>\"\",E35<>\"\"),D35*E35,\"\")","v":""},null,null,false,false,{"$f":"IF(I35,AND(I35,J35),TRUE)","v":true}]
[null,null,null,null,null,{"$f":"IF(AND(C36<>\"\",D36<>\"\",E36<>\"\"),D36*E36,\"\")","v":""},null,null,false,false,true]
[null,null,null,null,null,"",null,null,false,false,true]
[null,null,null,null,null,"",null,null,false,false,true]
[null,null,null,null,null,"",null,null,false,false,true]
[null,null,null,null,null,"",null,null,false,false,true]
[null,null,null,null,null,"",null,null,false,false,true]
[null,null,null,null,null,"",null,null,false,false,true]
[null,null,null,null,null,"",null,null,false,false,true]
[null,null,null,null,null,"",null,null,false,false,true]
[null,null,null,null,null,"",null,null,false,false,true]
[null,null,null,null,null,"",null,null,false,false,true]
[null,null,null,null,null,"",null,null,null,"Indicateur",{"$f":"AND(K34:K46)","v":true}]
[null,null,"Surface totale (ST) - m²",{"$f":"IF(AND(K47,SUM(F35:F47)>0,L19>1),SUM(D35:D47),\"\")","v":""}]
[null,null,"Surface active totale (ST.Cm) - m²",{"$f":"IF(AND(K47,SUM(F35:F47)>0,L19>1),SUM(F35:F47),\"\")","v":""}]
[null,null,"Coeff. de ruissell. moyen (Cm)\nEtat Projet",{"$f":"IF(AND(K47,SUM(F35:F47)>0,L19>1),D49/D48,\"\")","v":""}]
[{"$f":"CONCATENATE(\"Version \",(MAX('Liste versions'!$B$4:$B$30)),\" de la feuille Excel du \",DAY(MAX('Liste versions'!$A$4:$A$30)),\"/\",MONTH(MAX('Liste versions'!$A$4:$A$30)),\"/\",YEAR(MAX('Liste versions'!$A$4:$A$30)),\" -  hydro-expertise.com\")","v":"Version 5 de la feuille Excel du 21/4/2025 -  hydro-expertise.com"},null,null,null,null,null,"DEAL Réunion"]

{"sheet":"Stockage","index":6,"n_rows":5762,"n_cols":49,"rows_kept":1125,"cut":true,"hidden":true,"merged":[[50,2,50,5],[14,0,14,9],[16,1,16,6],[18,1,18,6],[31,2,31,5],[30,2,30,5],[21,0,21,9],[47,0,47,9],[38,2,38,3],[28,0,28,9],[34,0,34,9],[17,1,17,6],[49,2,49,5],[52,8,52,9],[0,15,0,25],[1,15,1,16],[2,27,2,28],[3,27,3,28],[4,27,4,28],[1,27,1,28],[6,27,7,28],[1,1,1,9],[2,3,2,9],[23,0,23,3],[24,0,24,3],[2,0,2,2],[3,0,3,2],[3,3,3,9],[4,0,4,1],[6,0,6,9],[8,27,8,28],[25,0,25,3],[23,6,23,8],[24,6,24,8],[25,6,25,8],[8,0,8,9],[10,0,10,9],[11,0,11,9],[9,0,9,9]],"bounds":{"rows_first":500,"rows_last":125,"rows_between":500,"halvings":2}}
["N° Fiche",null,null,null,null,null,null,null,null,null,null," Données générales/données débits de fuite","Test1 (données entrées)",{"$f":"IF(AND(H17<>\"\",H18<>\"\",H19<>\"\",E24<>\"\"),TRUE,FALSE)","v":false},null,"Méthode des pluies - débits fixe  + pluie Guide 2012",null,null,null,null,null,null,null,null,null,null,null,null,null,"Intervalle 1","Intervalle 2","Intervalle 3"]
["Nom Projet",{"$f":"IF(Projet!C1=TRUE,Projet!C6,\"\")","v":""},null,null,null,null,null,null,null,null,null,"Débit infiltration >0","Test 5 (infiltration)",{"$f":"IF(E25>0,TRUE,FALSE)","v":false},null,"Montana Guide 2012",null,"t\n(mn)","Pluie cumulée\n(mm)","VEntrant (m3)","VSortant (m3)","VStocké (m3)","Indicateur croissance","Vmax","Tmax","Test QF2 (T>120)",null,"Test Présence données",null,{"$f":"OR(C41<>\"\",D41<>\"\",E41<>\"\",F41<>\"\")","v":false},{"$f":"OR(C42<>\"\",D42<>\"\",E42<>\"\",F42<>\"\")","v":false},{"$f":"OR(C43<>\"\",D43<>\"\",E43<>\"\",F43<>\"\")","v":false},null,"t\n(mn)","Validité intervalle1","Pluie cumulée Intervalle1","Validité intervalle2","Pluie cumulée Intervalle2","Validité intervalle3","Pluie cumulée Intervalle3","Pluie cumulée\n(mm)","VEntrant (m3)","VSortant (m3)","VStocké (m3)","Indicateur max","Vmax","Tmax","Max intevalle","Test QF4 (T>max)"]
["Nom du BV",null,null,null,null,null,null,null,null,null,null,"Test présence Surface infiltration et Perméabilité","Test 6 (données inflitration )",{"$f":"IF(AND(J24<>\"\",J25<>\"\"),TRUE,FALSE)","v":false},null,"a",{"$f":"Parametre!$B$11*(0.186*LN(H19)+0.572)","v":{"$error":"#VALUE!"}},0,0,{"$f":"S3*$H$17*$H$18/1000","v":0},{"$f":"$E$26/1000*R3*60","v":{"$error":"#VALUE!"}},{"$f":"T3-U3","v":{"$error":"#VALUE!"}},0,{"$f":"MAX(V3:V124)","v":{"$error":"#VALUE!"}},{"$f":"MAX(W3:W124)","v":{"$error":"#VALUE!"}},{"$f":"IF(Y3>120,TRUE,FALSE)","v":{"$error":"#VALUE!"}},null,"Test Présence données complètes",null,{"$f":"IF(AND(C41<>\"\",D41<>\"\",E41<>\"\",F41<>\"\"),TRUE,FALSE)","v":false},{"$f":"IF(AND(C42<>\"\",D42<>\"\",E42<>\"\",F42<>\"\"),TRUE,FALSE)","v":false},{"$f":"IF(AND(C43<>\"\",D43<>\"\",E43<>\"\",F43<>\"\"),TRUE,FALSE)","v":false},null,{"$f":"C41","v":0},{"$f":"IF(AND(AH3>=$C$41,AH3<=$D$41),1,0)","v":1},{"$f":"$E$41*(AH3/60)^-$F$41*AH3/60*AI3","v":{"$error":"#NUM!"}},{"$f":"IF(AI3=1,0,IF(AND(AH3>$C$42,AH3<=$D$42),1,0))","v":0},0,{"$f":"IF(OR(AI3=1,AK3=1),0,IF(AND(AH3>$C$43,AH3<=$D$43),1,0))","v":0},0,{"$f":"AJ3+AL3+AN3","v":{"$error":"#NUM!"}},{"$f":"AO3*$H$17*$H$18/1000","v":{"$error":"#NUM!"}},{"$f":"$E$26/1000*AH3*60","v":{"$error":"#VALUE!"}},{"$f":"AP3-AQ3","v":{"$error":"#NUM!"}},{"$f":"IF(AR3=MAX($AR$3:$AR$5762),AH3,\"\")","v":{"$error":"#NUM!"}},{"$f":"MAX(AR3:AR5762)","v":{"$error":"#NUM!"}},{"$f":"MAX(AS3:AS5762)","v":{"$error":"#NUM!"}},{"$f":"IF(AD9,MAX(D41:D43),\"\")","v":0},{"$f":"IF(AU3>=AV3,TRUE,FALSE)","v":{"$error":"#NUM!"}}]
["Nom Stockage",null,null,{"$f":"IF(D3<>\"\",CONCATENATE(\"S_\",D3),\"\")","v":""},null,null,null,null,null,null,null,"Calcul possible tte données présentes y compris infiltration","Test 7 (calcul possible)",{"$f":"IF(N2=FALSE,N1,AND(N1,N3))","v":false},null,"b",{"$f":"Parametre!$C$11","v":""},1,{"$f":"$Q$3*(R4/60)^-0.33*R4/60","v":{"$error":"#VALUE!"}},{"$f":"S4*$H$17*$H$18/1000","v":{"$error":"#VALUE!"}},{"$error":"#VALUE!"},{"$f":"T4-U4","v":{"$error":"#VALUE!"}},{"$f":"IF(V4>V3,R4,\"\")","v":{"$error":"#VALUE!"}},null,null,null,null,"Test croissance limites intervalles ",null,{"$f":"IF(AD3,IF(D41>=C41,TRUE,FALSE),\"\")","v":""},{"$f":"IF(AE3,IF(D42>=C42,TRUE,FALSE),\"\")","v":""},{"$f":"IF(AF3,IF(D43>=C43,TRUE,FALSE),\"\")","v":""},null,{"$f":"AH3+1","v":1},{"$f":"IF(AND(AH4>$C$41,AH4<=$D$41),1,0)","v":0},{"$f":"$E$41*(AH4/60)^-$F$41*AH4/60*AI4","v":0},0,{"$f":"$E$42*((AH4/60)^-$F$42*AH4/60*AK4)","v":0},{"$f":"IF(OR(AI4=1,AK4=1),0,IF(AND(AH4>$C$43,AH4<=$D$43),1,0))","v":0},{"$f":"$E$42*(AH4/60)^-$F$42*AH4/60*AM4","v":0},{"$f":"AJ4+AL4+AN4","v":0},{"$f":"AO4*$H$17*$H$18/1000","v":0},{"$f":"$E$26/1000*AH4*60","v":{"$error":"#VALUE!"}},{"$f":"AP4-AQ4","v":{"$error":"#VALUE!"}},{"$f":"IF(AR4=MAX($AR$3:$AR$5762),AH4,\"\")","v":{"$error":"#VALUE!"}},null,null,null,"Test QF5 (T>max)"]
["Zone pluviométrique",null,{"$f":"IF(Projet!C1=TRUE,Projet!C7,\"\")","v":""},null,null,null,null,null,null,null,null,null,null,null,null,null,null,2,{"$error":"#VALUE!"},{"$error":"#VALUE!"},{"$error":"#VALUE!"},{"$error":"#VALUE!"},{"$f":"IF(V5>V4,R5,\"\")","v":{"$error":"#VALUE!"}},null,null,null,null,"Test Abscence trou",null,null,{"$f":"IF(AE3,IF(C42>D41,FALSE,TRUE),\"\")","v":""},{"$f":"IF(AF3,IF(C43>D42,FALSE,TRUE),\"\")","v":""},null,{"$f":"AH4+1","v":2},0,{"$f":"$E$41*(AH5/60)^-$F$41*AH5/60*AI5","v":0},0,{"$f":"$E$42*((AH5/60)^-$F$42*AH5/60*AK5)","v":0},0,{"$f":"$E$42*(AH5/60)^-$F$42*AH5/60*AM5","v":0},0,0,{"$f":"$E$26/1000*AH5*60","v":{"$error":"#VALUE!"}},{"$error":"#VALUE!"},{"$error":"#VALUE!"},null,null,null,{"$f":"IF(AU3=$C$41,TRUE,FALSE)","v":{"$error":"#NUM!"}}]
[null,null,null,null,null,null,null,null,null,null,null,null,"Code",null,null,null,null,3,{"$error":"#VALUE!"},{"$error":"#VALUE!"},{"$error":"#VALUE!"},{"$error":"#VALUE!"},{"$error":"#VALUE!"},null,null,null,null,null,null,null,null,null,null,3,0,0,0,0,0,0,0,0,{"$error":"#VALUE!"},{"$error":"#VALUE!"},{"$error":"#VALUE!"},null,null,null,"Test QF5 - dépassement calcul"]
["Description synthétique du stockage",null,null,null,null,null,null,null,null,null,null,null,null,null,null,null,null,4,{"$error":"#VALUE!"},{"$error":"#VALUE!"},{"$error":"#VALUE!"},{"$error":"#VALUE!"},{"$error":"#VALUE!"},null,null,null,null,"Verification données : 0 pas de données, 1 données Ok, 2 décroissante, 3 trou, 4 décroissant et trou)",null,{"$f":"_xlfn.IFS(AD3=FALSE,0,AD4=TRUE,1,AD4=FALSE,2)","v":0},{"$f":"_xlfn.IFS(AE3=FALSE,0,AND(AE4=TRUE,AE5=TRUE),1,AND(AE4=FALSE,AE5=FALSE),4,AE4=FALSE,2,AE5=FALSE,3)","v":0},{"$f":"_xlfn.IFS(AF3=FALSE,0,AND(AF4=TRUE,AF5=TRUE),1,AND(AF4=FALSE,AF5=FALSE),4,AF4=FALSE,2,AF5=FALSE,3)","v":0},null,4,0,0,0,0,0,0,0,0,{"$error":"#VALUE!"},{"$error":"#VALUE!"},{"$error":"#VALUE!"},null,null,null,{"$f":"IF(AH5762=AU3,TRUE, FALSE)","v":{"$error":"#NUM!"}}]
[null,null,null,null,null,null,null,null,null,null,null,null,null,null,null,null,null,5,{"$error":"#VALUE!"},{"$error":"#VALUE!"},{"$error":"#VALUE!"},{"$error":"#VALUE!"},{"$error":"#VALUE!"},null,null,null,null,null,null,null,null,null,null,5,0,0,0,0,0,0,0,0,{"$error":"#VALUE!"},{"$error":"#VALUE!"},{"$error":"#VALUE!"}]
[null,null,null,null,null,null,null,null,null,null,null,"Message",null,null,null,null,null,6,{"$error":"#VALUE!"},{"$error":"#VALUE!"},{"$error":"#VALUE!"},{"$error":"#VALUE!"},{"$error":"#VALUE!"},null,null,null,null,"QF3 Validité pluie",null,{"$f":"IF(AND(OR(AD7=1,AD7=0),OR(AE7=1,AE7=0),OR(AF7=1,AF7=0)),TRUE,FALSE)","v":true},null,null,null,6,0,0,0,0,0,0,0,0,{"$error":"#VALUE!"},{"$error":"#VALUE!"},{"$error":"#VALUE!"}]
[null,null,null,null,null,null,null,null,null,null,null,"Zone pluviométrique non renseignée",null,{"$f":"Projet!C1","v":false},null,null,null,7,{"$error":"#VALUE!"},{"$error":"#VALUE!"},{"$error":"#VALUE!"},{"$error":"#VALUE!"},{"$error":"#VALUE!"},null,null,null,null,null,null,null,null,null,null,7,0,0,0,0,0,0,0,0,{"$error":"#VALUE!"},{"$error":"#VALUE!"},{"$error":"#VALUE!"}]
[null,null,null,null,null,null,null,null,null,null,null,"Données incomplétes",null,{"$f":"N1","v":false},null,null,null,8,{"$error":"#VALUE!"},{"$error":"#VALUE!"},{"$error":"#VALUE!"},{"$error":"#VALUE!"},{"$error":"#VALUE!"},null,null,null,null,null,null,null,null,null,null,8,0,0,0,0,0,0,0,0,{"$error":"#VALUE!"},{"$error":"#VALUE!"},{"$error":"#VALUE!"}]
[null,null,null,null,null,null,null,null,null,null,null,"Débit de fuite par infiltration mais données infiltration non renseignées",null,{"$f":"N4","v":false},null,null,null,9,{"$error":"#VALUE!"},{"$error":"#VALUE!"},{"$error":"#VALUE!"},{"$error":"#VALUE!"},{"$error":"#VALUE!"},null,null,null,null,null,null,null,null,null,null,9,0,0,0,0,0,0,0,0,{"$error":"#VALUE!"},{"$error":"#VALUE!"},{"$error":"#VALUE!"}]
[null,null,null,null,null,null,null,null,null,null,null,"Durée de remplissage > 2 h, données de pluies non valides.",null,{"$f":"Z3","v":{"$error":"#VALUE!"}},null,null,null,10,{"$error":"#VALUE!"},{"$error":"#VALUE!"},{"$error":"#VALUE!"},{"$error":"#VALUE!"},{"$error":"#VALUE!"},null,null,null,null,null,null,null,null,null,null,10,0,0,0,0,0,0,0,0,{"$error":"#VALUE!"},{"$error":"#VALUE!"},{"$error":"#VALUE!"}]
[null,null,null,null,null,null,null,null,null,null,null,null,null,null,null,null,null,11,{"$error":"#VALUE!"},{"$error":"#VALUE!"},{"$error":"#VALUE!"},{"$error":"#VALUE!"},{"$error":"#VALUE!"},null,null,null,null,null,null,null,null,null,null,11,0,0,0,0,0,0,0,0,{"$error":"#VALUE!"},{"$error":"#VALUE!"},{"$error":"#VALUE!"}]
["Données générales",null,null,null,null,null,null,null,null,null,null,null,null,null,null,null,null,12,{"$error":"#VALUE!"},{"$error":"#VALUE!"},{"$error":"#VALUE!"},{"$error":"#VALUE!"},{"$error":"#VALUE!"},null,null,null,null,null,null,null,null,null,null,12,0,0,0,0,0,0,0,0,{"$error":"#VALUE!"},{"$error":"#VALUE!"},{"$error":"#VALUE!"}]
[null,null,null,null,null,null,null,null,null,null,null,null,null,null,null,null,null,13,{"$error":"#VALUE!"},{"$error":"#VALUE!"},{"$error":"#VALUE!"},{"$error":"#VALUE!"},{"$error":"#VALUE!"},null,null,null,null,null,null,null,null,null,null,13,0,0,0,0,0,0,0,0,{"$error":"#VALUE!"},{"$error":"#VALUE!"},{"$error":"#VALUE!"}]
[null,"Surface (m²)",null,null,null,null,null,null,null,null,null,null,null,null,null,null,null,14,{"$error":"#VALUE!"},{"$error":"#VALUE!"},{"$error":"#VALUE!"},{"$error":"#VALUE!"},{"$error":"#VALUE!"},null,null,null,null,"Test données présentes et complètes",null,{"$f":"AND(F37<>\"\",C41<>\"\",D41<>\"\",E41<>\"\",F41<>\"\")","v":false},{"$f":"AND(AF2,AF3)","v":false},null,null,14,0,0,0,0,0,0,0,0,{"$error":"#VALUE!"},{"$error":"#VALUE!"},{"$error":"#VALUE!"}]
[null,"Coefficient d'écoulement (ou ruissellement)",null,null,null,null,null,null,null,null,null,null,null,null,null,null,null,15,{"$error":"#VALUE!"},{"$error":"#VALUE!"},{"$error":"#VALUE!"},{"$error":"#VALUE!"},{"$error":"#VALUE!"},null,null,null,null,null,null,null,null,null,null,15,0,0,0,0,0,0,0,0,{"$error":"#VALUE!"},{"$error":"#VALUE!"},{"$error":"#VALUE!"}]
[null,"Période de retour dimensionnement (année)",null,null,null,null,null,null,null,null,null,null,null,null,null,null,null,16,{"$error":"#VALUE!"},{"$error":"#VALUE!"},{"$error":"#VALUE!"},{"$error":"#VALUE!"},{"$error":"#VALUE!"},null,null,null,null,null,null,null,null,null,null,16,0,0,0,0,0,0,0,0,{"$error":"#VALUE!"},{"$error":"#VALUE!"},{"$error":"#VALUE!"}]
[null,null,null,null,null,null,null,null,null,null,null,null,null,null,null,null,null,17,{"$error":"#VALUE!"},{"$error":"#VALUE!"},{"$error":"#VALUE!"},{"$error":"#VALUE!"},{"$error":"#VALUE!"},null,null,null,null,null,null,null,null,null,null,17,0,0,0,0,0,0,0,0,{"$error":"#VALUE!"},{"$error":"#VALUE!"},{"$error":"#VALUE!"}]
[null,null,null,null,null,null,null,null,null,null,null,null,null,null,null,null,null,18,{"$error":"#VALUE!"},{"$error":"#VALUE!"},{"$error":"#VALUE!"},{"$error":"#VALUE!"},{"$error":"#VALUE!"},null,null,null,null,null,null,null,null,null,null,18,0,0,0,0,0,0,0,0,{"$error":"#VALUE!"},{"$error":"#VALUE!"},{"$error":"#VALUE!"}]
["Données débit de fuite",null,null,null,null,null,null,null,null,null,null,null,null,null,null,null,null,19,{"$error":"#VALUE!"},{"$error":"#VALUE!"},{"$error":"#VALUE!"},{"$error":"#VALUE!"},{"$error":"#VALUE!"},null,null,null,null,null,null,null,null,null,null,19,0,0,0,0,0,0,0,0,{"$error":"#VALUE!"},{"$error":"#VALUE!"},{"$error":"#VALUE!"}]
[null,null,null,null,null,null,"Si infiltration :",null,null,null,null,null,null,null,null,null,null,20,{"$error":"#VALUE!"},{"$error":"#VALUE!"},{"$error":"#VALUE!"},{"$error":"#VALUE!"},{"$error":"#VALUE!"},null,null,null,null,null,null,null,null,null,null,20,0,0,0,0,0,0,0,0,{"$error":"#VALUE!"},{"$error":"#VALUE!"},{"$error":"#VALUE!"}]
["Débit fuite exutoire surface libre (l/s)",null,null,null,null,null,"Surface infiltration (m²)",null,null,null,null,null,null,null,null,null,null,21,{"$error":"#VALUE!"},{"$error":"#VALUE!"},{"$error":"#VALUE!"},{"$error":"#VALUE!"},{"$error":"#VALUE!"},null,null,null,null,null,null,null,null,null,null,21,0,0,0,0,0,0,0,0,{"$error":"#VALUE!"},{"$error":"#VALUE!"},{"$error":"#VALUE!"}]
["Débit fuite infiltré (l/s)",null,null,null,null,null,"Perméabilité (mm/h)",null,null,null,null,null,null,null,null,null,null,22,{"$error":"#VALUE!"},{"$error":"#VALUE!"},{"$error":"#VALUE!"},{"$error":"#VALUE!"},{"$error":"#VALUE!"},null,null,null,null,null,null,null,null,null,null,22,0,0,0,0,0,0,0,0,{"$error":"#VALUE!"},{"$error":"#VALUE!"},{"$error":"#VALUE!"}]
["Total débit de fuite (l/s)",null,null,null,{"$f":"IF(OR(E24<>\"\",E25<>\"\"),E24+E25,\"\")","v":""},null,"Débit infiltré calc. l/s",null,null,{"$f":"IF(N3,J24*J25/3600,\"\")","v":""},null,null,null,null,null,null,null,23,{"$error":"#VALUE!"},{"$error":"#VALUE!"},{"$error":"#VALUE!"},{"$error":"#VALUE!"},{"$error":"#VALUE!"},null,null,null,null,null,null,null,null,null,null,23,0,0,0,0,0,0,0,0,{"$error":"#VALUE!"},{"$error":"#VALUE!"},{"$error":"#VALUE!"}]
[null,null,null,null,null,null,null,null,null,null,null,null,null,null,null,null,null,24,{"$error":"#VALUE!"},{"$error":"#VALUE!"},{"$error":"#VALUE!"},{"$error":"#VALUE!"},{"$error":"#VALUE!"},null,null,null,null,null,null,null,null,null,null,24,0,0,0,0,0,0,0,0,{"$error":"#VALUE!"},{"$error":"#VALUE!"},{"$error":"#VALUE!"}]
[null,null,null,null,null,null,null,null,null,null,null,null,null,null,null,null,null,25,{"$error":"#VALUE!"},{"$error":"#VALUE!"},{"$error":"#VALUE!"},{"$error":"#VALUE!"},{"$error":"#VALUE!"},null,null,null,null,null,null,null,null,null,null,25,0,0,0,0,0,0,0,0,{"$error":"#VALUE!"},{"$error":"#VALUE!"},{"$error":"#VALUE!"}]
["Résultats avec données pluie Guide 2012",null,null,null,null,null,null,null,null,null,null,null,null,null,null,null,null,26,{"$error":"#VALUE!"},{"$error":"#VALUE!"},{"$error":"#VALUE!"},{"$error":"#VALUE!"},{"$error":"#VALUE!"},null,null,null,null,null,null,null,null,null,null,26,0,0,0,0,0,0,0,0,{"$error":"#VALUE!"},{"$error":"#VALUE!"},{"$error":"#VALUE!"}]
[null,null,null,null,null,null,null,null,null,null,null,null,null,null,null,null,null,27,{"$error":"#VALUE!"},{"$error":"#VALUE!"},{"$error":"#VALUE!"},{"$error":"#VALUE!"},{"$error":"#VALUE!"},null,null,null,null,null,null,null,null,null,null,27,0,0,0,0,0,0,0,0,{"$error":"#VALUE!"},{"$error":"#VALUE!"},{"$error":"#VALUE!"}]
[null,null,"Volume marnant à stocker (m3)",null,null,null,null,null,null,null,null,null,null,null,null,null,null,28,{"$error":"#VALUE!"},{"$error":"#VALUE!"},{"$error":"#VALUE!"},{"$error":"#VALUE!"},{"$f":"IF(V31>V30,R31,\"\")","v":{"$error":"#VALUE!"}},null,null,null,null,null,null,null,null,null,null,28,0,0,0,0,0,0,0,0,{"$error":"#VALUE!"},{"$error":"#VALUE!"},{"$error":"#VALUE!"}]
[null,null,"Temps remplissage max (mn)",null,null,null,null,null,null,null,null,null,null,null,null,null,null,29,{"$error":"#VALUE!"},{"$error":"#VALUE!"},{"$error":"#VALUE!"},{"$error":"#VALUE!"},{"$f":"IF(V32>V31,R32,\"\")","v":{"$error":"#VALUE!"}},null,null,null,null,null,null,null,null,null,null,29,0,0,0,0,0,0,0,0,{"$error":"#VALUE!"},{"$error":"#VALUE!"},{"$error":"#VALUE!"}]
[null,null,null,null,null,null,null,null,null,null,null,null,null,null,null,null,null,30,{"$error":"#VALUE!"},{"$error":"#VALUE!"},{"$error":"#VALUE!"},{"$error":"#VALUE!"},{"$error":"#VALUE!"},null,null,null,null,null,null,null,null,null,null,30,0,0,0,0,0,0,0,0,{"$error":"#VALUE!"},{"$error":"#VALUE!"},{"$error":"#VALUE!"}]
[null,null,null,null,null,null,null,null,null,null,null,null,null,null,null,null,null,31,{"$error":"#VALUE!"},{"$error":"#VALUE!"},{"$error":"#VALUE!"},{"$error":"#VALUE!"},{"$error":"#VALUE!"},null,null,null,null,null,null,null,null,null,null,31,0,0,0,0,0,0,0,0,{"$error":"#VALUE!"},{"$error":"#VALUE!"},{"$error":"#VALUE!"}]
["Données de pluie optionnelles  : Nécessaires si durée remplissage max. supérieure à 2 h",null,null,null,null,null,null,null,null,null,null,null,null,null,null,null,null,32,{"$error":"#VALUE!"},{"$error":"#VALUE!"},{"$f":"$E$26/1000*R35*60","v":{"$error":"#VALUE!"}},{"$error":"#VALUE!"},{"$error":"#VALUE!"},null,null,null,null,null,null,null,null,null,null,32,0,0,0,0,0,0,0,0,{"$error":"#VALUE!"},{"$error":"#VALUE!"},{"$error":"#VALUE!"}]
[null,null,null,null,null,null,null,null,null,null,null,null,null,null,null,null,null,33,{"$f":"$Q$3*(R36/60)^-0.33*R36/60","v":{"$error":"#VALUE!"}},{"$error":"#VALUE!"},{"$error":"#VALUE!"},{"$error":"#VALUE!"},{"$error":"#VALUE!"},null,null,null,null,null,null,null,null,null,null,33,0,0,0,0,0,0,0,0,{"$error":"#VALUE!"},{"$error":"#VALUE!"},{"$error":"#VALUE!"}]
[null,"Période de retour pluie (année)",null,null,null,null,null,null,null,null,null,null,null,null,null,null,null,34,{"$error":"#VALUE!"},{"$error":"#VALUE!"},{"$error":"#VALUE!"},{"$error":"#VALUE!"},{"$error":"#VALUE!"},null,null,null,null,null,null,null,null,null,null,34,0,0,0,0,0,0,0,0,{"$error":"#VALUE!"},{"$error":"#VALUE!"},{"$error":"#VALUE!"}]
[null,null,null,null,null,null,null,null,null,null,null,null,null,null,null,null,null,35,{"$error":"#VALUE!"},{"$error":"#VALUE!"},{"$error":"#VALUE!"},{"$error":"#VALUE!"},{"$error":"#VALUE!"},null,null,null,null,null,null,null,null,null,null,35,0,0,0,0,0,0,0,0,{"$error":"#VALUE!"},{"$error":"#VALUE!"},{"$error":"#VALUE!"}]
[null,null,"Durée de validité intervalle (mn)",null,"Avec : I (mm/heure)=a. t(heure)-b",null,null,null,null,null,null,null,null,null,null,null,null,36,{"$error":"#VALUE!"},{"$error":"#VALUE!"},{"$error":"#VALUE!"},{"$error":"#VALUE!"},{"$error":"#VALUE!"},null,null,null,null,null,null,null,null,null,null,36,0,0,0,0,0,0,0,0,{"$error":"#VALUE!"},{"$error":"#VALUE!"},{"$error":"#VALUE!"}]
[null,"Intervalle","tmin","tmax","a","b",null,null,null,null,null,null,null,null,null,null,null,37,{"$error":"#VALUE!"},{"$error":"#VALUE!"},{"$error":"#VALUE!"},{"$error":"#VALUE!"},{"$error":"#VALUE!"},null,null,null,null,null,null,null,null,null,null,37,0,0,0,0,0,0,0,0,{"$error":"#VALUE!"},{"$error":"#VALUE!"},{"$error":"#VALUE!"}]
[null,1,null,null,null,null,null,null,null,null,null,null,null,null,null,null,null,38,{"$error":"#VALUE!"},{"$error":"#VALUE!"},{"$error":"#VALUE!"},{"$error":"#VALUE!"},{"$error":"#VALUE!"},null,null,null,null,null,null,null,null,null,null,38,0,0,0,0,0,0,0,0,{"$error":"#VALUE!"},{"$error":"#VALUE!"},{"$error":"#VALUE!"}]
[null,2,null,null,null,null,null,null,null,null,null,null,null,null,null,null,null,39,{"$error":"#VALUE!"},{"$error":"#VALUE!"},{"$error":"#VALUE!"},{"$error":"#VALUE!"},{"$error":"#VALUE!"},null,null,null,null,null,null,null,null,null,null,39,0,0,0,0,0,0,0,0,{"$error":"#VALUE!"},{"$error":"#VALUE!"},{"$error":"#VALUE!"}]
[null,3,null,null,null,null,null,null,null,null,null,null,null,null,null,null,null,40,{"$error":"#VALUE!"},{"$error":"#VALUE!"},{"$error":"#VALUE!"},{"$error":"#VALUE!"},{"$error":"#VALUE!"},null,null,null,null,null,null,null,null,null,null,40,0,0,0,0,0,0,0,0,{"$error":"#VALUE!"},{"$error":"#VALUE!"},{"$error":"#VALUE!"}]
["Nota : Les données de pluie doivent couvrir le temps de remplissage maxi.",null,null,null,null,null,null,null,null,null,null,null,null,null,null,null,null,41,{"$error":"#VALUE!"},{"$error":"#VALUE!"},{"$error":"#VALUE!"},{"$error":"#VALUE!"},{"$error":"#VALUE!"},null,null,null,null,null,null,null,null,null,null,41,0,0,0,0,0,0,0,0,{"$error":"#VALUE!"},{"$error":"#VALUE!"},{"$error":"#VALUE!"}]
["Au minimum, un intervalle est requis pour les calculs.",null,null,null,null,null,null,null,null,null,null,null,null,null,null,null,null,42,{"$error":"#VALUE!"},{"$error":"#VALUE!"},{"$error":"#VALUE!"},{"$error":"#VALUE!"},{"$error":"#VALUE!"},null,null,null,null,null,null,null,null,null,null,42,0,0,0,0,0,0,0,0,{"$error":"#VALUE!"},{"$error":"#VALUE!"},{"$error":"#VALUE!"}]
["Les intervalles sont croissants. Ils peuvent se chevaucher mais ne peuvent présenter de discontinuités.",null,null,null,null,null,null,null,null,null,null,null,null,null,null,null,null,43,{"$error":"#VALUE!"},{"$error":"#VALUE!"},{"$error":"#VALUE!"},{"$error":"#VALUE!"},{"$error":"#VALUE!"},null,null,null,null,null,null,null,null,null,null,43,0,0,0,0,0,0,0,0,{"$error":"#VALUE!"},{"$error":"#VALUE!"},{"$error":"#VALUE!"}]
[null,null,null,null,null,null,null,null,null,null,null,null,null,null,null,null,null,44,{"$error":"#VALUE!"},{"$error":"#VALUE!"},{"$error":"#VALUE!"},{"$error":"#VALUE!"},{"$error":"#VALUE!"},null,null,null,null,null,null,null,null,null,null,44,0,0,0,0,0,0,0,0,{"$error":"#VALUE!"},{"$error":"#VALUE!"},{"$error":"#VALUE!"}]
["Résultats avec données pluie Optionnelle",null,null,null,null,null,null,null,null,null,null,null,null,null,null,null,null,45,{"$error":"#VALUE!"},{"$error":"#VALUE!"},{"$error":"#VALUE!"},{"$error":"#VALUE!"},{"$error":"#VALUE!"},null,null,null,null,null,null,null,null,null,null,45,0,0,0,0,0,0,0,0,{"$error":"#VALUE!"},{"$error":"#VALUE!"},{"$error":"#VALUE!"}]
[null,null,null,null,null,null,null,null,null,null,null,null,null,null,null,null,null,46,{"$error":"#VALUE!"},{"$error":"#VALUE!"},{"$error":"#VALUE!"},{"$error":"#VALUE!"},{"$error":"#VALUE!"},null,null,null,null,null,null,null,null,null,null,46,0,0,0,0,0,0,0,0,{"$error":"#VALUE!"},{"$error":"#VALUE!"},{"$error":"#VALUE!"}]
[null,null,"Volume marnant à stocker (m3)",null,null,null,null,null,null,null,null,null,null,null,null,null,null,47,{"$error":"#VALUE!"},{"$error":"#VALUE!"},{"$error":"#VALUE!"},{"$error":"#VALUE!"},{"$error":"#VALUE!"},null,null,null,null,null,null,null,null,null,null,47,0,0,0,0,0,0,0,0,{"$error":"#VALUE!"},{"$error":"#VALUE!"},{"$error":"#VALUE!"}]
[null,null,"Temps remplissage max (mn)",null,null,null,null,null,null,null,null,null,null,null,null,null,null,48,{"$error":"#VALUE!"},{"$error":"#VALUE!"},{"$error":"#VALUE!"},{"$error":"#VALUE!"},{"$error":"#VALUE!"},null,null,null,null,null,null,null,null,null,null,48,0,0,0,0,0,0,0,0,{"$error":"#VALUE!"},{"$error":"#VALUE!"},{"$error":"#VALUE!"}]
[null,null,null,null,null,null,null,null,null,null,null,null,null,null,null,null,null,49,{"$error":"#VALUE!"},{"$error":"#VALUE!"},{"$error":"#VALUE!"},{"$error":"#VALUE!"},{"$error":"#VALUE!"},null,null,null,null,null,null,null,null,null,null,49,0,0,0,0,0,0,0,0,{"$error":"#VALUE!"},{"$error":"#VALUE!"},{"$error":"#VALUE!"}]
[{"$f":"CONCATENATE(\"Version \",(MAX('Liste versions'!$B$4:$B$30)),\" de la feuille Excel du \",DAY(MAX('Liste versions'!$A$4:$A$30)),\"/\",MONTH(MAX('Liste versions'!$A$4:$A$30)),\"/\",YEAR(MAX('Liste versions'!$A$4:$A$30)),\" -  hydro-expertise.com\")","v":"Version 5 de la feuille Excel du 21/4/2025 -  hydro-expertise.com"},null,null,null,null,null,null,null,{"$f":"Introduction!$H$43","v":"DEAL Réunion"},null,null,null,null,null,null,null,null,50,{"$error":"#VALUE!"},{"$error":"#VALUE!"},{"$error":"#VALUE!"},{"$error":"#VALUE!"},{"$error":"#VALUE!"},null,null,null,null,null,null,null,null,null,null,50,0,0,0,0,0,0,0,0,{"$error":"#VALUE!"},{"$error":"#VALUE!"},{"$error":"#VALUE!"}]
[null,null,null,null,null,null,null,null,null,null,null,null,null,null,null,null,null,51,{"$error":"#VALUE!"},{"$error":"#VALUE!"},{"$error":"#VALUE!"},{"$error":"#VALUE!"},{"$error":"#VALUE!"},null,null,null,null,null,null,null,null,null,null,51,0,0,0,0,0,0,0,0,{"$error":"#VALUE!"},{"$error":"#VALUE!"},{"$error":"#VALUE!"}]
[null,null,null,null,null,null,null,null,null,null,null,null,null,null,null,null,null,52,{"$error":"#VALUE!"},{"$error":"#VALUE!"},{"$error":"#VALUE!"},{"$error":"#VALUE!"},{"$error":"#VALUE!"},null,null,null,null,null,null,null,null,null,null,52,0,0,0,0,0,0,0,0,{"$error":"#VALUE!"},{"$error":"#VALUE!"},{"$error":"#VALUE!"}]
[null,null,null,null,null,null,null,null,null,null,null,null,null,null,null,null,null,53,{"$error":"#VALUE!"},{"$error":"#VALUE!"},{"$error":"#VALUE!"},{"$error":"#VALUE!"},{"$error":"#VALUE!"},null,null,null,null,null,null,null,null,null,null,53,0,0,0,0,0,0,0,0,{"$error":"#VALUE!"},{"$error":"#VALUE!"},{"$error":"#VALUE!"}]
[null,null,null,null,null,null,null,null,null,null,null,null,null,null,null,null,null,54,{"$error":"#VALUE!"},{"$error":"#VALUE!"},{"$error":"#VALUE!"},{"$error":"#VALUE!"},{"$error":"#VALUE!"},null,null,null,null,null,null,null,null,null,null,54,0,0,0,0,0,0,0,0,{"$error":"#VALUE!"},{"$error":"#VALUE!"},{"$error":"#VALUE!"}]
[null,null,null,null,null,null,null,null,null,null,null,null,null,null,null,null,null,55,{"$error":"#VALUE!"},{"$error":"#VALUE!"},{"$error":"#VALUE!"},{"$error":"#VALUE!"},{"$error":"#VALUE!"},null,null,null,null,null,null,null,null,null,null,55,0,0,0,0,0,0,0,0,{"$error":"#VALUE!"},{"$error":"#VALUE!"},{"$error":"#VALUE!"}]
[null,null,null,null,null,null,null,null,null,null,null,null,null,null,null,null,null,56,{"$error":"#VALUE!"},{"$error":"#VALUE!"},{"$error":"#VALUE!"},{"$error":"#VALUE!"},{"$error":"#VALUE!"},null,null,null,null,null,null,null,null,null,null,56,0,0,0,0,0,0,0,0,{"$error":"#VALUE!"},{"$error":"#VALUE!"},{"$error":"#VALUE!"}]
[null,null,null,null,null,null,null,null,null,null,null,null,null,null,null,null,null,57,{"$error":"#VALUE!"},{"$error":"#VALUE!"},{"$error":"#VALUE!"},{"$error":"#VALUE!"},{"$error":"#VALUE!"},null,null,null,null,null,null,null,null,null,null,57,0,0,0,0,0,0,0,0,{"$error":"#VALUE!"},{"$error":"#VALUE!"},{"$error":"#VALUE!"}]
[null,null,null,null,null,null,null,null,null,null,null,null,null,null,null,null,null,58,{"$error":"#VALUE!"},{"$error":"#VALUE!"},{"$error":"#VALUE!"},{"$error":"#VALUE!"},{"$error":"#VALUE!"},null,null,null,null,null,null,null,null,null,null,58,0,0,0,0,0,0,0,0,{"$error":"#VALUE!"},{"$error":"#VALUE!"},{"$error":"#VALUE!"}]
[null,null,null,null,null,null,null,null,null,null,null,null,null,null,null,null,null,59,{"$error":"#VALUE!"},{"$error":"#VALUE!"},{"$error":"#VALUE!"},{"$error":"#VALUE!"},{"$error":"#VALUE!"},null,null,null,null,null,null,null,null,null,null,59,0,0,0,0,0,0,0,0,{"$error":"#VALUE!"},{"$error":"#VALUE!"},{"$error":"#VALUE!"}]
[null,null,null,null,null,null,null,null,null,null,null,null,null,null,null,null,null,60,{"$error":"#VALUE!"},{"$error":"#VALUE!"},{"$error":"#VALUE!"},{"$error":"#VALUE!"},{"$error":"#VALUE!"},null,null,null,null,null,null,null,null,null,null,60,0,0,0,0,0,0,0,0,{"$error":"#VALUE!"},{"$error":"#VALUE!"},{"$error":"#VALUE!"}]
[null,null,null,null,null,null,null,null,null,null,null,null,null,null,null,null,null,61,{"$error":"#VALUE!"},{"$error":"#VALUE!"},{"$error":"#VALUE!"},{"$error":"#VALUE!"},{"$error":"#VALUE!"},null,null,null,null,null,null,null,null,null,null,61,0,0,0,0,0,0,0,0,{"$error":"#VALUE!"},{"$error":"#VALUE!"},{"$error":"#VALUE!"}]
[null,null,null,null,null,null,null,null,null,null,null,null,null,null,null,null,null,62,{"$error":"#VALUE!"},{"$error":"#VALUE!"},{"$error":"#VALUE!"},{"$error":"#VALUE!"},{"$error":"#VALUE!"},null,null,null,null,null,null,null,null,null,null,62,0,0,0,0,0,0,0,0,{"$error":"#VALUE!"},{"$error":"#VALUE!"},{"$error":"#VALUE!"}]
[null,null,null,null,null,null,null,null,null,null,null,null,null,null,null,null,null,63,{"$error":"#VALUE!"},{"$error":"#VALUE!"},{"$error":"#VALUE!"},{"$error":"#VALUE!"},{"$error":"#VALUE!"},null,null,null,null,null,null,null,null,null,null,63,0,0,0,0,0,0,0,0,{"$error":"#VALUE!"},{"$error":"#VALUE!"},{"$error":"#VALUE!"}]
[null,null,null,null,null,null,null,null,null,null,null,null,null,null,null,null,null,64,{"$error":"#VALUE!"},{"$error":"#VALUE!"},{"$f":"$E$26/1000*R67*60","v":{"$error":"#VALUE!"}},{"$error":"#VALUE!"},{"$error":"#VALUE!"},null,null,null,null,null,null,null,null,null,null,64,0,0,{"$f":"IF(AI67=1,0,IF(AND(AH67>$C$42,AH67<=$D$42),1,0))","v":0},0,0,0,0,0,{"$error":"#VALUE!"},{"$error":"#VALUE!"},{"$error":"#VALUE!"}]
[null,null,null,null,null,null,null,null,null,null,null,null,null,null,null,null,null,65,{"$f":"$Q$3*(R68/60)^-0.33*R68/60","v":{"$error":"#VALUE!"}},{"$f":"S68*$H$17*$H$18/1000","v":{"$error":"#VALUE!"}},{"$error":"#VALUE!"},{"$f":"T68-U68","v":{"$error":"#VALUE!"}},{"$error":"#VALUE!"},null,null,null,null,null,null,null,null,null,null,65,{"$f":"IF(AND(AH68>$C$41,AH68<=$D$41),1,0)","v":0},{"$f":"$E$41*(AH68/60)^-$F$41*AH68/60*AI68","v":0},0,0,{"$f":"IF(OR(AI68=1,AK68=1),0,IF(AND(AH68>$C$43,AH68<=$D$43),1,0))","v":0},0,{"$f":"AJ68+AL68+AN68","v":0},{"$f":"AO68*$H$17*$H$18/1000","v":0},{"$error":"#VALUE!"},{"$f":"AP68-AQ68","v":{"$error":"#VALUE!"}},{"$f":"IF(AR68=MAX($AR$3:$AR$5762),AH68,\"\")","v":{"$error":"#VALUE!"}}]
[null,null,null,null,null,null,null,null,null,null,null,null,null,null,null,null,null,66,{"$error":"#VALUE!"},{"$error":"#VALUE!"},{"$error":"#VALUE!"},{"$error":"#VALUE!"},{"$f":"IF(V69>V68,R69,\"\")","v":{"$error":"#VALUE!"}},null,null,null,null,null,null,null,null,null,null,{"$f":"AH68+1","v":66},0,0,0,{"$f":"$E$42*((AH69/60)^-$F$42*AH69/60*AK69)","v":0},0,{"$f":"$E$42*(AH69/60)^-$F$42*AH69/60*AM69","v":0},0,0,{"$f":"$E$26/1000*AH69*60","v":{"$error":"#VALUE!"}},{"$error":"#VALUE!"},{"$error":"#VALUE!"}]
[null,null,null,null,null,null,null,null,null,null,null,null,null,null,null,null,null,67,{"$error":"#VALUE!"},{"$error":"#VALUE!"},{"$error":"#VALUE!"},{"$error":"#VALUE!"},{"$error":"#VALUE!"},null,null,null,null,null,null,null,null,null,null,67,0,0,0,0,0,0,0,0,{"$error":"#VALUE!"},{"$error":"#VALUE!"},{"$error":"#VALUE!"}]
[null,null,null,null,null,null,null,null,null,null,null,null,null,null,null,null,null,68,{"$error":"#VALUE!"},{"$error":"#VALUE!"},{"$error":"#VALUE!"},{"$error":"#VALUE!"},{"$error":"#VALUE!"},null,null,null,null,null,null,null,null,null,null,68,0,0,0,0,0,0,0,0,{"$error":"#VALUE!"},{"$error":"#VALUE!"},{"$error":"#VALUE!"}]
[null,null,null,null,null,null,null,null,null,null,null,null,null,null,null,null,null,69,{"$error":"#VALUE!"},{"$error":"#VALUE!"},{"$error":"#VALUE!"},{"$error":"#VALUE!"},{"$error":"#VALUE!"},null,null,null,null,null,null,null,null,null,null,69,0,0,0,0,0,0,0,0,{"$error":"#VALUE!"},{"$error":"#VALUE!"},{"$error":"#VALUE!"}]
[null,null,null,null,null,null,null,null,null,null,null,null,null,null,null,null,null,70,{"$error":"#VALUE!"},{"$error":"#VALUE!"},{"$error":"#VALUE!"},{"$error":"#VALUE!"},{"$error":"#VALUE!"},null,null,null,null,null,null,null,null,null,null,70,0,0,0,0,0,0,0,0,{"$error":"#VALUE!"},{"$error":"#VALUE!"},{"$error":"#VALUE!"}]
[null,null,null,null,null,null,null,null,null,null,null,null,null,null,null,null,null,71,{"$error":"#VALUE!"},{"$error":"#VALUE!"},{"$error":"#VALUE!"},{"$error":"#VALUE!"},{"$error":"#VALUE!"},null,null,null,null,null,null,null,null,null,null,71,0,0,0,0,0,0,0,0,{"$error":"#VALUE!"},{"$error":"#VALUE!"},{"$error":"#VALUE!"}]
[null,null,null,null,null,null,null,null,null,null,null,null,null,null,null,null,null,72,{"$error":"#VALUE!"},{"$error":"#VALUE!"},{"$error":"#VALUE!"},{"$error":"#VALUE!"},{"$error":"#VALUE!"},null,null,null,null,null,null,null,null,null,null,72,0,0,0,0,0,0,0,0,{"$error":"#VALUE!"},{"$error":"#VALUE!"},{"$error":"#VALUE!"}]
[null,null,null,null,null,null,null,null,null,null,null,null,null,null,null,null,null,73,{"$error":"#VALUE!"},{"$error":"#VALUE!"},{"$error":"#VALUE!"},{"$error":"#VALUE!"},{"$error":"#VALUE!"},null,null,null,null,null,null,null,null,null,null,73,0,0,0,0,0,0,0,0,{"$error":"#VALUE!"},{"$error":"#VALUE!"},{"$error":"#VALUE!"}]
[null,null,null,null,null,null,null,null,null,null,null,null,null,null,null,null,null,74,{"$error":"#VALUE!"},{"$error":"#VALUE!"},{"$error":"#VALUE!"},{"$error":"#VALUE!"},{"$error":"#VALUE!"},null,null,null,null,null,null,null,null,null,null,74,0,0,0,0,0,0,0,0,{"$error":"#VALUE!"},{"$error":"#VALUE!"},{"$error":"#VALUE!"}]
[null,null,null,null,null,null,null,null,null,null,null,null,null,null,null,null,null,75,{"$error":"#VALUE!"},{"$error":"#VALUE!"},{"$error":"#VALUE!"},{"$error":"#VALUE!"},{"$error":"#VALUE!"},null,null,null,null,null,null,null,null,null,null,75,0,0,0,0,0,0,0,0,{"$error":"#VALUE!"},{"$error":"#VALUE!"},{"$error":"#VALUE!"}]
[null,null,null,null,null,null,null,null,null,null,null,null,null,null,null,null,null,76,{"$error":"#VALUE!"},{"$error":"#VALUE!"},{"$error":"#VALUE!"},{"$error":"#VALUE!"},{"$error":"#VALUE!"},null,null,null,null,null,null,null,null,null,null,76,0,0,0,0,0,0,0,0,{"$error":"#VALUE!"},{"$error":"#VALUE!"},{"$error":"#VALUE!"}]
[null,null,null,null,null,null,null,null,null,null,null,null,null,null,null,null,null,77,{"$error":"#VALUE!"},{"$error":"#VALUE!"},{"$error":"#VALUE!"},{"$error":"#VALUE!"},{"$error":"#VALUE!"},null,null,null,null,null,null,null,null,null,null,77,0,0,0,0,0,0,0,0,{"$error":"#VALUE!"},{"$error":"#VALUE!"},{"$error":"#VALUE!"}]
[null,null,null,null,null,null,null,null,null,null,null,null,null,null,null,null,null,78,{"$error":"#VALUE!"},{"$error":"#VALUE!"},{"$error":"#VALUE!"},{"$error":"#VALUE!"},{"$error":"#VALUE!"},null,null,null,null,null,null,null,null,null,null,78,0,0,0,0,0,0,0,0,{"$error":"#VALUE!"},{"$error":"#VALUE!"},{"$error":"#VALUE!"}]
[null,null,null,null,null,null,null,null,null,null,null,null,null,null,null,null,null,79,{"$error":"#VALUE!"},{"$error":"#VALUE!"},{"$error":"#VALUE!"},{"$error":"#VALUE!"},{"$error":"#VALUE!"},null,null,null,null,null,null,null,null,null,null,79,0,0,0,0,0,0,0,0,{"$error":"#VALUE!"},{"$error":"#VALUE!"},{"$error":"#VALUE!"}]
[null,null,null,null,null,null,null,null,null,null,null,null,null,null,null,null,null,80,{"$error":"#VALUE!"},{"$error":"#VALUE!"},{"$error":"#VALUE!"},{"$error":"#VALUE!"},{"$error":"#VALUE!"},null,null,null,null,null,null,null,null,null,null,80,0,0,0,0,0,0,0,0,{"$error":"#VALUE!"},{"$error":"#VALUE!"},{"$error":"#VALUE!"}]
[null,null,null,null,null,null,null,null,null,null,null,null,null,null,null,null,null,81,{"$error":"#VALUE!"},{"$error":"#VALUE!"},{"$error":"#VALUE!"},{"$error":"#VALUE!"},{"$error":"#VALUE!"},null,null,null,null,null,null,null,null,null,null,81,0,0,0,0,0,0,0,0,{"$error":"#VALUE!"},{"$error":"#VALUE!"},{"$error":"#VALUE!"}]
[null,null,null,null,null,null,null,null,null,null,null,null,null,null,null,null,null,82,{"$error":"#VALUE!"},{"$error":"#VALUE!"},{"$error":"#VALUE!"},{"$error":"#VALUE!"},{"$error":"#VALUE!"},null,null,null,null,null,null,null,null,null,null,82,0,0,0,0,0,0,0,0,{"$error":"#VALUE!"},{"$error":"#VALUE!"},{"$error":"#VALUE!"}]
[null,null,null,null,null,null,null,null,null,null,null,null,null,null,null,null,null,83,{"$error":"#VALUE!"},{"$error":"#VALUE!"},{"$error":"#VALUE!"},{"$error":"#VALUE!"},{"$error":"#VALUE!"},null,null,null,null,null,null,null,null,null,null,83,0,0,0,0,0,0,0,0,{"$error":"#VALUE!"},{"$error":"#VALUE!"},{"$error":"#VALUE!"}]
[null,null,null,null,null,null,null,null,null,null,null,null,null,null,null,null,null,84,{"$error":"#VALUE!"},{"$error":"#VALUE!"},{"$error":"#VALUE!"},{"$error":"#VALUE!"},{"$error":"#VALUE!"},null,null,null,null,null,null,null,null,null,null,84,0,0,0,0,0,0,0,0,{"$error":"#VALUE!"},{"$error":"#VALUE!"},{"$error":"#VALUE!"}]
[null,null,null,null,null,null,null,null,null,null,null,null,null,null,null,null,null,85,{"$error":"#VALUE!"},{"$error":"#VALUE!"},{"$error":"#VALUE!"},{"$error":"#VALUE!"},{"$error":"#VALUE!"},null,null,null,null,null,null,null,null,null,null,85,0,0,0,0,0,0,0,0,{"$error":"#VALUE!"},{"$error":"#VALUE!"},{"$error":"#VALUE!"}]
[null,null,null,null,null,null,null,null,null,null,null,null,null,null,null,null,null,86,{"$error":"#VALUE!"},{"$error":"#VALUE!"},{"$error":"#VALUE!"},{"$error":"#VALUE!"},{"$error":"#VALUE!"},null,null,null,null,null,null,null,null,null,null,86,0,0,0,0,0,0,0,0,{"$error":"#VALUE!"},{"$error":"#VALUE!"},{"$error":"#VALUE!"}]
[null,null,null,null,null,null,null,null,null,null,null,null,null,null,null,null,null,87,{"$error":"#VALUE!"},{"$error":"#VALUE!"},{"$error":"#VALUE!"},{"$error":"#VALUE!"},{"$error":"#VALUE!"},null,null,null,null,null,null,null,null,null,null,87,0,0,0,0,0,0,0,0,{"$error":"#VALUE!"},{"$error":"#VALUE!"},{"$error":"#VALUE!"}]
[null,null,null,null,null,null,null,null,null,null,null,null,null,null,null,null,null,88,{"$error":"#VALUE!"},{"$error":"#VALUE!"},{"$error":"#VALUE!"},{"$error":"#VALUE!"},{"$error":"#VALUE!"},null,null,null,null,null,null,null,null,null,null,88,0,0,0,0,0,0,0,0,{"$error":"#VALUE!"},{"$error":"#VALUE!"},{"$error":"#VALUE!"}]
[null,null,null,null,null,null,null,null,null,null,null,null,null,null,null,null,null,89,{"$error":"#VALUE!"},{"$error":"#VALUE!"},{"$error":"#VALUE!"},{"$error":"#VALUE!"},{"$error":"#VALUE!"},null,null,null,null,null,null,null,null,null,null,89,0,0,0,0,0,0,0,0,{"$error":"#VALUE!"},{"$error":"#VALUE!"},{"$error":"#VALUE!"}]
[null,null,null,null,null,null,null,null,null,null,null,null,null,null,null,null,null,90,{"$error":"#VALUE!"},{"$error":"#VALUE!"},{"$error":"#VALUE!"},{"$error":"#VALUE!"},{"$error":"#VALUE!"},null,null,null,null,null,null,null,null,null,null,90,0,0,0,0,0,0,0,0,{"$error":"#VALUE!"},{"$error":"#VALUE!"},{"$error":"#VALUE!"}]
[null,null,null,null,null,null,null,null,null,null,null,null,null,null,null,null,null,91,{"$error":"#VALUE!"},{"$error":"#VALUE!"},{"$error":"#VALUE!"},{"$error":"#VALUE!"},{"$error":"#VALUE!"},null,null,null,null,null,null,null,null,null,null,91,0,0,0,0,0,0,0,0,{"$error":"#VALUE!"},{"$error":"#VALUE!"},{"$error":"#VALUE!"}]
[null,null,null,null,null,null,null,null,null,null,null,null,null,null,null,null,null,92,{"$error":"#VALUE!"},{"$error":"#VALUE!"},{"$error":"#VALUE!"},{"$error":"#VALUE!"},{"$error":"#VALUE!"},null,null,null,null,null,null,null,null,null,null,92,0,0,0,0,0,0,0,0,{"$error":"#VALUE!"},{"$error":"#VALUE!"},{"$error":"#VALUE!"}]
[null,null,null,null,null,null,null,null,null,null,null,null,null,null,null,null,null,93,{"$error":"#VALUE!"},{"$error":"#VALUE!"},{"$error":"#VALUE!"},{"$error":"#VALUE!"},{"$error":"#VALUE!"},null,null,null,null,null,null,null,null,null,null,93,0,0,0,0,0,0,0,0,{"$error":"#VALUE!"},{"$error":"#VALUE!"},{"$error":"#VALUE!"}]
[null,null,null,null,null,null,null,null,null,null,null,null,null,null,null,null,null,94,{"$error":"#VALUE!"},{"$error":"#VALUE!"},{"$error":"#VALUE!"},{"$error":"#VALUE!"},{"$error":"#VALUE!"},null,null,null,null,null,null,null,null,null,null,94,0,0,0,0,0,0,0,0,{"$error":"#VALUE!"},{"$error":"#VALUE!"},{"$error":"#VALUE!"}]
[null,null,null,null,null,null,null,null,null,null,null,null,null,null,null,null,null,95,{"$error":"#VALUE!"},{"$error":"#VALUE!"},{"$error":"#VALUE!"},{"$error":"#VALUE!"},{"$error":"#VALUE!"},null,null,null,null,null,null,null,null,null,null,95,0,0,0,0,0,0,0,0,{"$error":"#VALUE!"},{"$error":"#VALUE!"},{"$error":"#VALUE!"}]
[null,null,null,null,null,null,null,null,null,null,null,null,null,null,null,null,null,96,{"$error":"#VALUE!"},{"$error":"#VALUE!"},{"$f":"$E$26/1000*R99*60","v":{"$error":"#VALUE!"}},{"$error":"#VALUE!"},{"$error":"#VALUE!"},null,null,null,null,null,null,null,null,null,null,96,0,0,0,0,0,0,0,0,{"$error":"#VALUE!"},{"$error":"#VALUE!"},{"$error":"#VALUE!"}]
[null,null,null,null,null,null,null,null,null,null,null,null,null,null,null,null,null,97,{"$f":"$Q$3*(R100/60)^-0.33*R100/60","v":{"$error":"#VALUE!"}},{"$error":"#VALUE!"},{"$error":"#VALUE!"},{"$error":"#VALUE!"},{"$error":"#VALUE!"},null,null,null,null,null,null,null,null,null,null,97,0,0,0,0,0,0,0,0,{"$error":"#VALUE!"},{"$error":"#VALUE!"},{"$error":"#VALUE!"}]
[null,null,null,null,null,null,null,null,null,null,null,null,null,null,null,null,null,98,{"$error":"#VALUE!"},{"$error":"#VALUE!"},{"$error":"#VALUE!"},{"$error":"#VALUE!"},{"$error":"#VALUE!"},null,null,null,null,null,null,null,null,null,null,98,0,0,0,0,0,0,0,0,{"$error":"#VALUE!"},{"$error":"#VALUE!"},{"$error":"#VALUE!"}]
[null,null,null,null,null,null,null,null,null,null,null,null,null,null,null,null,null,99,{"$error":"#VALUE!"},{"$error":"#VALUE!"},{"$error":"#VALUE!"},{"$error":"#VALUE!"},{"$error":"#VALUE!"},null,null,null,null,null,null,null,null,null,null,99,0,0,0,0,0,0,0,0,{"$error":"#VALUE!"},{"$error":"#VALUE!"},{"$error":"#VALUE!"}]
[null,null,null,null,null,null,null,null,null,null,null,null,null,null,null,null,null,100,{"$error":"#VALUE!"},{"$error":"#VALUE!"},{"$error":"#VALUE!"},{"$error":"#VALUE!"},{"$error":"#VALUE!"},null,null,null,null,null,null,null,null,null,null,100,0,0,0,0,0,0,0,0,{"$error":"#VALUE!"},{"$error":"#VALUE!"},{"$error":"#VALUE!"}]
[null,null,null,null,null,null,null,null,null,null,null,null,null,null,null,null,null,101,{"$error":"#VALUE!"},{"$error":"#VALUE!"},{"$error":"#VALUE!"},{"$error":"#VALUE!"},{"$error":"#VALUE!"},null,null,null,null,null,null,null,null,null,null,101,0,0,0,0,0,0,0,0,{"$error":"#VALUE!"},{"$error":"#VALUE!"},{"$error":"#VALUE!"}]
[null,null,null,null,null,null,null,null,null,null,null,null,null,null,null,null,null,102,{"$error":"#VALUE!"},{"$error":"#VALUE!"},{"$error":"#VALUE!"},{"$error":"#VALUE!"},{"$error":"#VALUE!"},null,null,null,null,null,null,null,null,null,null,102,0,0,0,0,0,0,0,0,{"$error":"#VALUE!"},{"$error":"#VALUE!"},{"$error":"#VALUE!"}]
[null,null,null,null,null,null,null,null,null,null,null,null,null,null,null,null,null,103,{"$error":"#VALUE!"},{"$error":"#VALUE!"},{"$error":"#VALUE!"},{"$error":"#VALUE!"},{"$error":"#VALUE!"},null,null,null,null,null,null,null,null,null,null,103,0,0,0,0,0,0,0,0,{"$error":"#VALUE!"},{"$error":"#VALUE!"},{"$error":"#VALUE!"}]
[null,null,null,null,null,null,null,null,null,null,null,null,null,null,null,null,null,104,{"$error":"#VALUE!"},{"$error":"#VALUE!"},{"$error":"#VALUE!"},{"$error":"#VALUE!"},{"$error":"#VALUE!"},null,null,null,null,null,null,null,null,null,null,104,0,0,0,0,0,0,0,0,{"$error":"#VALUE!"},{"$error":"#VALUE!"},{"$error":"#VALUE!"}]
[null,null,null,null,null,null,null,null,null,null,null,null,null,null,null,null,null,105,{"$error":"#VALUE!"},{"$error":"#VALUE!"},{"$error":"#VALUE!"},{"$error":"#VALUE!"},{"$error":"#VALUE!"},null,null,null,null,null,null,null,null,null,null,105,0,0,0,0,0,0,0,0,{"$error":"#VALUE!"},{"$error":"#VALUE!"},{"$error":"#VALUE!"}]
[null,null,null,null,null,null,null,null,null,null,null,null,null,null,null,null,null,106,{"$error":"#VALUE!"},{"$error":"#VALUE!"},{"$error":"#VALUE!"},{"$error":"#VALUE!"},{"$error":"#VALUE!"},null,null,null,null,null,null,null,null,null,null,106,0,0,0,0,0,0,0,0,{"$error":"#VALUE!"},{"$error":"#VALUE!"},{"$error":"#VALUE!"}]
[null,null,null,null,null,null,null,null,null,null,null,null,null,null,null,null,null,107,{"$error":"#VALUE!"},{"$error":"#VALUE!"},{"$error":"#VALUE!"},{"$error":"#VALUE!"},{"$error":"#VALUE!"},null,null,null,null,null,null,null,null,null,null,107,0,0,0,0,0,0,0,0,{"$error":"#VALUE!"},{"$error":"#VALUE!"},{"$error":"#VALUE!"}]
[null,null,null,null,null,null,null,null,null,null,null,null,null,null,null,null,null,108,{"$error":"#VALUE!"},{"$error":"#VALUE!"},{"$error":"#VALUE!"},{"$error":"#VALUE!"},{"$error":"#VALUE!"},null,null,null,null,null,null,null,null,null,null,108,0,0,0,0,0,0,0,0,{"$error":"#VALUE!"},{"$error":"#VALUE!"},{"$error":"#VALUE!"}]
[null,null,null,null,null,null,null,null,null,null,null,null,null,null,null,null,null,109,{"$error":"#VALUE!"},{"$error":"#VALUE!"},{"$error":"#VALUE!"},{"$error":"#VALUE!"},{"$error":"#VALUE!"},null,null,null,null,null,null,null,null,null,null,109,0,0,0,0,0,0,0,0,{"$error":"#VALUE!"},{"$error":"#VALUE!"},{"$error":"#VALUE!"}]
[null,null,null,null,null,null,null,null,null,null,null,null,null,null,null,null,null,110,{"$error":"#VALUE!"},{"$error":"#VALUE!"},{"$error":"#VALUE!"},{"$error":"#VALUE!"},{"$error":"#VALUE!"},null,null,null,null,null,null,null,null,null,null,110,0,0,0,0,0,0,0,0,{"$error":"#VALUE!"},{"$error":"#VALUE!"},{"$error":"#VALUE!"}]
[null,null,null,null,null,null,null,null,null,null,null,null,null,null,null,null,null,111,{"$error":"#VALUE!"},{"$error":"#VALUE!"},{"$error":"#VALUE!"},{"$error":"#VALUE!"},{"$error":"#VALUE!"},null,null,null,null,null,null,null,null,null,null,111,0,0,0,0,0,0,0,0,{"$error":"#VALUE!"},{"$error":"#VALUE!"},{"$error":"#VALUE!"}]
[null,null,null,null,null,null,null,null,null,null,null,null,null,null,null,null,null,112,{"$error":"#VALUE!"},{"$error":"#VALUE!"},{"$error":"#VALUE!"},{"$error":"#VALUE!"},{"$error":"#VALUE!"},null,null,null,null,null,null,null,null,null,null,112,0,0,0,0,0,0,0,0,{"$error":"#VALUE!"},{"$error":"#VALUE!"},{"$error":"#VALUE!"}]
[null,null,null,null,null,null,null,null,null,null,null,null,null,null,null,null,null,113,{"$error":"#VALUE!"},{"$error":"#VALUE!"},{"$error":"#VALUE!"},{"$error":"#VALUE!"},{"$error":"#VALUE!"},null,null,null,null,null,null,null,null,null,null,113,0,0,0,0,0,0,0,0,{"$error":"#VALUE!"},{"$error":"#VALUE!"},{"$error":"#VALUE!"}]
[null,null,null,null,null,null,null,null,null,null,null,null,null,null,null,null,null,114,{"$error":"#VALUE!"},{"$error":"#VALUE!"},{"$error":"#VALUE!"},{"$error":"#VALUE!"},{"$error":"#VALUE!"},null,null,null,null,null,null,null,null,null,null,114,0,0,0,0,0,0,0,0,{"$error":"#VALUE!"},{"$error":"#VALUE!"},{"$error":"#VALUE!"}]
[null,null,null,null,null,null,null,null,null,null,null,null,null,null,null,null,null,115,{"$error":"#VALUE!"},{"$error":"#VALUE!"},{"$error":"#VALUE!"},{"$error":"#VALUE!"},{"$error":"#VALUE!"},null,null,null,null,null,null,null,null,null,null,115,0,0,0,0,0,0,0,0,{"$error":"#VALUE!"},{"$error":"#VALUE!"},{"$error":"#VALUE!"}]
[null,null,null,null,null,null,null,null,null,null,null,null,null,null,null,null,null,116,{"$error":"#VALUE!"},{"$error":"#VALUE!"},{"$error":"#VALUE!"},{"$error":"#VALUE!"},{"$error":"#VALUE!"},null,null,null,null,null,null,null,null,null,null,116,0,0,0,0,0,0,0,0,{"$error":"#VALUE!"},{"$error":"#VALUE!"},{"$error":"#VALUE!"}]
[null,null,null,null,null,null,null,null,null,null,null,null,null,null,null,null,null,117,{"$error":"#VALUE!"},{"$error":"#VALUE!"},{"$error":"#VALUE!"},{"$error":"#VALUE!"},{"$error":"#VALUE!"},null,null,null,null,null,null,null,null,null,null,117,0,0,0,0,0,0,0,0,{"$error":"#VALUE!"},{"$error":"#VALUE!"},{"$error":"#VALUE!"}]
[null,null,null,null,null,null,null,null,null,null,null,null,null,null,null,null,null,118,{"$error":"#VALUE!"},{"$error":"#VALUE!"},{"$error":"#VALUE!"},{"$error":"#VALUE!"},{"$error":"#VALUE!"},null,null,null,null,null,null,null,null,null,null,118,0,0,0,0,0,0,0,0,{"$error":"#VALUE!"},{"$error":"#VALUE!"},{"$error":"#VALUE!"}]
[null,null,null,null,null,null,null,null,null,null,null,null,null,null,null,null,null,119,{"$error":"#VALUE!"},{"$error":"#VALUE!"},{"$error":"#VALUE!"},{"$error":"#VALUE!"},{"$error":"#VALUE!"},null,null,null,null,null,null,null,null,null,null,119,0,0,0,0,0,0,0,0,{"$error":"#VALUE!"},{"$error":"#VALUE!"},{"$error":"#VALUE!"}]
[null,null,null,null,null,null,null,null,null,null,null,null,null,null,null,null,null,120,{"$error":"#VALUE!"},{"$error":"#VALUE!"},{"$error":"#VALUE!"},{"$error":"#VALUE!"},{"$error":"#VALUE!"},null,null,null,null,null,null,null,null,null,null,120,0,0,0,0,0,0,0,0,{"$error":"#VALUE!"},{"$error":"#VALUE!"},{"$error":"#VALUE!"}]
[null,null,null,null,null,null,null,null,null,null,null,null,null,null,null,null,null,121,{"$error":"#VALUE!"},{"$error":"#VALUE!"},{"$error":"#VALUE!"},{"$f":"T124-U124","v":{"$error":"#VALUE!"}},{"$f":"IF(V124>V123,R124,\"\")","v":{"$error":"#VALUE!"}},null,null,null,null,null,null,null,null,null,null,121,0,0,0,0,0,0,0,0,{"$error":"#VALUE!"},{"$error":"#VALUE!"},{"$error":"#VALUE!"}]
[null,null,null,null,null,null,null,null,null,null,null,null,null,null,null,null,null,null,null,null,null,null,null,null,null,null,null,null,null,null,null,null,null,122,0,0,0,0,0,0,0,0,{"$error":"#VALUE!"},{"$error":"#VALUE!"},{"$error":"#VALUE!"}]
[null,null,null,null,null,null,null,null,null,null,null,null,null,null,null,null,null,null,null,null,null,null,null,null,null,null,null,null,null,null,null,null,null,123,0,0,0,0,0,0,0,0,{"$error":"#VALUE!"},{"$error":"#VALUE!"},{"$error":"#VALUE!"}]
[null,null,null,null,null,null,null,null,null,null,null,null,null,null,null,null,null,null,null,null,null,null,null,null,null,null,null,null,null,null,null,null,null,124,0,0,0,0,0,0,0,0,{"$error":"#VALUE!"},{"$error":"#VALUE!"},{"$error":"#VALUE!"}]
[null,null,null,null,null,null,null,null,null,null,null,null,null,null,null,null,null,null,null,null,null,null,null,null,null,null,null,null,null,null,null,null,null,125,0,0,0,0,0,0,0,0,{"$error":"#VALUE!"},{"$error":"#VALUE!"},{"$error":"#VALUE!"}]
[null,null,null,null,null,null,null,null,null,null,null,null,null,null,null,null,null,null,null,null,null,null,null,null,null,null,null,null,null,null,null,null,null,126,0,0,0,0,0,0,0,0,{"$error":"#VALUE!"},{"$error":"#VALUE!"},{"$error":"#VALUE!"}]
[null,null,null,null,null,null,null,null,null,null,null,null,null,null,null,null,null,null,null,null,null,null,null,null,null,null,null,null,null,null,null,null,null,127,0,0,0,0,0,0,0,0,{"$error":"#VALUE!"},{"$error":"#VALUE!"},{"$error":"#VALUE!"}]
[null,null,null,null,null,null,null,null,null,null,null,null,null,null,null,null,null,null,null,null,null,null,null,null,null,null,null,null,null,null,null,null,null,128,0,0,{"$f":"IF(AI131=1,0,IF(AND(AH131>$C$42,AH131<=$D$42),1,0))","v":0},0,0,0,0,0,{"$error":"#VALUE!"},{"$error":"#VALUE!"},{"$error":"#VALUE!"}]
[null,null,null,null,null,null,null,null,null,null,null,null,null,null,null,null,null,null,null,null,null,null,null,null,null,null,null,null,null,null,null,null,null,129,{"$f":"IF(AND(AH132>$C$41,AH132<=$D$41),1,0)","v":0},{"$f":"$E$41*(AH132/60)^-$F$41*AH132/60*AI132","v":0},0,0,{"$f":"IF(OR(AI132=1,AK132=1),0,IF(AND(AH132>$C$43,AH132<=$D$43),1,0))","v":0},0,{"$f":"AJ132+AL132+AN132","v":0},{"$f":"AO132*$H$17*$H$18/1000","v":0},{"$error":"#VALUE!"},{"$f":"AP132-AQ132","v":{"$error":"#VALUE!"}},{"$f":"IF(AR132=MAX($AR$3:$AR$5762),AH132,\"\")","v":{"$error":"#VALUE!"}}]
[null,null,null,null,null,null,null,null,null,null,null,null,null,null,null,null,null,null,null,null,null,null,null,null,null,null,null,null,null,null,null,null,null,{"$f":"AH132+1","v":130},0,0,0,{"$f":"$E$42*((AH133/60)^-$F$42*AH133/60*AK133)","v":0},0,{"$f":"$E$42*(AH133/60)^-$F$42*AH133/60*AM133","v":0},0,0,{"$f":"$E$26/1000*AH133*60","v":{"$error":"#VALUE!"}},{"$error":"#VALUE!"},{"$error":"#VALUE!"}]
[null,null,null,null,null,null,null,null,null,null,null,null,null,null,null,null,null,null,null,null,null,null,null,null,null,null,null,null,null,null,null,null,null,131,0,0,0,0,0,0,0,0,{"$error":"#VALUE!"},{"$error":"#VALUE!"},{"$error":"#VALUE!"}]
[null,null,null,null,null,null,null,null,null,null,null,null,null,null,null,null,null,null,null,null,null,null,null,null,null,null,null,null,null,null,null,null,null,132,0,0,0,0,0,0,0,0,{"$error":"#VALUE!"},{"$error":"#VALUE!"},{"$error":"#VALUE!"}]
[null,null,null,null,null,null,null,null,null,null,null,null,null,null,null,null,null,null,null,null,null,null,null,null,null,null,null,null,null,null,null,null,null,133,0,0,0,0,0,0,0,0,{"$error":"#VALUE!"},{"$error":"#VALUE!"},{"$error":"#VALUE!"}]
[null,null,null,null,null,null,null,null,null,null,null,null,null,null,null,null,null,null,null,null,null,null,null,null,null,null,null,null,null,null,null,null,null,134,0,0,0,0,0,0,0,0,{"$error":"#VALUE!"},{"$error":"#VALUE!"},{"$error":"#VALUE!"}]
[null,null,null,null,null,null,null,null,null,null,null,null,null,null,null,null,null,null,null,null,null,null,null,null,null,null,null,null,null,null,null,null,null,135,0,0,0,0,0,0,0,0,{"$error":"#VALUE!"},{"$error":"#VALUE!"},{"$error":"#VALUE!"}]
[null,null,null,null,null,null,null,null,null,null,null,null,null,null,null,null,null,null,null,null,null,null,null,null,null,null,null,null,null,null,null,null,null,136,0,0,0,0,0,0,0,0,{"$error":"#VALUE!"},{"$error":"#VALUE!"},{"$error":"#VALUE!"}]
[null,null,null,null,null,null,null,null,null,null,null,null,null,null,null,null,null,null,null,null,null,null,null,null,null,null,null,null,null,null,null,null,null,137,0,0,0,0,0,0,0,0,{"$error":"#VALUE!"},{"$error":"#VALUE!"},{"$error":"#VALUE!"}]
[null,null,null,null,null,null,null,null,null,null,null,null,null,null,null,null,null,null,null,null,null,null,null,null,null,null,null,null,null,null,null,null,null,138,0,0,0,0,0,0,0,0,{"$error":"#VALUE!"},{"$error":"#VALUE!"},{"$error":"#VALUE!"}]
[null,null,null,null,null,null,null,null,null,null,null,null,null,null,null,null,null,null,null,null,null,null,null,null,null,null,null,null,null,null,null,null,null,139,0,0,0,0,0,0,0,0,{"$error":"#VALUE!"},{"$error":"#VALUE!"},{"$error":"#VALUE!"}]
[null,null,null,null,null,null,null,null,null,null,null,null,null,null,null,null,null,null,null,null,null,null,null,null,null,null,null,null,null,null,null,null,null,140,0,0,0,0,0,0,0,0,{"$error":"#VALUE!"},{"$error":"#VALUE!"},{"$error":"#VALUE!"}]
[null,null,null,null,null,null,null,null,null,null,null,null,null,null,null,null,null,null,null,null,null,null,null,null,null,null,null,null,null,null,null,null,null,141,0,0,0,0,0,0,0,0,{"$error":"#VALUE!"},{"$error":"#VALUE!"},{"$error":"#VALUE!"}]
[null,null,null,null,null,null,null,null,null,null,null,null,null,null,null,null,null,null,null,null,null,null,null,null,null,null,null,null,null,null,null,null,null,142,0,0,0,0,0,0,0,0,{"$error":"#VALUE!"},{"$error":"#VALUE!"},{"$error":"#VALUE!"}]
[null,null,null,null,null,null,null,null,null,null,null,null,null,null,null,null,null,null,null,null,null,null,null,null,null,null,null,null,null,null,null,null,null,143,0,0,0,0,0,0,0,0,{"$error":"#VALUE!"},{"$error":"#VALUE!"},{"$error":"#VALUE!"}]
[null,null,null,null,null,null,null,null,null,null,null,null,null,null,null,null,null,null,null,null,null,null,null,null,null,null,null,null,null,null,null,null,null,144,0,0,0,0,0,0,0,0,{"$error":"#VALUE!"},{"$error":"#VALUE!"},{"$error":"#VALUE!"}]
[null,null,null,null,null,null,null,null,null,null,null,null,null,null,null,null,null,null,null,null,null,null,null,null,null,null,null,null,null,null,null,null,null,145,0,0,0,0,0,0,0,0,{"$error":"#VALUE!"},{"$error":"#VALUE!"},{"$error":"#VALUE!"}]
[null,null,null,null,null,null,null,null,null,null,null,null,null,null,null,null,null,null,null,null,null,null,null,null,null,null,null,null,null,null,null,null,null,146,0,0,0,0,0,0,0,0,{"$error":"#VALUE!"},{"$error":"#VALUE!"},{"$error":"#VALUE!"}]
[null,null,null,null,null,null,null,null,null,null,null,null,null,null,null,null,null,null,null,null,null,null,null,null,null,null,null,null,null,null,null,null,null,147,0,0,0,0,0,0,0,0,{"$error":"#VALUE!"},{"$error":"#VALUE!"},{"$error":"#VALUE!"}]
[null,null,null,null,null,null,null,null,null,null,null,null,null,null,null,null,null,null,null,null,null,null,null,null,null,null,null,null,null,null,null,null,null,148,0,0,0,0,0,0,0,0,{"$error":"#VALUE!"},{"$error":"#VALUE!"},{"$error":"#VALUE!"}]
[null,null,null,null,null,null,null,null,null,null,null,null,null,null,null,null,null,null,null,null,null,null,null,null,null,null,null,null,null,null,null,null,null,149,0,0,0,0,0,0,0,0,{"$error":"#VALUE!"},{"$error":"#VALUE!"},{"$error":"#VALUE!"}]
[null,null,null,null,null,null,null,null,null,null,null,null,null,null,null,null,null,null,null,null,null,null,null,null,null,null,null,null,null,null,null,null,null,150,0,0,0,0,0,0,0,0,{"$error":"#VALUE!"},{"$error":"#VALUE!"},{"$error":"#VALUE!"}]
[null,null,null,null,null,null,null,null,null,null,null,null,null,null,null,null,null,null,null,null,null,null,null,null,null,null,null,null,null,null,null,null,null,151,0,0,0,0,0,0,0,0,{"$error":"#VALUE!"},{"$error":"#VALUE!"},{"$error":"#VALUE!"}]
[null,null,null,null,null,null,null,null,null,null,null,null,null,null,null,null,null,null,null,null,null,null,null,null,null,null,null,null,null,null,null,null,null,152,0,0,0,0,0,0,0,0,{"$error":"#VALUE!"},{"$error":"#VALUE!"},{"$error":"#VALUE!"}]
[null,null,null,null,null,null,null,null,null,null,null,null,null,null,null,null,null,null,null,null,null,null,null,null,null,null,null,null,null,null,null,null,null,153,0,0,0,0,0,0,0,0,{"$error":"#VALUE!"},{"$error":"#VALUE!"},{"$error":"#VALUE!"}]
[null,null,null,null,null,null,null,null,null,null,null,null,null,null,null,null,null,null,null,null,null,null,null,null,null,null,null,null,null,null,null,null,null,154,0,0,0,0,0,0,0,0,{"$error":"#VALUE!"},{"$error":"#VALUE!"},{"$error":"#VALUE!"}]
[null,null,null,null,null,null,null,null,null,null,null,null,null,null,null,null,null,null,null,null,null,null,null,null,null,null,null,null,null,null,null,null,null,155,0,0,0,0,0,0,0,0,{"$error":"#VALUE!"},{"$error":"#VALUE!"},{"$error":"#VALUE!"}]
[null,null,null,null,null,null,null,null,null,null,null,null,null,null,null,null,null,null,null,null,null,null,null,null,null,null,null,null,null,null,null,null,null,156,0,0,0,0,0,0,0,0,{"$error":"#VALUE!"},{"$error":"#VALUE!"},{"$error":"#VALUE!"}]
[null,null,null,null,null,null,null,null,null,null,null,null,null,null,null,null,null,null,null,null,null,null,null,null,null,null,null,null,null,null,null,null,null,157,0,0,0,0,0,0,0,0,{"$error":"#VALUE!"},{"$error":"#VALUE!"},{"$error":"#VALUE!"}]
[null,null,null,null,null,null,null,null,null,null,null,null,null,null,null,null,null,null,null,null,null,null,null,null,null,null,null,null,null,null,null,null,null,158,0,0,0,0,0,0,0,0,{"$error":"#VALUE!"},{"$error":"#VALUE!"},{"$error":"#VALUE!"}]
[null,null,null,null,null,null,null,null,null,null,null,null,null,null,null,null,null,null,null,null,null,null,null,null,null,null,null,null,null,null,null,null,null,159,0,0,0,0,0,0,0,0,{"$error":"#VALUE!"},{"$error":"#VALUE!"},{"$error":"#VALUE!"}]
[null,null,null,null,null,null,null,null,null,null,null,null,null,null,null,null,null,null,null,null,null,null,null,null,null,null,null,null,null,null,null,null,null,160,0,0,0,0,0,0,0,0,{"$error":"#VALUE!"},{"$error":"#VALUE!"},{"$error":"#VALUE!"}]
[null,null,null,null,null,null,null,null,null,null,null,null,null,null,null,null,null,null,null,null,null,null,null,null,null,null,null,null,null,null,null,null,null,161,0,0,0,0,0,0,0,0,{"$error":"#VALUE!"},{"$error":"#VALUE!"},{"$error":"#VALUE!"}]
[null,null,null,null,null,null,null,null,null,null,null,null,null,null,null,null,null,null,null,null,null,null,null,null,null,null,null,null,null,null,null,null,null,162,0,0,0,0,0,0,0,0,{"$error":"#VALUE!"},{"$error":"#VALUE!"},{"$error":"#VALUE!"}]
[null,null,null,null,null,null,null,null,null,null,null,null,null,null,null,null,null,null,null,null,null,null,null,null,null,null,null,null,null,null,null,null,null,163,0,0,0,0,0,0,0,0,{"$error":"#VALUE!"},{"$error":"#VALUE!"},{"$error":"#VALUE!"}]
[null,null,null,null,null,null,null,null,null,null,null,null,null,null,null,null,null,null,null,null,null,null,null,null,null,null,null,null,null,null,null,null,null,164,0,0,0,0,0,0,0,0,{"$error":"#VALUE!"},{"$error":"#VALUE!"},{"$error":"#VALUE!"}]
[null,null,null,null,null,null,null,null,null,null,null,null,null,null,null,null,null,null,null,null,null,null,null,null,null,null,null,null,null,null,null,null,null,165,0,0,0,0,0,0,0,0,{"$error":"#VALUE!"},{"$error":"#VALUE!"},{"$error":"#VALUE!"}]
[null,null,null,null,null,null,null,null,null,null,null,null,null,null,null,null,null,null,null,null,null,null,null,null,null,null,null,null,null,null,null,null,null,166,0,0,0,0,0,0,0,0,{"$error":"#VALUE!"},{"$error":"#VALUE!"},{"$error":"#VALUE!"}]
[null,null,null,null,null,null,null,null,null,null,null,null,null,null,null,null,null,null,null,null,null,null,null,null,null,null,null,null,null,null,null,null,null,167,0,0,0,0,0,0,0,0,{"$error":"#VALUE!"},{"$error":"#VALUE!"},{"$error":"#VALUE!"}]
[null,null,null,null,null,null,null,null,null,null,null,null,null,null,null,null,null,null,null,null,null,null,null,null,null,null,null,null,null,null,null,null,null,168,0,0,0,0,0,0,0,0,{"$error":"#VALUE!"},{"$error":"#VALUE!"},{"$error":"#VALUE!"}]
[null,null,null,null,null,null,null,null,null,null,null,null,null,null,null,null,null,null,null,null,null,null,null,null,null,null,null,null,null,null,null,null,null,169,0,0,0,0,0,0,0,0,{"$error":"#VALUE!"},{"$error":"#VALUE!"},{"$error":"#VALUE!"}]
[null,null,null,null,null,null,null,null,null,null,null,null,null,null,null,null,null,null,null,null,null,null,null,null,null,null,null,null,null,null,null,null,null,170,0,0,0,0,0,0,0,0,{"$error":"#VALUE!"},{"$error":"#VALUE!"},{"$error":"#VALUE!"}]
[null,null,null,null,null,null,null,null,null,null,null,null,null,null,null,null,null,null,null,null,null,null,null,null,null,null,null,null,null,null,null,null,null,171,0,0,0,0,0,0,0,0,{"$error":"#VALUE!"},{"$error":"#VALUE!"},{"$error":"#VALUE!"}]
[null,null,null,null,null,null,null,null,null,null,null,null,null,null,null,null,null,null,null,null,null,null,null,null,null,null,null,null,null,null,null,null,null,172,0,0,0,0,0,0,0,0,{"$error":"#VALUE!"},{"$error":"#VALUE!"},{"$error":"#VALUE!"}]
[null,null,null,null,null,null,null,null,null,null,null,null,null,null,null,null,null,null,null,null,null,null,null,null,null,null,null,null,null,null,null,null,null,173,0,0,0,0,0,0,0,0,{"$error":"#VALUE!"},{"$error":"#VALUE!"},{"$error":"#VALUE!"}]
[null,null,null,null,null,null,null,null,null,null,null,null,null,null,null,null,null,null,null,null,null,null,null,null,null,null,null,null,null,null,null,null,null,174,0,0,0,0,0,0,0,0,{"$error":"#VALUE!"},{"$error":"#VALUE!"},{"$error":"#VALUE!"}]
[null,null,null,null,null,null,null,null,null,null,null,null,null,null,null,null,null,null,null,null,null,null,null,null,null,null,null,null,null,null,null,null,null,175,0,0,0,0,0,0,0,0,{"$error":"#VALUE!"},{"$error":"#VALUE!"},{"$error":"#VALUE!"}]
[null,null,null,null,null,null,null,null,null,null,null,null,null,null,null,null,null,null,null,null,null,null,null,null,null,null,null,null,null,null,null,null,null,176,0,0,0,0,0,0,0,0,{"$error":"#VALUE!"},{"$error":"#VALUE!"},{"$error":"#VALUE!"}]
[null,null,null,null,null,null,null,null,null,null,null,null,null,null,null,null,null,null,null,null,null,null,null,null,null,null,null,null,null,null,null,null,null,177,0,0,0,0,0,0,0,0,{"$error":"#VALUE!"},{"$error":"#VALUE!"},{"$error":"#VALUE!"}]
[null,null,null,null,null,null,null,null,null,null,null,null,null,null,null,null,null,null,null,null,null,null,null,null,null,null,null,null,null,null,null,null,null,178,0,0,0,0,0,0,0,0,{"$error":"#VALUE!"},{"$error":"#VALUE!"},{"$error":"#VALUE!"}]
[null,null,null,null,null,null,null,null,null,null,null,null,null,null,null,null,null,null,null,null,null,null,null,null,null,null,null,null,null,null,null,null,null,179,0,0,0,0,0,0,0,0,{"$error":"#VALUE!"},{"$error":"#VALUE!"},{"$error":"#VALUE!"}]
[null,null,null,null,null,null,null,null,null,null,null,null,null,null,null,null,null,null,null,null,null,null,null,null,null,null,null,null,null,null,null,null,null,180,0,0,0,0,0,0,0,0,{"$error":"#VALUE!"},{"$error":"#VALUE!"},{"$error":"#VALUE!"}]
[null,null,null,null,null,null,null,null,null,null,null,null,null,null,null,null,null,null,null,null,null,null,null,null,null,null,null,null,null,null,null,null,null,181,0,0,0,0,0,0,0,0,{"$error":"#VALUE!"},{"$error":"#VALUE!"},{"$error":"#VALUE!"}]
[null,null,null,null,null,null,null,null,null,null,null,null,null,null,null,null,null,null,null,null,null,null,null,null,null,null,null,null,null,null,null,null,null,182,0,0,0,0,0,0,0,0,{"$error":"#VALUE!"},{"$error":"#VALUE!"},{"$error":"#VALUE!"}]
[null,null,null,null,null,null,null,null,null,null,null,null,null,null,null,null,null,null,null,null,null,null,null,null,null,null,null,null,null,null,null,null,null,183,0,0,0,0,0,0,0,0,{"$error":"#VALUE!"},{"$error":"#VALUE!"},{"$error":"#VALUE!"}]
[null,null,null,null,null,null,null,null,null,null,null,null,null,null,null,null,null,null,null,null,null,null,null,null,null,null,null,null,null,null,null,null,null,184,0,0,0,0,0,0,0,0,{"$error":"#VALUE!"},{"$error":"#VALUE!"},{"$error":"#VALUE!"}]
[null,null,null,null,null,null,null,null,null,null,null,null,null,null,null,null,null,null,null,null,null,null,null,null,null,null,null,null,null,null,null,null,null,185,0,0,0,0,0,0,0,0,{"$error":"#VALUE!"},{"$error":"#VALUE!"},{"$error":"#VALUE!"}]
[null,null,null,null,null,null,null,null,null,null,null,null,null,null,null,null,null,null,null,null,null,null,null,null,null,null,null,null,null,null,null,null,null,186,0,0,0,0,0,0,0,0,{"$error":"#VALUE!"},{"$error":"#VALUE!"},{"$error":"#VALUE!"}]
[null,null,null,null,null,null,null,null,null,null,null,null,null,null,null,null,null,null,null,null,null,null,null,null,null,null,null,null,null,null,null,null,null,187,0,0,0,0,0,0,0,0,{"$error":"#VALUE!"},{"$error":"#VALUE!"},{"$error":"#VALUE!"}]
[null,null,null,null,null,null,null,null,null,null,null,null,null,null,null,null,null,null,null,null,null,null,null,null,null,null,null,null,null,null,null,null,null,188,0,0,0,0,0,0,0,0,{"$error":"#VALUE!"},{"$error":"#VALUE!"},{"$error":"#VALUE!"}]
[null,null,null,null,null,null,null,null,null,null,null,null,null,null,null,null,null,null,null,null,null,null,null,null,null,null,null,null,null,null,null,null,null,189,0,0,0,0,0,0,0,0,{"$error":"#VALUE!"},{"$error":"#VALUE!"},{"$error":"#VALUE!"}]
[null,null,null,null,null,null,null,null,null,null,null,null,null,null,null,null,null,null,null,null,null,null,null,null,null,null,null,null,null,null,null,null,null,190,0,0,0,0,0,0,0,0,{"$error":"#VALUE!"},{"$error":"#VALUE!"},{"$error":"#VALUE!"}]
[null,null,null,null,null,null,null,null,null,null,null,null,null,null,null,null,null,null,null,null,null,null,null,null,null,null,null,null,null,null,null,null,null,191,0,0,0,0,0,0,0,0,{"$error":"#VALUE!"},{"$error":"#VALUE!"},{"$error":"#VALUE!"}]
[null,null,null,null,null,null,null,null,null,null,null,null,null,null,null,null,null,null,null,null,null,null,null,null,null,null,null,null,null,null,null,null,null,192,0,0,{"$f":"IF(AI195=1,0,IF(AND(AH195>$C$42,AH195<=$D$42),1,0))","v":0},0,0,0,0,0,{"$error":"#VALUE!"},{"$error":"#VALUE!"},{"$error":"#VALUE!"}]
[null,null,null,null,null,null,null,null,null,null,null,null,null,null,null,null,null,null,null,null,null,null,null,null,null,null,null,null,null,null,null,null,null,193,{"$f":"IF(AND(AH196>$C$41,AH196<=$D$41),1,0)","v":0},{"$f":"$E$41*(AH196/60)^-$F$41*AH196/60*AI196","v":0},0,0,{"$f":"IF(OR(AI196=1,AK196=1),0,IF(AND(AH196>$C$43,AH196<=$D$43),1,0))","v":0},0,{"$f":"AJ196+AL196+AN196","v":0},{"$f":"AO196*$H$17*$H$18/1000","v":0},{"$error":"#VALUE!"},{"$f":"AP196-AQ196","v":{"$error":"#VALUE!"}},{"$f":"IF(AR196=MAX($AR$3:$AR$5762),AH196,\"\")","v":{"$error":"#VALUE!"}}]
[null,null,null,null,null,null,null,null,null,null,null,null,null,null,null,null,null,null,null,null,null,null,null,null,null,null,null,null,null,null,null,null,null,{"$f":"AH196+1","v":194},0,0,0,{"$f":"$E$42*((AH197/60)^-$F$42*AH197/60*AK197)","v":0},0,{"$f":"$E$42*(AH197/60)^-$F$42*AH197/60*AM197","v":0},0,0,{"$f":"$E$26/1000*AH197*60","v":{"$error":"#VALUE!"}},{"$error":"#VALUE!"},{"$error":"#VALUE!"}]
[null,null,null,null,null,null,null,null,null,null,null,null,null,null,null,null,null,null,null,null,null,null,null,null,null,null,null,null,null,null,null,null,null,195,0,0,0,0,0,0,0,0,{"$error":"#VALUE!"},{"$error":"#VALUE!"},{"$error":"#VALUE!"}]
[null,null,null,null,null,null,null,null,null,null,null,null,null,null,null,null,null,null,null,null,null,null,null,null,null,null,null,null,null,null,null,null,null,196,0,0,0,0,0,0,0,0,{"$error":"#VALUE!"},{"$error":"#VALUE!"},{"$error":"#VALUE!"}]
[null,null,null,null,null,null,null,null,null,null,null,null,null,null,null,null,null,null,null,null,null,null,null,null,null,null,null,null,null,null,null,null,null,197,0,0,0,0,0,0,0,0,{"$error":"#VALUE!"},{"$error":"#VALUE!"},{"$error":"#VALUE!"}]
[null,null,null,null,null,null,null,null,null,null,null,null,null,null,null,null,null,null,null,null,null,null,null,null,null,null,null,null,null,null,null,null,null,198,0,0,0,0,0,0,0,0,{"$error":"#VALUE!"},{"$error":"#VALUE!"},{"$error":"#VALUE!"}]
[null,null,null,null,null,null,null,null,null,null,null,null,null,null,null,null,null,null,null,null,null,null,null,null,null,null,null,null,null,null,null,null,null,199,0,0,0,0,0,0,0,0,{"$error":"#VALUE!"},{"$error":"#VALUE!"},{"$error":"#VALUE!"}]
[null,null,null,null,null,null,null,null,null,null,null,null,null,null,null,null,null,null,null,null,null,null,null,null,null,null,null,null,null,null,null,null,null,200,0,0,0,0,0,0,0,0,{"$error":"#VALUE!"},{"$error":"#VALUE!"},{"$error":"#VALUE!"}]
[null,null,null,null,null,null,null,null,null,null,null,null,null,null,null,null,null,null,null,null,null,null,null,null,null,null,null,null,null,null,null,null,null,201,0,0,0,0,0,0,0,0,{"$error":"#VALUE!"},{"$error":"#VALUE!"},{"$error":"#VALUE!"}]
[null,null,null,null,null,null,null,null,null,null,null,null,null,null,null,null,null,null,null,null,null,null,null,null,null,null,null,null,null,null,null,null,null,202,0,0,0,0,0,0,0,0,{"$error":"#VALUE!"},{"$error":"#VALUE!"},{"$error":"#VALUE!"}]
[null,null,null,null,null,null,null,null,null,null,null,null,null,null,null,null,null,null,null,null,null,null,null,null,null,null,null,null,null,null,null,null,null,203,0,0,0,0,0,0,0,0,{"$error":"#VALUE!"},{"$error":"#VALUE!"},{"$error":"#VALUE!"}]
[null,null,null,null,null,null,null,null,null,null,null,null,null,null,null,null,null,null,null,null,null,null,null,null,null,null,null,null,null,null,null,null,null,204,0,0,0,0,0,0,0,0,{"$error":"#VALUE!"},{"$error":"#VALUE!"},{"$error":"#VALUE!"}]
[null,null,null,null,null,null,null,null,null,null,null,null,null,null,null,null,null,null,null,null,null,null,null,null,null,null,null,null,null,null,null,null,null,205,0,0,0,0,0,0,0,0,{"$error":"#VALUE!"},{"$error":"#VALUE!"},{"$error":"#VALUE!"}]
[null,null,null,null,null,null,null,null,null,null,null,null,null,null,null,null,null,null,null,null,null,null,null,null,null,null,null,null,null,null,null,null,null,206,0,0,0,0,0,0,0,0,{"$error":"#VALUE!"},{"$error":"#VALUE!"},{"$error":"#VALUE!"}]
[null,null,null,null,null,null,null,null,null,null,null,null,null,null,null,null,null,null,null,null,null,null,null,null,null,null,null,null,null,null,null,null,null,207,0,0,0,0,0,0,0,0,{"$error":"#VALUE!"},{"$error":"#VALUE!"},{"$error":"#VALUE!"}]
[null,null,null,null,null,null,null,null,null,null,null,null,null,null,null,null,null,null,null,null,null,null,null,null,null,null,null,null,null,null,null,null,null,208,0,0,0,0,0,0,0,0,{"$error":"#VALUE!"},{"$error":"#VALUE!"},{"$error":"#VALUE!"}]
[null,null,null,null,null,null,null,null,null,null,null,null,null,null,null,null,null,null,null,null,null,null,null,null,null,null,null,null,null,null,null,null,null,209,0,0,0,0,0,0,0,0,{"$error":"#VALUE!"},{"$error":"#VALUE!"},{"$error":"#VALUE!"}]
[null,null,null,null,null,null,null,null,null,null,null,null,null,null,null,null,null,null,null,null,null,null,null,null,null,null,null,null,null,null,null,null,null,210,0,0,0,0,0,0,0,0,{"$error":"#VALUE!"},{"$error":"#VALUE!"},{"$error":"#VALUE!"}]
[null,null,null,null,null,null,null,null,null,null,null,null,null,null,null,null,null,null,null,null,null,null,null,null,null,null,null,null,null,null,null,null,null,211,0,0,0,0,0,0,0,0,{"$error":"#VALUE!"},{"$error":"#VALUE!"},{"$error":"#VALUE!"}]
[null,null,null,null,null,null,null,null,null,null,null,null,null,null,null,null,null,null,null,null,null,null,null,null,null,null,null,null,null,null,null,null,null,212,0,0,0,0,0,0,0,0,{"$error":"#VALUE!"},{"$error":"#VALUE!"},{"$error":"#VALUE!"}]
[null,null,null,null,null,null,null,null,null,null,null,null,null,null,null,null,null,null,null,null,null,null,null,null,null,null,null,null,null,null,null,null,null,213,0,0,0,0,0,0,0,0,{"$error":"#VALUE!"},{"$error":"#VALUE!"},{"$error":"#VALUE!"}]
[null,null,null,null,null,null,null,null,null,null,null,null,null,null,null,null,null,null,null,null,null,null,null,null,null,null,null,null,null,null,null,null,null,214,0,0,0,0,0,0,0,0,{"$error":"#VALUE!"},{"$error":"#VALUE!"},{"$error":"#VALUE!"}]
[null,null,null,null,null,null,null,null,null,null,null,null,null,null,null,null,null,null,null,null,null,null,null,null,null,null,null,null,null,null,null,null,null,215,0,0,0,0,0,0,0,0,{"$error":"#VALUE!"},{"$error":"#VALUE!"},{"$error":"#VALUE!"}]
[null,null,null,null,null,null,null,null,null,null,null,null,null,null,null,null,null,null,null,null,null,null,null,null,null,null,null,null,null,null,null,null,null,216,0,0,0,0,0,0,0,0,{"$error":"#VALUE!"},{"$error":"#VALUE!"},{"$error":"#VALUE!"}]
[null,null,null,null,null,null,null,null,null,null,null,null,null,null,null,null,null,null,null,null,null,null,null,null,null,null,null,null,null,null,null,null,null,217,0,0,0,0,0,0,0,0,{"$error":"#VALUE!"},{"$error":"#VALUE!"},{"$error":"#VALUE!"}]
[null,null,null,null,null,null,null,null,null,null,null,null,null,null,null,null,null,null,null,null,null,null,null,null,null,null,null,null,null,null,null,null,null,218,0,0,0,0,0,0,0,0,{"$error":"#VALUE!"},{"$error":"#VALUE!"},{"$error":"#VALUE!"}]
[null,null,null,null,null,null,null,null,null,null,null,null,null,null,null,null,null,null,null,null,null,null,null,null,null,null,null,null,null,null,null,null,null,219,0,0,0,0,0,0,0,0,{"$error":"#VALUE!"},{"$error":"#VALUE!"},{"$error":"#VALUE!"}]
[null,null,null,null,null,null,null,null,null,null,null,null,null,null,null,null,null,null,null,null,null,null,null,null,null,null,null,null,null,null,null,null,null,220,0,0,0,0,0,0,0,0,{"$error":"#VALUE!"},{"$error":"#VALUE!"},{"$error":"#VALUE!"}]
[null,null,null,null,null,null,null,null,null,null,null,null,null,null,null,null,null,null,null,null,null,null,null,null,null,null,null,null,null,null,null,null,null,221,0,0,0,0,0,0,0,0,{"$error":"#VALUE!"},{"$error":"#VALUE!"},{"$error":"#VALUE!"}]
[null,null,null,null,null,null,null,null,null,null,null,null,null,null,null,null,null,null,null,null,null,null,null,null,null,null,null,null,null,null,null,null,null,222,0,0,0,0,0,0,0,0,{"$error":"#VALUE!"},{"$error":"#VALUE!"},{"$error":"#VALUE!"}]
[null,null,null,null,null,null,null,null,null,null,null,null,null,null,null,null,null,null,null,null,null,null,null,null,null,null,null,null,null,null,null,null,null,223,0,0,0,0,0,0,0,0,{"$error":"#VALUE!"},{"$error":"#VALUE!"},{"$error":"#VALUE!"}]
[null,null,null,null,null,null,null,null,null,null,null,null,null,null,null,null,null,null,null,null,null,null,null,null,null,null,null,null,null,null,null,null,null,224,0,0,0,0,0,0,0,0,{"$error":"#VALUE!"},{"$error":"#VALUE!"},{"$error":"#VALUE!"}]
[null,null,null,null,null,null,null,null,null,null,null,null,null,null,null,null,null,null,null,null,null,null,null,null,null,null,null,null,null,null,null,null,null,225,0,0,0,0,0,0,0,0,{"$error":"#VALUE!"},{"$error":"#VALUE!"},{"$error":"#VALUE!"}]
[null,null,null,null,null,null,null,null,null,null,null,null,null,null,null,null,null,null,null,null,null,null,null,null,null,null,null,null,null,null,null,null,null,226,0,0,0,0,0,0,0,0,{"$error":"#VALUE!"},{"$error":"#VALUE!"},{"$error":"#VALUE!"}]
[null,null,null,null,null,null,null,null,null,null,null,null,null,null,null,null,null,null,null,null,null,null,null,null,null,null,null,null,null,null,null,null,null,227,0,0,0,0,0,0,0,0,{"$error":"#VALUE!"},{"$error":"#VALUE!"},{"$error":"#VALUE!"}]
[null,null,null,null,null,null,null,null,null,null,null,null,null,null,null,null,null,null,null,null,null,null,null,null,null,null,null,null,null,null,null,null,null,228,0,0,0,0,0,0,0,0,{"$error":"#VALUE!"},{"$error":"#VALUE!"},{"$error":"#VALUE!"}]
[null,null,null,null,null,null,null,null,null,null,null,null,null,null,null,null,null,null,null,null,null,null,null,null,null,null,null,null,null,null,null,null,null,229,0,0,0,0,0,0,0,0,{"$error":"#VALUE!"},{"$error":"#VALUE!"},{"$error":"#VALUE!"}]
[null,null,null,null,null,null,null,null,null,null,null,null,null,null,null,null,null,null,null,null,null,null,null,null,null,null,null,null,null,null,null,null,null,230,0,0,0,0,0,0,0,0,{"$error":"#VALUE!"},{"$error":"#VALUE!"},{"$error":"#VALUE!"}]
[null,null,null,null,null,null,null,null,null,null,null,null,null,null,null,null,null,null,null,null,null,null,null,null,null,null,null,null,null,null,null,null,null,231,0,0,0,0,0,0,0,0,{"$error":"#VALUE!"},{"$error":"#VALUE!"},{"$error":"#VALUE!"}]
[null,null,null,null,null,null,null,null,null,null,null,null,null,null,null,null,null,null,null,null,null,null,null,null,null,null,null,null,null,null,null,null,null,232,0,0,0,0,0,0,0,0,{"$error":"#VALUE!"},{"$error":"#VALUE!"},{"$error":"#VALUE!"}]
[null,null,null,null,null,null,null,null,null,null,null,null,null,null,null,null,null,null,null,null,null,null,null,null,null,null,null,null,null,null,null,null,null,233,0,0,0,0,0,0,0,0,{"$error":"#VALUE!"},{"$error":"#VALUE!"},{"$error":"#VALUE!"}]
[null,null,null,null,null,null,null,null,null,null,null,null,null,null,null,null,null,null,null,null,null,null,null,null,null,null,null,null,null,null,null,null,null,234,0,0,0,0,0,0,0,0,{"$error":"#VALUE!"},{"$error":"#VALUE!"},{"$error":"#VALUE!"}]
[null,null,null,null,null,null,null,null,null,null,null,null,null,null,null,null,null,null,null,null,null,null,null,null,null,null,null,null,null,null,null,null,null,235,0,0,0,0,0,0,0,0,{"$error":"#VALUE!"},{"$error":"#VALUE!"},{"$error":"#VALUE!"}]
[null,null,null,null,null,null,null,null,null,null,null,null,null,null,null,null,null,null,null,null,null,null,null,null,null,null,null,null,null,null,null,null,null,236,0,0,0,0,0,0,0,0,{"$error":"#VALUE!"},{"$error":"#VALUE!"},{"$error":"#VALUE!"}]
[null,null,null,null,null,null,null,null,null,null,null,null,null,null,null,null,null,null,null,null,null,null,null,null,null,null,null,null,null,null,null,null,null,237,0,0,0,0,0,0,0,0,{"$error":"#VALUE!"},{"$error":"#VALUE!"},{"$error":"#VALUE!"}]
[null,null,null,null,null,null,null,null,null,null,null,null,null,null,null,null,null,null,null,null,null,null,null,null,null,null,null,null,null,null,null,null,null,238,0,0,0,0,0,0,0,0,{"$error":"#VALUE!"},{"$error":"#VALUE!"},{"$error":"#VALUE!"}]
[null,null,null,null,null,null,null,null,null,null,null,null,null,null,null,null,null,null,null,null,null,null,null,null,null,null,null,null,null,null,null,null,null,239,0,0,0,0,0,0,0,0,{"$error":"#VALUE!"},{"$error":"#VALUE!"},{"$error":"#VALUE!"}]
[null,null,null,null,null,null,null,null,null,null,null,null,null,null,null,null,null,null,null,null,null,null,null,null,null,null,null,null,null,null,null,null,null,240,0,0,0,0,0,0,0,0,{"$error":"#VALUE!"},{"$error":"#VALUE!"},{"$error":"#VALUE!"}]
[null,null,null,null,null,null,null,null,null,null,null,null,null,null,null,null,null,null,null,null,null,null,null,null,null,null,null,null,null,null,null,null,null,241,0,0,0,0,0,0,0,0,{"$error":"#VALUE!"},{"$error":"#VALUE!"},{"$error":"#VALUE!"}]
[null,null,null,null,null,null,null,null,null,null,null,null,null,null,null,null,null,null,null,null,null,null,null,null,null,null,null,null,null,null,null,null,null,242,0,0,0,0,0,0,0,0,{"$error":"#VALUE!"},{"$error":"#VALUE!"},{"$error":"#VALUE!"}]
[null,null,null,null,null,null,null,null,null,null,null,null,null,null,null,null,null,null,null,null,null,null,null,null,null,null,null,null,null,null,null,null,null,243,0,0,0,0,0,0,0,0,{"$error":"#VALUE!"},{"$error":"#VALUE!"},{"$error":"#VALUE!"}]
[null,null,null,null,null,null,null,null,null,null,null,null,null,null,null,null,null,null,null,null,null,null,null,null,null,null,null,null,null,null,null,null,null,244,0,0,0,0,0,0,0,0,{"$error":"#VALUE!"},{"$error":"#VALUE!"},{"$error":"#VALUE!"}]
[null,null,null,null,null,null,null,null,null,null,null,null,null,null,null,null,null,null,null,null,null,null,null,null,null,null,null,null,null,null,null,null,null,245,0,0,0,0,0,0,0,0,{"$error":"#VALUE!"},{"$error":"#VALUE!"},{"$error":"#VALUE!"}]
[null,null,null,null,null,null,null,null,null,null,null,null,null,null,null,null,null,null,null,null,null,null,null,null,null,null,null,null,null,null,null,null,null,246,0,0,0,0,0,0,0,0,{"$error":"#VALUE!"},{"$error":"#VALUE!"},{"$error":"#VALUE!"}]
[null,null,null,null,null,null,null,null,null,null,null,null,null,null,null,null,null,null,null,null,null,null,null,null,null,null,null,null,null,null,null,null,null,247,0,0,0,0,0,0,0,0,{"$error":"#VALUE!"},{"$error":"#VALUE!"},{"$error":"#VALUE!"}]
[null,null,null,null,null,null,null,null,null,null,null,null,null,null,null,null,null,null,null,null,null,null,null,null,null,null,null,null,null,null,null,null,null,248,0,0,0,0,0,0,0,0,{"$error":"#VALUE!"},{"$error":"#VALUE!"},{"$error":"#VALUE!"}]
[null,null,null,null,null,null,null,null,null,null,null,null,null,null,null,null,null,null,null,null,null,null,null,null,null,null,null,null,null,null,null,null,null,249,0,0,0,0,0,0,0,0,{"$error":"#VALUE!"},{"$error":"#VALUE!"},{"$error":"#VALUE!"}]
[null,null,null,null,null,null,null,null,null,null,null,null,null,null,null,null,null,null,null,null,null,null,null,null,null,null,null,null,null,null,null,null,null,250,0,0,0,0,0,0,0,0,{"$error":"#VALUE!"},{"$error":"#VALUE!"},{"$error":"#VALUE!"}]
[null,null,null,null,null,null,null,null,null,null,null,null,null,null,null,null,null,null,null,null,null,null,null,null,null,null,null,null,null,null,null,null,null,251,0,0,0,0,0,0,0,0,{"$error":"#VALUE!"},{"$error":"#VALUE!"},{"$error":"#VALUE!"}]
[null,null,null,null,null,null,null,null,null,null,null,null,null,null,null,null,null,null,null,null,null,null,null,null,null,null,null,null,null,null,null,null,null,252,0,0,0,0,0,0,0,0,{"$error":"#VALUE!"},{"$error":"#VALUE!"},{"$error":"#VALUE!"}]
[null,null,null,null,null,null,null,null,null,null,null,null,null,null,null,null,null,null,null,null,null,null,null,null,null,null,null,null,null,null,null,null,null,253,0,0,0,0,0,0,0,0,{"$error":"#VALUE!"},{"$error":"#VALUE!"},{"$error":"#VALUE!"}]
[null,null,null,null,null,null,null,null,null,null,null,null,null,null,null,null,null,null,null,null,null,null,null,null,null,null,null,null,null,null,null,null,null,254,0,0,0,0,0,0,0,0,{"$error":"#VALUE!"},{"$error":"#VALUE!"},{"$error":"#VALUE!"}]
[null,null,null,null,null,null,null,null,null,null,null,null,null,null,null,null,null,null,null,null,null,null,null,null,null,null,null,null,null,null,null,null,null,255,0,0,0,0,0,0,0,0,{"$error":"#VALUE!"},{"$error":"#VALUE!"},{"$error":"#VALUE!"}]
[null,null,null,null,null,null,null,null,null,null,null,null,null,null,null,null,null,null,null,null,null,null,null,null,null,null,null,null,null,null,null,null,null,256,0,0,{"$f":"IF(AI259=1,0,IF(AND(AH259>$C$42,AH259<=$D$42),1,0))","v":0},0,0,0,0,0,{"$error":"#VALUE!"},{"$error":"#VALUE!"},{"$error":"#VALUE!"}]
[null,null,null,null,null,null,null,null,null,null,null,null,null,null,null,null,null,null,null,null,null,null,null,null,null,null,null,null,null,null,null,null,null,257,{"$f":"IF(AND(AH260>$C$41,AH260<=$D$41),1,0)","v":0},{"$f":"$E$41*(AH260/60)^-$F$41*AH260/60*AI260","v":0},0,0,{"$f":"IF(OR(AI260=1,AK260=1),0,IF(AND(AH260>$C$43,AH260<=$D$43),1,0))","v":0},0,{"$f":"AJ260+AL260+AN260","v":0},{"$f":"AO260*$H$17*$H$18/1000","v":0},{"$error":"#VALUE!"},{"$f":"AP260-AQ260","v":{"$error":"#VALUE!"}},{"$f":"IF(AR260=MAX($AR$3:$AR$5762),AH260,\"\")","v":{"$error":"#VALUE!"}}]
[null,null,null,null,null,null,null,null,null,null,null,null,null,null,null,null,null,null,null,null,null,null,null,null,null,null,null,null,null,null,null,null,null,{"$f":"AH260+1","v":258},0,0,0,{"$f":"$E$42*((AH261/60)^-$F$42*AH261/60*AK261)","v":0},0,{"$f":"$E$42*(AH261/60)^-$F$42*AH261/60*AM261","v":0},0,0,{"$f":"$E$26/1000*AH261*60","v":{"$error":"#VALUE!"}},{"$error":"#VALUE!"},{"$error":"#VALUE!"}]
[null,null,null,null,null,null,null,null,null,null,null,null,null,null,null,null,null,null,null,null,null,null,null,null,null,null,null,null,null,null,null,null,null,259,0,0,0,0,0,0,0,0,{"$error":"#VALUE!"},{"$error":"#VALUE!"},{"$error":"#VALUE!"}]
[null,null,null,null,null,null,null,null,null,null,null,null,null,null,null,null,null,null,null,null,null,null,null,null,null,null,null,null,null,null,null,null,null,260,0,0,0,0,0,0,0,0,{"$error":"#VALUE!"},{"$error":"#VALUE!"},{"$error":"#VALUE!"}]
[null,null,null,null,null,null,null,null,null,null,null,null,null,null,null,null,null,null,null,null,null,null,null,null,null,null,null,null,null,null,null,null,null,261,0,0,0,0,0,0,0,0,{"$error":"#VALUE!"},{"$error":"#VALUE!"},{"$error":"#VALUE!"}]
[null,null,null,null,null,null,null,null,null,null,null,null,null,null,null,null,null,null,null,null,null,null,null,null,null,null,null,null,null,null,null,null,null,262,0,0,0,0,0,0,0,0,{"$error":"#VALUE!"},{"$error":"#VALUE!"},{"$error":"#VALUE!"}]
[null,null,null,null,null,null,null,null,null,null,null,null,null,null,null,null,null,null,null,null,null,null,null,null,null,null,null,null,null,null,null,null,null,263,0,0,0,0,0,0,0,0,{"$error":"#VALUE!"},{"$error":"#VALUE!"},{"$error":"#VALUE!"}]
[null,null,null,null,null,null,null,null,null,null,null,null,null,null,null,null,null,null,null,null,null,null,null,null,null,null,null,null,null,null,null,null,null,264,0,0,0,0,0,0,0,0,{"$error":"#VALUE!"},{"$error":"#VALUE!"},{"$error":"#VALUE!"}]
[null,null,null,null,null,null,null,null,null,null,null,null,null,null,null,null,null,null,null,null,null,null,null,null,null,null,null,null,null,null,null,null,null,265,0,0,0,0,0,0,0,0,{"$error":"#VALUE!"},{"$error":"#VALUE!"},{"$error":"#VALUE!"}]
[null,null,null,null,null,null,null,null,null,null,null,null,null,null,null,null,null,null,null,null,null,null,null,null,null,null,null,null,null,null,null,null,null,266,0,0,0,0,0,0,0,0,{"$error":"#VALUE!"},{"$error":"#VALUE!"},{"$error":"#VALUE!"}]
[null,null,null,null,null,null,null,null,null,null,null,null,null,null,null,null,null,null,null,null,null,null,null,null,null,null,null,null,null,null,null,null,null,267,0,0,0,0,0,0,0,0,{"$error":"#VALUE!"},{"$error":"#VALUE!"},{"$error":"#VALUE!"}]
[null,null,null,null,null,null,null,null,null,null,null,null,null,null,null,null,null,null,null,null,null,null,null,null,null,null,null,null,null,null,null,null,null,268,0,0,0,0,0,0,0,0,{"$error":"#VALUE!"},{"$error":"#VALUE!"},{"$error":"#VALUE!"}]
[null,null,null,null,null,null,null,null,null,null,null,null,null,null,null,null,null,null,null,null,null,null,null,null,null,null,null,null,null,null,null,null,null,269,0,0,0,0,0,0,0,0,{"$error":"#VALUE!"},{"$error":"#VALUE!"},{"$error":"#VALUE!"}]
[null,null,null,null,null,null,null,null,null,null,null,null,null,null,null,null,null,null,null,null,null,null,null,null,null,null,null,null,null,null,null,null,null,270,0,0,0,0,0,0,0,0,{"$error":"#VALUE!"},{"$error":"#VALUE!"},{"$error":"#VALUE!"}]
[null,null,null,null,null,null,null,null,null,null,null,null,null,null,null,null,null,null,null,null,null,null,null,null,null,null,null,null,null,null,null,null,null,271,0,0,0,0,0,0,0,0,{"$error":"#VALUE!"},{"$error":"#VALUE!"},{"$error":"#VALUE!"}]
[null,null,null,null,null,null,null,null,null,null,null,null,null,null,null,null,null,null,null,null,null,null,null,null,null,null,null,null,null,null,null,null,null,272,0,0,0,0,0,0,0,0,{"$error":"#VALUE!"},{"$error":"#VALUE!"},{"$error":"#VALUE!"}]
[null,null,null,null,null,null,null,null,null,null,null,null,null,null,null,null,null,null,null,null,null,null,null,null,null,null,null,null,null,null,null,null,null,273,0,0,0,0,0,0,0,0,{"$error":"#VALUE!"},{"$error":"#VALUE!"},{"$error":"#VALUE!"}]
[null,null,null,null,null,null,null,null,null,null,null,null,null,null,null,null,null,null,null,null,null,null,null,null,null,null,null,null,null,null,null,null,null,274,0,0,0,0,0,0,0,0,{"$error":"#VALUE!"},{"$error":"#VALUE!"},{"$error":"#VALUE!"}]
[null,null,null,null,null,null,null,null,null,null,null,null,null,null,null,null,null,null,null,null,null,null,null,null,null,null,null,null,null,null,null,null,null,275,0,0,0,0,0,0,0,0,{"$error":"#VALUE!"},{"$error":"#VALUE!"},{"$error":"#VALUE!"}]
[null,null,null,null,null,null,null,null,null,null,null,null,null,null,null,null,null,null,null,null,null,null,null,null,null,null,null,null,null,null,null,null,null,276,0,0,0,0,0,0,0,0,{"$error":"#VALUE!"},{"$error":"#VALUE!"},{"$error":"#VALUE!"}]
[null,null,null,null,null,null,null,null,null,null,null,null,null,null,null,null,null,null,null,null,null,null,null,null,null,null,null,null,null,null,null,null,null,277,0,0,0,0,0,0,0,0,{"$error":"#VALUE!"},{"$error":"#VALUE!"},{"$error":"#VALUE!"}]
[null,null,null,null,null,null,null,null,null,null,null,null,null,null,null,null,null,null,null,null,null,null,null,null,null,null,null,null,null,null,null,null,null,278,0,0,0,0,0,0,0,0,{"$error":"#VALUE!"},{"$error":"#VALUE!"},{"$error":"#VALUE!"}]
[null,null,null,null,null,null,null,null,null,null,null,null,null,null,null,null,null,null,null,null,null,null,null,null,null,null,null,null,null,null,null,null,null,279,0,0,0,0,0,0,0,0,{"$error":"#VALUE!"},{"$error":"#VALUE!"},{"$error":"#VALUE!"}]
[null,null,null,null,null,null,null,null,null,null,null,null,null,null,null,null,null,null,null,null,null,null,null,null,null,null,null,null,null,null,null,null,null,280,0,0,0,0,0,0,0,0,{"$error":"#VALUE!"},{"$error":"#VALUE!"},{"$error":"#VALUE!"}]
[null,null,null,null,null,null,null,null,null,null,null,null,null,null,null,null,null,null,null,null,null,null,null,null,null,null,null,null,null,null,null,null,null,281,0,0,0,0,0,0,0,0,{"$error":"#VALUE!"},{"$error":"#VALUE!"},{"$error":"#VALUE!"}]
[null,null,null,null,null,null,null,null,null,null,null,null,null,null,null,null,null,null,null,null,null,null,null,null,null,null,null,null,null,null,null,null,null,282,0,0,0,0,0,0,0,0,{"$error":"#VALUE!"},{"$error":"#VALUE!"},{"$error":"#VALUE!"}]
[null,null,null,null,null,null,null,null,null,null,null,null,null,null,null,null,null,null,null,null,null,null,null,null,null,null,null,null,null,null,null,null,null,283,0,0,0,0,0,0,0,0,{"$error":"#VALUE!"},{"$error":"#VALUE!"},{"$error":"#VALUE!"}]
[null,null,null,null,null,null,null,null,null,null,null,null,null,null,null,null,null,null,null,null,null,null,null,null,null,null,null,null,null,null,null,null,null,284,0,0,0,0,0,0,0,0,{"$error":"#VALUE!"},{"$error":"#VALUE!"},{"$error":"#VALUE!"}]
[null,null,null,null,null,null,null,null,null,null,null,null,null,null,null,null,null,null,null,null,null,null,null,null,null,null,null,null,null,null,null,null,null,285,0,0,0,0,0,0,0,0,{"$error":"#VALUE!"},{"$error":"#VALUE!"},{"$error":"#VALUE!"}]
[null,null,null,null,null,null,null,null,null,null,null,null,null,null,null,null,null,null,null,null,null,null,null,null,null,null,null,null,null,null,null,null,null,286,0,0,0,0,0,0,0,0,{"$error":"#VALUE!"},{"$error":"#VALUE!"},{"$error":"#VALUE!"}]
[null,null,null,null,null,null,null,null,null,null,null,null,null,null,null,null,null,null,null,null,null,null,null,null,null,null,null,null,null,null,null,null,null,287,0,0,0,0,0,0,0,0,{"$error":"#VALUE!"},{"$error":"#VALUE!"},{"$error":"#VALUE!"}]
[null,null,null,null,null,null,null,null,null,null,null,null,null,null,null,null,null,null,null,null,null,null,null,null,null,null,null,null,null,null,null,null,null,288,0,0,0,0,0,0,0,0,{"$error":"#VALUE!"},{"$error":"#VALUE!"},{"$error":"#VALUE!"}]
[null,null,null,null,null,null,null,null,null,null,null,null,null,null,null,null,null,null,null,null,null,null,null,null,null,null,null,null,null,null,null,null,null,289,0,0,0,0,0,0,0,0,{"$error":"#VALUE!"},{"$error":"#VALUE!"},{"$error":"#VALUE!"}]
[null,null,null,null,null,null,null,null,null,null,null,null,null,null,null,null,null,null,null,null,null,null,null,null,null,null,null,null,null,null,null,null,null,290,0,0,0,0,0,0,0,0,{"$error":"#VALUE!"},{"$error":"#VALUE!"},{"$error":"#VALUE!"}]
[null,null,null,null,null,null,null,null,null,null,null,null,null,null,null,null,null,null,null,null,null,null,null,null,null,null,null,null,null,null,null,null,null,291,0,0,0,0,0,0,0,0,{"$error":"#VALUE!"},{"$error":"#VALUE!"},{"$error":"#VALUE!"}]
[null,null,null,null,null,null,null,null,null,null,null,null,null,null,null,null,null,null,null,null,null,null,null,null,null,null,null,null,null,null,null,null,null,292,0,0,0,0,0,0,0,0,{"$error":"#VALUE!"},{"$error":"#VALUE!"},{"$error":"#VALUE!"}]
[null,null,null,null,null,null,null,null,null,null,null,null,null,null,null,null,null,null,null,null,null,null,null,null,null,null,null,null,null,null,null,null,null,293,0,0,0,0,0,0,0,0,{"$error":"#VALUE!"},{"$error":"#VALUE!"},{"$error":"#VALUE!"}]
[null,null,null,null,null,null,null,null,null,null,null,null,null,null,null,null,null,null,null,null,null,null,null,null,null,null,null,null,null,null,null,null,null,294,0,0,0,0,0,0,0,0,{"$error":"#VALUE!"},{"$error":"#VALUE!"},{"$error":"#VALUE!"}]
[null,null,null,null,null,null,null,null,null,null,null,null,null,null,null,null,null,null,null,null,null,null,null,null,null,null,null,null,null,null,null,null,null,295,0,0,0,0,0,0,0,0,{"$error":"#VALUE!"},{"$error":"#VALUE!"},{"$error":"#VALUE!"}]
[null,null,null,null,null,null,null,null,null,null,null,null,null,null,null,null,null,null,null,null,null,null,null,null,null,null,null,null,null,null,null,null,null,296,0,0,0,0,0,0,0,0,{"$error":"#VALUE!"},{"$error":"#VALUE!"},{"$error":"#VALUE!"}]
[null,null,null,null,null,null,null,null,null,null,null,null,null,null,null,null,null,null,null,null,null,null,null,null,null,null,null,null,null,null,null,null,null,297,0,0,0,0,0,0,0,0,{"$error":"#VALUE!"},{"$error":"#VALUE!"},{"$error":"#VALUE!"}]
[null,null,null,null,null,null,null,null,null,null,null,null,null,null,null,null,null,null,null,null,null,null,null,null,null,null,null,null,null,null,null,null,null,298,0,0,0,0,0,0,0,0,{"$error":"#VALUE!"},{"$error":"#VALUE!"},{"$error":"#VALUE!"}]
[null,null,null,null,null,null,null,null,null,null,null,null,null,null,null,null,null,null,null,null,null,null,null,null,null,null,null,null,null,null,null,null,null,299,0,0,0,0,0,0,0,0,{"$error":"#VALUE!"},{"$error":"#VALUE!"},{"$error":"#VALUE!"}]
[null,null,null,null,null,null,null,null,null,null,null,null,null,null,null,null,null,null,null,null,null,null,null,null,null,null,null,null,null,null,null,null,null,300,0,0,0,0,0,0,0,0,{"$error":"#VALUE!"},{"$error":"#VALUE!"},{"$error":"#VALUE!"}]
[null,null,null,null,null,null,null,null,null,null,null,null,null,null,null,null,null,null,null,null,null,null,null,null,null,null,null,null,null,null,null,null,null,301,0,0,0,0,0,0,0,0,{"$error":"#VALUE!"},{"$error":"#VALUE!"},{"$error":"#VALUE!"}]
[null,null,null,null,null,null,null,null,null,null,null,null,null,null,null,null,null,null,null,null,null,null,null,null,null,null,null,null,null,null,null,null,null,302,0,0,0,0,0,0,0,0,{"$error":"#VALUE!"},{"$error":"#VALUE!"},{"$error":"#VALUE!"}]
[null,null,null,null,null,null,null,null,null,null,null,null,null,null,null,null,null,null,null,null,null,null,null,null,null,null,null,null,null,null,null,null,null,303,0,0,0,0,0,0,0,0,{"$error":"#VALUE!"},{"$error":"#VALUE!"},{"$error":"#VALUE!"}]
[null,null,null,null,null,null,null,null,null,null,null,null,null,null,null,null,null,null,null,null,null,null,null,null,null,null,null,null,null,null,null,null,null,304,0,0,0,0,0,0,0,0,{"$error":"#VALUE!"},{"$error":"#VALUE!"},{"$error":"#VALUE!"}]
[null,null,null,null,null,null,null,null,null,null,null,null,null,null,null,null,null,null,null,null,null,null,null,null,null,null,null,null,null,null,null,null,null,305,0,0,0,0,0,0,0,0,{"$error":"#VALUE!"},{"$error":"#VALUE!"},{"$error":"#VALUE!"}]
[null,null,null,null,null,null,null,null,null,null,null,null,null,null,null,null,null,null,null,null,null,null,null,null,null,null,null,null,null,null,null,null,null,306,0,0,0,0,0,0,0,0,{"$error":"#VALUE!"},{"$error":"#VALUE!"},{"$error":"#VALUE!"}]
[null,null,null,null,null,null,null,null,null,null,null,null,null,null,null,null,null,null,null,null,null,null,null,null,null,null,null,null,null,null,null,null,null,307,0,0,0,0,0,0,0,0,{"$error":"#VALUE!"},{"$error":"#VALUE!"},{"$error":"#VALUE!"}]
[null,null,null,null,null,null,null,null,null,null,null,null,null,null,null,null,null,null,null,null,null,null,null,null,null,null,null,null,null,null,null,null,null,308,0,0,0,0,0,0,0,0,{"$error":"#VALUE!"},{"$error":"#VALUE!"},{"$error":"#VALUE!"}]
[null,null,null,null,null,null,null,null,null,null,null,null,null,null,null,null,null,null,null,null,null,null,null,null,null,null,null,null,null,null,null,null,null,309,0,0,0,0,0,0,0,0,{"$error":"#VALUE!"},{"$error":"#VALUE!"},{"$error":"#VALUE!"}]
[null,null,null,null,null,null,null,null,null,null,null,null,null,null,null,null,null,null,null,null,null,null,null,null,null,null,null,null,null,null,null,null,null,310,0,0,0,0,0,0,0,0,{"$error":"#VALUE!"},{"$error":"#VALUE!"},{"$error":"#VALUE!"}]
[null,null,null,null,null,null,null,null,null,null,null,null,null,null,null,null,null,null,null,null,null,null,null,null,null,null,null,null,null,null,null,null,null,311,0,0,0,0,0,0,0,0,{"$error":"#VALUE!"},{"$error":"#VALUE!"},{"$error":"#VALUE!"}]
[null,null,null,null,null,null,null,null,null,null,null,null,null,null,null,null,null,null,null,null,null,null,null,null,null,null,null,null,null,null,null,null,null,312,0,0,0,0,0,0,0,0,{"$error":"#VALUE!"},{"$error":"#VALUE!"},{"$error":"#VALUE!"}]
[null,null,null,null,null,null,null,null,null,null,null,null,null,null,null,null,null,null,null,null,null,null,null,null,null,null,null,null,null,null,null,null,null,313,0,0,0,0,0,0,0,0,{"$error":"#VALUE!"},{"$error":"#VALUE!"},{"$error":"#VALUE!"}]
[null,null,null,null,null,null,null,null,null,null,null,null,null,null,null,null,null,null,null,null,null,null,null,null,null,null,null,null,null,null,null,null,null,314,0,0,0,0,0,0,0,0,{"$error":"#VALUE!"},{"$error":"#VALUE!"},{"$error":"#VALUE!"}]
[null,null,null,null,null,null,null,null,null,null,null,null,null,null,null,null,null,null,null,null,null,null,null,null,null,null,null,null,null,null,null,null,null,315,0,0,0,0,0,0,0,0,{"$error":"#VALUE!"},{"$error":"#VALUE!"},{"$error":"#VALUE!"}]
[null,null,null,null,null,null,null,null,null,null,null,null,null,null,null,null,null,null,null,null,null,null,null,null,null,null,null,null,null,null,null,null,null,316,0,0,0,0,0,0,0,0,{"$error":"#VALUE!"},{"$error":"#VALUE!"},{"$error":"#VALUE!"}]
[null,null,null,null,null,null,null,null,null,null,null,null,null,null,null,null,null,null,null,null,null,null,null,null,null,null,null,null,null,null,null,null,null,317,0,0,0,0,0,0,0,0,{"$error":"#VALUE!"},{"$error":"#VALUE!"},{"$error":"#VALUE!"}]
[null,null,null,null,null,null,null,null,null,null,null,null,null,null,null,null,null,null,null,null,null,null,null,null,null,null,null,null,null,null,null,null,null,318,0,0,0,0,0,0,0,0,{"$error":"#VALUE!"},{"$error":"#VALUE!"},{"$error":"#VALUE!"}]
[null,null,null,null,null,null,null,null,null,null,null,null,null,null,null,null,null,null,null,null,null,null,null,null,null,null,null,null,null,null,null,null,null,319,0,0,0,0,0,0,0,0,{"$error":"#VALUE!"},{"$error":"#VALUE!"},{"$error":"#VALUE!"}]
[null,null,null,null,null,null,null,null,null,null,null,null,null,null,null,null,null,null,null,null,null,null,null,null,null,null,null,null,null,null,null,null,null,320,0,0,{"$f":"IF(AI323=1,0,IF(AND(AH323>$C$42,AH323<=$D$42),1,0))","v":0},0,0,0,0,0,{"$error":"#VALUE!"},{"$error":"#VALUE!"},{"$error":"#VALUE!"}]
[null,null,null,null,null,null,null,null,null,null,null,null,null,null,null,null,null,null,null,null,null,null,null,null,null,null,null,null,null,null,null,null,null,321,{"$f":"IF(AND(AH324>$C$41,AH324<=$D$41),1,0)","v":0},{"$f":"$E$41*(AH324/60)^-$F$41*AH324/60*AI324","v":0},0,0,{"$f":"IF(OR(AI324=1,AK324=1),0,IF(AND(AH324>$C$43,AH324<=$D$43),1,0))","v":0},0,{"$f":"AJ324+AL324+AN324","v":0},{"$f":"AO324*$H$17*$H$18/1000","v":0},{"$error":"#VALUE!"},{"$f":"AP324-AQ324","v":{"$error":"#VALUE!"}},{"$f":"IF(AR324=MAX($AR$3:$AR$5762),AH324,\"\")","v":{"$error":"#VALUE!"}}]
[null,null,null,null,null,null,null,null,null,null,null,null,null,null,null,null,null,null,null,null,null,null,null,null,null,null,null,null,null,null,null,null,null,{"$f":"AH324+1","v":322},0,0,0,{"$f":"$E$42*((AH325/60)^-$F$42*AH325/60*AK325)","v":0},0,{"$f":"$E$42*(AH325/60)^-$F$42*AH325/60*AM325","v":0},0,0,{"$f":"$E$26/1000*AH325*60","v":{"$error":"#VALUE!"}},{"$error":"#VALUE!"},{"$error":"#VALUE!"}]
[null,null,null,null,null,null,null,null,null,null,null,null,null,null,null,null,null,null,null,null,null,null,null,null,null,null,null,null,null,null,null,null,null,323,0,0,0,0,0,0,0,0,{"$error":"#VALUE!"},{"$error":"#VALUE!"},{"$error":"#VALUE!"}]
[null,null,null,null,null,null,null,null,null,null,null,null,null,null,null,null,null,null,null,null,null,null,null,null,null,null,null,null,null,null,null,null,null,324,0,0,0,0,0,0,0,0,{"$error":"#VALUE!"},{"$error":"#VALUE!"},{"$error":"#VALUE!"}]
[null,null,null,null,null,null,null,null,null,null,null,null,null,null,null,null,null,null,null,null,null,null,null,null,null,null,null,null,null,null,null,null,null,325,0,0,0,0,0,0,0,0,{"$error":"#VALUE!"},{"$error":"#VALUE!"},{"$error":"#VALUE!"}]
[null,null,null,null,null,null,null,null,null,null,null,null,null,null,null,null,null,null,null,null,null,null,null,null,null,null,null,null,null,null,null,null,null,326,0,0,0,0,0,0,0,0,{"$error":"#VALUE!"},{"$error":"#VALUE!"},{"$error":"#VALUE!"}]
[null,null,null,null,null,null,null,null,null,null,null,null,null,null,null,null,null,null,null,null,null,null,null,null,null,null,null,null,null,null,null,null,null,327,0,0,0,0,0,0,0,0,{"$error":"#VALUE!"},{"$error":"#VALUE!"},{"$error":"#VALUE!"}]
[null,null,null,null,null,null,null,null,null,null,null,null,null,null,null,null,null,null,null,null,null,null,null,null,null,null,null,null,null,null,null,null,null,328,0,0,0,0,0,0,0,0,{"$error":"#VALUE!"},{"$error":"#VALUE!"},{"$error":"#VALUE!"}]
[null,null,null,null,null,null,null,null,null,null,null,null,null,null,null,null,null,null,null,null,null,null,null,null,null,null,null,null,null,null,null,null,null,329,0,0,0,0,0,0,0,0,{"$error":"#VALUE!"},{"$error":"#VALUE!"},{"$error":"#VALUE!"}]
[null,null,null,null,null,null,null,null,null,null,null,null,null,null,null,null,null,null,null,null,null,null,null,null,null,null,null,null,null,null,null,null,null,330,0,0,0,0,0,0,0,0,{"$error":"#VALUE!"},{"$error":"#VALUE!"},{"$error":"#VALUE!"}]
[null,null,null,null,null,null,null,null,null,null,null,null,null,null,null,null,null,null,null,null,null,null,null,null,null,null,null,null,null,null,null,null,null,331,0,0,0,0,0,0,0,0,{"$error":"#VALUE!"},{"$error":"#VALUE!"},{"$error":"#VALUE!"}]
[null,null,null,null,null,null,null,null,null,null,null,null,null,null,null,null,null,null,null,null,null,null,null,null,null,null,null,null,null,null,null,null,null,332,0,0,0,0,0,0,0,0,{"$error":"#VALUE!"},{"$error":"#VALUE!"},{"$error":"#VALUE!"}]
[null,null,null,null,null,null,null,null,null,null,null,null,null,null,null,null,null,null,null,null,null,null,null,null,null,null,null,null,null,null,null,null,null,333,0,0,0,0,0,0,0,0,{"$error":"#VALUE!"},{"$error":"#VALUE!"},{"$error":"#VALUE!"}]
[null,null,null,null,null,null,null,null,null,null,null,null,null,null,null,null,null,null,null,null,null,null,null,null,null,null,null,null,null,null,null,null,null,334,0,0,0,0,0,0,0,0,{"$error":"#VALUE!"},{"$error":"#VALUE!"},{"$error":"#VALUE!"}]
[null,null,null,null,null,null,null,null,null,null,null,null,null,null,null,null,null,null,null,null,null,null,null,null,null,null,null,null,null,null,null,null,null,335,0,0,0,0,0,0,0,0,{"$error":"#VALUE!"},{"$error":"#VALUE!"},{"$error":"#VALUE!"}]
[null,null,null,null,null,null,null,null,null,null,null,null,null,null,null,null,null,null,null,null,null,null,null,null,null,null,null,null,null,null,null,null,null,336,0,0,0,0,0,0,0,0,{"$error":"#VALUE!"},{"$error":"#VALUE!"},{"$error":"#VALUE!"}]
[null,null,null,null,null,null,null,null,null,null,null,null,null,null,null,null,null,null,null,null,null,null,null,null,null,null,null,null,null,null,null,null,null,337,0,0,0,0,0,0,0,0,{"$error":"#VALUE!"},{"$error":"#VALUE!"},{"$error":"#VALUE!"}]
[null,null,null,null,null,null,null,null,null,null,null,null,null,null,null,null,null,null,null,null,null,null,null,null,null,null,null,null,null,null,null,null,null,338,0,0,0,0,0,0,0,0,{"$error":"#VALUE!"},{"$error":"#VALUE!"},{"$error":"#VALUE!"}]
[null,null,null,null,null,null,null,null,null,null,null,null,null,null,null,null,null,null,null,null,null,null,null,null,null,null,null,null,null,null,null,null,null,339,0,0,0,0,0,0,0,0,{"$error":"#VALUE!"},{"$error":"#VALUE!"},{"$error":"#VALUE!"}]
[null,null,null,null,null,null,null,null,null,null,null,null,null,null,null,null,null,null,null,null,null,null,null,null,null,null,null,null,null,null,null,null,null,340,0,0,0,0,0,0,0,0,{"$error":"#VALUE!"},{"$error":"#VALUE!"},{"$error":"#VALUE!"}]
[null,null,null,null,null,null,null,null,null,null,null,null,null,null,null,null,null,null,null,null,null,null,null,null,null,null,null,null,null,null,null,null,null,341,0,0,0,0,0,0,0,0,{"$error":"#VALUE!"},{"$error":"#VALUE!"},{"$error":"#VALUE!"}]
[null,null,null,null,null,null,null,null,null,null,null,null,null,null,null,null,null,null,null,null,null,null,null,null,null,null,null,null,null,null,null,null,null,342,0,0,0,0,0,0,0,0,{"$error":"#VALUE!"},{"$error":"#VALUE!"},{"$error":"#VALUE!"}]
[null,null,null,null,null,null,null,null,null,null,null,null,null,null,null,null,null,null,null,null,null,null,null,null,null,null,null,null,null,null,null,null,null,343,0,0,0,0,0,0,0,0,{"$error":"#VALUE!"},{"$error":"#VALUE!"},{"$error":"#VALUE!"}]
[null,null,null,null,null,null,null,null,null,null,null,null,null,null,null,null,null,null,null,null,null,null,null,null,null,null,null,null,null,null,null,null,null,344,0,0,0,0,0,0,0,0,{"$error":"#VALUE!"},{"$error":"#VALUE!"},{"$error":"#VALUE!"}]
[null,null,null,null,null,null,null,null,null,null,null,null,null,null,null,null,null,null,null,null,null,null,null,null,null,null,null,null,null,null,null,null,null,345,0,0,0,0,0,0,0,0,{"$error":"#VALUE!"},{"$error":"#VALUE!"},{"$error":"#VALUE!"}]
[null,null,null,null,null,null,null,null,null,null,null,null,null,null,null,null,null,null,null,null,null,null,null,null,null,null,null,null,null,null,null,null,null,346,0,0,0,0,0,0,0,0,{"$error":"#VALUE!"},{"$error":"#VALUE!"},{"$error":"#VALUE!"}]
[null,null,null,null,null,null,null,null,null,null,null,null,null,null,null,null,null,null,null,null,null,null,null,null,null,null,null,null,null,null,null,null,null,347,0,0,0,0,0,0,0,0,{"$error":"#VALUE!"},{"$error":"#VALUE!"},{"$error":"#VALUE!"}]
[null,null,null,null,null,null,null,null,null,null,null,null,null,null,null,null,null,null,null,null,null,null,null,null,null,null,null,null,null,null,null,null,null,348,0,0,0,0,0,0,0,0,{"$error":"#VALUE!"},{"$error":"#VALUE!"},{"$error":"#VALUE!"}]
[null,null,null,null,null,null,null,null,null,null,null,null,null,null,null,null,null,null,null,null,null,null,null,null,null,null,null,null,null,null,null,null,null,349,0,0,0,0,0,0,0,0,{"$error":"#VALUE!"},{"$error":"#VALUE!"},{"$error":"#VALUE!"}]
[null,null,null,null,null,null,null,null,null,null,null,null,null,null,null,null,null,null,null,null,null,null,null,null,null,null,null,null,null,null,null,null,null,350,0,0,0,0,0,0,0,0,{"$error":"#VALUE!"},{"$error":"#VALUE!"},{"$error":"#VALUE!"}]
[null,null,null,null,null,null,null,null,null,null,null,null,null,null,null,null,null,null,null,null,null,null,null,null,null,null,null,null,null,null,null,null,null,351,0,0,0,0,0,0,0,0,{"$error":"#VALUE!"},{"$error":"#VALUE!"},{"$error":"#VALUE!"}]
[null,null,null,null,null,null,null,null,null,null,null,null,null,null,null,null,null,null,null,null,null,null,null,null,null,null,null,null,null,null,null,null,null,352,0,0,0,0,0,0,0,0,{"$error":"#VALUE!"},{"$error":"#VALUE!"},{"$error":"#VALUE!"}]
[null,null,null,null,null,null,null,null,null,null,null,null,null,null,null,null,null,null,null,null,null,null,null,null,null,null,null,null,null,null,null,null,null,353,0,0,0,0,0,0,0,0,{"$error":"#VALUE!"},{"$error":"#VALUE!"},{"$error":"#VALUE!"}]
[null,null,null,null,null,null,null,null,null,null,null,null,null,null,null,null,null,null,null,null,null,null,null,null,null,null,null,null,null,null,null,null,null,354,0,0,0,0,0,0,0,0,{"$error":"#VALUE!"},{"$error":"#VALUE!"},{"$error":"#VALUE!"}]
[null,null,null,null,null,null,null,null,null,null,null,null,null,null,null,null,null,null,null,null,null,null,null,null,null,null,null,null,null,null,null,null,null,355,0,0,0,0,0,0,0,0,{"$error":"#VALUE!"},{"$error":"#VALUE!"},{"$error":"#VALUE!"}]
[null,null,null,null,null,null,null,null,null,null,null,null,null,null,null,null,null,null,null,null,null,null,null,null,null,null,null,null,null,null,null,null,null,356,0,0,0,0,0,0,0,0,{"$error":"#VALUE!"},{"$error":"#VALUE!"},{"$error":"#VALUE!"}]
[null,null,null,null,null,null,null,null,null,null,null,null,null,null,null,null,null,null,null,null,null,null,null,null,null,null,null,null,null,null,null,null,null,357,0,0,0,0,0,0,0,0,{"$error":"#VALUE!"},{"$error":"#VALUE!"},{"$error":"#VALUE!"}]
[null,null,null,null,null,null,null,null,null,null,null,null,null,null,null,null,null,null,null,null,null,null,null,null,null,null,null,null,null,null,null,null,null,358,0,0,0,0,0,0,0,0,{"$error":"#VALUE!"},{"$error":"#VALUE!"},{"$error":"#VALUE!"}]
[null,null,null,null,null,null,null,null,null,null,null,null,null,null,null,null,null,null,null,null,null,null,null,null,null,null,null,null,null,null,null,null,null,359,0,0,0,0,0,0,0,0,{"$error":"#VALUE!"},{"$error":"#VALUE!"},{"$error":"#VALUE!"}]
[null,null,null,null,null,null,null,null,null,null,null,null,null,null,null,null,null,null,null,null,null,null,null,null,null,null,null,null,null,null,null,null,null,360,0,0,0,0,0,0,0,0,{"$error":"#VALUE!"},{"$error":"#VALUE!"},{"$error":"#VALUE!"}]
[null,null,null,null,null,null,null,null,null,null,null,null,null,null,null,null,null,null,null,null,null,null,null,null,null,null,null,null,null,null,null,null,null,361,0,0,0,0,0,0,0,0,{"$error":"#VALUE!"},{"$error":"#VALUE!"},{"$error":"#VALUE!"}]
[null,null,null,null,null,null,null,null,null,null,null,null,null,null,null,null,null,null,null,null,null,null,null,null,null,null,null,null,null,null,null,null,null,362,0,0,0,0,0,0,0,0,{"$error":"#VALUE!"},{"$error":"#VALUE!"},{"$error":"#VALUE!"}]
[null,null,null,null,null,null,null,null,null,null,null,null,null,null,null,null,null,null,null,null,null,null,null,null,null,null,null,null,null,null,null,null,null,363,0,0,0,0,0,0,0,0,{"$error":"#VALUE!"},{"$error":"#VALUE!"},{"$error":"#VALUE!"}]
[null,null,null,null,null,null,null,null,null,null,null,null,null,null,null,null,null,null,null,null,null,null,null,null,null,null,null,null,null,null,null,null,null,364,0,0,0,0,0,0,0,0,{"$error":"#VALUE!"},{"$error":"#VALUE!"},{"$error":"#VALUE!"}]
[null,null,null,null,null,null,null,null,null,null,null,null,null,null,null,null,null,null,null,null,null,null,null,null,null,null,null,null,null,null,null,null,null,365,0,0,0,0,0,0,0,0,{"$error":"#VALUE!"},{"$error":"#VALUE!"},{"$error":"#VALUE!"}]
[null,null,null,null,null,null,null,null,null,null,null,null,null,null,null,null,null,null,null,null,null,null,null,null,null,null,null,null,null,null,null,null,null,366,0,0,0,0,0,0,0,0,{"$error":"#VALUE!"},{"$error":"#VALUE!"},{"$error":"#VALUE!"}]
[null,null,null,null,null,null,null,null,null,null,null,null,null,null,null,null,null,null,null,null,null,null,null,null,null,null,null,null,null,null,null,null,null,367,0,0,0,0,0,0,0,0,{"$error":"#VALUE!"},{"$error":"#VALUE!"},{"$error":"#VALUE!"}]
[null,null,null,null,null,null,null,null,null,null,null,null,null,null,null,null,null,null,null,null,null,null,null,null,null,null,null,null,null,null,null,null,null,368,0,0,0,0,0,0,0,0,{"$error":"#VALUE!"},{"$error":"#VALUE!"},{"$error":"#VALUE!"}]
[null,null,null,null,null,null,null,null,null,null,null,null,null,null,null,null,null,null,null,null,null,null,null,null,null,null,null,null,null,null,null,null,null,369,0,0,0,0,0,0,0,0,{"$error":"#VALUE!"},{"$error":"#VALUE!"},{"$error":"#VALUE!"}]
[null,null,null,null,null,null,null,null,null,null,null,null,null,null,null,null,null,null,null,null,null,null,null,null,null,null,null,null,null,null,null,null,null,370,0,0,0,0,0,0,0,0,{"$error":"#VALUE!"},{"$error":"#VALUE!"},{"$error":"#VALUE!"}]
[null,null,null,null,null,null,null,null,null,null,null,null,null,null,null,null,null,null,null,null,null,null,null,null,null,null,null,null,null,null,null,null,null,371,0,0,0,0,0,0,0,0,{"$error":"#VALUE!"},{"$error":"#VALUE!"},{"$error":"#VALUE!"}]
[null,null,null,null,null,null,null,null,null,null,null,null,null,null,null,null,null,null,null,null,null,null,null,null,null,null,null,null,null,null,null,null,null,372,0,0,0,0,0,0,0,0,{"$error":"#VALUE!"},{"$error":"#VALUE!"},{"$error":"#VALUE!"}]
[null,null,null,null,null,null,null,null,null,null,null,null,null,null,null,null,null,null,null,null,null,null,null,null,null,null,null,null,null,null,null,null,null,373,0,0,0,0,0,0,0,0,{"$error":"#VALUE!"},{"$error":"#VALUE!"},{"$error":"#VALUE!"}]
[null,null,null,null,null,null,null,null,null,null,null,null,null,null,null,null,null,null,null,null,null,null,null,null,null,null,null,null,null,null,null,null,null,374,0,0,0,0,0,0,0,0,{"$error":"#VALUE!"},{"$error":"#VALUE!"},{"$error":"#VALUE!"}]
[null,null,null,null,null,null,null,null,null,null,null,null,null,null,null,null,null,null,null,null,null,null,null,null,null,null,null,null,null,null,null,null,null,375,0,0,0,0,0,0,0,0,{"$error":"#VALUE!"},{"$error":"#VALUE!"},{"$error":"#VALUE!"}]
[null,null,null,null,null,null,null,null,null,null,null,null,null,null,null,null,null,null,null,null,null,null,null,null,null,null,null,null,null,null,null,null,null,376,0,0,0,0,0,0,0,0,{"$error":"#VALUE!"},{"$error":"#VALUE!"},{"$error":"#VALUE!"}]
[null,null,null,null,null,null,null,null,null,null,null,null,null,null,null,null,null,null,null,null,null,null,null,null,null,null,null,null,null,null,null,null,null,377,0,0,0,0,0,0,0,0,{"$error":"#VALUE!"},{"$error":"#VALUE!"},{"$error":"#VALUE!"}]
[null,null,null,null,null,null,null,null,null,null,null,null,null,null,null,null,null,null,null,null,null,null,null,null,null,null,null,null,null,null,null,null,null,378,0,0,0,0,0,0,0,0,{"$error":"#VALUE!"},{"$error":"#VALUE!"},{"$error":"#VALUE!"}]
[null,null,null,null,null,null,null,null,null,null,null,null,null,null,null,null,null,null,null,null,null,null,null,null,null,null,null,null,null,null,null,null,null,379,0,0,0,0,0,0,0,0,{"$error":"#VALUE!"},{"$error":"#VALUE!"},{"$error":"#VALUE!"}]
[null,null,null,null,null,null,null,null,null,null,null,null,null,null,null,null,null,null,null,null,null,null,null,null,null,null,null,null,null,null,null,null,null,380,0,0,0,0,0,0,0,0,{"$error":"#VALUE!"},{"$error":"#VALUE!"},{"$error":"#VALUE!"}]
[null,null,null,null,null,null,null,null,null,null,null,null,null,null,null,null,null,null,null,null,null,null,null,null,null,null,null,null,null,null,null,null,null,381,0,0,0,0,0,0,0,0,{"$error":"#VALUE!"},{"$error":"#VALUE!"},{"$error":"#VALUE!"}]
[null,null,null,null,null,null,null,null,null,null,null,null,null,null,null,null,null,null,null,null,null,null,null,null,null,null,null,null,null,null,null,null,null,382,0,0,0,0,0,0,0,0,{"$error":"#VALUE!"},{"$error":"#VALUE!"},{"$error":"#VALUE!"}]
[null,null,null,null,null,null,null,null,null,null,null,null,null,null,null,null,null,null,null,null,null,null,null,null,null,null,null,null,null,null,null,null,null,383,0,0,0,0,0,0,0,0,{"$error":"#VALUE!"},{"$error":"#VALUE!"},{"$error":"#VALUE!"}]
[null,null,null,null,null,null,null,null,null,null,null,null,null,null,null,null,null,null,null,null,null,null,null,null,null,null,null,null,null,null,null,null,null,384,0,0,{"$f":"IF(AI387=1,0,IF(AND(AH387>$C$42,AH387<=$D$42),1,0))","v":0},0,0,0,0,0,{"$error":"#VALUE!"},{"$error":"#VALUE!"},{"$error":"#VALUE!"}]
[null,null,null,null,null,null,null,null,null,null,null,null,null,null,null,null,null,null,null,null,null,null,null,null,null,null,null,null,null,null,null,null,null,385,{"$f":"IF(AND(AH388>$C$41,AH388<=$D$41),1,0)","v":0},{"$f":"$E$41*(AH388/60)^-$F$41*AH388/60*AI388","v":0},0,0,{"$f":"IF(OR(AI388=1,AK388=1),0,IF(AND(AH388>$C$43,AH388<=$D$43),1,0))","v":0},0,{"$f":"AJ388+AL388+AN388","v":0},{"$f":"AO388*$H$17*$H$18/1000","v":0},{"$error":"#VALUE!"},{"$f":"AP388-AQ388","v":{"$error":"#VALUE!"}},{"$f":"IF(AR388=MAX($AR$3:$AR$5762),AH388,\"\")","v":{"$error":"#VALUE!"}}]
[null,null,null,null,null,null,null,null,null,null,null,null,null,null,null,null,null,null,null,null,null,null,null,null,null,null,null,null,null,null,null,null,null,{"$f":"AH388+1","v":386},0,0,0,{"$f":"$E$42*((AH389/60)^-$F$42*AH389/60*AK389)","v":0},0,{"$f":"$E$42*(AH389/60)^-$F$42*AH389/60*AM389","v":0},0,0,{"$f":"$E$26/1000*AH389*60","v":{"$error":"#VALUE!"}},{"$error":"#VALUE!"},{"$error":"#VALUE!"}]
[null,null,null,null,null,null,null,null,null,null,null,null,null,null,null,null,null,null,null,null,null,null,null,null,null,null,null,null,null,null,null,null,null,387,0,0,0,0,0,0,0,0,{"$error":"#VALUE!"},{"$error":"#VALUE!"},{"$error":"#VALUE!"}]
[null,null,null,null,null,null,null,null,null,null,null,null,null,null,null,null,null,null,null,null,null,null,null,null,null,null,null,null,null,null,null,null,null,388,0,0,0,0,0,0,0,0,{"$error":"#VALUE!"},{"$error":"#VALUE!"},{"$error":"#VALUE!"}]
[null,null,null,null,null,null,null,null,null,null,null,null,null,null,null,null,null,null,null,null,null,null,null,null,null,null,null,null,null,null,null,null,null,389,0,0,0,0,0,0,0,0,{"$error":"#VALUE!"},{"$error":"#VALUE!"},{"$error":"#VALUE!"}]
[null,null,null,null,null,null,null,null,null,null,null,null,null,null,null,null,null,null,null,null,null,null,null,null,null,null,null,null,null,null,null,null,null,390,0,0,0,0,0,0,0,0,{"$error":"#VALUE!"},{"$error":"#VALUE!"},{"$error":"#VALUE!"}]
[null,null,null,null,null,null,null,null,null,null,null,null,null,null,null,null,null,null,null,null,null,null,null,null,null,null,null,null,null,null,null,null,null,391,0,0,0,0,0,0,0,0,{"$error":"#VALUE!"},{"$error":"#VALUE!"},{"$error":"#VALUE!"}]
[null,null,null,null,null,null,null,null,null,null,null,null,null,null,null,null,null,null,null,null,null,null,null,null,null,null,null,null,null,null,null,null,null,392,0,0,0,0,0,0,0,0,{"$error":"#VALUE!"},{"$error":"#VALUE!"},{"$error":"#VALUE!"}]
[null,null,null,null,null,null,null,null,null,null,null,null,null,null,null,null,null,null,null,null,null,null,null,null,null,null,null,null,null,null,null,null,null,393,0,0,0,0,0,0,0,0,{"$error":"#VALUE!"},{"$error":"#VALUE!"},{"$error":"#VALUE!"}]
[null,null,null,null,null,null,null,null,null,null,null,null,null,null,null,null,null,null,null,null,null,null,null,null,null,null,null,null,null,null,null,null,null,394,0,0,0,0,0,0,0,0,{"$error":"#VALUE!"},{"$error":"#VALUE!"},{"$error":"#VALUE!"}]
[null,null,null,null,null,null,null,null,null,null,null,null,null,null,null,null,null,null,null,null,null,null,null,null,null,null,null,null,null,null,null,null,null,395,0,0,0,0,0,0,0,0,{"$error":"#VALUE!"},{"$error":"#VALUE!"},{"$error":"#VALUE!"}]
[null,null,null,null,null,null,null,null,null,null,null,null,null,null,null,null,null,null,null,null,null,null,null,null,null,null,null,null,null,null,null,null,null,396,0,0,0,0,0,0,0,0,{"$error":"#VALUE!"},{"$error":"#VALUE!"},{"$error":"#VALUE!"}]
[null,null,null,null,null,null,null,null,null,null,null,null,null,null,null,null,null,null,null,null,null,null,null,null,null,null,null,null,null,null,null,null,null,397,0,0,0,0,0,0,0,0,{"$error":"#VALUE!"},{"$error":"#VALUE!"},{"$error":"#VALUE!"}]
[null,null,null,null,null,null,null,null,null,null,null,null,null,null,null,null,null,null,null,null,null,null,null,null,null,null,null,null,null,null,null,null,null,398,0,0,0,0,0,0,0,0,{"$error":"#VALUE!"},{"$error":"#VALUE!"},{"$error":"#VALUE!"}]
[null,null,null,null,null,null,null,null,null,null,null,null,null,null,null,null,null,null,null,null,null,null,null,null,null,null,null,null,null,null,null,null,null,399,0,0,0,0,0,0,0,0,{"$error":"#VALUE!"},{"$error":"#VALUE!"},{"$error":"#VALUE!"}]
[null,null,null,null,null,null,null,null,null,null,null,null,null,null,null,null,null,null,null,null,null,null,null,null,null,null,null,null,null,null,null,null,null,400,0,0,0,0,0,0,0,0,{"$error":"#VALUE!"},{"$error":"#VALUE!"},{"$error":"#VALUE!"}]
[null,null,null,null,null,null,null,null,null,null,null,null,null,null,null,null,null,null,null,null,null,null,null,null,null,null,null,null,null,null,null,null,null,401,0,0,0,0,0,0,0,0,{"$error":"#VALUE!"},{"$error":"#VALUE!"},{"$error":"#VALUE!"}]
[null,null,null,null,null,null,null,null,null,null,null,null,null,null,null,null,null,null,null,null,null,null,null,null,null,null,null,null,null,null,null,null,null,402,0,0,0,0,0,0,0,0,{"$error":"#VALUE!"},{"$error":"#VALUE!"},{"$error":"#VALUE!"}]
[null,null,null,null,null,null,null,null,null,null,null,null,null,null,null,null,null,null,null,null,null,null,null,null,null,null,null,null,null,null,null,null,null,403,0,0,0,0,0,0,0,0,{"$error":"#VALUE!"},{"$error":"#VALUE!"},{"$error":"#VALUE!"}]
[null,null,null,null,null,null,null,null,null,null,null,null,null,null,null,null,null,null,null,null,null,null,null,null,null,null,null,null,null,null,null,null,null,404,0,0,0,0,0,0,0,0,{"$error":"#VALUE!"},{"$error":"#VALUE!"},{"$error":"#VALUE!"}]
[null,null,null,null,null,null,null,null,null,null,null,null,null,null,null,null,null,null,null,null,null,null,null,null,null,null,null,null,null,null,null,null,null,405,0,0,0,0,0,0,0,0,{"$error":"#VALUE!"},{"$error":"#VALUE!"},{"$error":"#VALUE!"}]
[null,null,null,null,null,null,null,null,null,null,null,null,null,null,null,null,null,null,null,null,null,null,null,null,null,null,null,null,null,null,null,null,null,406,0,0,0,0,0,0,0,0,{"$error":"#VALUE!"},{"$error":"#VALUE!"},{"$error":"#VALUE!"}]
[null,null,null,null,null,null,null,null,null,null,null,null,null,null,null,null,null,null,null,null,null,null,null,null,null,null,null,null,null,null,null,null,null,407,0,0,0,0,0,0,0,0,{"$error":"#VALUE!"},{"$error":"#VALUE!"},{"$error":"#VALUE!"}]
[null,null,null,null,null,null,null,null,null,null,null,null,null,null,null,null,null,null,null,null,null,null,null,null,null,null,null,null,null,null,null,null,null,408,0,0,0,0,0,0,0,0,{"$error":"#VALUE!"},{"$error":"#VALUE!"},{"$error":"#VALUE!"}]
[null,null,null,null,null,null,null,null,null,null,null,null,null,null,null,null,null,null,null,null,null,null,null,null,null,null,null,null,null,null,null,null,null,409,0,0,0,0,0,0,0,0,{"$error":"#VALUE!"},{"$error":"#VALUE!"},{"$error":"#VALUE!"}]
[null,null,null,null,null,null,null,null,null,null,null,null,null,null,null,null,null,null,null,null,null,null,null,null,null,null,null,null,null,null,null,null,null,410,0,0,0,0,0,0,0,0,{"$error":"#VALUE!"},{"$error":"#VALUE!"},{"$error":"#VALUE!"}]
[null,null,null,null,null,null,null,null,null,null,null,null,null,null,null,null,null,null,null,null,null,null,null,null,null,null,null,null,null,null,null,null,null,411,0,0,0,0,0,0,0,0,{"$error":"#VALUE!"},{"$error":"#VALUE!"},{"$error":"#VALUE!"}]
[null,null,null,null,null,null,null,null,null,null,null,null,null,null,null,null,null,null,null,null,null,null,null,null,null,null,null,null,null,null,null,null,null,412,0,0,0,0,0,0,0,0,{"$error":"#VALUE!"},{"$error":"#VALUE!"},{"$error":"#VALUE!"}]
[null,null,null,null,null,null,null,null,null,null,null,null,null,null,null,null,null,null,null,null,null,null,null,null,null,null,null,null,null,null,null,null,null,413,0,0,0,0,0,0,0,0,{"$error":"#VALUE!"},{"$error":"#VALUE!"},{"$error":"#VALUE!"}]
[null,null,null,null,null,null,null,null,null,null,null,null,null,null,null,null,null,null,null,null,null,null,null,null,null,null,null,null,null,null,null,null,null,414,0,0,0,0,0,0,0,0,{"$error":"#VALUE!"},{"$error":"#VALUE!"},{"$error":"#VALUE!"}]
[null,null,null,null,null,null,null,null,null,null,null,null,null,null,null,null,null,null,null,null,null,null,null,null,null,null,null,null,null,null,null,null,null,415,0,0,0,0,0,0,0,0,{"$error":"#VALUE!"},{"$error":"#VALUE!"},{"$error":"#VALUE!"}]
[null,null,null,null,null,null,null,null,null,null,null,null,null,null,null,null,null,null,null,null,null,null,null,null,null,null,null,null,null,null,null,null,null,416,0,0,0,0,0,0,0,0,{"$error":"#VALUE!"},{"$error":"#VALUE!"},{"$error":"#VALUE!"}]
[null,null,null,null,null,null,null,null,null,null,null,null,null,null,null,null,null,null,null,null,null,null,null,null,null,null,null,null,null,null,null,null,null,417,0,0,0,0,0,0,0,0,{"$error":"#VALUE!"},{"$error":"#VALUE!"},{"$error":"#VALUE!"}]
[null,null,null,null,null,null,null,null,null,null,null,null,null,null,null,null,null,null,null,null,null,null,null,null,null,null,null,null,null,null,null,null,null,418,0,0,0,0,0,0,0,0,{"$error":"#VALUE!"},{"$error":"#VALUE!"},{"$error":"#VALUE!"}]
[null,null,null,null,null,null,null,null,null,null,null,null,null,null,null,null,null,null,null,null,null,null,null,null,null,null,null,null,null,null,null,null,null,419,0,0,0,0,0,0,0,0,{"$error":"#VALUE!"},{"$error":"#VALUE!"},{"$error":"#VALUE!"}]
[null,null,null,null,null,null,null,null,null,null,null,null,null,null,null,null,null,null,null,null,null,null,null,null,null,null,null,null,null,null,null,null,null,420,0,0,0,0,0,0,0,0,{"$error":"#VALUE!"},{"$error":"#VALUE!"},{"$error":"#VALUE!"}]
[null,null,null,null,null,null,null,null,null,null,null,null,null,null,null,null,null,null,null,null,null,null,null,null,null,null,null,null,null,null,null,null,null,421,0,0,0,0,0,0,0,0,{"$error":"#VALUE!"},{"$error":"#VALUE!"},{"$error":"#VALUE!"}]
[null,null,null,null,null,null,null,null,null,null,null,null,null,null,null,null,null,null,null,null,null,null,null,null,null,null,null,null,null,null,null,null,null,422,0,0,0,0,0,0,0,0,{"$error":"#VALUE!"},{"$error":"#VALUE!"},{"$error":"#VALUE!"}]
[null,null,null,null,null,null,null,null,null,null,null,null,null,null,null,null,null,null,null,null,null,null,null,null,null,null,null,null,null,null,null,null,null,423,0,0,0,0,0,0,0,0,{"$error":"#VALUE!"},{"$error":"#VALUE!"},{"$error":"#VALUE!"}]
[null,null,null,null,null,null,null,null,null,null,null,null,null,null,null,null,null,null,null,null,null,null,null,null,null,null,null,null,null,null,null,null,null,424,0,0,0,0,0,0,0,0,{"$error":"#VALUE!"},{"$error":"#VALUE!"},{"$error":"#VALUE!"}]
[null,null,null,null,null,null,null,null,null,null,null,null,null,null,null,null,null,null,null,null,null,null,null,null,null,null,null,null,null,null,null,null,null,425,0,0,0,0,0,0,0,0,{"$error":"#VALUE!"},{"$error":"#VALUE!"},{"$error":"#VALUE!"}]
[null,null,null,null,null,null,null,null,null,null,null,null,null,null,null,null,null,null,null,null,null,null,null,null,null,null,null,null,null,null,null,null,null,426,0,0,0,0,0,0,0,0,{"$error":"#VALUE!"},{"$error":"#VALUE!"},{"$error":"#VALUE!"}]
[null,null,null,null,null,null,null,null,null,null,null,null,null,null,null,null,null,null,null,null,null,null,null,null,null,null,null,null,null,null,null,null,null,427,0,0,0,0,0,0,0,0,{"$error":"#VALUE!"},{"$error":"#VALUE!"},{"$error":"#VALUE!"}]
[null,null,null,null,null,null,null,null,null,null,null,null,null,null,null,null,null,null,null,null,null,null,null,null,null,null,null,null,null,null,null,null,null,428,0,0,0,0,0,0,0,0,{"$error":"#VALUE!"},{"$error":"#VALUE!"},{"$error":"#VALUE!"}]
[null,null,null,null,null,null,null,null,null,null,null,null,null,null,null,null,null,null,null,null,null,null,null,null,null,null,null,null,null,null,null,null,null,429,0,0,0,0,0,0,0,0,{"$error":"#VALUE!"},{"$error":"#VALUE!"},{"$error":"#VALUE!"}]
[null,null,null,null,null,null,null,null,null,null,null,null,null,null,null,null,null,null,null,null,null,null,null,null,null,null,null,null,null,null,null,null,null,430,0,0,0,0,0,0,0,0,{"$error":"#VALUE!"},{"$error":"#VALUE!"},{"$error":"#VALUE!"}]
[null,null,null,null,null,null,null,null,null,null,null,null,null,null,null,null,null,null,null,null,null,null,null,null,null,null,null,null,null,null,null,null,null,431,0,0,0,0,0,0,0,0,{"$error":"#VALUE!"},{"$error":"#VALUE!"},{"$error":"#VALUE!"}]
[null,null,null,null,null,null,null,null,null,null,null,null,null,null,null,null,null,null,null,null,null,null,null,null,null,null,null,null,null,null,null,null,null,432,0,0,0,0,0,0,0,0,{"$error":"#VALUE!"},{"$error":"#VALUE!"},{"$error":"#VALUE!"}]
[null,null,null,null,null,null,null,null,null,null,null,null,null,null,null,null,null,null,null,null,null,null,null,null,null,null,null,null,null,null,null,null,null,433,0,0,0,0,0,0,0,0,{"$error":"#VALUE!"},{"$error":"#VALUE!"},{"$error":"#VALUE!"}]
[null,null,null,null,null,null,null,null,null,null,null,null,null,null,null,null,null,null,null,null,null,null,null,null,null,null,null,null,null,null,null,null,null,434,0,0,0,0,0,0,0,0,{"$error":"#VALUE!"},{"$error":"#VALUE!"},{"$error":"#VALUE!"}]
[null,null,null,null,null,null,null,null,null,null,null,null,null,null,null,null,null,null,null,null,null,null,null,null,null,null,null,null,null,null,null,null,null,435,0,0,0,0,0,0,0,0,{"$error":"#VALUE!"},{"$error":"#VALUE!"},{"$error":"#VALUE!"}]
[null,null,null,null,null,null,null,null,null,null,null,null,null,null,null,null,null,null,null,null,null,null,null,null,null,null,null,null,null,null,null,null,null,436,0,0,0,0,0,0,0,0,{"$error":"#VALUE!"},{"$error":"#VALUE!"},{"$error":"#VALUE!"}]
[null,null,null,null,null,null,null,null,null,null,null,null,null,null,null,null,null,null,null,null,null,null,null,null,null,null,null,null,null,null,null,null,null,437,0,0,0,0,0,0,0,0,{"$error":"#VALUE!"},{"$error":"#VALUE!"},{"$error":"#VALUE!"}]
[null,null,null,null,null,null,null,null,null,null,null,null,null,null,null,null,null,null,null,null,null,null,null,null,null,null,null,null,null,null,null,null,null,438,0,0,0,0,0,0,0,0,{"$error":"#VALUE!"},{"$error":"#VALUE!"},{"$error":"#VALUE!"}]
[null,null,null,null,null,null,null,null,null,null,null,null,null,null,null,null,null,null,null,null,null,null,null,null,null,null,null,null,null,null,null,null,null,439,0,0,0,0,0,0,0,0,{"$error":"#VALUE!"},{"$error":"#VALUE!"},{"$error":"#VALUE!"}]
[null,null,null,null,null,null,null,null,null,null,null,null,null,null,null,null,null,null,null,null,null,null,null,null,null,null,null,null,null,null,null,null,null,440,0,0,0,0,0,0,0,0,{"$error":"#VALUE!"},{"$error":"#VALUE!"},{"$error":"#VALUE!"}]
[null,null,null,null,null,null,null,null,null,null,null,null,null,null,null,null,null,null,null,null,null,null,null,null,null,null,null,null,null,null,null,null,null,441,0,0,0,0,0,0,0,0,{"$error":"#VALUE!"},{"$error":"#VALUE!"},{"$error":"#VALUE!"}]
[null,null,null,null,null,null,null,null,null,null,null,null,null,null,null,null,null,null,null,null,null,null,null,null,null,null,null,null,null,null,null,null,null,442,0,0,0,0,0,0,0,0,{"$error":"#VALUE!"},{"$error":"#VALUE!"},{"$error":"#VALUE!"}]
[null,null,null,null,null,null,null,null,null,null,null,null,null,null,null,null,null,null,null,null,null,null,null,null,null,null,null,null,null,null,null,null,null,443,0,0,0,0,0,0,0,0,{"$error":"#VALUE!"},{"$error":"#VALUE!"},{"$error":"#VALUE!"}]
[null,null,null,null,null,null,null,null,null,null,null,null,null,null,null,null,null,null,null,null,null,null,null,null,null,null,null,null,null,null,null,null,null,444,0,0,0,0,0,0,0,0,{"$error":"#VALUE!"},{"$error":"#VALUE!"},{"$error":"#VALUE!"}]
[null,null,null,null,null,null,null,null,null,null,null,null,null,null,null,null,null,null,null,null,null,null,null,null,null,null,null,null,null,null,null,null,null,445,0,0,0,0,0,0,0,0,{"$error":"#VALUE!"},{"$error":"#VALUE!"},{"$error":"#VALUE!"}]
[null,null,null,null,null,null,null,null,null,null,null,null,null,null,null,null,null,null,null,null,null,null,null,null,null,null,null,null,null,null,null,null,null,446,0,0,0,0,0,0,0,0,{"$error":"#VALUE!"},{"$error":"#VALUE!"},{"$error":"#VALUE!"}]
[null,null,null,null,null,null,null,null,null,null,null,null,null,null,null,null,null,null,null,null,null,null,null,null,null,null,null,null,null,null,null,null,null,447,0,0,0,0,0,0,0,0,{"$error":"#VALUE!"},{"$error":"#VALUE!"},{"$error":"#VALUE!"}]
[null,null,null,null,null,null,null,null,null,null,null,null,null,null,null,null,null,null,null,null,null,null,null,null,null,null,null,null,null,null,null,null,null,448,0,0,{"$f":"IF(AI451=1,0,IF(AND(AH451>$C$42,AH451<=$D$42),1,0))","v":0},0,0,0,0,0,{"$error":"#VALUE!"},{"$error":"#VALUE!"},{"$error":"#VALUE!"}]
[null,null,null,null,null,null,null,null,null,null,null,null,null,null,null,null,null,null,null,null,null,null,null,null,null,null,null,null,null,null,null,null,null,449,{"$f":"IF(AND(AH452>$C$41,AH452<=$D$41),1,0)","v":0},{"$f":"$E$41*(AH452/60)^-$F$41*AH452/60*AI452","v":0},0,0,{"$f":"IF(OR(AI452=1,AK452=1),0,IF(AND(AH452>$C$43,AH452<=$D$43),1,0))","v":0},0,{"$f":"AJ452+AL452+AN452","v":0},{"$f":"AO452*$H$17*$H$18/1000","v":0},{"$error":"#VALUE!"},{"$f":"AP452-AQ452","v":{"$error":"#VALUE!"}},{"$f":"IF(AR452=MAX($AR$3:$AR$5762),AH452,\"\")","v":{"$error":"#VALUE!"}}]
[null,null,null,null,null,null,null,null,null,null,null,null,null,null,null,null,null,null,null,null,null,null,null,null,null,null,null,null,null,null,null,null,null,{"$f":"AH452+1","v":450},0,0,0,{"$f":"$E$42*((AH453/60)^-$F$42*AH453/60*AK453)","v":0},0,{"$f":"$E$42*(AH453/60)^-$F$42*AH453/60*AM453","v":0},0,0,{"$f":"$E$26/1000*AH453*60","v":{"$error":"#VALUE!"}},{"$error":"#VALUE!"},{"$error":"#VALUE!"}]
[null,null,null,null,null,null,null,null,null,null,null,null,null,null,null,null,null,null,null,null,null,null,null,null,null,null,null,null,null,null,null,null,null,451,0,0,0,0,0,0,0,0,{"$error":"#VALUE!"},{"$error":"#VALUE!"},{"$error":"#VALUE!"}]
[null,null,null,null,null,null,null,null,null,null,null,null,null,null,null,null,null,null,null,null,null,null,null,null,null,null,null,null,null,null,null,null,null,452,0,0,0,0,0,0,0,0,{"$error":"#VALUE!"},{"$error":"#VALUE!"},{"$error":"#VALUE!"}]
[null,null,null,null,null,null,null,null,null,null,null,null,null,null,null,null,null,null,null,null,null,null,null,null,null,null,null,null,null,null,null,null,null,453,0,0,0,0,0,0,0,0,{"$error":"#VALUE!"},{"$error":"#VALUE!"},{"$error":"#VALUE!"}]
[null,null,null,null,null,null,null,null,null,null,null,null,null,null,null,null,null,null,null,null,null,null,null,null,null,null,null,null,null,null,null,null,null,454,0,0,0,0,0,0,0,0,{"$error":"#VALUE!"},{"$error":"#VALUE!"},{"$error":"#VALUE!"}]
[null,null,null,null,null,null,null,null,null,null,null,null,null,null,null,null,null,null,null,null,null,null,null,null,null,null,null,null,null,null,null,null,null,455,0,0,0,0,0,0,0,0,{"$error":"#VALUE!"},{"$error":"#VALUE!"},{"$error":"#VALUE!"}]
[null,null,null,null,null,null,null,null,null,null,null,null,null,null,null,null,null,null,null,null,null,null,null,null,null,null,null,null,null,null,null,null,null,456,0,0,0,0,0,0,0,0,{"$error":"#VALUE!"},{"$error":"#VALUE!"},{"$error":"#VALUE!"}]
[null,null,null,null,null,null,null,null,null,null,null,null,null,null,null,null,null,null,null,null,null,null,null,null,null,null,null,null,null,null,null,null,null,457,0,0,0,0,0,0,0,0,{"$error":"#VALUE!"},{"$error":"#VALUE!"},{"$error":"#VALUE!"}]
[null,null,null,null,null,null,null,null,null,null,null,null,null,null,null,null,null,null,null,null,null,null,null,null,null,null,null,null,null,null,null,null,null,458,0,0,0,0,0,0,0,0,{"$error":"#VALUE!"},{"$error":"#VALUE!"},{"$error":"#VALUE!"}]
[null,null,null,null,null,null,null,null,null,null,null,null,null,null,null,null,null,null,null,null,null,null,null,null,null,null,null,null,null,null,null,null,null,459,0,0,0,0,0,0,0,0,{"$error":"#VALUE!"},{"$error":"#VALUE!"},{"$error":"#VALUE!"}]
[null,null,null,null,null,null,null,null,null,null,null,null,null,null,null,null,null,null,null,null,null,null,null,null,null,null,null,null,null,null,null,null,null,460,0,0,0,0,0,0,0,0,{"$error":"#VALUE!"},{"$error":"#VALUE!"},{"$error":"#VALUE!"}]
[null,null,null,null,null,null,null,null,null,null,null,null,null,null,null,null,null,null,null,null,null,null,null,null,null,null,null,null,null,null,null,null,null,461,0,0,0,0,0,0,0,0,{"$error":"#VALUE!"},{"$error":"#VALUE!"},{"$error":"#VALUE!"}]
[null,null,null,null,null,null,null,null,null,null,null,null,null,null,null,null,null,null,null,null,null,null,null,null,null,null,null,null,null,null,null,null,null,462,0,0,0,0,0,0,0,0,{"$error":"#VALUE!"},{"$error":"#VALUE!"},{"$error":"#VALUE!"}]
[null,null,null,null,null,null,null,null,null,null,null,null,null,null,null,null,null,null,null,null,null,null,null,null,null,null,null,null,null,null,null,null,null,463,0,0,0,0,0,0,0,0,{"$error":"#VALUE!"},{"$error":"#VALUE!"},{"$error":"#VALUE!"}]
[null,null,null,null,null,null,null,null,null,null,null,null,null,null,null,null,null,null,null,null,null,null,null,null,null,null,null,null,null,null,null,null,null,464,0,0,0,0,0,0,0,0,{"$error":"#VALUE!"},{"$error":"#VALUE!"},{"$error":"#VALUE!"}]
[null,null,null,null,null,null,null,null,null,null,null,null,null,null,null,null,null,null,null,null,null,null,null,null,null,null,null,null,null,null,null,null,null,465,0,0,0,0,0,0,0,0,{"$error":"#VALUE!"},{"$error":"#VALUE!"},{"$error":"#VALUE!"}]
[null,null,null,null,null,null,null,null,null,null,null,null,null,null,null,null,null,null,null,null,null,null,null,null,null,null,null,null,null,null,null,null,null,466,0,0,0,0,0,0,0,0,{"$error":"#VALUE!"},{"$error":"#VALUE!"},{"$error":"#VALUE!"}]
[null,null,null,null,null,null,null,null,null,null,null,null,null,null,null,null,null,null,null,null,null,null,null,null,null,null,null,null,null,null,null,null,null,467,0,0,0,0,0,0,0,0,{"$error":"#VALUE!"},{"$error":"#VALUE!"},{"$error":"#VALUE!"}]
[null,null,null,null,null,null,null,null,null,null,null,null,null,null,null,null,null,null,null,null,null,null,null,null,null,null,null,null,null,null,null,null,null,468,0,0,0,0,0,0,0,0,{"$error":"#VALUE!"},{"$error":"#VALUE!"},{"$error":"#VALUE!"}]
[null,null,null,null,null,null,null,null,null,null,null,null,null,null,null,null,null,null,null,null,null,null,null,null,null,null,null,null,null,null,null,null,null,469,0,0,0,0,0,0,0,0,{"$error":"#VALUE!"},{"$error":"#VALUE!"},{"$error":"#VALUE!"}]
[null,null,null,null,null,null,null,null,null,null,null,null,null,null,null,null,null,null,null,null,null,null,null,null,null,null,null,null,null,null,null,null,null,470,0,0,0,0,0,0,0,0,{"$error":"#VALUE!"},{"$error":"#VALUE!"},{"$error":"#VALUE!"}]
[null,null,null,null,null,null,null,null,null,null,null,null,null,null,null,null,null,null,null,null,null,null,null,null,null,null,null,null,null,null,null,null,null,471,0,0,0,0,0,0,0,0,{"$error":"#VALUE!"},{"$error":"#VALUE!"},{"$error":"#VALUE!"}]
[null,null,null,null,null,null,null,null,null,null,null,null,null,null,null,null,null,null,null,null,null,null,null,null,null,null,null,null,null,null,null,null,null,472,0,0,0,0,0,0,0,0,{"$error":"#VALUE!"},{"$error":"#VALUE!"},{"$error":"#VALUE!"}]
[null,null,null,null,null,null,null,null,null,null,null,null,null,null,null,null,null,null,null,null,null,null,null,null,null,null,null,null,null,null,null,null,null,473,0,0,0,0,0,0,0,0,{"$error":"#VALUE!"},{"$error":"#VALUE!"},{"$error":"#VALUE!"}]
[null,null,null,null,null,null,null,null,null,null,null,null,null,null,null,null,null,null,null,null,null,null,null,null,null,null,null,null,null,null,null,null,null,474,0,0,0,0,0,0,0,0,{"$error":"#VALUE!"},{"$error":"#VALUE!"},{"$error":"#VALUE!"}]
[null,null,null,null,null,null,null,null,null,null,null,null,null,null,null,null,null,null,null,null,null,null,null,null,null,null,null,null,null,null,null,null,null,475,0,0,0,0,0,0,0,0,{"$error":"#VALUE!"},{"$error":"#VALUE!"},{"$error":"#VALUE!"}]
[null,null,null,null,null,null,null,null,null,null,null,null,null,null,null,null,null,null,null,null,null,null,null,null,null,null,null,null,null,null,null,null,null,476,0,0,0,0,0,0,0,0,{"$error":"#VALUE!"},{"$error":"#VALUE!"},{"$error":"#VALUE!"}]
[null,null,null,null,null,null,null,null,null,null,null,null,null,null,null,null,null,null,null,null,null,null,null,null,null,null,null,null,null,null,null,null,null,477,0,0,0,0,0,0,0,0,{"$error":"#VALUE!"},{"$error":"#VALUE!"},{"$error":"#VALUE!"}]
[null,null,null,null,null,null,null,null,null,null,null,null,null,null,null,null,null,null,null,null,null,null,null,null,null,null,null,null,null,null,null,null,null,478,0,0,0,0,0,0,0,0,{"$error":"#VALUE!"},{"$error":"#VALUE!"},{"$error":"#VALUE!"}]
[null,null,null,null,null,null,null,null,null,null,null,null,null,null,null,null,null,null,null,null,null,null,null,null,null,null,null,null,null,null,null,null,null,479,0,0,0,0,0,0,0,0,{"$error":"#VALUE!"},{"$error":"#VALUE!"},{"$error":"#VALUE!"}]
[null,null,null,null,null,null,null,null,null,null,null,null,null,null,null,null,null,null,null,null,null,null,null,null,null,null,null,null,null,null,null,null,null,480,0,0,0,0,0,0,0,0,{"$error":"#VALUE!"},{"$error":"#VALUE!"},{"$error":"#VALUE!"}]
[null,null,null,null,null,null,null,null,null,null,null,null,null,null,null,null,null,null,null,null,null,null,null,null,null,null,null,null,null,null,null,null,null,481,0,0,0,0,0,0,0,0,{"$error":"#VALUE!"},{"$error":"#VALUE!"},{"$error":"#VALUE!"}]
[null,null,null,null,null,null,null,null,null,null,null,null,null,null,null,null,null,null,null,null,null,null,null,null,null,null,null,null,null,null,null,null,null,482,0,0,0,0,0,0,0,0,{"$error":"#VALUE!"},{"$error":"#VALUE!"},{"$error":"#VALUE!"}]
[null,null,null,null,null,null,null,null,null,null,null,null,null,null,null,null,null,null,null,null,null,null,null,null,null,null,null,null,null,null,null,null,null,483,0,0,0,0,0,0,0,0,{"$error":"#VALUE!"},{"$error":"#VALUE!"},{"$error":"#VALUE!"}]
[null,null,null,null,null,null,null,null,null,null,null,null,null,null,null,null,null,null,null,null,null,null,null,null,null,null,null,null,null,null,null,null,null,484,0,0,0,0,0,0,0,0,{"$error":"#VALUE!"},{"$error":"#VALUE!"},{"$error":"#VALUE!"}]
[null,null,null,null,null,null,null,null,null,null,null,null,null,null,null,null,null,null,null,null,null,null,null,null,null,null,null,null,null,null,null,null,null,485,0,0,0,0,0,0,0,0,{"$error":"#VALUE!"},{"$error":"#VALUE!"},{"$error":"#VALUE!"}]
[null,null,null,null,null,null,null,null,null,null,null,null,null,null,null,null,null,null,null,null,null,null,null,null,null,null,null,null,null,null,null,null,null,486,0,0,0,0,0,0,0,0,{"$error":"#VALUE!"},{"$error":"#VALUE!"},{"$error":"#VALUE!"}]
[null,null,null,null,null,null,null,null,null,null,null,null,null,null,null,null,null,null,null,null,null,null,null,null,null,null,null,null,null,null,null,null,null,487,0,0,0,0,0,0,0,0,{"$error":"#VALUE!"},{"$error":"#VALUE!"},{"$error":"#VALUE!"}]
[null,null,null,null,null,null,null,null,null,null,null,null,null,null,null,null,null,null,null,null,null,null,null,null,null,null,null,null,null,null,null,null,null,488,0,0,0,0,0,0,0,0,{"$error":"#VALUE!"},{"$error":"#VALUE!"},{"$error":"#VALUE!"}]
[null,null,null,null,null,null,null,null,null,null,null,null,null,null,null,null,null,null,null,null,null,null,null,null,null,null,null,null,null,null,null,null,null,489,0,0,0,0,0,0,0,0,{"$error":"#VALUE!"},{"$error":"#VALUE!"},{"$error":"#VALUE!"}]
[null,null,null,null,null,null,null,null,null,null,null,null,null,null,null,null,null,null,null,null,null,null,null,null,null,null,null,null,null,null,null,null,null,490,0,0,0,0,0,0,0,0,{"$error":"#VALUE!"},{"$error":"#VALUE!"},{"$error":"#VALUE!"}]
[null,null,null,null,null,null,null,null,null,null,null,null,null,null,null,null,null,null,null,null,null,null,null,null,null,null,null,null,null,null,null,null,null,491,0,0,0,0,0,0,0,0,{"$error":"#VALUE!"},{"$error":"#VALUE!"},{"$error":"#VALUE!"}]
[null,null,null,null,null,null,null,null,null,null,null,null,null,null,null,null,null,null,null,null,null,null,null,null,null,null,null,null,null,null,null,null,null,492,0,0,0,0,0,0,0,0,{"$error":"#VALUE!"},{"$error":"#VALUE!"},{"$error":"#VALUE!"}]
[null,null,null,null,null,null,null,null,null,null,null,null,null,null,null,null,null,null,null,null,null,null,null,null,null,null,null,null,null,null,null,null,null,493,0,0,0,0,0,0,0,0,{"$error":"#VALUE!"},{"$error":"#VALUE!"},{"$error":"#VALUE!"}]
[null,null,null,null,null,null,null,null,null,null,null,null,null,null,null,null,null,null,null,null,null,null,null,null,null,null,null,null,null,null,null,null,null,494,0,0,0,0,0,0,0,0,{"$error":"#VALUE!"},{"$error":"#VALUE!"},{"$error":"#VALUE!"}]
[null,null,null,null,null,null,null,null,null,null,null,null,null,null,null,null,null,null,null,null,null,null,null,null,null,null,null,null,null,null,null,null,null,495,0,0,0,0,0,0,0,0,{"$error":"#VALUE!"},{"$error":"#VALUE!"},{"$error":"#VALUE!"}]
[null,null,null,null,null,null,null,null,null,null,null,null,null,null,null,null,null,null,null,null,null,null,null,null,null,null,null,null,null,null,null,null,null,496,0,0,0,0,0,0,0,0,{"$error":"#VALUE!"},{"$error":"#VALUE!"},{"$error":"#VALUE!"}]
[null,null,null,null,null,null,null,null,null,null,null,null,null,null,null,null,null,null,null,null,null,null,null,null,null,null,null,null,null,null,null,null,null,497,0,0,0,0,0,0,0,0,{"$error":"#VALUE!"},{"$error":"#VALUE!"},{"$error":"#VALUE!"}]
[null,null,null,null,null,null,null,null,null,null,null,null,null,null,null,null,null,null,null,null,null,null,null,null,null,null,null,null,null,null,null,null,null,503,0,0,0,0,0,0,0,0,{"$error":"#VALUE!"},{"$error":"#VALUE!"},{"$error":"#VALUE!"}]
[null,null,null,null,null,null,null,null,null,null,null,null,null,null,null,null,null,null,null,null,null,null,null,null,null,null,null,null,null,null,null,null,null,{"$f":"AH516+1","v":514},0,0,0,{"$f":"$E$42*((AH517/60)^-$F$42*AH517/60*AK517)","v":0},0,{"$f":"$E$42*(AH517/60)^-$F$42*AH517/60*AM517","v":0},0,0,{"$f":"$E$26/1000*AH517*60","v":{"$error":"#VALUE!"}},{"$error":"#VALUE!"},{"$error":"#VALUE!"}]
[null,null,null,null,null,null,null,null,null,null,null,null,null,null,null,null,null,null,null,null,null,null,null,null,null,null,null,null,null,null,null,null,null,519,0,0,0,0,0,0,0,0,{"$error":"#VALUE!"},{"$error":"#VALUE!"},{"$error":"#VALUE!"}]
[null,null,null,null,null,null,null,null,null,null,null,null,null,null,null,null,null,null,null,null,null,null,null,null,null,null,null,null,null,null,null,null,null,535,0,0,0,0,0,0,0,0,{"$error":"#VALUE!"},{"$error":"#VALUE!"},{"$error":"#VALUE!"}]
[null,null,null,null,null,null,null,null,null,null,null,null,null,null,null,null,null,null,null,null,null,null,null,null,null,null,null,null,null,null,null,null,null,546,0,0,0,0,0,0,0,0,{"$error":"#VALUE!"},{"$error":"#VALUE!"},{"$error":"#VALUE!"}]
[null,null,null,null,null,null,null,null,null,null,null,null,null,null,null,null,null,null,null,null,null,null,null,null,null,null,null,null,null,null,null,null,null,551,0,0,0,0,0,0,0,0,{"$error":"#VALUE!"},{"$error":"#VALUE!"},{"$error":"#VALUE!"}]
[null,null,null,null,null,null,null,null,null,null,null,null,null,null,null,null,null,null,null,null,null,null,null,null,null,null,null,null,null,null,null,null,null,562,0,0,0,0,0,0,0,0,{"$error":"#VALUE!"},{"$error":"#VALUE!"},{"$error":"#VALUE!"}]
[null,null,null,null,null,null,null,null,null,null,null,null,null,null,null,null,null,null,null,null,null,null,null,null,null,null,null,null,null,null,null,null,null,571,0,0,0,0,0,0,0,0,{"$error":"#VALUE!"},{"$error":"#VALUE!"},{"$error":"#VALUE!"}]
[null,null,null,null,null,null,null,null,null,null,null,null,null,null,null,null,null,null,null,null,null,null,null,null,null,null,null,null,null,null,null,null,null,589,0,0,0,0,0,0,0,0,{"$error":"#VALUE!"},{"$error":"#VALUE!"},{"$error":"#VALUE!"}]
[null,null,null,null,null,null,null,null,null,null,null,null,null,null,null,null,null,null,null,null,null,null,null,null,null,null,null,null,null,null,null,null,null,594,0,0,0,0,0,0,0,0,{"$error":"#VALUE!"},{"$error":"#VALUE!"},{"$error":"#VALUE!"}]
[null,null,null,null,null,null,null,null,null,null,null,null,null,null,null,null,null,null,null,null,null,null,null,null,null,null,null,null,null,null,null,null,null,602,0,0,0,0,0,0,0,0,{"$error":"#VALUE!"},{"$error":"#VALUE!"},{"$error":"#VALUE!"}]
[null,null,null,null,null,null,null,null,null,null,null,null,null,null,null,null,null,null,null,null,null,null,null,null,null,null,null,null,null,null,null,null,null,611,0,0,0,0,0,0,0,0,{"$error":"#VALUE!"},{"$error":"#VALUE!"},{"$error":"#VALUE!"}]
[null,null,null,null,null,null,null,null,null,null,null,null,null,null,null,null,null,null,null,null,null,null,null,null,null,null,null,null,null,null,null,null,null,626,0,0,0,0,0,0,0,0,{"$error":"#VALUE!"},{"$error":"#VALUE!"},{"$error":"#VALUE!"}]
[null,null,null,null,null,null,null,null,null,null,null,null,null,null,null,null,null,null,null,null,null,null,null,null,null,null,null,null,null,null,null,null,null,631,0,0,0,0,0,0,0,0,{"$error":"#VALUE!"},{"$error":"#VALUE!"},{"$error":"#VALUE!"}]
[null,null,null,null,null,null,null,null,null,null,null,null,null,null,null,null,null,null,null,null,null,null,null,null,null,null,null,null,null,null,null,null,null,{"$f":"AH644+1","v":642},0,0,0,{"$f":"$E$42*((AH645/60)^-$F$42*AH645/60*AK645)","v":0},0,{"$f":"$E$42*(AH645/60)^-$F$42*AH645/60*AM645","v":0},0,0,{"$f":"$E$26/1000*AH645*60","v":{"$error":"#VALUE!"}},{"$error":"#VALUE!"},{"$error":"#VALUE!"}]
[null,null,null,null,null,null,null,null,null,null,null,null,null,null,null,null,null,null,null,null,null,null,null,null,null,null,null,null,null,null,null,null,null,658,0,0,0,0,0,0,0,0,{"$error":"#VALUE!"},{"$error":"#VALUE!"},{"$error":"#VALUE!"}]
[null,null,null,null,null,null,null,null,null,null,null,null,null,null,null,null,null,null,null,null,null,null,null,null,null,null,null,null,null,null,null,null,null,669,0,0,0,0,0,0,0,0,{"$error":"#VALUE!"},{"$error":"#VALUE!"},{"$error":"#VALUE!"}]
[null,null,null,null,null,null,null,null,null,null,null,null,null,null,null,null,null,null,null,null,null,null,null,null,null,null,null,null,null,null,null,null,null,674,0,0,0,0,0,0,0,0,{"$error":"#VALUE!"},{"$error":"#VALUE!"},{"$error":"#VALUE!"}]
[null,null,null,null,null,null,null,null,null,null,null,null,null,null,null,null,null,null,null,null,null,null,null,null,null,null,null,null,null,null,null,null,null,689,0,0,0,0,0,0,0,0,{"$error":"#VALUE!"},{"$error":"#VALUE!"},{"$error":"#VALUE!"}]
[null,null,null,null,null,null,null,null,null,null,null,null,null,null,null,null,null,null,null,null,null,null,null,null,null,null,null,null,null,null,null,null,null,701,0,0,0,0,0,0,0,0,{"$error":"#VALUE!"},{"$error":"#VALUE!"},{"$error":"#VALUE!"}]
[null,null,null,null,null,null,null,null,null,null,null,null,null,null,null,null,null,null,null,null,null,null,null,null,null,null,null,null,null,null,null,null,null,{"$f":"AH708+1","v":706},0,0,0,{"$f":"$E$42*((AH709/60)^-$F$42*AH709/60*AK709)","v":0},0,{"$f":"$E$42*(AH709/60)^-$F$42*AH709/60*AM709","v":0},0,0,{"$f":"$E$26/1000*AH709*60","v":{"$error":"#VALUE!"}},{"$error":"#VALUE!"},{"$error":"#VALUE!"}]
[null,null,null,null,null,null,null,null,null,null,null,null,null,null,null,null,null,null,null,null,null,null,null,null,null,null,null,null,null,null,null,null,null,713,0,0,0,0,0,0,0,0,{"$error":"#VALUE!"},{"$error":"#VALUE!"},{"$error":"#VALUE!"}]
[null,null,null,null,null,null,null,null,null,null,null,null,null,null,null,null,null,null,null,null,null,null,null,null,null,null,null,null,null,null,null,null,null,733,0,0,0,0,0,0,0,0,{"$error":"#VALUE!"},{"$error":"#VALUE!"},{"$error":"#VALUE!"}]
[null,null,null,null,null,null,null,null,null,null,null,null,null,null,null,null,null,null,null,null,null,null,null,null,null,null,null,null,null,null,null,null,null,738,0,0,0,0,0,0,0,0,{"$error":"#VALUE!"},{"$error":"#VALUE!"},{"$error":"#VALUE!"}]
[null,null,null,null,null,null,null,null,null,null,null,null,null,null,null,null,null,null,null,null,null,null,null,null,null,null,null,null,null,null,null,null,null,749,0,0,0,0,0,0,0,0,{"$error":"#VALUE!"},{"$error":"#VALUE!"},{"$error":"#VALUE!"}]
[null,null,null,null,null,null,null,null,null,null,null,null,null,null,null,null,null,null,null,null,null,null,null,null,null,null,null,null,null,null,null,null,null,760,0,0,0,0,0,0,0,0,{"$error":"#VALUE!"},{"$error":"#VALUE!"},{"$error":"#VALUE!"}]
[null,null,null,null,null,null,null,null,null,null,null,null,null,null,null,null,null,null,null,null,null,null,null,null,null,null,null,null,null,null,null,null,null,{"$f":"AH772+1","v":770},0,0,0,{"$f":"$E$42*((AH773/60)^-$F$42*AH773/60*AK773)","v":0},0,{"$f":"$E$42*(AH773/60)^-$F$42*AH773/60*AM773","v":0},0,0,{"$f":"$E$26/1000*AH773*60","v":{"$error":"#VALUE!"}},{"$error":"#VALUE!"},{"$error":"#VALUE!"}]
[null,null,null,null,null,null,null,null,null,null,null,null,null,null,null,null,null,null,null,null,null,null,null,null,null,null,null,null,null,null,null,null,null,781,0,0,0,0,0,0,0,0,{"$error":"#VALUE!"},{"$error":"#VALUE!"},{"$error":"#VALUE!"}]
[null,null,null,null,null,null,null,null,null,null,null,null,null,null,null,null,null,null,null,null,null,null,null,null,null,null,null,null,null,null,null,null,null,786,0,0,0,0,0,0,0,0,{"$error":"#VALUE!"},{"$error":"#VALUE!"},{"$error":"#VALUE!"}]
[null,null,null,null,null,null,null,null,null,null,null,null,null,null,null,null,null,null,null,null,null,null,null,null,null,null,null,null,null,null,null,null,null,800,0,0,0,0,0,0,0,0,{"$error":"#VALUE!"},{"$error":"#VALUE!"},{"$error":"#VALUE!"}]
[null,null,null,null,null,null,null,null,null,null,null,null,null,null,null,null,null,null,null,null,null,null,null,null,null,null,null,null,null,null,null,null,null,813,0,0,0,0,0,0,0,0,{"$error":"#VALUE!"},{"$error":"#VALUE!"},{"$error":"#VALUE!"}]
[null,null,null,null,null,null,null,null,null,null,null,null,null,null,null,null,null,null,null,null,null,null,null,null,null,null,null,null,null,null,null,null,null,818,0,0,0,0,0,0,0,0,{"$error":"#VALUE!"},{"$error":"#VALUE!"},{"$error":"#VALUE!"}]
[null,null,null,null,null,null,null,null,null,null,null,null,null,null,null,null,null,null,null,null,null,null,null,null,null,null,null,null,null,null,null,null,null,831,0,0,0,0,0,0,0,0,{"$error":"#VALUE!"},{"$error":"#VALUE!"},{"$error":"#VALUE!"}]
[null,null,null,null,null,null,null,null,null,null,null,null,null,null,null,null,null,null,null,null,null,null,null,null,null,null,null,null,null,null,null,null,null,845,0,0,0,0,0,0,0,0,{"$error":"#VALUE!"},{"$error":"#VALUE!"},{"$error":"#VALUE!"}]
[null,null,null,null,null,null,null,null,null,null,null,null,null,null,null,null,null,null,null,null,null,null,null,null,null,null,null,null,null,null,null,null,null,850,0,0,0,0,0,0,0,0,{"$error":"#VALUE!"},{"$error":"#VALUE!"},{"$error":"#VALUE!"}]
[null,null,null,null,null,null,null,null,null,null,null,null,null,null,null,null,null,null,null,null,null,null,null,null,null,null,null,null,null,null,null,null,null,861,0,0,0,0,0,0,0,0,{"$error":"#VALUE!"},{"$error":"#VALUE!"},{"$error":"#VALUE!"}]
[null,null,null,null,null,null,null,null,null,null,null,null,null,null,null,null,null,null,null,null,null,null,null,null,null,null,null,null,null,null,null,null,null,867,0,0,0,0,0,0,0,0,{"$error":"#VALUE!"},{"$error":"#VALUE!"},{"$error":"#VALUE!"}]
[null,null,null,null,null,null,null,null,null,null,null,null,null,null,null,null,null,null,null,null,null,null,null,null,null,null,null,null,null,null,null,null,null,878,0,0,0,0,0,0,0,0,{"$error":"#VALUE!"},{"$error":"#VALUE!"},{"$error":"#VALUE!"}]
[null,null,null,null,null,null,null,null,null,null,null,null,null,null,null,null,null,null,null,null,null,null,null,null,null,null,null,null,null,null,null,null,null,893,0,0,0,0,0,0,0,0,{"$error":"#VALUE!"},{"$error":"#VALUE!"},{"$error":"#VALUE!"}]
[null,null,null,null,null,null,null,null,null,null,null,null,null,null,null,null,null,null,null,null,null,null,null,null,null,null,null,null,null,null,null,null,null,{"$f":"AH900+1","v":898},0,0,0,{"$f":"$E$42*((AH901/60)^-$F$42*AH901/60*AK901)","v":0},0,{"$f":"$E$42*(AH901/60)^-$F$42*AH901/60*AM901","v":0},0,0,{"$f":"$E$26/1000*AH901*60","v":{"$error":"#VALUE!"}},{"$error":"#VALUE!"},{"$error":"#VALUE!"}]
[null,null,null,null,null,null,null,null,null,null,null,null,null,null,null,null,null,null,null,null,null,null,null,null,null,null,null,null,null,null,null,null,null,918,0,0,0,0,0,0,0,0,{"$error":"#VALUE!"},{"$error":"#VALUE!"},{"$error":"#VALUE!"}]
[null,null,null,null,null,null,null,null,null,null,null,null,null,null,null,null,null,null,null,null,null,null,null,null,null,null,null,null,null,null,null,null,null,925,0,0,0,0,0,0,0,0,{"$error":"#VALUE!"},{"$error":"#VALUE!"},{"$error":"#VALUE!"}]
[null,null,null,null,null,null,null,null,null,null,null,null,null,null,null,null,null,null,null,null,null,null,null,null,null,null,null,null,null,null,null,null,null,936,0,0,0,0,0,0,0,0,{"$error":"#VALUE!"},{"$error":"#VALUE!"},{"$error":"#VALUE!"}]
[null,null,null,null,null,null,null,null,null,null,null,null,null,null,null,null,null,null,null,null,null,null,null,null,null,null,null,null,null,null,null,null,null,949,0,0,0,0,0,0,0,0,{"$error":"#VALUE!"},{"$error":"#VALUE!"},{"$error":"#VALUE!"}]
[null,null,null,null,null,null,null,null,null,null,null,null,null,null,null,null,null,null,null,null,null,null,null,null,null,null,null,null,null,null,null,null,null,957,0,0,0,0,0,0,0,0,{"$error":"#VALUE!"},{"$error":"#VALUE!"},{"$error":"#VALUE!"}]
[null,null,null,null,null,null,null,null,null,null,null,null,null,null,null,null,null,null,null,null,null,null,null,null,null,null,null,null,null,null,null,null,null,968,0,0,0,0,0,0,0,0,{"$error":"#VALUE!"},{"$error":"#VALUE!"},{"$error":"#VALUE!"}]
[null,null,null,null,null,null,null,null,null,null,null,null,null,null,null,null,null,null,null,null,null,null,null,null,null,null,null,null,null,null,null,null,null,973,0,0,0,0,0,0,0,0,{"$error":"#VALUE!"},{"$error":"#VALUE!"},{"$error":"#VALUE!"}]
[null,null,null,null,null,null,null,null,null,null,null,null,null,null,null,null,null,null,null,null,null,null,null,null,null,null,null,null,null,null,null,null,null,985,0,0,0,0,0,0,0,0,{"$error":"#VALUE!"},{"$error":"#VALUE!"},{"$error":"#VALUE!"}]
[null,null,null,null,null,null,null,null,null,null,null,null,null,null,null,null,null,null,null,null,null,null,null,null,null,null,null,null,null,null,null,null,null,1000,0,0,0,0,0,0,0,0,{"$error":"#VALUE!"},{"$error":"#VALUE!"},{"$error":"#VALUE!"}]
[null,null,null,null,null,null,null,null,null,null,null,null,null,null,null,null,null,null,null,null,null,null,null,null,null,null,null,null,null,null,null,null,null,1005,0,0,0,0,0,0,0,0,{"$error":"#VALUE!"},{"$error":"#VALUE!"},{"$error":"#VALUE!"}]
[null,null,null,null,null,null,null,null,null,null,null,null,null,null,null,null,null,null,null,null,null,null,null,null,null,null,null,null,null,null,null,null,null,1016,0,0,0,0,0,0,0,0,{"$error":"#VALUE!"},{"$error":"#VALUE!"},{"$error":"#VALUE!"}]
[null,null,null,null,null,null,null,null,null,null,null,null,null,null,null,null,null,null,null,null,null,null,null,null,null,null,null,null,null,null,null,null,null,1025,{"$f":"IF(AND(AH1028>$C$41,AH1028<=$D$41),1,0)","v":0},{"$f":"$E$41*(AH1028/60)^-$F$41*AH1028/60*AI1028","v":0},0,0,{"$f":"IF(OR(AI1028=1,AK1028=1),0,IF(AND(AH1028>$C$43,AH1028<=$D$43),1,0))","v":0},0,{"$f":"AJ1028+AL1028+AN1028","v":0},{"$f":"AO1028*$H$17*$H$18/1000","v":0},{"$error":"#VALUE!"},{"$f":"AP1028-AQ1028","v":{"$error":"#VALUE!"}},{"$f":"IF(AR1028=MAX($AR$3:$AR$5762),AH1028,\"\")","v":{"$error":"#VALUE!"}}]
[null,null,null,null,null,null,null,null,null,null,null,null,null,null,null,null,null,null,null,null,null,null,null,null,null,null,null,null,null,null,null,null,null,1037,0,0,0,0,0,0,0,0,{"$error":"#VALUE!"},{"$error":"#VALUE!"},{"$error":"#VALUE!"}]
[null,null,null,null,null,null,null,null,null,null,null,null,null,null,null,null,null,null,null,null,null,null,null,null,null,null,null,null,null,null,null,null,null,1048,0,0,0,0,0,0,0,0,{"$error":"#VALUE!"},{"$error":"#VALUE!"},{"$error":"#VALUE!"}]
[null,null,null,null,null,null,null,null,null,null,null,null,null,null,null,null,null,null,null,null,null,null,null,null,null,null,null,null,null,null,null,null,null,1056,0,0,0,0,0,0,0,0,{"$error":"#VALUE!"},{"$error":"#VALUE!"},{"$error":"#VALUE!"}]
[null,null,null,null,null,null,null,null,null,null,null,null,null,null,null,null,null,null,null,null,null,null,null,null,null,null,null,null,null,null,null,null,null,1065,0,0,0,0,0,0,0,0,{"$error":"#VALUE!"},{"$error":"#VALUE!"},{"$error":"#VALUE!"}]
[null,null,null,null,null,null,null,null,null,null,null,null,null,null,null,null,null,null,null,null,null,null,null,null,null,null,null,null,null,null,null,null,null,1080,0,0,0,0,0,0,0,0,{"$error":"#VALUE!"},{"$error":"#VALUE!"},{"$error":"#VALUE!"}]
[null,null,null,null,null,null,null,null,null,null,null,null,null,null,null,null,null,null,null,null,null,null,null,null,null,null,null,null,null,null,null,null,null,1085,0,0,0,0,0,0,0,0,{"$error":"#VALUE!"},{"$error":"#VALUE!"},{"$error":"#VALUE!"}]
[null,null,null,null,null,null,null,null,null,null,null,null,null,null,null,null,null,null,null,null,null,null,null,null,null,null,null,null,null,null,null,null,null,1096,0,0,0,0,0,0,0,0,{"$error":"#VALUE!"},{"$error":"#VALUE!"},{"$error":"#VALUE!"}]
[null,null,null,null,null,null,null,null,null,null,null,null,null,null,null,null,null,null,null,null,null,null,null,null,null,null,null,null,null,null,null,null,null,1112,0,0,0,0,0,0,0,0,{"$error":"#VALUE!"},{"$error":"#VALUE!"},{"$error":"#VALUE!"}]
[null,null,null,null,null,null,null,null,null,null,null,null,null,null,null,null,null,null,null,null,null,null,null,null,null,null,null,null,null,null,null,null,null,1117,0,0,0,0,0,0,0,0,{"$error":"#VALUE!"},{"$error":"#VALUE!"},{"$error":"#VALUE!"}]
[null,null,null,null,null,null,null,null,null,null,null,null,null,null,null,null,null,null,null,null,null,null,null,null,null,null,null,null,null,null,null,null,null,1128,0,0,0,0,0,0,0,0,{"$error":"#VALUE!"},{"$error":"#VALUE!"},{"$error":"#VALUE!"}]
[null,null,null,null,null,null,null,null,null,null,null,null,null,null,null,null,null,null,null,null,null,null,null,null,null,null,null,null,null,null,null,null,null,1143,0,0,0,0,0,0,0,0,{"$error":"#VALUE!"},{"$error":"#VALUE!"},{"$error":"#VALUE!"}]
[null,null,null,null,null,null,null,null,null,null,null,null,null,null,null,null,null,null,null,null,null,null,null,null,null,null,null,null,null,null,null,null,null,1145,0,0,0,0,0,0,0,0,{"$error":"#VALUE!"},{"$error":"#VALUE!"},{"$error":"#VALUE!"}]
[null,null,null,null,null,null,null,null,null,null,null,null,null,null,null,null,null,null,null,null,null,null,null,null,null,null,null,null,null,null,null,null,null,1160,0,0,0,0,0,0,0,0,{"$error":"#VALUE!"},{"$error":"#VALUE!"},{"$error":"#VALUE!"}]
[null,null,null,null,null,null,null,null,null,null,null,null,null,null,null,null,null,null,null,null,null,null,null,null,null,null,null,null,null,null,null,null,null,1174,0,0,0,0,0,0,0,0,{"$error":"#VALUE!"},{"$error":"#VALUE!"},{"$error":"#VALUE!"}]
[null,null,null,null,null,null,null,null,null,null,null,null,null,null,null,null,null,null,null,null,null,null,null,null,null,null,null,null,null,null,null,null,null,1177,0,0,0,0,0,0,0,0,{"$error":"#VALUE!"},{"$error":"#VALUE!"},{"$error":"#VALUE!"}]
[null,null,null,null,null,null,null,null,null,null,null,null,null,null,null,null,null,null,null,null,null,null,null,null,null,null,null,null,null,null,null,null,null,1192,0,0,0,0,0,0,0,0,{"$error":"#VALUE!"},{"$error":"#VALUE!"},{"$error":"#VALUE!"}]
[null,null,null,null,null,null,null,null,null,null,null,null,null,null,null,null,null,null,null,null,null,null,null,null,null,null,null,null,null,null,null,null,null,1197,0,0,0,0,0,0,0,0,{"$error":"#VALUE!"},{"$error":"#VALUE!"},{"$error":"#VALUE!"}]
[null,null,null,null,null,null,null,null,null,null,null,null,null,null,null,null,null,null,null,null,null,null,null,null,null,null,null,null,null,null,null,null,null,1214,0,0,0,0,0,0,0,0,{"$error":"#VALUE!"},{"$error":"#VALUE!"},{"$error":"#VALUE!"}]
[null,null,null,null,null,null,null,null,null,null,null,null,null,null,null,null,null,null,null,null,null,null,null,null,null,null,null,null,null,null,null,null,null,1224,0,0,0,0,0,0,0,0,{"$error":"#VALUE!"},{"$error":"#VALUE!"},{"$error":"#VALUE!"}]
[null,null,null,null,null,null,null,null,null,null,null,null,null,null,null,null,null,null,null,null,null,null,null,null,null,null,null,null,null,null,null,null,null,1235,0,0,0,0,0,0,0,0,{"$error":"#VALUE!"},{"$error":"#VALUE!"},{"$error":"#VALUE!"}]
[null,null,null,null,null,null,null,null,null,null,null,null,null,null,null,null,null,null,null,null,null,null,null,null,null,null,null,null,null,null,null,null,null,1245,0,0,0,0,0,0,0,0,{"$error":"#VALUE!"},{"$error":"#VALUE!"},{"$error":"#VALUE!"}]
[null,null,null,null,null,null,null,null,null,null,null,null,null,null,null,null,null,null,null,null,null,null,null,null,null,null,null,null,null,null,null,null,null,1256,0,0,0,0,0,0,0,0,{"$error":"#VALUE!"},{"$error":"#VALUE!"},{"$error":"#VALUE!"}]
[null,null,null,null,null,null,null,null,null,null,null,null,null,null,null,null,null,null,null,null,null,null,null,null,null,null,null,null,null,null,null,null,null,1267,0,0,0,0,0,0,0,0,{"$error":"#VALUE!"},{"$error":"#VALUE!"},{"$error":"#VALUE!"}]
[null,null,null,null,null,null,null,null,null,null,null,null,null,null,null,null,null,null,null,null,null,null,null,null,null,null,null,null,null,null,null,null,null,1272,0,0,0,0,0,0,0,0,{"$error":"#VALUE!"},{"$error":"#VALUE!"},{"$error":"#VALUE!"}]
[null,null,null,null,null,null,null,null,null,null,null,null,null,null,null,null,null,null,null,null,null,null,null,null,null,null,null,null,null,null,null,null,null,1285,0,0,0,0,0,0,0,0,{"$error":"#VALUE!"},{"$error":"#VALUE!"},{"$error":"#VALUE!"}]
[null,null,null,null,null,null,null,null,null,null,null,null,null,null,null,null,null,null,null,null,null,null,null,null,null,null,null,null,null,null,null,null,null,1289,0,0,0,0,0,0,0,0,{"$error":"#VALUE!"},{"$error":"#VALUE!"},{"$error":"#VALUE!"}]
[null,null,null,null,null,null,null,null,null,null,null,null,null,null,null,null,null,null,null,null,null,null,null,null,null,null,null,null,null,null,null,null,null,1304,0,0,0,0,0,0,0,0,{"$error":"#VALUE!"},{"$error":"#VALUE!"},{"$error":"#VALUE!"}]
[null,null,null,null,null,null,null,null,null,null,null,null,null,null,null,null,null,null,null,null,null,null,null,null,null,null,null,null,null,null,null,null,null,1315,0,0,0,0,0,0,0,0,{"$error":"#VALUE!"},{"$error":"#VALUE!"},{"$error":"#VALUE!"}]
[null,null,null,null,null,null,null,null,null,null,null,null,null,null,null,null,null,null,null,null,null,null,null,null,null,null,null,null,null,null,null,null,null,1321,0,0,0,0,0,0,0,0,{"$error":"#VALUE!"},{"$error":"#VALUE!"},{"$error":"#VALUE!"}]
[null,null,null,null,null,null,null,null,null,null,null,null,null,null,null,null,null,null,null,null,null,null,null,null,null,null,null,null,null,null,null,null,null,1336,0,0,0,0,0,0,0,0,{"$error":"#VALUE!"},{"$error":"#VALUE!"},{"$error":"#VALUE!"}]
[null,null,null,null,null,null,null,null,null,null,null,null,null,null,null,null,null,null,null,null,null,null,null,null,null,null,null,null,null,null,null,null,null,1347,0,0,0,0,0,0,0,0,{"$error":"#VALUE!"},{"$error":"#VALUE!"},{"$error":"#VALUE!"}]
[null,null,null,null,null,null,null,null,null,null,null,null,null,null,null,null,null,null,null,null,null,null,null,null,null,null,null,null,null,null,null,null,null,1352,0,0,0,0,0,0,0,0,{"$error":"#VALUE!"},{"$error":"#VALUE!"},{"$error":"#VALUE!"}]
[null,null,null,null,null,null,null,null,null,null,null,null,null,null,null,null,null,null,null,null,null,null,null,null,null,null,null,null,null,null,null,null,null,1364,0,0,0,0,0,0,0,0,{"$error":"#VALUE!"},{"$error":"#VALUE!"},{"$error":"#VALUE!"}]
[null,null,null,null,null,null,null,null,null,null,null,null,null,null,null,null,null,null,null,null,null,null,null,null,null,null,null,null,null,null,null,null,null,1379,0,0,0,0,0,0,0,0,{"$error":"#VALUE!"},{"$error":"#VALUE!"},{"$error":"#VALUE!"}]
[null,null,null,null,null,null,null,null,null,null,null,null,null,null,null,null,null,null,null,null,null,null,null,null,null,null,null,null,null,null,null,null,null,1384,0,0,0,0,0,0,0,0,{"$error":"#VALUE!"},{"$error":"#VALUE!"},{"$error":"#VALUE!"}]
[null,null,null,null,null,null,null,null,null,null,null,null,null,null,null,null,null,null,null,null,null,null,null,null,null,null,null,null,null,null,null,null,null,1392,0,0,0,0,0,0,0,0,{"$error":"#VALUE!"},{"$error":"#VALUE!"},{"$error":"#VALUE!"}]
[null,null,null,null,null,null,null,null,null,null,null,null,null,null,null,null,null,null,null,null,null,null,null,null,null,null,null,null,null,null,null,null,null,1411,0,0,0,0,0,0,0,0,{"$error":"#VALUE!"},{"$error":"#VALUE!"},{"$error":"#VALUE!"}]
[null,null,null,null,null,null,null,null,null,null,null,null,null,null,null,null,null,null,null,null,null,null,null,null,null,null,null,null,null,null,null,null,null,1416,0,0,0,0,0,0,0,0,{"$error":"#VALUE!"},{"$error":"#VALUE!"},{"$error":"#VALUE!"}]
[null,null,null,null,null,null,null,null,null,null,null,null,null,null,null,null,null,null,null,null,null,null,null,null,null,null,null,null,null,null,null,null,null,1427,0,0,0,0,0,0,0,0,{"$error":"#VALUE!"},{"$error":"#VALUE!"},{"$error":"#VALUE!"}]
[null,null,null,null,null,null,null,null,null,null,null,null,null,null,null,null,null,null,null,null,null,null,null,null,null,null,null,null,null,null,null,null,null,1439,0,0,0,0,0,0,0,0,{"$error":"#VALUE!"},{"$error":"#VALUE!"},{"$error":"#VALUE!"}]
[null,null,null,null,null,null,null,null,null,null,null,null,null,null,null,null,null,null,null,null,null,null,null,null,null,null,null,null,null,null,null,null,null,1444,0,0,0,0,0,0,0,0,{"$error":"#VALUE!"},{"$error":"#VALUE!"},{"$error":"#VALUE!"}]
[null,null,null,null,null,null,null,null,null,null,null,null,null,null,null,null,null,null,null,null,null,null,null,null,null,null,null,null,null,null,null,null,null,1459,0,0,0,0,0,0,0,0,{"$error":"#VALUE!"},{"$error":"#VALUE!"},{"$error":"#VALUE!"}]
[null,null,null,null,null,null,null,null,null,null,null,null,null,null,null,null,null,null,null,null,null,null,null,null,null,null,null,null,null,null,null,null,null,1470,0,0,0,0,0,0,0,0,{"$error":"#VALUE!"},{"$error":"#VALUE!"},{"$error":"#VALUE!"}]
[null,null,null,null,null,null,null,null,null,null,null,null,null,null,null,null,null,null,null,null,null,null,null,null,null,null,null,null,null,null,null,null,null,1476,0,0,0,0,0,0,0,0,{"$error":"#VALUE!"},{"$error":"#VALUE!"},{"$error":"#VALUE!"}]
[null,null,null,null,null,null,null,null,null,null,null,null,null,null,null,null,null,null,null,null,null,null,null,null,null,null,null,null,null,null,null,null,null,1491,0,0,0,0,0,0,0,0,{"$error":"#VALUE!"},{"$error":"#VALUE!"},{"$error":"#VALUE!"}]
[null,null,null,null,null,null,null,null,null,null,null,null,null,null,null,null,null,null,null,null,null,null,null,null,null,null,null,null,null,null,null,null,null,1502,0,0,0,0,0,0,0,0,{"$error":"#VALUE!"},{"$error":"#VALUE!"},{"$error":"#VALUE!"}]
[null,null,null,null,null,null,null,null,null,null,null,null,null,null,null,null,null,null,null,null,null,null,null,null,null,null,null,null,null,null,null,null,null,1510,0,0,0,0,0,0,0,0,{"$error":"#VALUE!"},{"$error":"#VALUE!"},{"$error":"#VALUE!"}]
[null,null,null,null,null,null,null,null,null,null,null,null,null,null,null,null,null,null,null,null,null,null,null,null,null,null,null,null,null,null,null,null,null,1523,0,0,0,0,0,0,0,0,{"$error":"#VALUE!"},{"$error":"#VALUE!"},{"$error":"#VALUE!"}]
[null,null,null,null,null,null,null,null,null,null,null,null,null,null,null,null,null,null,null,null,null,null,null,null,null,null,null,null,null,null,null,null,null,1534,0,0,0,0,0,0,0,0,{"$error":"#VALUE!"},{"$error":"#VALUE!"},{"$error":"#VALUE!"}]
[null,null,null,null,null,null,null,null,null,null,null,null,null,null,null,null,null,null,null,null,null,null,null,null,null,null,null,null,null,null,null,null,null,1539,0,0,0,0,0,0,0,0,{"$error":"#VALUE!"},{"$error":"#VALUE!"},{"$error":"#VALUE!"}]
[null,null,null,null,null,null,null,null,null,null,null,null,null,null,null,null,null,null,null,null,null,null,null,null,null,null,null,null,null,null,null,null,null,1546,0,0,0,0,0,0,0,0,{"$error":"#VALUE!"},{"$error":"#VALUE!"},{"$error":"#VALUE!"}]
[null,null,null,null,null,null,null,null,null,null,null,null,null,null,null,null,null,null,null,null,null,null,null,null,null,null,null,null,null,null,null,null,null,1556,0,0,0,0,0,0,0,0,{"$error":"#VALUE!"},{"$error":"#VALUE!"},{"$error":"#VALUE!"}]
[null,null,null,null,null,null,null,null,null,null,null,null,null,null,null,null,null,null,null,null,null,null,null,null,null,null,null,null,null,null,null,null,null,1571,0,0,0,0,0,0,0,0,{"$error":"#VALUE!"},{"$error":"#VALUE!"},{"$error":"#VALUE!"}]
[null,null,null,null,null,null,null,null,null,null,null,null,null,null,null,null,null,null,null,null,null,null,null,null,null,null,null,null,null,null,null,null,null,1581,0,0,0,0,0,0,0,0,{"$error":"#VALUE!"},{"$error":"#VALUE!"},{"$error":"#VALUE!"}]
[null,null,null,null,null,null,null,null,null,null,null,null,null,null,null,null,null,null,null,null,null,null,null,null,null,null,null,null,null,null,null,null,null,1588,0,0,0,0,0,0,0,0,{"$error":"#VALUE!"},{"$error":"#VALUE!"},{"$error":"#VALUE!"}]
[null,null,null,null,null,null,null,null,null,null,null,null,null,null,null,null,null,null,null,null,null,null,null,null,null,null,null,null,null,null,null,null,null,1603,0,0,0,0,0,0,0,0,{"$error":"#VALUE!"},{"$error":"#VALUE!"},{"$error":"#VALUE!"}]
[null,null,null,null,null,null,null,null,null,null,null,null,null,null,null,null,null,null,null,null,null,null,null,null,null,null,null,null,null,null,null,null,null,1614,0,0,0,0,0,0,0,0,{"$error":"#VALUE!"},{"$error":"#VALUE!"},{"$error":"#VALUE!"}]
[null,null,null,null,null,null,null,null,null,null,null,null,null,null,null,null,null,null,null,null,null,null,null,null,null,null,null,null,null,null,null,null,null,1617,0,0,0,0,0,0,0,0,{"$error":"#VALUE!"},{"$error":"#VALUE!"},{"$error":"#VALUE!"}]
[null,null,null,null,null,null,null,null,null,null,null,null,null,null,null,null,null,null,null,null,null,null,null,null,null,null,null,null,null,null,null,null,null,1631,0,0,0,0,0,0,0,0,{"$error":"#VALUE!"},{"$error":"#VALUE!"},{"$error":"#VALUE!"}]
[null,null,null,null,null,null,null,null,null,null,null,null,null,null,null,null,null,null,null,null,null,null,null,null,null,null,null,null,null,null,null,null,null,1646,0,0,0,0,0,0,0,0,{"$error":"#VALUE!"},{"$error":"#VALUE!"},{"$error":"#VALUE!"}]
[null,null,null,null,null,null,null,null,null,null,null,null,null,null,null,null,null,null,null,null,null,null,null,null,null,null,null,null,null,null,null,null,null,1651,0,0,0,0,0,0,0,0,{"$error":"#VALUE!"},{"$error":"#VALUE!"},{"$error":"#VALUE!"}]
[null,null,null,null,null,null,null,null,null,null,null,null,null,null,null,null,null,null,null,null,null,null,null,null,null,null,null,null,null,null,null,null,null,1668,0,0,0,0,0,0,0,0,{"$error":"#VALUE!"},{"$error":"#VALUE!"},{"$error":"#VALUE!"}]
[null,null,null,null,null,null,null,null,null,null,null,null,null,null,null,null,null,null,null,null,null,null,null,null,null,null,null,null,null,null,null,null,null,1678,0,0,0,0,0,0,0,0,{"$error":"#VALUE!"},{"$error":"#VALUE!"},{"$error":"#VALUE!"}]
[null,null,null,null,null,null,null,null,null,null,null,null,null,null,null,null,null,null,null,null,null,null,null,null,null,null,null,null,null,null,null,null,null,1683,0,0,0,0,0,0,0,0,{"$error":"#VALUE!"},{"$error":"#VALUE!"},{"$error":"#VALUE!"}]
[null,null,null,null,null,null,null,null,null,null,null,null,null,null,null,null,null,null,null,null,null,null,null,null,null,null,null,null,null,null,null,null,null,1699,0,0,0,0,0,0,0,0,{"$error":"#VALUE!"},{"$error":"#VALUE!"},{"$error":"#VALUE!"}]
[null,null,null,null,null,null,null,null,null,null,null,null,null,null,null,null,null,null,null,null,null,null,null,null,null,null,null,null,null,null,null,null,null,1700,0,0,0,0,0,0,0,0,{"$error":"#VALUE!"},{"$error":"#VALUE!"},{"$error":"#VALUE!"}]
[null,null,null,null,null,null,null,null,null,null,null,null,null,null,null,null,null,null,null,null,null,null,null,null,null,null,null,null,null,null,null,null,null,1711,0,0,0,0,0,0,0,0,{"$error":"#VALUE!"},{"$error":"#VALUE!"},{"$error":"#VALUE!"}]
[null,null,null,null,null,null,null,null,null,null,null,null,null,null,null,null,null,null,null,null,null,null,null,null,null,null,null,null,null,null,null,null,null,1726,0,0,0,0,0,0,0,0,{"$error":"#VALUE!"},{"$error":"#VALUE!"},{"$error":"#VALUE!"}]
[null,null,null,null,null,null,null,null,null,null,null,null,null,null,null,null,null,null,null,null,null,null,null,null,null,null,null,null,null,null,null,null,null,1735,0,0,0,0,0,0,0,0,{"$error":"#VALUE!"},{"$error":"#VALUE!"},{"$error":"#VALUE!"}]
[null,null,null,null,null,null,null,null,null,null,null,null,null,null,null,null,null,null,null,null,null,null,null,null,null,null,null,null,null,null,null,null,null,1743,0,0,0,0,0,0,0,0,{"$error":"#VALUE!"},{"$error":"#VALUE!"},{"$error":"#VALUE!"}]
[null,null,null,null,null,null,null,null,null,null,null,null,null,null,null,null,null,null,null,null,null,null,null,null,null,null,null,null,null,null,null,null,null,1758,0,0,0,0,0,0,0,0,{"$error":"#VALUE!"},{"$error":"#VALUE!"},{"$error":"#VALUE!"}]
[null,null,null,null,null,null,null,null,null,null,null,null,null,null,null,null,null,null,null,null,null,null,null,null,null,null,null,null,null,null,null,null,null,1763,0,0,0,0,0,0,0,0,{"$error":"#VALUE!"},{"$error":"#VALUE!"},{"$error":"#VALUE!"}]
[null,null,null,null,null,null,null,null,null,null,null,null,null,null,null,null,null,null,null,null,null,null,null,null,null,null,null,null,null,null,null,null,null,1775,0,0,0,0,0,0,0,0,{"$error":"#VALUE!"},{"$error":"#VALUE!"},{"$error":"#VALUE!"}]
[null,null,null,null,null,null,null,null,null,null,null,null,null,null,null,null,null,null,null,null,null,null,null,null,null,null,null,null,null,null,null,null,null,1790,0,0,0,0,0,0,0,0,{"$error":"#VALUE!"},{"$error":"#VALUE!"},{"$error":"#VALUE!"}]
[null,null,null,null,null,null,null,null,null,null,null,null,null,null,null,null,null,null,null,null,null,null,null,null,null,null,null,null,null,null,null,null,null,1801,0,0,0,0,0,0,0,0,{"$error":"#VALUE!"},{"$error":"#VALUE!"},{"$error":"#VALUE!"}]
[null,null,null,null,null,null,null,null,null,null,null,null,null,null,null,null,null,null,null,null,null,null,null,null,null,null,null,null,null,null,null,null,null,1806,0,0,0,0,0,0,0,0,{"$error":"#VALUE!"},{"$error":"#VALUE!"},{"$error":"#VALUE!"}]
[null,null,null,null,null,null,null,null,null,null,null,null,null,null,null,null,null,null,null,null,null,null,null,null,null,null,null,null,null,null,null,null,null,1822,0,0,0,0,0,0,0,0,{"$error":"#VALUE!"},{"$error":"#VALUE!"},{"$error":"#VALUE!"}]
[null,null,null,null,null,null,null,null,null,null,null,null,null,null,null,null,null,null,null,null,null,null,null,null,null,null,null,null,null,null,null,null,null,1823,0,0,0,0,0,0,0,0,{"$error":"#VALUE!"},{"$error":"#VALUE!"},{"$error":"#VALUE!"}]
[null,null,null,null,null,null,null,null,null,null,null,null,null,null,null,null,null,null,null,null,null,null,null,null,null,null,null,null,null,null,null,null,null,1838,0,0,0,0,0,0,0,0,{"$error":"#VALUE!"},{"$error":"#VALUE!"},{"$error":"#VALUE!"}]
[null,null,null,null,null,null,null,null,null,null,null,null,null,null,null,null,null,null,null,null,null,null,null,null,null,null,null,null,null,null,null,null,null,1846,0,0,0,0,0,0,0,0,{"$error":"#VALUE!"},{"$error":"#VALUE!"},{"$error":"#VALUE!"}]
[null,null,null,null,null,null,null,null,null,null,null,null,null,null,null,null,null,null,null,null,null,null,null,null,null,null,null,null,null,null,null,null,null,1855,0,0,0,0,0,0,0,0,{"$error":"#VALUE!"},{"$error":"#VALUE!"},{"$error":"#VALUE!"}]
[null,null,null,null,null,null,null,null,null,null,null,null,null,null,null,null,null,null,null,null,null,null,null,null,null,null,null,null,null,null,null,null,null,1870,0,0,0,0,0,0,0,0,{"$error":"#VALUE!"},{"$error":"#VALUE!"},{"$error":"#VALUE!"}]
[null,null,null,null,null,null,null,null,null,null,null,null,null,null,null,null,null,null,null,null,null,null,null,null,null,null,null,null,null,null,null,null,null,1881,0,0,0,0,0,0,0,0,{"$error":"#VALUE!"},{"$error":"#VALUE!"},{"$error":"#VALUE!"}]
[null,null,null,null,null,null,null,null,null,null,null,null,null,null,null,null,null,null,null,null,null,null,null,null,null,null,null,null,null,null,null,null,null,1893,0,0,0,0,0,0,0,0,{"$error":"#VALUE!"},{"$error":"#VALUE!"},{"$error":"#VALUE!"}]
[null,null,null,null,null,null,null,null,null,null,null,null,null,null,null,null,null,null,null,null,null,null,null,null,null,null,null,null,null,null,null,null,null,1902,0,0,0,0,0,0,0,0,{"$error":"#VALUE!"},{"$error":"#VALUE!"},{"$error":"#VALUE!"}]
[null,null,null,null,null,null,null,null,null,null,null,null,null,null,null,null,null,null,null,null,null,null,null,null,null,null,null,null,null,null,null,null,null,1913,0,0,0,0,0,0,0,0,{"$error":"#VALUE!"},{"$error":"#VALUE!"},{"$error":"#VALUE!"}]
[null,null,null,null,null,null,null,null,null,null,null,null,null,null,null,null,null,null,null,null,null,null,null,null,null,null,null,null,null,null,null,null,null,1924,0,0,0,0,0,0,0,0,{"$error":"#VALUE!"},{"$error":"#VALUE!"},{"$error":"#VALUE!"}]
[null,null,null,null,null,null,null,null,null,null,null,null,null,null,null,null,null,null,null,null,null,null,null,null,null,null,null,null,null,null,null,null,null,1930,0,0,0,0,0,0,0,0,{"$error":"#VALUE!"},{"$error":"#VALUE!"},{"$error":"#VALUE!"}]
[null,null,null,null,null,null,null,null,null,null,null,null,null,null,null,null,null,null,null,null,null,null,null,null,null,null,null,null,null,null,null,null,null,1945,0,0,0,0,0,0,0,0,{"$error":"#VALUE!"},{"$error":"#VALUE!"},{"$error":"#VALUE!"}]
[null,null,null,null,null,null,null,null,null,null,null,null,null,null,null,null,null,null,null,null,null,null,null,null,null,null,null,null,null,null,null,null,null,1950,0,0,0,0,0,0,0,0,{"$error":"#VALUE!"},{"$error":"#VALUE!"},{"$error":"#VALUE!"}]
[null,null,null,null,null,null,null,null,null,null,null,null,null,null,null,null,null,null,null,null,null,null,null,null,null,null,null,null,null,null,null,null,null,1964,0,0,0,0,0,0,0,0,{"$error":"#VALUE!"},{"$error":"#VALUE!"},{"$error":"#VALUE!"}]
[null,null,null,null,null,null,null,null,null,null,null,null,null,null,null,null,null,null,null,null,null,null,null,null,null,null,null,null,null,null,null,null,null,1967,0,0,0,0,0,0,0,0,{"$error":"#VALUE!"},{"$error":"#VALUE!"},{"$error":"#VALUE!"}]
[null,null,null,null,null,null,null,null,null,null,null,null,null,null,null,null,null,null,null,null,null,null,null,null,null,null,null,null,null,null,null,null,null,1978,0,0,0,0,0,0,0,0,{"$error":"#VALUE!"},{"$error":"#VALUE!"},{"$error":"#VALUE!"}]
[null,null,null,null,null,null,null,null,null,null,null,null,null,null,null,null,null,null,null,null,null,null,null,null,null,null,null,null,null,null,null,null,null,1995,0,0,0,0,0,0,0,0,{"$error":"#VALUE!"},{"$error":"#VALUE!"},{"$error":"#VALUE!"}]
[null,null,null,null,null,null,null,null,null,null,null,null,null,null,null,null,null,null,null,null,null,null,null,null,null,null,null,null,null,null,null,null,null,1999,0,0,0,0,0,0,0,0,{"$error":"#VALUE!"},{"$error":"#VALUE!"},{"$error":"#VALUE!"}]
[null,null,null,null,null,null,null,null,null,null,null,null,null,null,null,null,null,null,null,null,null,null,null,null,null,null,null,null,null,null,null,null,null,2010,0,0,0,0,0,0,0,0,{"$error":"#VALUE!"},{"$error":"#VALUE!"},{"$error":"#VALUE!"}]
[null,null,null,null,null,null,null,null,null,null,null,null,null,null,null,null,null,null,null,null,null,null,null,null,null,null,null,null,null,null,null,null,null,2025,0,0,0,0,0,0,0,0,{"$error":"#VALUE!"},{"$error":"#VALUE!"},{"$error":"#VALUE!"}]
[null,null,null,null,null,null,null,null,null,null,null,null,null,null,null,null,null,null,null,null,null,null,null,null,null,null,null,null,null,null,null,null,null,2031,0,0,0,0,0,0,0,0,{"$error":"#VALUE!"},{"$error":"#VALUE!"},{"$error":"#VALUE!"}]
[null,null,null,null,null,null,null,null,null,null,null,null,null,null,null,null,null,null,null,null,null,null,null,null,null,null,null,null,null,null,null,null,null,2042,0,0,0,0,0,0,0,0,{"$error":"#VALUE!"},{"$error":"#VALUE!"},{"$error":"#VALUE!"}]
[null,null,null,null,null,null,null,null,null,null,null,null,null,null,null,null,null,null,null,null,null,null,null,null,null,null,null,null,null,null,null,null,null,2057,0,0,0,0,0,0,0,0,{"$error":"#VALUE!"},{"$error":"#VALUE!"},{"$error":"#VALUE!"}]
[null,null,null,null,null,null,null,null,null,null,null,null,null,null,null,null,null,null,null,null,null,null,null,null,null,null,null,null,null,null,null,null,null,2068,0,0,0,0,0,0,0,0,{"$error":"#VALUE!"},{"$error":"#VALUE!"},{"$error":"#VALUE!"}]
[null,null,null,null,null,null,null,null,null,null,null,null,null,null,null,null,null,null,null,null,null,null,null,null,null,null,null,null,null,null,null,null,null,2071,0,0,0,0,0,0,0,0,{"$error":"#VALUE!"},{"$error":"#VALUE!"},{"$error":"#VALUE!"}]
[null,null,null,null,null,null,null,null,null,null,null,null,null,null,null,null,null,null,null,null,null,null,null,null,null,null,null,null,null,null,null,null,null,2089,0,0,0,0,0,0,0,0,{"$error":"#VALUE!"},{"$error":"#VALUE!"},{"$error":"#VALUE!"}]
[null,null,null,null,null,null,null,null,null,null,null,null,null,null,null,null,null,null,null,null,null,null,null,null,null,null,null,null,null,null,null,null,null,2090,0,0,0,0,0,0,0,0,{"$error":"#VALUE!"},{"$error":"#VALUE!"},{"$error":"#VALUE!"}]
[null,null,null,null,null,null,null,null,null,null,null,null,null,null,null,null,null,null,null,null,null,null,null,null,null,null,null,null,null,null,null,null,null,2102,0,0,0,0,0,0,0,0,{"$error":"#VALUE!"},{"$error":"#VALUE!"},{"$error":"#VALUE!"}]
[null,null,null,null,null,null,null,null,null,null,null,null,null,null,null,null,null,null,null,null,null,null,null,null,null,null,null,null,null,null,null,null,null,2111,0,0,0,0,0,0,0,0,{"$error":"#VALUE!"},{"$error":"#VALUE!"},{"$error":"#VALUE!"}]
[null,null,null,null,null,null,null,null,null,null,null,null,null,null,null,null,null,null,null,null,null,null,null,null,null,null,null,null,null,null,null,null,null,2122,0,0,0,0,0,0,0,0,{"$error":"#VALUE!"},{"$error":"#VALUE!"},{"$error":"#VALUE!"}]
[null,null,null,null,null,null,null,null,null,null,null,null,null,null,null,null,null,null,null,null,null,null,null,null,null,null,null,null,null,null,null,null,null,2137,0,0,0,0,0,0,0,0,{"$error":"#VALUE!"},{"$error":"#VALUE!"},{"$error":"#VALUE!"}]
[null,null,null,null,null,null,null,null,null,null,null,null,null,null,null,null,null,null,null,null,null,null,null,null,null,null,null,null,null,null,null,null,null,2142,0,0,0,0,0,0,0,0,{"$error":"#VALUE!"},{"$error":"#VALUE!"},{"$error":"#VALUE!"}]
[null,null,null,null,null,null,null,null,null,null,null,null,null,null,null,null,null,null,null,null,null,null,null,null,null,null,null,null,null,null,null,null,null,2154,0,0,0,0,0,0,0,0,{"$error":"#VALUE!"},{"$error":"#VALUE!"},{"$error":"#VALUE!"}]
[null,null,null,null,null,null,null,null,null,null,null,null,null,null,null,null,null,null,null,null,null,null,null,null,null,null,null,null,null,null,null,null,null,2169,0,0,0,0,0,0,0,0,{"$error":"#VALUE!"},{"$error":"#VALUE!"},{"$error":"#VALUE!"}]
[null,null,null,null,null,null,null,null,null,null,null,null,null,null,null,null,null,null,null,null,null,null,null,null,null,null,null,null,null,null,null,null,null,2180,0,0,0,0,0,0,0,0,{"$error":"#VALUE!"},{"$error":"#VALUE!"},{"$error":"#VALUE!"}]
[null,null,null,null,null,null,null,null,null,null,null,null,null,null,null,null,null,null,null,null,null,null,null,null,null,null,null,null,null,null,null,null,null,2189,0,0,0,0,0,0,0,0,{"$error":"#VALUE!"},{"$error":"#VALUE!"},{"$error":"#VALUE!"}]
[null,null,null,null,null,null,null,null,null,null,null,null,null,null,null,null,null,null,null,null,null,null,null,null,null,null,null,null,null,null,null,null,null,2197,0,0,0,0,0,0,0,0,{"$error":"#VALUE!"},{"$error":"#VALUE!"},{"$error":"#VALUE!"}]
[null,null,null,null,null,null,null,null,null,null,null,null,null,null,null,null,null,null,null,null,null,null,null,null,null,null,null,null,null,null,null,null,null,2212,0,0,0,0,0,0,0,0,{"$error":"#VALUE!"},{"$error":"#VALUE!"},{"$error":"#VALUE!"}]
[null,null,null,null,null,null,null,null,null,null,null,null,null,null,null,null,null,null,null,null,null,null,null,null,null,null,null,null,null,null,null,null,null,2220,0,0,0,0,0,0,0,0,{"$error":"#VALUE!"},{"$error":"#VALUE!"},{"$error":"#VALUE!"}]
[null,null,null,null,null,null,null,null,null,null,null,null,null,null,null,null,null,null,null,null,null,null,null,null,null,null,null,null,null,null,null,null,null,2229,0,0,0,0,0,0,0,0,{"$error":"#VALUE!"},{"$error":"#VALUE!"},{"$error":"#VALUE!"}]
[null,null,null,null,null,null,null,null,null,null,null,null,null,null,null,null,null,null,null,null,null,null,null,null,null,null,null,null,null,null,null,null,null,2234,0,0,0,0,0,0,0,0,{"$error":"#VALUE!"},{"$error":"#VALUE!"},{"$error":"#VALUE!"}]
[null,null,null,null,null,null,null,null,null,null,null,null,null,null,null,null,null,null,null,null,null,null,null,null,null,null,null,null,null,null,null,null,null,2249,0,0,0,0,0,0,0,0,{"$error":"#VALUE!"},{"$error":"#VALUE!"},{"$error":"#VALUE!"}]
[null,null,null,null,null,null,null,null,null,null,null,null,null,null,null,null,null,null,null,null,null,null,null,null,null,null,null,null,null,null,null,null,null,2260,0,0,0,0,0,0,0,0,{"$error":"#VALUE!"},{"$error":"#VALUE!"},{"$error":"#VALUE!"}]
[null,null,null,null,null,null,null,null,null,null,null,null,null,null,null,null,null,null,null,null,null,null,null,null,null,null,null,null,null,null,null,null,null,2266,0,0,0,0,0,0,0,0,{"$error":"#VALUE!"},{"$error":"#VALUE!"},{"$error":"#VALUE!"}]
[null,null,null,null,null,null,null,null,null,null,null,null,null,null,null,null,null,null,null,null,null,null,null,null,null,null,null,null,null,null,null,null,null,2277,0,0,0,0,0,0,0,0,{"$error":"#VALUE!"},{"$error":"#VALUE!"},{"$error":"#VALUE!"}]
[null,null,null,null,null,null,null,null,null,null,null,null,null,null,null,null,null,null,null,null,null,null,null,null,null,null,null,null,null,null,null,null,null,2292,0,0,0,0,0,0,0,0,{"$error":"#VALUE!"},{"$error":"#VALUE!"},{"$error":"#VALUE!"}]
[null,null,null,null,null,null,null,null,null,null,null,null,null,null,null,null,null,null,null,null,null,null,null,null,null,null,null,null,null,null,null,null,null,2296,0,0,0,0,0,0,0,0,{"$error":"#VALUE!"},{"$error":"#VALUE!"},{"$error":"#VALUE!"}]
[null,null,null,null,null,null,null,null,null,null,null,null,null,null,null,null,null,null,null,null,null,null,null,null,null,null,null,null,null,null,null,null,null,2309,0,0,0,0,0,0,0,0,{"$error":"#VALUE!"},{"$error":"#VALUE!"},{"$error":"#VALUE!"}]
[null,null,null,null,null,null,null,null,null,null,null,null,null,null,null,null,null,null,null,null,null,null,null,null,null,null,null,null,null,null,null,null,null,2324,0,0,0,0,0,0,0,0,{"$error":"#VALUE!"},{"$error":"#VALUE!"},{"$error":"#VALUE!"}]
[null,null,null,null,null,null,null,null,null,null,null,null,null,null,null,null,null,null,null,null,null,null,null,null,null,null,null,null,null,null,null,null,null,2327,0,0,0,0,0,0,0,0,{"$error":"#VALUE!"},{"$error":"#VALUE!"},{"$error":"#VALUE!"}]
[null,null,null,null,null,null,null,null,null,null,null,null,null,null,null,null,null,null,null,null,null,null,null,null,null,null,null,null,null,null,null,null,null,2341,0,0,0,0,0,0,0,0,{"$error":"#VALUE!"},{"$error":"#VALUE!"},{"$error":"#VALUE!"}]
[null,null,null,null,null,null,null,null,null,null,null,null,null,null,null,null,null,null,null,null,null,null,null,null,null,null,null,null,null,null,null,null,null,2356,0,0,0,0,0,0,0,0,{"$error":"#VALUE!"},{"$error":"#VALUE!"},{"$error":"#VALUE!"}]
[null,null,null,null,null,null,null,null,null,null,null,null,null,null,null,null,null,null,null,null,null,null,null,null,null,null,null,null,null,null,null,null,null,2357,0,0,0,0,0,0,0,0,{"$error":"#VALUE!"},{"$error":"#VALUE!"},{"$error":"#VALUE!"}]
[null,null,null,null,null,null,null,null,null,null,null,null,null,null,null,null,null,null,null,null,null,null,null,null,null,null,null,null,null,null,null,null,null,2367,0,0,0,0,0,0,0,0,{"$error":"#VALUE!"},{"$error":"#VALUE!"},{"$error":"#VALUE!"}]
[null,null,null,null,null,null,null,null,null,null,null,null,null,null,null,null,null,null,null,null,null,null,null,null,null,null,null,null,null,null,null,null,null,2378,0,0,0,0,0,0,0,0,{"$error":"#VALUE!"},{"$error":"#VALUE!"},{"$error":"#VALUE!"}]
[null,null,null,null,null,null,null,null,null,null,null,null,null,null,null,null,null,null,null,null,null,null,null,null,null,null,null,null,null,null,null,null,null,2389,0,0,0,0,0,0,0,0,{"$error":"#VALUE!"},{"$error":"#VALUE!"},{"$error":"#VALUE!"}]
[null,null,null,null,null,null,null,null,null,null,null,null,null,null,null,null,null,null,null,null,null,null,null,null,null,null,null,null,null,null,null,null,null,2404,0,0,0,0,0,0,0,0,{"$error":"#VALUE!"},{"$error":"#VALUE!"},{"$error":"#VALUE!"}]
[null,null,null,null,null,null,null,null,null,null,null,null,null,null,null,null,null,null,null,null,null,null,null,null,null,null,null,null,null,null,null,null,null,2418,0,0,0,0,0,0,0,0,{"$error":"#VALUE!"},{"$error":"#VALUE!"},{"$error":"#VALUE!"}]
[null,null,null,null,null,null,null,null,null,null,null,null,null,null,null,null,null,null,null,null,null,null,null,null,null,null,null,null,null,null,null,null,null,2421,0,0,0,0,0,0,0,0,{"$error":"#VALUE!"},{"$error":"#VALUE!"},{"$error":"#VALUE!"}]
[null,null,null,null,null,null,null,null,null,null,null,null,null,null,null,null,null,null,null,null,null,null,null,null,null,null,null,null,null,null,null,null,null,2436,0,0,0,0,0,0,0,0,{"$error":"#VALUE!"},{"$error":"#VALUE!"},{"$error":"#VALUE!"}]
[null,null,null,null,null,null,null,null,null,null,null,null,null,null,null,null,null,null,null,null,null,null,null,null,null,null,null,null,null,null,null,null,null,2449,0,0,0,0,0,0,0,0,{"$error":"#VALUE!"},{"$error":"#VALUE!"},{"$error":"#VALUE!"}]
[null,null,null,null,null,null,null,null,null,null,null,null,null,null,null,null,null,null,null,null,null,null,null,null,null,null,null,null,null,null,null,null,null,2453,0,0,0,0,0,0,0,0,{"$error":"#VALUE!"},{"$error":"#VALUE!"},{"$error":"#VALUE!"}]
[null,null,null,null,null,null,null,null,null,null,null,null,null,null,null,null,null,null,null,null,null,null,null,null,null,null,null,null,null,null,null,null,null,2468,0,0,0,0,0,0,0,0,{"$error":"#VALUE!"},{"$error":"#VALUE!"},{"$error":"#VALUE!"}]
[null,null,null,null,null,null,null,null,null,null,null,null,null,null,null,null,null,null,null,null,null,null,null,null,null,null,null,null,null,null,null,null,null,2479,0,0,0,0,0,0,0,0,{"$error":"#VALUE!"},{"$error":"#VALUE!"},{"$error":"#VALUE!"}]
[null,null,null,null,null,null,null,null,null,null,null,null,null,null,null,null,null,null,null,null,null,null,null,null,null,null,null,null,null,null,null,null,null,2485,0,0,0,0,0,0,0,0,{"$error":"#VALUE!"},{"$error":"#VALUE!"},{"$error":"#VALUE!"}]
[null,null,null,null,null,null,null,null,null,null,null,null,null,null,null,null,null,null,null,null,null,null,null,null,null,null,null,null,null,null,null,null,null,2496,0,0,{"$f":"IF(AI2499=1,0,IF(AND(AH2499>$C$42,AH2499<=$D$42),1,0))","v":0},0,0,0,0,0,{"$error":"#VALUE!"},{"$error":"#VALUE!"},{"$error":"#VALUE!"}]
[null,null,null,null,null,null,null,null,null,null,null,null,null,null,null,null,null,null,null,null,null,null,null,null,null,null,null,null,null,null,null,null,null,2501,0,0,0,0,0,0,0,0,{"$error":"#VALUE!"},{"$error":"#VALUE!"},{"$error":"#VALUE!"}]
[null,null,null,null,null,null,null,null,null,null,null,null,null,null,null,null,null,null,null,null,null,null,null,null,null,null,null,null,null,null,null,null,null,2516,0,0,0,0,0,0,0,0,{"$error":"#VALUE!"},{"$error":"#VALUE!"},{"$error":"#VALUE!"}]
[null,null,null,null,null,null,null,null,null,null,null,null,null,null,null,null,null,null,null,null,null,null,null,null,null,null,null,null,null,null,null,null,null,2525,0,0,0,0,0,0,0,0,{"$error":"#VALUE!"},{"$error":"#VALUE!"},{"$error":"#VALUE!"}]
[null,null,null,null,null,null,null,null,null,null,null,null,null,null,null,null,null,null,null,null,null,null,null,null,null,null,null,null,null,null,null,null,null,2533,0,0,0,0,0,0,0,0,{"$error":"#VALUE!"},{"$error":"#VALUE!"},{"$error":"#VALUE!"}]
[null,null,null,null,null,null,null,null,null,null,null,null,null,null,null,null,null,null,null,null,null,null,null,null,null,null,null,null,null,null,null,null,null,2544,0,0,0,0,0,0,0,0,{"$error":"#VALUE!"},{"$error":"#VALUE!"},{"$error":"#VALUE!"}]
[null,null,null,null,null,null,null,null,null,null,null,null,null,null,null,null,null,null,null,null,null,null,null,null,null,null,null,null,null,null,null,null,null,2556,0,0,0,0,0,0,0,0,{"$error":"#VALUE!"},{"$error":"#VALUE!"},{"$error":"#VALUE!"}]
[null,null,null,null,null,null,null,null,null,null,null,null,null,null,null,null,null,null,null,null,null,null,null,null,null,null,null,null,null,null,null,null,null,2565,0,0,0,0,0,0,0,0,{"$error":"#VALUE!"},{"$error":"#VALUE!"},{"$error":"#VALUE!"}]
[null,null,null,null,null,null,null,null,null,null,null,null,null,null,null,null,null,null,null,null,null,null,null,null,null,null,null,null,null,null,null,null,null,2576,0,0,0,0,0,0,0,0,{"$error":"#VALUE!"},{"$error":"#VALUE!"},{"$error":"#VALUE!"}]
[null,null,null,null,null,null,null,null,null,null,null,null,null,null,null,null,null,null,null,null,null,null,null,null,null,null,null,null,null,null,null,null,null,2591,0,0,0,0,0,0,0,0,{"$error":"#VALUE!"},{"$error":"#VALUE!"},{"$error":"#VALUE!"}]
[null,null,null,null,null,null,null,null,null,null,null,null,null,null,null,null,null,null,null,null,null,null,null,null,null,null,null,null,null,null,null,null,null,2603,0,0,0,0,0,0,0,0,{"$error":"#VALUE!"},{"$error":"#VALUE!"},{"$error":"#VALUE!"}]
[null,null,null,null,null,null,null,null,null,null,null,null,null,null,null,null,null,null,null,null,null,null,null,null,null,null,null,null,null,null,null,null,null,2608,0,0,0,0,0,0,0,0,{"$error":"#VALUE!"},{"$error":"#VALUE!"},{"$error":"#VALUE!"}]
[null,null,null,null,null,null,null,null,null,null,null,null,null,null,null,null,null,null,null,null,null,null,null,null,null,null,null,null,null,null,null,null,null,2623,0,0,0,0,0,0,0,0,{"$error":"#VALUE!"},{"$error":"#VALUE!"},{"$error":"#VALUE!"}]
[null,null,null,null,null,null,null,null,null,null,null,null,null,null,null,null,null,null,null,null,null,null,null,null,null,null,null,null,null,null,null,null,null,2624,0,0,{"$f":"IF(AI2627=1,0,IF(AND(AH2627>$C$42,AH2627<=$D$42),1,0))","v":0},0,0,0,0,0,{"$error":"#VALUE!"},{"$error":"#VALUE!"},{"$error":"#VALUE!"}]
[null,null,null,null,null,null,null,null,null,null,null,null,null,null,null,null,null,null,null,null,null,null,null,null,null,null,null,null,null,null,null,null,null,2643,0,0,0,0,0,0,0,0,{"$error":"#VALUE!"},{"$error":"#VALUE!"},{"$error":"#VALUE!"}]
[null,null,null,null,null,null,null,null,null,null,null,null,null,null,null,null,null,null,null,null,null,null,null,null,null,null,null,null,null,null,null,null,null,2645,0,0,0,0,0,0,0,0,{"$error":"#VALUE!"},{"$error":"#VALUE!"},{"$error":"#VALUE!"}]
[null,null,null,null,null,null,null,null,null,null,null,null,null,null,null,null,null,null,null,null,null,null,null,null,null,null,null,null,null,null,null,null,null,2656,0,0,0,0,0,0,0,0,{"$error":"#VALUE!"},{"$error":"#VALUE!"},{"$error":"#VALUE!"}]
[null,null,null,null,null,null,null,null,null,null,null,null,null,null,null,null,null,null,null,null,null,null,null,null,null,null,null,null,null,null,null,null,null,2674,0,0,0,0,0,0,0,0,{"$error":"#VALUE!"},{"$error":"#VALUE!"},{"$error":"#VALUE!"}]
[null,null,null,null,null,null,null,null,null,null,null,null,null,null,null,null,null,null,null,null,null,null,null,null,null,null,null,null,null,null,null,null,null,2677,0,0,0,0,0,0,0,0,{"$error":"#VALUE!"},{"$error":"#VALUE!"},{"$error":"#VALUE!"}]
[null,null,null,null,null,null,null,null,null,null,null,null,null,null,null,null,null,null,null,null,null,null,null,null,null,null,null,null,null,null,null,null,null,2688,0,0,{"$f":"IF(AI2691=1,0,IF(AND(AH2691>$C$42,AH2691<=$D$42),1,0))","v":0},0,0,0,0,0,{"$error":"#VALUE!"},{"$error":"#VALUE!"},{"$error":"#VALUE!"}]
[null,null,null,null,null,null,null,null,null,null,null,null,null,null,null,null,null,null,null,null,null,null,null,null,null,null,null,null,null,null,null,null,null,2703,0,0,0,0,0,0,0,0,{"$error":"#VALUE!"},{"$error":"#VALUE!"},{"$error":"#VALUE!"}]
[null,null,null,null,null,null,null,null,null,null,null,null,null,null,null,null,null,null,null,null,null,null,null,null,null,null,null,null,null,null,null,null,null,2714,0,0,0,0,0,0,0,0,{"$error":"#VALUE!"},{"$error":"#VALUE!"},{"$error":"#VALUE!"}]
[null,null,null,null,null,null,null,null,null,null,null,null,null,null,null,null,null,null,null,null,null,null,null,null,null,null,null,null,null,null,null,null,null,2720,0,0,0,0,0,0,0,0,{"$error":"#VALUE!"},{"$error":"#VALUE!"},{"$error":"#VALUE!"}]
[null,null,null,null,null,null,null,null,null,null,null,null,null,null,null,null,null,null,null,null,null,null,null,null,null,null,null,null,null,null,null,null,null,2735,0,0,0,0,0,0,0,0,{"$error":"#VALUE!"},{"$error":"#VALUE!"},{"$error":"#VALUE!"}]
[null,null,null,null,null,null,null,null,null,null,null,null,null,null,null,null,null,null,null,null,null,null,null,null,null,null,null,null,null,null,null,null,null,2745,0,0,0,0,0,0,0,0,{"$error":"#VALUE!"},{"$error":"#VALUE!"},{"$error":"#VALUE!"}]
[null,null,null,null,null,null,null,null,null,null,null,null,null,null,null,null,null,null,null,null,null,null,null,null,null,null,null,null,null,null,null,null,null,2752,0,0,{"$f":"IF(AI2755=1,0,IF(AND(AH2755>$C$42,AH2755<=$D$42),1,0))","v":0},0,0,0,0,0,{"$error":"#VALUE!"},{"$error":"#VALUE!"},{"$error":"#VALUE!"}]
[null,null,null,null,null,null,null,null,null,null,null,null,null,null,null,null,null,null,null,null,null,null,null,null,null,null,null,null,null,null,null,null,null,2763,0,0,0,0,0,0,0,0,{"$error":"#VALUE!"},{"$error":"#VALUE!"},{"$error":"#VALUE!"}]
[null,null,null,null,null,null,null,null,null,null,null,null,null,null,null,null,null,null,null,null,null,null,null,null,null,null,null,null,null,null,null,null,null,2768,0,0,0,0,0,0,0,0,{"$error":"#VALUE!"},{"$error":"#VALUE!"},{"$error":"#VALUE!"}]
[null,null,null,null,null,null,null,null,null,null,null,null,null,null,null,null,null,null,null,null,null,null,null,null,null,null,null,null,null,null,null,null,null,2781,0,0,0,0,0,0,0,0,{"$error":"#VALUE!"},{"$error":"#VALUE!"},{"$error":"#VALUE!"}]
[null,null,null,null,null,null,null,null,null,null,null,null,null,null,null,null,null,null,null,null,null,null,null,null,null,null,null,null,null,null,null,null,null,2795,0,0,0,0,0,0,0,0,{"$error":"#VALUE!"},{"$error":"#VALUE!"},{"$error":"#VALUE!"}]
[null,null,null,null,null,null,null,null,null,null,null,null,null,null,null,null,null,null,null,null,null,null,null,null,null,null,null,null,null,null,null,null,null,2800,0,0,0,0,0,0,0,0,{"$error":"#VALUE!"},{"$error":"#VALUE!"},{"$error":"#VALUE!"}]
[null,null,null,null,null,null,null,null,null,null,null,null,null,null,null,null,null,null,null,null,null,null,null,null,null,null,null,null,null,null,null,null,null,2815,0,0,0,0,0,0,0,0,{"$error":"#VALUE!"},{"$error":"#VALUE!"},{"$error":"#VALUE!"}]
[null,null,null,null,null,null,null,null,null,null,null,null,null,null,null,null,null,null,null,null,null,null,null,null,null,null,null,null,null,null,null,null,null,2821,0,0,0,0,0,0,0,0,{"$error":"#VALUE!"},{"$error":"#VALUE!"},{"$error":"#VALUE!"}]
[null,null,null,null,null,null,null,null,null,null,null,null,null,null,null,null,null,null,null,null,null,null,null,null,null,null,null,null,null,null,null,null,null,2832,0,0,0,0,0,0,0,0,{"$error":"#VALUE!"},{"$error":"#VALUE!"},{"$error":"#VALUE!"}]
[null,null,null,null,null,null,null,null,null,null,null,null,null,null,null,null,null,null,null,null,null,null,null,null,null,null,null,null,null,null,null,null,null,2843,0,0,0,0,0,0,0,0,{"$error":"#VALUE!"},{"$error":"#VALUE!"},{"$error":"#VALUE!"}]
[null,null,null,null,null,null,null,null,null,null,null,null,null,null,null,null,null,null,null,null,null,null,null,null,null,null,null,null,null,null,null,null,null,2852,0,0,0,0,0,0,0,0,{"$error":"#VALUE!"},{"$error":"#VALUE!"},{"$error":"#VALUE!"}]
[null,null,null,null,null,null,null,null,null,null,null,null,null,null,null,null,null,null,null,null,null,null,null,null,null,null,null,null,null,null,null,null,null,2864,0,0,0,0,0,0,0,0,{"$error":"#VALUE!"},{"$error":"#VALUE!"},{"$error":"#VALUE!"}]
[null,null,null,null,null,null,null,null,null,null,null,null,null,null,null,null,null,null,null,null,null,null,null,null,null,null,null,null,null,null,null,null,null,2875,0,0,0,0,0,0,0,0,{"$error":"#VALUE!"},{"$error":"#VALUE!"},{"$error":"#VALUE!"}]
[null,null,null,null,null,null,null,null,null,null,null,null,null,null,null,null,null,null,null,null,null,null,null,null,null,null,null,null,null,null,null,null,null,2890,0,0,0,0,0,0,0,0,{"$error":"#VALUE!"},{"$error":"#VALUE!"},{"$error":"#VALUE!"}]
[null,null,null,null,null,null,null,null,null,null,null,null,null,null,null,null,null,null,null,null,null,null,null,null,null,null,null,null,null,null,null,null,null,2899,0,0,0,0,0,0,0,0,{"$error":"#VALUE!"},{"$error":"#VALUE!"},{"$error":"#VALUE!"}]
[null,null,null,null,null,null,null,null,null,null,null,null,null,null,null,null,null,null,null,null,null,null,null,null,null,null,null,null,null,null,null,null,null,2907,0,0,0,0,0,0,0,0,{"$error":"#VALUE!"},{"$error":"#VALUE!"},{"$error":"#VALUE!"}]
[null,null,null,null,null,null,null,null,null,null,null,null,null,null,null,null,null,null,null,null,null,null,null,null,null,null,null,null,null,null,null,null,null,2912,0,0,0,0,0,0,0,0,{"$error":"#VALUE!"},{"$error":"#VALUE!"},{"$error":"#VALUE!"}]
[null,null,null,null,null,null,null,null,null,null,null,null,null,null,null,null,null,null,null,null,null,null,null,null,null,null,null,null,null,null,null,null,null,2923,0,0,0,0,0,0,0,0,{"$error":"#VALUE!"},{"$error":"#VALUE!"},{"$error":"#VALUE!"}]
[null,null,null,null,null,null,null,null,null,null,null,null,null,null,null,null,null,null,null,null,null,null,null,null,null,null,null,null,null,null,null,null,null,2939,0,0,0,0,0,0,0,0,{"$error":"#VALUE!"},{"$error":"#VALUE!"},{"$error":"#VALUE!"}]
[null,null,null,null,null,null,null,null,null,null,null,null,null,null,null,null,null,null,null,null,null,null,null,null,null,null,null,null,null,null,null,null,null,2944,0,0,{"$f":"IF(AI2947=1,0,IF(AND(AH2947>$C$42,AH2947<=$D$42),1,0))","v":0},0,0,0,0,0,{"$error":"#VALUE!"},{"$error":"#VALUE!"},{"$error":"#VALUE!"}]
[null,null,null,null,null,null,null,null,null,null,null,null,null,null,null,null,null,null,null,null,null,null,null,null,null,null,null,null,null,null,null,null,null,2955,0,0,0,0,0,0,0,0,{"$error":"#VALUE!"},{"$error":"#VALUE!"},{"$error":"#VALUE!"}]
[null,null,null,null,null,null,null,null,null,null,null,null,null,null,null,null,null,null,null,null,null,null,null,null,null,null,null,null,null,null,null,null,null,2970,0,0,0,0,0,0,0,0,{"$error":"#VALUE!"},{"$error":"#VALUE!"},{"$error":"#VALUE!"}]
[null,null,null,null,null,null,null,null,null,null,null,null,null,null,null,null,null,null,null,null,null,null,null,null,null,null,null,null,null,null,null,null,null,2982,0,0,0,0,0,0,0,0,{"$error":"#VALUE!"},{"$error":"#VALUE!"},{"$error":"#VALUE!"}]
[null,null,null,null,null,null,null,null,null,null,null,null,null,null,null,null,null,null,null,null,null,null,null,null,null,null,null,null,null,null,null,null,null,2987,0,0,0,0,0,0,0,0,{"$error":"#VALUE!"},{"$error":"#VALUE!"},{"$error":"#VALUE!"}]
[null,null,null,null,null,null,null,null,null,null,null,null,null,null,null,null,null,null,null,null,null,null,null,null,null,null,null,null,null,null,null,null,null,3002,0,0,0,0,0,0,0,0,{"$error":"#VALUE!"},{"$error":"#VALUE!"},{"$error":"#VALUE!"}]
[null,null,null,null,null,null,null,null,null,null,null,null,null,null,null,null,null,null,null,null,null,null,null,null,null,null,null,null,null,null,null,null,null,{"$f":"AH3012+1","v":3010},0,0,0,{"$f":"$E$42*((AH3013/60)^-$F$42*AH3013/60*AK3013)","v":0},0,{"$f":"$E$42*(AH3013/60)^-$F$42*AH3013/60*AM3013","v":0},0,0,{"$error":"#VALUE!"},{"$error":"#VALUE!"},{"$error":"#VALUE!"}]
[null,null,null,null,null,null,null,null,null,null,null,null,null,null,null,null,null,null,null,null,null,null,null,null,null,null,null,null,null,null,null,null,null,3019,0,0,0,0,0,0,0,0,{"$error":"#VALUE!"},{"$error":"#VALUE!"},{"$error":"#VALUE!"}]
[null,null,null,null,null,null,null,null,null,null,null,null,null,null,null,null,null,null,null,null,null,null,null,null,null,null,null,null,null,null,null,null,null,3034,0,0,0,0,0,0,0,0,{"$error":"#VALUE!"},{"$error":"#VALUE!"},{"$error":"#VALUE!"}]
[null,null,null,null,null,null,null,null,null,null,null,null,null,null,null,null,null,null,null,null,null,null,null,null,null,null,null,null,null,null,null,null,null,3035,0,0,0,0,0,0,0,0,{"$error":"#VALUE!"},{"$error":"#VALUE!"},{"$error":"#VALUE!"}]
[null,null,null,null,null,null,null,null,null,null,null,null,null,null,null,null,null,null,null,null,null,null,null,null,null,null,null,null,null,null,null,null,null,3046,0,0,0,0,0,0,0,0,{"$error":"#VALUE!"},{"$error":"#VALUE!"},{"$error":"#VALUE!"}]
[null,null,null,null,null,null,null,null,null,null,null,null,null,null,null,null,null,null,null,null,null,null,null,null,null,null,null,null,null,null,null,null,null,3062,0,0,0,0,0,0,0,0,{"$error":"#VALUE!"},{"$error":"#VALUE!"},{"$error":"#VALUE!"}]
[null,null,null,null,null,null,null,null,null,null,null,null,null,null,null,null,null,null,null,null,null,null,null,null,null,null,null,null,null,null,null,null,null,3067,0,0,0,0,0,0,0,0,{"$error":"#VALUE!"},{"$error":"#VALUE!"},{"$error":"#VALUE!"}]
[null,null,null,null,null,null,null,null,null,null,null,null,null,null,null,null,null,null,null,null,null,null,null,null,null,null,null,null,null,null,null,null,null,3077,0,0,0,0,0,0,0,0,{"$error":"#VALUE!"},{"$error":"#VALUE!"},{"$error":"#VALUE!"}]
[null,null,null,null,null,null,null,null,null,null,null,null,null,null,null,null,null,null,null,null,null,null,null,null,null,null,null,null,null,null,null,null,null,3094,0,0,0,0,0,0,0,0,{"$error":"#VALUE!"},{"$error":"#VALUE!"},{"$error":"#VALUE!"}]
[null,null,null,null,null,null,null,null,null,null,null,null,null,null,null,null,null,null,null,null,null,null,null,null,null,null,null,null,null,null,null,null,null,3099,0,0,0,0,0,0,0,0,{"$error":"#VALUE!"},{"$error":"#VALUE!"},{"$error":"#VALUE!"}]
[null,null,null,null,null,null,null,null,null,null,null,null,null,null,null,null,null,null,null,null,null,null,null,null,null,null,null,null,null,null,null,null,null,3110,0,0,0,0,0,0,0,0,{"$error":"#VALUE!"},{"$error":"#VALUE!"},{"$error":"#VALUE!"}]
[null,null,null,null,null,null,null,null,null,null,null,null,null,null,null,null,null,null,null,null,null,null,null,null,null,null,null,null,null,null,null,null,null,3117,0,0,0,0,0,0,0,0,{"$error":"#VALUE!"},{"$error":"#VALUE!"},{"$error":"#VALUE!"}]
[null,null,null,null,null,null,null,null,null,null,null,null,null,null,null,null,null,null,null,null,null,null,null,null,null,null,null,null,null,null,null,null,null,3131,0,0,0,0,0,0,0,0,{"$error":"#VALUE!"},{"$error":"#VALUE!"},{"$error":"#VALUE!"}]
[null,null,null,null,null,null,null,null,null,null,null,null,null,null,null,null,null,null,null,null,null,null,null,null,null,null,null,null,null,null,null,null,null,3142,0,0,0,0,0,0,0,0,{"$error":"#VALUE!"},{"$error":"#VALUE!"},{"$error":"#VALUE!"}]
[null,null,null,null,null,null,null,null,null,null,null,null,null,null,null,null,null,null,null,null,null,null,null,null,null,null,null,null,null,null,null,null,null,3157,0,0,0,0,0,0,0,0,{"$error":"#VALUE!"},{"$error":"#VALUE!"},{"$error":"#VALUE!"}]
[null,null,null,null,null,null,null,null,null,null,null,null,null,null,null,null,null,null,null,null,null,null,null,null,null,null,null,null,null,null,null,null,null,3164,0,0,0,0,0,0,0,0,{"$error":"#VALUE!"},{"$error":"#VALUE!"},{"$error":"#VALUE!"}]
[null,null,null,null,null,null,null,null,null,null,null,null,null,null,null,null,null,null,null,null,null,null,null,null,null,null,null,null,null,null,null,null,null,3174,0,0,0,0,0,0,0,0,{"$error":"#VALUE!"},{"$error":"#VALUE!"},{"$error":"#VALUE!"}]
[null,null,null,null,null,null,null,null,null,null,null,null,null,null,null,null,null,null,null,null,null,null,null,null,null,null,null,null,null,null,null,null,null,3179,0,0,0,0,0,0,0,0,{"$error":"#VALUE!"},{"$error":"#VALUE!"},{"$error":"#VALUE!"}]
[null,null,null,null,null,null,null,null,null,null,null,null,null,null,null,null,null,null,null,null,null,null,null,null,null,null,null,null,null,null,null,null,null,3199,0,0,0,0,0,0,0,0,{"$error":"#VALUE!"},{"$error":"#VALUE!"},{"$error":"#VALUE!"}]
[null,null,null,null,null,null,null,null,null,null,null,null,null,null,null,null,null,null,null,null,null,null,null,null,null,null,null,null,null,null,null,null,null,3206,0,0,0,0,0,0,0,0,{"$error":"#VALUE!"},{"$error":"#VALUE!"},{"$error":"#VALUE!"}]
[null,null,null,null,null,null,null,null,null,null,null,null,null,null,null,null,null,null,null,null,null,null,null,null,null,null,null,null,null,null,null,null,null,3211,0,0,0,0,0,0,0,0,{"$error":"#VALUE!"},{"$error":"#VALUE!"},{"$error":"#VALUE!"}]
[null,null,null,null,null,null,null,null,null,null,null,null,null,null,null,null,null,null,null,null,null,null,null,null,null,null,null,null,null,null,null,null,null,3222,0,0,0,0,0,0,0,0,{"$error":"#VALUE!"},{"$error":"#VALUE!"},{"$error":"#VALUE!"}]
[null,null,null,null,null,null,null,null,null,null,null,null,null,null,null,null,null,null,null,null,null,null,null,null,null,null,null,null,null,null,null,null,null,3235,0,0,0,0,0,0,0,0,{"$error":"#VALUE!"},{"$error":"#VALUE!"},{"$error":"#VALUE!"}]
[null,null,null,null,null,null,null,null,null,null,null,null,null,null,null,null,null,null,null,null,null,null,null,null,null,null,null,null,null,null,null,null,null,3243,0,0,0,0,0,0,0,0,{"$error":"#VALUE!"},{"$error":"#VALUE!"},{"$error":"#VALUE!"}]
[null,null,null,null,null,null,null,null,null,null,null,null,null,null,null,null,null,null,null,null,null,null,null,null,null,null,null,null,null,null,null,null,null,3254,0,0,0,0,0,0,0,0,{"$error":"#VALUE!"},{"$error":"#VALUE!"},{"$error":"#VALUE!"}]
[null,null,null,null,null,null,null,null,null,null,null,null,null,null,null,null,null,null,null,null,null,null,null,null,null,null,null,null,null,null,null,null,null,3269,0,0,0,0,0,0,0,0,{"$error":"#VALUE!"},{"$error":"#VALUE!"},{"$error":"#VALUE!"}]
[null,null,null,null,null,null,null,null,null,null,null,null,null,null,null,null,null,null,null,null,null,null,null,null,null,null,null,null,null,null,null,null,null,3275,0,0,0,0,0,0,0,0,{"$error":"#VALUE!"},{"$error":"#VALUE!"},{"$error":"#VALUE!"}]
[null,null,null,null,null,null,null,null,null,null,null,null,null,null,null,null,null,null,null,null,null,null,null,null,null,null,null,null,null,null,null,null,null,3286,0,0,0,0,0,0,0,0,{"$error":"#VALUE!"},{"$error":"#VALUE!"},{"$error":"#VALUE!"}]
[null,null,null,null,null,null,null,null,null,null,null,null,null,null,null,null,null,null,null,null,null,null,null,null,null,null,null,null,null,null,null,null,null,3301,0,0,0,0,0,0,0,0,{"$error":"#VALUE!"},{"$error":"#VALUE!"},{"$error":"#VALUE!"}]
[null,null,null,null,null,null,null,null,null,null,null,null,null,null,null,null,null,null,null,null,null,null,null,null,null,null,null,null,null,null,null,null,null,3306,0,0,0,0,0,0,0,0,{"$error":"#VALUE!"},{"$error":"#VALUE!"},{"$error":"#VALUE!"}]
[null,null,null,null,null,null,null,null,null,null,null,null,null,null,null,null,null,null,null,null,null,null,null,null,null,null,null,null,null,null,null,null,null,3318,0,0,0,0,0,0,0,0,{"$error":"#VALUE!"},{"$error":"#VALUE!"},{"$error":"#VALUE!"}]
[null,null,null,null,null,null,null,null,null,null,null,null,null,null,null,null,null,null,null,null,null,null,null,null,null,null,null,null,null,null,null,null,null,3329,{"$f":"IF(AND(AH3332>$C$41,AH3332<=$D$41),1,0)","v":0},{"$f":"$E$41*(AH3332/60)^-$F$41*AH3332/60*AI3332","v":0},0,0,{"$f":"IF(OR(AI3332=1,AK3332=1),0,IF(AND(AH3332>$C$43,AH3332<=$D$43),1,0))","v":0},0,{"$f":"AJ3332+AL3332+AN3332","v":0},{"$f":"AO3332*$H$17*$H$18/1000","v":0},{"$error":"#VALUE!"},{"$f":"AP3332-AQ3332","v":{"$error":"#VALUE!"}},{"$f":"IF(AR3332=MAX($AR$3:$AR$5762),AH3332,\"\")","v":{"$error":"#VALUE!"}}]
[null,null,null,null,null,null,null,null,null,null,null,null,null,null,null,null,null,null,null,null,null,null,null,null,null,null,null,null,null,null,null,null,null,3334,0,0,0,0,0,0,0,0,{"$error":"#VALUE!"},{"$error":"#VALUE!"},{"$error":"#VALUE!"}]
[null,null,null,null,null,null,null,null,null,null,null,null,null,null,null,null,null,null,null,null,null,null,null,null,null,null,null,null,null,null,null,null,null,3353,0,0,0,0,0,0,0,0,{"$error":"#VALUE!"},{"$error":"#VALUE!"},{"$error":"#VALUE!"}]
[null,null,null,null,null,null,null,null,null,null,null,null,null,null,null,null,null,null,null,null,null,null,null,null,null,null,null,null,null,null,null,null,null,3361,0,0,0,0,0,0,0,0,{"$error":"#VALUE!"},{"$error":"#VALUE!"},{"$error":"#VALUE!"}]
[null,null,null,null,null,null,null,null,null,null,null,null,null,null,null,null,null,null,null,null,null,null,null,null,null,null,null,null,null,null,null,null,null,3366,0,0,0,0,0,0,0,0,{"$error":"#VALUE!"},{"$error":"#VALUE!"},{"$error":"#VALUE!"}]
[null,null,null,null,null,null,null,null,null,null,null,null,null,null,null,null,null,null,null,null,null,null,null,null,null,null,null,null,null,null,null,null,null,3381,0,0,0,0,0,0,0,0,{"$error":"#VALUE!"},{"$error":"#VALUE!"},{"$error":"#VALUE!"}]
[null,null,null,null,null,null,null,null,null,null,null,null,null,null,null,null,null,null,null,null,null,null,null,null,null,null,null,null,null,null,null,null,null,3393,{"$f":"IF(AND(AH3396>$C$41,AH3396<=$D$41),1,0)","v":0},{"$f":"$E$41*(AH3396/60)^-$F$41*AH3396/60*AI3396","v":0},0,0,{"$f":"IF(OR(AI3396=1,AK3396=1),0,IF(AND(AH3396>$C$43,AH3396<=$D$43),1,0))","v":0},0,{"$f":"AJ3396+AL3396+AN3396","v":0},{"$f":"AO3396*$H$17*$H$18/1000","v":0},{"$error":"#VALUE!"},{"$f":"AP3396-AQ3396","v":{"$error":"#VALUE!"}},{"$f":"IF(AR3396=MAX($AR$3:$AR$5762),AH3396,\"\")","v":{"$error":"#VALUE!"}}]
[null,null,null,null,null,null,null,null,null,null,null,null,null,null,null,null,null,null,null,null,null,null,null,null,null,null,null,null,null,null,null,null,null,3398,0,0,0,0,0,0,0,0,{"$error":"#VALUE!"},{"$error":"#VALUE!"},{"$error":"#VALUE!"}]
[null,null,null,null,null,null,null,null,null,null,null,null,null,null,null,null,null,null,null,null,null,null,null,null,null,null,null,null,null,null,null,null,null,3409,0,0,0,0,0,0,0,0,{"$error":"#VALUE!"},{"$error":"#VALUE!"},{"$error":"#VALUE!"}]
[null,null,null,null,null,null,null,null,null,null,null,null,null,null,null,null,null,null,null,null,null,null,null,null,null,null,null,null,null,null,null,null,null,3424,0,0,0,0,0,0,0,0,{"$error":"#VALUE!"},{"$error":"#VALUE!"},{"$error":"#VALUE!"}]
[null,null,null,null,null,null,null,null,null,null,null,null,null,null,null,null,null,null,null,null,null,null,null,null,null,null,null,null,null,null,null,null,null,3430,0,0,0,0,0,0,0,0,{"$error":"#VALUE!"},{"$error":"#VALUE!"},{"$error":"#VALUE!"}]
[null,null,null,null,null,null,null,null,null,null,null,null,null,null,null,null,null,null,null,null,null,null,null,null,null,null,null,null,null,null,null,null,null,3441,0,0,0,0,0,0,0,0,{"$error":"#VALUE!"},{"$error":"#VALUE!"},{"$error":"#VALUE!"}]
[null,null,null,null,null,null,null,null,null,null,null,null,null,null,null,null,null,null,null,null,null,null,null,null,null,null,null,null,null,null,null,null,null,3446,0,0,0,0,0,0,0,0,{"$error":"#VALUE!"},{"$error":"#VALUE!"},{"$error":"#VALUE!"}]
[null,null,null,null,null,null,null,null,null,null,null,null,null,null,null,null,null,null,null,null,null,null,null,null,null,null,null,null,null,null,null,null,null,3464,0,0,0,0,0,0,0,0,{"$error":"#VALUE!"},{"$error":"#VALUE!"},{"$error":"#VALUE!"}]
[null,null,null,null,null,null,null,null,null,null,null,null,null,null,null,null,null,null,null,null,null,null,null,null,null,null,null,null,null,null,null,null,null,3473,0,0,0,0,0,0,0,0,{"$error":"#VALUE!"},{"$error":"#VALUE!"},{"$error":"#VALUE!"}]
[null,null,null,null,null,null,null,null,null,null,null,null,null,null,null,null,null,null,null,null,null,null,null,null,null,null,null,null,null,null,null,null,null,3478,0,0,0,0,0,0,0,0,{"$error":"#VALUE!"},{"$error":"#VALUE!"},{"$error":"#VALUE!"}]
[null,null,null,null,null,null,null,null,null,null,null,null,null,null,null,null,null,null,null,null,null,null,null,null,null,null,null,null,null,null,null,null,null,3495,0,0,0,0,0,0,0,0,{"$error":"#VALUE!"},{"$error":"#VALUE!"},{"$error":"#VALUE!"}]
[null,null,null,null,null,null,null,null,null,null,null,null,null,null,null,null,null,null,null,null,null,null,null,null,null,null,null,null,null,null,null,null,null,3505,0,0,0,0,0,0,0,0,{"$error":"#VALUE!"},{"$error":"#VALUE!"},{"$error":"#VALUE!"}]
[null,null,null,null,null,null,null,null,null,null,null,null,null,null,null,null,null,null,null,null,null,null,null,null,null,null,null,null,null,null,null,null,null,3510,0,0,0,0,0,0,0,0,{"$error":"#VALUE!"},{"$error":"#VALUE!"},{"$error":"#VALUE!"}]
[null,null,null,null,null,null,null,null,null,null,null,null,null,null,null,null,null,null,null,null,null,null,null,null,null,null,null,null,null,null,null,null,null,3521,{"$f":"IF(AND(AH3524>$C$41,AH3524<=$D$41),1,0)","v":0},{"$f":"$E$41*(AH3524/60)^-$F$41*AH3524/60*AI3524","v":0},0,0,{"$f":"IF(OR(AI3524=1,AK3524=1),0,IF(AND(AH3524>$C$43,AH3524<=$D$43),1,0))","v":0},0,{"$f":"AJ3524+AL3524+AN3524","v":0},{"$f":"AO3524*$H$17*$H$18/1000","v":0},{"$error":"#VALUE!"},{"$f":"AP3524-AQ3524","v":{"$error":"#VALUE!"}},{"$f":"IF(AR3524=MAX($AR$3:$AR$5762),AH3524,\"\")","v":{"$error":"#VALUE!"}}]
[null,null,null,null,null,null,null,null,null,null,null,null,null,null,null,null,null,null,null,null,null,null,null,null,null,null,null,null,null,null,null,null,null,3531,0,0,0,0,0,0,0,0,{"$error":"#VALUE!"},{"$error":"#VALUE!"},{"$error":"#VALUE!"}]
[null,null,null,null,null,null,null,null,null,null,null,null,null,null,null,null,null,null,null,null,null,null,null,null,null,null,null,null,null,null,null,null,null,3548,0,0,0,0,0,0,0,0,{"$error":"#VALUE!"},{"$error":"#VALUE!"},{"$error":"#VALUE!"}]
[null,null,null,null,null,null,null,null,null,null,null,null,null,null,null,null,null,null,null,null,null,null,null,null,null,null,null,null,null,null,null,null,null,3553,0,0,0,0,0,0,0,0,{"$error":"#VALUE!"},{"$error":"#VALUE!"},{"$error":"#VALUE!"}]
[null,null,null,null,null,null,null,null,null,null,null,null,null,null,null,null,null,null,null,null,null,null,null,null,null,null,null,null,null,null,null,null,null,3568,0,0,0,0,0,0,0,0,{"$error":"#VALUE!"},{"$error":"#VALUE!"},{"$error":"#VALUE!"}]
[null,null,null,null,null,null,null,null,null,null,null,null,null,null,null,null,null,null,null,null,null,null,null,null,null,null,null,null,null,null,null,null,null,3571,0,0,0,0,0,0,0,0,{"$error":"#VALUE!"},{"$error":"#VALUE!"},{"$error":"#VALUE!"}]
[null,null,null,null,null,null,null,null,null,null,null,null,null,null,null,null,null,null,null,null,null,null,null,null,null,null,null,null,null,null,null,null,null,3585,{"$f":"IF(AND(AH3588>$C$41,AH3588<=$D$41),1,0)","v":0},{"$f":"$E$41*(AH3588/60)^-$F$41*AH3588/60*AI3588","v":0},0,0,{"$f":"IF(OR(AI3588=1,AK3588=1),0,IF(AND(AH3588>$C$43,AH3588<=$D$43),1,0))","v":0},0,{"$f":"AJ3588+AL3588+AN3588","v":0},{"$f":"AO3588*$H$17*$H$18/1000","v":0},{"$error":"#VALUE!"},{"$f":"AP3588-AQ3588","v":{"$error":"#VALUE!"}},{"$f":"IF(AR3588=MAX($AR$3:$AR$5762),AH3588,\"\")","v":{"$error":"#VALUE!"}}]
[null,null,null,null,null,null,null,null,null,null,null,null,null,null,null,null,null,null,null,null,null,null,null,null,null,null,null,null,null,null,null,null,null,3590,0,0,0,0,0,0,0,0,{"$error":"#VALUE!"},{"$error":"#VALUE!"},{"$error":"#VALUE!"}]
[null,null,null,null,null,null,null,null,null,null,null,null,null,null,null,null,null,null,null,null,null,null,null,null,null,null,null,null,null,null,null,null,null,3602,0,0,0,0,0,0,0,0,{"$error":"#VALUE!"},{"$error":"#VALUE!"},{"$error":"#VALUE!"}]
[null,null,null,null,null,null,null,null,null,null,null,null,null,null,null,null,null,null,null,null,null,null,null,null,null,null,null,null,null,null,null,null,null,3617,0,0,0,0,0,0,0,0,{"$error":"#VALUE!"},{"$error":"#VALUE!"},{"$error":"#VALUE!"}]
[null,null,null,null,null,null,null,null,null,null,null,null,null,null,null,null,null,null,null,null,null,null,null,null,null,null,null,null,null,null,null,null,null,3628,0,0,0,0,0,0,0,0,{"$error":"#VALUE!"},{"$error":"#VALUE!"},{"$error":"#VALUE!"}]
[null,null,null,null,null,null,null,null,null,null,null,null,null,null,null,null,null,null,null,null,null,null,null,null,null,null,null,null,null,null,null,null,null,3633,0,0,0,0,0,0,0,0,{"$error":"#VALUE!"},{"$error":"#VALUE!"},{"$error":"#VALUE!"}]
[null,null,null,null,null,null,null,null,null,null,null,null,null,null,null,null,null,null,null,null,null,null,null,null,null,null,null,null,null,null,null,null,null,3649,{"$f":"IF(AND(AH3652>$C$41,AH3652<=$D$41),1,0)","v":0},{"$f":"$E$41*(AH3652/60)^-$F$41*AH3652/60*AI3652","v":0},0,0,{"$f":"IF(OR(AI3652=1,AK3652=1),0,IF(AND(AH3652>$C$43,AH3652<=$D$43),1,0))","v":0},0,{"$f":"AJ3652+AL3652+AN3652","v":0},{"$f":"AO3652*$H$17*$H$18/1000","v":0},{"$error":"#VALUE!"},{"$f":"AP3652-AQ3652","v":{"$error":"#VALUE!"}},{"$f":"IF(AR3652=MAX($AR$3:$AR$5762),AH3652,\"\")","v":{"$error":"#VALUE!"}}]
[null,null,null,null,null,null,null,null,null,null,null,null,null,null,null,null,null,null,null,null,null,null,null,null,null,null,null,null,null,null,null,null,null,3660,0,0,0,0,0,0,0,0,{"$error":"#VALUE!"},{"$error":"#VALUE!"},{"$error":"#VALUE!"}]
[null,null,null,null,null,null,null,null,null,null,null,null,null,null,null,null,null,null,null,null,null,null,null,null,null,null,null,null,null,null,null,null,null,3665,0,0,0,0,0,0,0,0,{"$error":"#VALUE!"},{"$error":"#VALUE!"},{"$error":"#VALUE!"}]
[null,null,null,null,null,null,null,null,null,null,null,null,null,null,null,null,null,null,null,null,null,null,null,null,null,null,null,null,null,null,null,null,null,3676,0,0,0,0,0,0,0,0,{"$error":"#VALUE!"},{"$error":"#VALUE!"},{"$error":"#VALUE!"}]
[null,null,null,null,null,null,null,null,null,null,null,null,null,null,null,null,null,null,null,null,null,null,null,null,null,null,null,null,null,null,null,null,null,3689,0,0,0,0,0,0,0,0,{"$error":"#VALUE!"},{"$error":"#VALUE!"},{"$error":"#VALUE!"}]
[null,null,null,null,null,null,null,null,null,null,null,null,null,null,null,null,null,null,null,null,null,null,null,null,null,null,null,null,null,null,null,null,null,3697,0,0,0,0,0,0,0,0,{"$error":"#VALUE!"},{"$error":"#VALUE!"},{"$error":"#VALUE!"}]
[null,null,null,null,null,null,null,null,null,null,null,null,null,null,null,null,null,null,null,null,null,null,null,null,null,null,null,null,null,null,null,null,null,3708,0,0,0,0,0,0,0,0,{"$error":"#VALUE!"},{"$error":"#VALUE!"},{"$error":"#VALUE!"}]
[null,null,null,null,null,null,null,null,null,null,null,null,null,null,null,null,null,null,null,null,null,null,null,null,null,null,null,null,null,null,null,null,null,3720,0,0,0,0,0,0,0,0,{"$error":"#VALUE!"},{"$error":"#VALUE!"},{"$error":"#VALUE!"}]
[null,null,null,null,null,null,null,null,null,null,null,null,null,null,null,null,null,null,null,null,null,null,null,null,null,null,null,null,null,null,null,null,null,3729,0,0,0,0,0,0,0,0,{"$error":"#VALUE!"},{"$error":"#VALUE!"},{"$error":"#VALUE!"}]
[null,null,null,null,null,null,null,null,null,null,null,null,null,null,null,null,null,null,null,null,null,null,null,null,null,null,null,null,null,null,null,null,null,3740,0,0,0,0,0,0,0,0,{"$error":"#VALUE!"},{"$error":"#VALUE!"},{"$error":"#VALUE!"}]
[null,null,null,null,null,null,null,null,null,null,null,null,null,null,null,null,null,null,null,null,null,null,null,null,null,null,null,null,null,null,null,null,null,3745,0,0,0,0,0,0,0,0,{"$error":"#VALUE!"},{"$error":"#VALUE!"},{"$error":"#VALUE!"}]
[null,null,null,null,null,null,null,null,null,null,null,null,null,null,null,null,null,null,null,null,null,null,null,null,null,null,null,null,null,null,null,null,null,3760,0,0,0,0,0,0,0,0,{"$error":"#VALUE!"},{"$error":"#VALUE!"},{"$error":"#VALUE!"}]
[null,null,null,null,null,null,null,null,null,null,null,null,null,null,null,null,null,null,null,null,null,null,null,null,null,null,null,null,null,null,null,null,null,3772,0,0,0,0,0,0,0,0,{"$error":"#VALUE!"},{"$error":"#VALUE!"},{"$error":"#VALUE!"}]
[null,null,null,null,null,null,null,null,null,null,null,null,null,null,null,null,null,null,null,null,null,null,null,null,null,null,null,null,null,null,null,null,null,3777,{"$f":"IF(AND(AH3780>$C$41,AH3780<=$D$41),1,0)","v":0},{"$f":"$E$41*(AH3780/60)^-$F$41*AH3780/60*AI3780","v":0},0,0,{"$f":"IF(OR(AI3780=1,AK3780=1),0,IF(AND(AH3780>$C$43,AH3780<=$D$43),1,0))","v":0},0,{"$f":"AJ3780+AL3780+AN3780","v":0},{"$f":"AO3780*$H$17*$H$18/1000","v":0},{"$error":"#VALUE!"},{"$f":"AP3780-AQ3780","v":{"$error":"#VALUE!"}},{"$f":"IF(AR3780=MAX($AR$3:$AR$5762),AH3780,\"\")","v":{"$error":"#VALUE!"}}]
[null,null,null,null,null,null,null,null,null,null,null,null,null,null,null,null,null,null,null,null,null,null,null,null,null,null,null,null,null,null,null,null,null,3788,0,0,0,0,0,0,0,0,{"$error":"#VALUE!"},{"$error":"#VALUE!"},{"$error":"#VALUE!"}]
[null,null,null,null,null,null,null,null,null,null,null,null,null,null,null,null,null,null,null,null,null,null,null,null,null,null,null,null,null,null,null,null,null,3796,0,0,0,0,0,0,0,0,{"$error":"#VALUE!"},{"$error":"#VALUE!"},{"$error":"#VALUE!"}]
[null,null,null,null,null,null,null,null,null,null,null,null,null,null,null,null,null,null,null,null,null,null,null,null,null,null,null,null,null,null,null,null,null,3809,0,0,0,0,0,0,0,0,{"$error":"#VALUE!"},{"$error":"#VALUE!"},{"$error":"#VALUE!"}]
[null,null,null,null,null,null,null,null,null,null,null,null,null,null,null,null,null,null,null,null,null,null,null,null,null,null,null,null,null,null,null,null,null,3820,0,0,0,0,0,0,0,0,{"$error":"#VALUE!"},{"$error":"#VALUE!"},{"$error":"#VALUE!"}]
[null,null,null,null,null,null,null,null,null,null,null,null,null,null,null,null,null,null,null,null,null,null,null,null,null,null,null,null,null,null,null,null,null,3827,0,0,0,0,0,0,0,0,{"$error":"#VALUE!"},{"$error":"#VALUE!"},{"$error":"#VALUE!"}]
[null,null,null,null,null,null,null,null,null,null,null,null,null,null,null,null,null,null,null,null,null,null,null,null,null,null,null,null,null,null,null,null,null,3837,0,0,0,0,0,0,0,0,{"$error":"#VALUE!"},{"$error":"#VALUE!"},{"$error":"#VALUE!"}]
[null,null,null,null,null,null,null,null,null,null,null,null,null,null,null,null,null,null,null,null,null,null,null,null,null,null,null,null,null,null,null,null,null,3852,0,0,0,0,0,0,0,0,{"$error":"#VALUE!"},{"$error":"#VALUE!"},{"$error":"#VALUE!"}]
[null,null,null,null,null,null,null,null,null,null,null,null,null,null,null,null,null,null,null,null,null,null,null,null,null,null,null,null,null,null,null,null,null,3857,0,0,0,0,0,0,0,0,{"$error":"#VALUE!"},{"$error":"#VALUE!"},{"$error":"#VALUE!"}]
[null,null,null,null,null,null,null,null,null,null,null,null,null,null,null,null,null,null,null,null,null,null,null,null,null,null,null,null,null,null,null,null,null,3867,0,0,0,0,0,0,0,0,{"$error":"#VALUE!"},{"$error":"#VALUE!"},{"$error":"#VALUE!"}]
[null,null,null,null,null,null,null,null,null,null,null,null,null,null,null,null,null,null,null,null,null,null,null,null,null,null,null,null,null,null,null,null,null,3884,0,0,0,0,0,0,0,0,{"$error":"#VALUE!"},{"$error":"#VALUE!"},{"$error":"#VALUE!"}]
[null,null,null,null,null,null,null,null,null,null,null,null,null,null,null,null,null,null,null,null,null,null,null,null,null,null,null,null,null,null,null,null,null,3895,0,0,0,0,0,0,0,0,{"$error":"#VALUE!"},{"$error":"#VALUE!"},{"$error":"#VALUE!"}]
[null,null,null,null,null,null,null,null,null,null,null,null,null,null,null,null,null,null,null,null,null,null,null,null,null,null,null,null,null,null,null,null,null,3900,0,0,0,0,0,0,0,0,{"$error":"#VALUE!"},{"$error":"#VALUE!"},{"$error":"#VALUE!"}]
[null,null,null,null,null,null,null,null,null,null,null,null,null,null,null,null,null,null,null,null,null,null,null,null,null,null,null,null,null,null,null,null,null,3914,0,0,0,0,0,0,0,0,{"$error":"#VALUE!"},{"$error":"#VALUE!"},{"$error":"#VALUE!"}]
[null,null,null,null,null,null,null,null,null,null,null,null,null,null,null,null,null,null,null,null,null,null,null,null,null,null,null,null,null,null,null,null,null,3927,0,0,0,0,0,0,0,0,{"$error":"#VALUE!"},{"$error":"#VALUE!"},{"$error":"#VALUE!"}]
[null,null,null,null,null,null,null,null,null,null,null,null,null,null,null,null,null,null,null,null,null,null,null,null,null,null,null,null,null,null,null,null,null,3932,0,0,0,0,0,0,0,0,{"$error":"#VALUE!"},{"$error":"#VALUE!"},{"$error":"#VALUE!"}]
[null,null,null,null,null,null,null,null,null,null,null,null,null,null,null,null,null,null,null,null,null,null,null,null,null,null,null,null,null,null,null,null,null,3945,0,0,0,0,0,0,0,0,{"$error":"#VALUE!"},{"$error":"#VALUE!"},{"$error":"#VALUE!"}]
[null,null,null,null,null,null,null,null,null,null,null,null,null,null,null,null,null,null,null,null,null,null,null,null,null,null,null,null,null,null,null,null,null,3959,0,0,0,0,0,0,0,0,{"$error":"#VALUE!"},{"$error":"#VALUE!"},{"$error":"#VALUE!"}]
[null,null,null,null,null,null,null,null,null,null,null,null,null,null,null,null,null,null,null,null,null,null,null,null,null,null,null,null,null,null,null,null,null,3964,0,0,0,0,0,0,0,0,{"$error":"#VALUE!"},{"$error":"#VALUE!"},{"$error":"#VALUE!"}]
[null,null,null,null,null,null,null,null,null,null,null,null,null,null,null,null,null,null,null,null,null,null,null,null,null,null,null,null,null,null,null,null,null,3975,0,0,0,0,0,0,0,0,{"$error":"#VALUE!"},{"$error":"#VALUE!"},{"$error":"#VALUE!"}]
[null,null,null,null,null,null,null,null,null,null,null,null,null,null,null,null,null,null,null,null,null,null,null,null,null,null,null,null,null,null,null,null,null,3985,0,0,0,0,0,0,0,0,{"$error":"#VALUE!"},{"$error":"#VALUE!"},{"$error":"#VALUE!"}]
[null,null,null,null,null,null,null,null,null,null,null,null,null,null,null,null,null,null,null,null,null,null,null,null,null,null,null,null,null,null,null,null,null,3996,0,0,0,0,0,0,0,0,{"$error":"#VALUE!"},{"$error":"#VALUE!"},{"$error":"#VALUE!"}]
[null,null,null,null,null,null,null,null,null,null,null,null,null,null,null,null,null,null,null,null,null,null,null,null,null,null,null,null,null,null,null,null,null,4007,0,0,0,0,0,0,0,0,{"$error":"#VALUE!"},{"$error":"#VALUE!"},{"$error":"#VALUE!"}]
[null,null,null,null,null,null,null,null,null,null,null,null,null,null,null,null,null,null,null,null,null,null,null,null,null,null,null,null,null,null,null,null,null,4012,0,0,0,0,0,0,0,0,{"$error":"#VALUE!"},{"$error":"#VALUE!"},{"$error":"#VALUE!"}]
[null,null,null,null,null,null,null,null,null,null,null,null,null,null,null,null,null,null,null,null,null,null,null,null,null,null,null,null,null,null,null,null,null,4025,0,0,0,0,0,0,0,0,{"$error":"#VALUE!"},{"$error":"#VALUE!"},{"$error":"#VALUE!"}]
[null,null,null,null,null,null,null,null,null,null,null,null,null,null,null,null,null,null,null,null,null,null,null,null,null,null,null,null,null,null,null,null,null,4039,0,0,0,0,0,0,0,0,{"$error":"#VALUE!"},{"$error":"#VALUE!"},{"$error":"#VALUE!"}]
[null,null,null,null,null,null,null,null,null,null,null,null,null,null,null,null,null,null,null,null,null,null,null,null,null,null,null,null,null,null,null,null,null,4044,0,0,0,0,0,0,0,0,{"$error":"#VALUE!"},{"$error":"#VALUE!"},{"$error":"#VALUE!"}]
[null,null,null,null,null,null,null,null,null,null,null,null,null,null,null,null,null,null,null,null,null,null,null,null,null,null,null,null,null,null,null,null,null,4056,0,0,0,0,0,0,0,0,{"$error":"#VALUE!"},{"$error":"#VALUE!"},{"$error":"#VALUE!"}]
[null,null,null,null,null,null,null,null,null,null,null,null,null,null,null,null,null,null,null,null,null,null,null,null,null,null,null,null,null,null,null,null,null,4071,0,0,0,0,0,0,0,0,{"$error":"#VALUE!"},{"$error":"#VALUE!"},{"$error":"#VALUE!"}]
[null,null,null,null,null,null,null,null,null,null,null,null,null,null,null,null,null,null,null,null,null,null,null,null,null,null,null,null,null,null,null,null,null,4076,0,0,0,0,0,0,0,0,{"$error":"#VALUE!"},{"$error":"#VALUE!"},{"$error":"#VALUE!"}]
[null,null,null,null,null,null,null,null,null,null,null,null,null,null,null,null,null,null,null,null,null,null,null,null,null,null,null,null,null,null,null,null,null,4087,0,0,0,0,0,0,0,0,{"$error":"#VALUE!"},{"$error":"#VALUE!"},{"$error":"#VALUE!"}]
[null,null,null,null,null,null,null,null,null,null,null,null,null,null,null,null,null,null,null,null,null,null,null,null,null,null,null,null,null,null,null,null,null,4103,0,0,0,0,0,0,0,0,{"$error":"#VALUE!"},{"$error":"#VALUE!"},{"$error":"#VALUE!"}]
[null,null,null,null,null,null,null,null,null,null,null,null,null,null,null,null,null,null,null,null,null,null,null,null,null,null,null,null,null,null,null,null,null,4104,0,0,0,0,0,0,0,0,{"$error":"#VALUE!"},{"$error":"#VALUE!"},{"$error":"#VALUE!"}]
[null,null,null,null,null,null,null,null,null,null,null,null,null,null,null,null,null,null,null,null,null,null,null,null,null,null,null,null,null,null,null,null,null,4119,0,0,0,0,0,0,0,0,{"$error":"#VALUE!"},{"$error":"#VALUE!"},{"$error":"#VALUE!"}]
[null,null,null,null,null,null,null,null,null,null,null,null,null,null,null,null,null,null,null,null,null,null,null,null,null,null,null,null,null,null,null,null,null,4124,0,0,0,0,0,0,0,0,{"$error":"#VALUE!"},{"$error":"#VALUE!"},{"$error":"#VALUE!"}]
[null,null,null,null,null,null,null,null,null,null,null,null,null,null,null,null,null,null,null,null,null,null,null,null,null,null,null,null,null,null,null,null,null,4143,0,0,0,0,0,0,0,0,{"$error":"#VALUE!"},{"$error":"#VALUE!"},{"$error":"#VALUE!"}]
[null,null,null,null,null,null,null,null,null,null,null,null,null,null,null,null,null,null,null,null,null,null,null,null,null,null,null,null,null,null,null,null,null,4151,0,0,0,0,0,0,0,0,{"$error":"#VALUE!"},{"$error":"#VALUE!"},{"$error":"#VALUE!"}]
[null,null,null,null,null,null,null,null,null,null,null,null,null,null,null,null,null,null,null,null,null,null,null,null,null,null,null,null,null,null,null,null,null,4156,0,0,0,0,0,0,0,0,{"$error":"#VALUE!"},{"$error":"#VALUE!"},{"$error":"#VALUE!"}]
[null,null,null,null,null,null,null,null,null,null,null,null,null,null,null,null,null,null,null,null,null,null,null,null,null,null,null,null,null,null,null,null,null,4174,0,0,0,0,0,0,0,0,{"$error":"#VALUE!"},{"$error":"#VALUE!"},{"$error":"#VALUE!"}]
[null,null,null,null,null,null,null,null,null,null,null,null,null,null,null,null,null,null,null,null,null,null,null,null,null,null,null,null,null,null,null,null,null,4183,0,0,0,0,0,0,0,0,{"$error":"#VALUE!"},{"$error":"#VALUE!"},{"$error":"#VALUE!"}]
[null,null,null,null,null,null,null,null,null,null,null,null,null,null,null,null,null,null,null,null,null,null,null,null,null,null,null,null,null,null,null,null,null,4194,0,0,0,0,0,0,0,0,{"$error":"#VALUE!"},{"$error":"#VALUE!"},{"$error":"#VALUE!"}]
[null,null,null,null,null,null,null,null,null,null,null,null,null,null,null,null,null,null,null,null,null,null,null,null,null,null,null,null,null,null,null,null,null,4199,0,0,0,0,0,0,0,0,{"$error":"#VALUE!"},{"$error":"#VALUE!"},{"$error":"#VALUE!"}]
[null,null,null,null,null,null,null,null,null,null,null,null,null,null,null,null,null,null,null,null,null,null,null,null,null,null,null,null,null,null,null,null,null,4210,0,0,0,0,0,0,0,0,{"$error":"#VALUE!"},{"$error":"#VALUE!"},{"$error":"#VALUE!"}]
[null,null,null,null,null,null,null,null,null,null,null,null,null,null,null,null,null,null,null,null,null,null,null,null,null,null,null,null,null,null,null,null,null,{"$f":"AH4228+1","v":4226},0,0,0,{"$f":"$E$42*((AH4229/60)^-$F$42*AH4229/60*AK4229)","v":0},0,{"$f":"$E$42*(AH4229/60)^-$F$42*AH4229/60*AM4229","v":0},0,0,{"$error":"#VALUE!"},{"$error":"#VALUE!"},{"$error":"#VALUE!"}]
[null,null,null,null,null,null,null,null,null,null,null,null,null,null,null,null,null,null,null,null,null,null,null,null,null,null,null,null,null,null,null,null,null,4231,0,0,0,0,0,0,0,0,{"$error":"#VALUE!"},{"$error":"#VALUE!"},{"$error":"#VALUE!"}]
[null,null,null,null,null,null,null,null,null,null,null,null,null,null,null,null,null,null,null,null,null,null,null,null,null,null,null,null,null,null,null,null,null,4245,0,0,0,0,0,0,0,0,{"$error":"#VALUE!"},{"$error":"#VALUE!"},{"$error":"#VALUE!"}]
[null,null,null,null,null,null,null,null,null,null,null,null,null,null,null,null,null,null,null,null,null,null,null,null,null,null,null,null,null,null,null,null,null,4248,0,0,0,0,0,0,0,0,{"$error":"#VALUE!"},{"$error":"#VALUE!"},{"$error":"#VALUE!"}]
[null,null,null,null,null,null,null,null,null,null,null,null,null,null,null,null,null,null,null,null,null,null,null,null,null,null,null,null,null,null,null,null,null,4263,0,0,0,0,0,0,0,0,{"$error":"#VALUE!"},{"$error":"#VALUE!"},{"$error":"#VALUE!"}]
[null,null,null,null,null,null,null,null,null,null,null,null,null,null,null,null,null,null,null,null,null,null,null,null,null,null,null,null,null,null,null,null,null,4274,0,0,0,0,0,0,0,0,{"$error":"#VALUE!"},{"$error":"#VALUE!"},{"$error":"#VALUE!"}]
[null,null,null,null,null,null,null,null,null,null,null,null,null,null,null,null,null,null,null,null,null,null,null,null,null,null,null,null,null,null,null,null,null,4281,0,0,0,0,0,0,0,0,{"$error":"#VALUE!"},{"$error":"#VALUE!"},{"$error":"#VALUE!"}]
[null,null,null,null,null,null,null,null,null,null,null,null,null,null,null,null,null,null,null,null,null,null,null,null,null,null,null,null,null,null,null,null,null,4295,0,0,0,0,0,0,0,0,{"$error":"#VALUE!"},{"$error":"#VALUE!"},{"$error":"#VALUE!"}]
[null,null,null,null,null,null,null,null,null,null,null,null,null,null,null,null,null,null,null,null,null,null,null,null,null,null,null,null,null,null,null,null,null,4306,0,0,0,0,0,0,0,0,{"$error":"#VALUE!"},{"$error":"#VALUE!"},{"$error":"#VALUE!"}]
[null,null,null,null,null,null,null,null,null,null,null,null,null,null,null,null,null,null,null,null,null,null,null,null,null,null,null,null,null,null,null,null,null,4311,0,0,0,0,0,0,0,0,{"$error":"#VALUE!"},{"$error":"#VALUE!"},{"$error":"#VALUE!"}]
[null,null,null,null,null,null,null,null,null,null,null,null,null,null,null,null,null,null,null,null,null,null,null,null,null,null,null,null,null,null,null,null,null,4321,0,0,0,0,0,0,0,0,{"$error":"#VALUE!"},{"$error":"#VALUE!"},{"$error":"#VALUE!"}]
[null,null,null,null,null,null,null,null,null,null,null,null,null,null,null,null,null,null,null,null,null,null,null,null,null,null,null,null,null,null,null,null,null,4338,0,0,0,0,0,0,0,0,{"$error":"#VALUE!"},{"$error":"#VALUE!"},{"$error":"#VALUE!"}]
[null,null,null,null,null,null,null,null,null,null,null,null,null,null,null,null,null,null,null,null,null,null,null,null,null,null,null,null,null,null,null,null,null,4343,0,0,0,0,0,0,0,0,{"$error":"#VALUE!"},{"$error":"#VALUE!"},{"$error":"#VALUE!"}]
[null,null,null,null,null,null,null,null,null,null,null,null,null,null,null,null,null,null,null,null,null,null,null,null,null,null,null,null,null,null,null,null,null,4352,0,0,{"$f":"IF(AI4355=1,0,IF(AND(AH4355>$C$42,AH4355<=$D$42),1,0))","v":0},0,0,0,0,0,{"$error":"#VALUE!"},{"$error":"#VALUE!"},{"$error":"#VALUE!"}]
[null,null,null,null,null,null,null,null,null,null,null,null,null,null,null,null,null,null,null,null,null,null,null,null,null,null,null,null,null,null,null,null,null,4370,0,0,0,0,0,0,0,0,{"$error":"#VALUE!"},{"$error":"#VALUE!"},{"$error":"#VALUE!"}]
[null,null,null,null,null,null,null,null,null,null,null,null,null,null,null,null,null,null,null,null,null,null,null,null,null,null,null,null,null,null,null,null,null,4371,0,0,0,0,0,0,0,0,{"$error":"#VALUE!"},{"$error":"#VALUE!"},{"$error":"#VALUE!"}]
[null,null,null,null,null,null,null,null,null,null,null,null,null,null,null,null,null,null,null,null,null,null,null,null,null,null,null,null,null,null,null,null,null,4386,0,0,0,0,0,0,0,0,{"$error":"#VALUE!"},{"$error":"#VALUE!"},{"$error":"#VALUE!"}]
[null,null,null,null,null,null,null,null,null,null,null,null,null,null,null,null,null,null,null,null,null,null,null,null,null,null,null,null,null,null,null,null,null,4399,0,0,0,0,0,0,0,0,{"$error":"#VALUE!"},{"$error":"#VALUE!"},{"$error":"#VALUE!"}]
[null,null,null,null,null,null,null,null,null,null,null,null,null,null,null,null,null,null,null,null,null,null,null,null,null,null,null,null,null,null,null,null,null,4403,0,0,0,0,0,0,0,0,{"$error":"#VALUE!"},{"$error":"#VALUE!"},{"$error":"#VALUE!"}]
[null,null,null,null,null,null,null,null,null,null,null,null,null,null,null,null,null,null,null,null,null,null,null,null,null,null,null,null,null,null,null,null,null,{"$f":"AH4420+1","v":4418},0,0,0,{"$f":"$E$42*((AH4421/60)^-$F$42*AH4421/60*AK4421)","v":0},0,{"$f":"$E$42*(AH4421/60)^-$F$42*AH4421/60*AM4421","v":0},0,0,{"$error":"#VALUE!"},{"$error":"#VALUE!"},{"$error":"#VALUE!"}]
[null,null,null,null,null,null,null,null,null,null,null,null,null,null,null,null,null,null,null,null,null,null,null,null,null,null,null,null,null,null,null,null,null,4423,0,0,0,0,0,0,0,0,{"$error":"#VALUE!"},{"$error":"#VALUE!"},{"$error":"#VALUE!"}]
[null,null,null,null,null,null,null,null,null,null,null,null,null,null,null,null,null,null,null,null,null,null,null,null,null,null,null,null,null,null,null,null,null,4439,0,0,0,0,0,0,0,0,{"$error":"#VALUE!"},{"$error":"#VALUE!"},{"$error":"#VALUE!"}]
[null,null,null,null,null,null,null,null,null,null,null,null,null,null,null,null,null,null,null,null,null,null,null,null,null,null,null,null,null,null,null,null,null,4450,0,0,0,0,0,0,0,0,{"$error":"#VALUE!"},{"$error":"#VALUE!"},{"$error":"#VALUE!"}]
[null,null,null,null,null,null,null,null,null,null,null,null,null,null,null,null,null,null,null,null,null,null,null,null,null,null,null,null,null,null,null,null,null,4461,0,0,0,0,0,0,0,0,{"$error":"#VALUE!"},{"$error":"#VALUE!"},{"$error":"#VALUE!"}]
[null,null,null,null,null,null,null,null,null,null,null,null,null,null,null,null,null,null,null,null,null,null,null,null,null,null,null,null,null,null,null,null,null,4470,0,0,0,0,0,0,0,0,{"$error":"#VALUE!"},{"$error":"#VALUE!"},{"$error":"#VALUE!"}]
[null,null,null,null,null,null,null,null,null,null,null,null,null,null,null,null,null,null,null,null,null,null,null,null,null,null,null,null,null,null,null,null,null,{"$f":"AH4484+1","v":4482},0,0,0,{"$f":"$E$42*((AH4485/60)^-$F$42*AH4485/60*AK4485)","v":0},0,{"$f":"$E$42*(AH4485/60)^-$F$42*AH4485/60*AM4485","v":0},0,0,{"$error":"#VALUE!"},{"$error":"#VALUE!"},{"$error":"#VALUE!"}]
[null,null,null,null,null,null,null,null,null,null,null,null,null,null,null,null,null,null,null,null,null,null,null,null,null,null,null,null,null,null,null,null,null,4493,0,0,0,0,0,0,0,0,{"$error":"#VALUE!"},{"$error":"#VALUE!"},{"$error":"#VALUE!"}]
[null,null,null,null,null,null,null,null,null,null,null,null,null,null,null,null,null,null,null,null,null,null,null,null,null,null,null,null,null,null,null,null,null,4498,0,0,0,0,0,0,0,0,{"$error":"#VALUE!"},{"$error":"#VALUE!"},{"$error":"#VALUE!"}]
[null,null,null,null,null,null,null,null,null,null,null,null,null,null,null,null,null,null,null,null,null,null,null,null,null,null,null,null,null,null,null,null,null,4506,0,0,0,0,0,0,0,0,{"$error":"#VALUE!"},{"$error":"#VALUE!"},{"$error":"#VALUE!"}]
[null,null,null,null,null,null,null,null,null,null,null,null,null,null,null,null,null,null,null,null,null,null,null,null,null,null,null,null,null,null,null,null,null,4515,0,0,0,0,0,0,0,0,{"$error":"#VALUE!"},{"$error":"#VALUE!"},{"$error":"#VALUE!"}]
[null,null,null,null,null,null,null,null,null,null,null,null,null,null,null,null,null,null,null,null,null,null,null,null,null,null,null,null,null,null,null,null,null,4530,0,0,0,0,0,0,0,0,{"$error":"#VALUE!"},{"$error":"#VALUE!"},{"$error":"#VALUE!"}]
[null,null,null,null,null,null,null,null,null,null,null,null,null,null,null,null,null,null,null,null,null,null,null,null,null,null,null,null,null,null,null,null,null,4541,0,0,0,0,0,0,0,0,{"$error":"#VALUE!"},{"$error":"#VALUE!"},{"$error":"#VALUE!"}]
[null,null,null,null,null,null,null,null,null,null,null,null,null,null,null,null,null,null,null,null,null,null,null,null,null,null,null,null,null,null,null,null,null,{"$f":"AH4548+1","v":4546},0,0,0,{"$f":"$E$42*((AH4549/60)^-$F$42*AH4549/60*AK4549)","v":0},0,{"$f":"$E$42*(AH4549/60)^-$F$42*AH4549/60*AM4549","v":0},0,0,{"$error":"#VALUE!"},{"$error":"#VALUE!"},{"$error":"#VALUE!"}]
[null,null,null,null,null,null,null,null,null,null,null,null,null,null,null,null,null,null,null,null,null,null,null,null,null,null,null,null,null,null,null,null,null,4562,0,0,0,0,0,0,0,0,{"$error":"#VALUE!"},{"$error":"#VALUE!"},{"$error":"#VALUE!"}]
[null,null,null,null,null,null,null,null,null,null,null,null,null,null,null,null,null,null,null,null,null,null,null,null,null,null,null,null,null,null,null,null,null,4573,0,0,0,0,0,0,0,0,{"$error":"#VALUE!"},{"$error":"#VALUE!"},{"$error":"#VALUE!"}]
[null,null,null,null,null,null,null,null,null,null,null,null,null,null,null,null,null,null,null,null,null,null,null,null,null,null,null,null,null,null,null,null,null,4577,0,0,0,0,0,0,0,0,{"$error":"#VALUE!"},{"$error":"#VALUE!"},{"$error":"#VALUE!"}]
[null,null,null,null,null,null,null,null,null,null,null,null,null,null,null,null,null,null,null,null,null,null,null,null,null,null,null,null,null,null,null,null,null,4590,0,0,0,0,0,0,0,0,{"$error":"#VALUE!"},{"$error":"#VALUE!"},{"$error":"#VALUE!"}]
[null,null,null,null,null,null,null,null,null,null,null,null,null,null,null,null,null,null,null,null,null,null,null,null,null,null,null,null,null,null,null,null,null,4605,0,0,0,0,0,0,0,0,{"$error":"#VALUE!"},{"$error":"#VALUE!"},{"$error":"#VALUE!"}]
[null,null,null,null,null,null,null,null,null,null,null,null,null,null,null,null,null,null,null,null,null,null,null,null,null,null,null,null,null,null,null,null,null,{"$f":"AH4612+1","v":4610},0,0,0,{"$f":"$E$42*((AH4613/60)^-$F$42*AH4613/60*AK4613)","v":0},0,{"$f":"$E$42*(AH4613/60)^-$F$42*AH4613/60*AM4613","v":0},0,0,{"$error":"#VALUE!"},{"$error":"#VALUE!"},{"$error":"#VALUE!"}]
[null,null,null,null,null,null,null,null,null,null,null,null,null,null,null,null,null,null,null,null,null,null,null,null,null,null,null,null,null,null,null,null,null,4617,0,0,0,0,0,0,0,0,{"$error":"#VALUE!"},{"$error":"#VALUE!"},{"$error":"#VALUE!"}]
[null,null,null,null,null,null,null,null,null,null,null,null,null,null,null,null,null,null,null,null,null,null,null,null,null,null,null,null,null,null,null,null,null,4637,0,0,0,0,0,0,0,0,{"$error":"#VALUE!"},{"$error":"#VALUE!"},{"$error":"#VALUE!"}]
[null,null,null,null,null,null,null,null,null,null,null,null,null,null,null,null,null,null,null,null,null,null,null,null,null,null,null,null,null,null,null,null,null,4642,0,0,0,0,0,0,0,0,{"$error":"#VALUE!"},{"$error":"#VALUE!"},{"$error":"#VALUE!"}]
[null,null,null,null,null,null,null,null,null,null,null,null,null,null,null,null,null,null,null,null,null,null,null,null,null,null,null,null,null,null,null,null,null,4653,0,0,0,0,0,0,0,0,{"$error":"#VALUE!"},{"$error":"#VALUE!"},{"$error":"#VALUE!"}]
[null,null,null,null,null,null,null,null,null,null,null,null,null,null,null,null,null,null,null,null,null,null,null,null,null,null,null,null,null,null,null,null,null,4664,{"$f":"IF(AND(AH4667>$C$41,AH4667<=$D$41),1,0)","v":0},0,0,0,0,0,{"$f":"AJ4667+AL4667+AN4667","v":0},{"$f":"AO4667*$H$17*$H$18/1000","v":0},{"$f":"$E$26/1000*AH4667*60","v":{"$error":"#VALUE!"}},{"$error":"#VALUE!"},{"$error":"#VALUE!"}]
[null,null,null,null,null,null,null,null,null,null,null,null,null,null,null,null,null,null,null,null,null,null,null,null,null,null,null,null,null,null,null,null,null,4670,0,0,0,0,0,0,0,0,{"$error":"#VALUE!"},{"$error":"#VALUE!"},{"$error":"#VALUE!"}]
[null,null,null,null,null,null,null,null,null,null,null,null,null,null,null,null,null,null,null,null,null,null,null,null,null,null,null,null,null,null,null,null,null,4685,0,0,0,0,0,0,0,0,{"$error":"#VALUE!"},{"$error":"#VALUE!"},{"$error":"#VALUE!"}]
[null,null,null,null,null,null,null,null,null,null,null,null,null,null,null,null,null,null,null,null,null,null,null,null,null,null,null,null,null,null,null,null,null,4695,0,0,0,0,0,0,0,0,{"$error":"#VALUE!"},{"$error":"#VALUE!"},{"$error":"#VALUE!"}]
[null,null,null,null,null,null,null,null,null,null,null,null,null,null,null,null,null,null,null,null,null,null,null,null,null,null,null,null,null,null,null,null,null,4702,0,0,0,0,0,0,0,0,{"$error":"#VALUE!"},{"$error":"#VALUE!"},{"$error":"#VALUE!"}]
[null,null,null,null,null,null,null,null,null,null,null,null,null,null,null,null,null,null,null,null,null,null,null,null,null,null,null,null,null,null,null,null,null,4717,0,0,0,0,0,0,0,0,{"$error":"#VALUE!"},{"$error":"#VALUE!"},{"$error":"#VALUE!"}]
[null,null,null,null,null,null,null,null,null,null,null,null,null,null,null,null,null,null,null,null,null,null,null,null,null,null,null,null,null,null,null,null,null,4722,0,0,0,0,0,0,0,0,{"$error":"#VALUE!"},{"$error":"#VALUE!"},{"$error":"#VALUE!"}]
[null,null,null,null,null,null,null,null,null,null,null,null,null,null,null,null,null,null,null,null,null,null,null,null,null,null,null,null,null,null,null,null,null,4735,0,0,0,0,0,0,0,0,{"$error":"#VALUE!"},{"$error":"#VALUE!"},{"$error":"#VALUE!"}]
[null,null,null,null,null,null,null,null,null,null,null,null,null,null,null,null,null,null,null,null,null,null,null,null,null,null,null,null,null,null,null,null,null,4749,0,0,0,0,0,0,0,0,{"$error":"#VALUE!"},{"$error":"#VALUE!"},{"$error":"#VALUE!"}]
[null,null,null,null,null,null,null,null,null,null,null,null,null,null,null,null,null,null,null,null,null,null,null,null,null,null,null,null,null,null,null,null,null,4760,0,0,0,0,0,0,0,0,{"$error":"#VALUE!"},{"$error":"#VALUE!"},{"$error":"#VALUE!"}]
[null,null,null,null,null,null,null,null,null,null,null,null,null,null,null,null,null,null,null,null,null,null,null,null,null,null,null,null,null,null,null,null,null,4765,0,0,0,0,0,0,0,0,{"$error":"#VALUE!"},{"$error":"#VALUE!"},{"$error":"#VALUE!"}]
[null,null,null,null,null,null,null,null,null,null,null,null,null,null,null,null,null,null,null,null,null,null,null,null,null,null,null,null,null,null,null,null,null,4771,0,0,0,0,0,0,0,0,{"$error":"#VALUE!"},{"$error":"#VALUE!"},{"$error":"#VALUE!"}]
[null,null,null,null,null,null,null,null,null,null,null,null,null,null,null,null,null,null,null,null,null,null,null,null,null,null,null,null,null,null,null,null,null,4782,0,0,0,0,0,0,0,0,{"$error":"#VALUE!"},{"$error":"#VALUE!"},{"$error":"#VALUE!"}]
[null,null,null,null,null,null,null,null,null,null,null,null,null,null,null,null,null,null,null,null,null,null,null,null,null,null,null,null,null,null,null,null,null,4797,0,0,0,0,0,0,0,0,{"$error":"#VALUE!"},{"$error":"#VALUE!"},{"$error":"#VALUE!"}]
[null,null,null,null,null,null,null,null,null,null,null,null,null,null,null,null,null,null,null,null,null,null,null,null,null,null,null,null,null,null,null,null,null,4806,0,0,0,0,0,0,0,0,{"$error":"#VALUE!"},{"$error":"#VALUE!"},{"$error":"#VALUE!"}]
[null,null,null,null,null,null,null,null,null,null,null,null,null,null,null,null,null,null,null,null,null,null,null,null,null,null,null,null,null,null,null,null,null,4814,0,0,0,0,0,0,0,0,{"$error":"#VALUE!"},{"$error":"#VALUE!"},{"$error":"#VALUE!"}]
[null,null,null,null,null,null,null,null,null,null,null,null,null,null,null,null,null,null,null,null,null,null,null,null,null,null,null,null,null,null,null,null,null,4829,0,0,0,0,0,0,0,0,{"$error":"#VALUE!"},{"$error":"#VALUE!"},{"$error":"#VALUE!"}]
[null,null,null,null,null,null,null,null,null,null,null,null,null,null,null,null,null,null,null,null,null,null,null,null,null,null,null,null,null,null,null,null,null,4840,0,0,0,0,0,0,0,0,{"$error":"#VALUE!"},{"$error":"#VALUE!"},{"$error":"#VALUE!"}]
[null,null,null,null,null,null,null,null,null,null,null,null,null,null,null,null,null,null,null,null,null,null,null,null,null,null,null,null,null,null,null,null,null,4853,0,0,0,0,0,0,0,0,{"$error":"#VALUE!"},{"$error":"#VALUE!"},{"$error":"#VALUE!"}]
[null,null,null,null,null,null,null,null,null,null,null,null,null,null,null,null,null,null,null,null,null,null,null,null,null,null,null,null,null,null,null,null,null,4861,0,0,0,0,0,0,0,0,{"$error":"#VALUE!"},{"$error":"#VALUE!"},{"$error":"#VALUE!"}]
[null,null,null,null,null,null,null,null,null,null,null,null,null,null,null,null,null,null,null,null,null,null,null,null,null,null,null,null,null,null,null,null,null,4872,0,0,0,0,0,0,0,0,{"$error":"#VALUE!"},{"$error":"#VALUE!"},{"$error":"#VALUE!"}]
[null,null,null,null,null,null,null,null,null,null,null,null,null,null,null,null,null,null,null,null,null,null,null,null,null,null,null,null,null,null,null,null,null,4877,0,0,0,0,0,0,0,0,{"$error":"#VALUE!"},{"$error":"#VALUE!"},{"$error":"#VALUE!"}]
[null,null,null,null,null,null,null,null,null,null,null,null,null,null,null,null,null,null,null,null,null,null,null,null,null,null,null,null,null,null,null,null,null,4893,0,0,0,0,0,0,0,0,{"$error":"#VALUE!"},{"$error":"#VALUE!"},{"$error":"#VALUE!"}]
[null,null,null,null,null,null,null,null,null,null,null,null,null,null,null,null,null,null,null,null,null,null,null,null,null,null,null,null,null,null,null,null,null,4904,0,0,0,0,0,0,0,0,{"$error":"#VALUE!"},{"$error":"#VALUE!"},{"$error":"#VALUE!"}]
[null,null,null,null,null,null,null,null,null,null,null,null,null,null,null,null,null,null,null,null,null,null,null,null,null,null,null,null,null,null,null,null,null,4909,0,0,0,0,0,0,0,0,{"$error":"#VALUE!"},{"$error":"#VALUE!"},{"$error":"#VALUE!"}]
[null,null,null,null,null,null,null,null,null,null,null,null,null,null,null,null,null,null,null,null,null,null,null,null,null,null,null,null,null,null,null,null,null,4924,0,0,0,0,0,0,0,0,{"$error":"#VALUE!"},{"$error":"#VALUE!"},{"$error":"#VALUE!"}]
[null,null,null,null,null,null,null,null,null,null,null,null,null,null,null,null,null,null,null,null,null,null,null,null,null,null,null,null,null,null,null,null,null,4926,0,0,0,0,0,0,0,0,{"$error":"#VALUE!"},{"$error":"#VALUE!"},{"$error":"#VALUE!"}]
[null,null,null,null,null,null,null,null,null,null,null,null,null,null,null,null,null,null,null,null,null,null,null,null,null,null,null,null,null,null,null,null,null,4937,0,0,0,0,0,0,0,0,{"$error":"#VALUE!"},{"$error":"#VALUE!"},{"$error":"#VALUE!"}]
[null,null,null,null,null,null,null,null,null,null,null,null,null,null,null,null,null,null,null,null,null,null,null,null,null,null,null,null,null,null,null,null,null,4952,0,0,0,0,0,0,0,0,{"$error":"#VALUE!"},{"$error":"#VALUE!"},{"$error":"#VALUE!"}]
[null,null,null,null,null,null,null,null,null,null,null,null,null,null,null,null,null,null,null,null,null,null,null,null,null,null,null,null,null,null,null,null,null,4960,0,0,0,0,0,0,0,0,{"$error":"#VALUE!"},{"$error":"#VALUE!"},{"$error":"#VALUE!"}]
[null,null,null,null,null,null,null,null,null,null,null,null,null,null,null,null,null,null,null,null,null,null,null,null,null,null,null,null,null,null,null,null,null,4969,0,0,0,0,0,0,0,0,{"$error":"#VALUE!"},{"$error":"#VALUE!"},{"$error":"#VALUE!"}]
[null,null,null,null,null,null,null,null,null,null,null,null,null,null,null,null,null,null,null,null,null,null,null,null,null,null,null,null,null,null,null,null,null,4984,{"$f":"IF(AND(AH4987>$C$41,AH4987<=$D$41),1,0)","v":0},0,0,0,0,0,{"$f":"AJ4987+AL4987+AN4987","v":0},{"$f":"AO4987*$H$17*$H$18/1000","v":0},{"$f":"$E$26/1000*AH4987*60","v":{"$error":"#VALUE!"}},{"$error":"#VALUE!"},{"$error":"#VALUE!"}]
[null,null,null,null,null,null,null,null,null,null,null,null,null,null,null,null,null,null,null,null,null,null,null,null,null,null,null,null,null,null,null,null,null,4991,0,0,0,0,0,0,0,0,{"$error":"#VALUE!"},{"$error":"#VALUE!"},{"$error":"#VALUE!"}]
[null,null,null,null,null,null,null,null,null,null,null,null,null,null,null,null,null,null,null,null,null,null,null,null,null,null,null,null,null,null,null,null,null,5001,0,0,0,0,0,0,0,0,{"$error":"#VALUE!"},{"$error":"#VALUE!"},{"$error":"#VALUE!"}]
[null,null,null,null,null,null,null,null,null,null,null,null,null,null,null,null,null,null,null,null,null,null,null,null,null,null,null,null,null,null,null,null,null,5016,0,0,0,0,0,0,0,0,{"$error":"#VALUE!"},{"$error":"#VALUE!"},{"$error":"#VALUE!"}]
[null,null,null,null,null,null,null,null,null,null,null,null,null,null,null,null,null,null,null,null,null,null,null,null,null,null,null,null,null,null,null,null,null,5027,0,0,0,0,0,0,0,0,{"$error":"#VALUE!"},{"$error":"#VALUE!"},{"$error":"#VALUE!"}]
[null,null,null,null,null,null,null,null,null,null,null,null,null,null,null,null,null,null,null,null,null,null,null,null,null,null,null,null,null,null,null,null,null,5031,0,0,0,0,0,0,0,0,{"$error":"#VALUE!"},{"$error":"#VALUE!"},{"$error":"#VALUE!"}]
[null,null,null,null,null,null,null,null,null,null,null,null,null,null,null,null,null,null,null,null,null,null,null,null,null,null,null,null,null,null,null,null,null,5048,{"$f":"IF(AND(AH5051>$C$41,AH5051<=$D$41),1,0)","v":0},0,0,0,0,0,{"$f":"AJ5051+AL5051+AN5051","v":0},{"$f":"AO5051*$H$17*$H$18/1000","v":0},{"$f":"$E$26/1000*AH5051*60","v":{"$error":"#VALUE!"}},{"$error":"#VALUE!"},{"$error":"#VALUE!"}]
[null,null,null,null,null,null,null,null,null,null,null,null,null,null,null,null,null,null,null,null,null,null,null,null,null,null,null,null,null,null,null,null,null,5049,0,0,0,0,0,0,0,0,{"$error":"#VALUE!"},{"$error":"#VALUE!"},{"$error":"#VALUE!"}]
[null,null,null,null,null,null,null,null,null,null,null,null,null,null,null,null,null,null,null,null,null,null,null,null,null,null,null,null,null,null,null,null,null,5064,0,0,0,0,0,0,0,0,{"$error":"#VALUE!"},{"$error":"#VALUE!"},{"$error":"#VALUE!"}]
[null,null,null,null,null,null,null,null,null,null,null,null,null,null,null,null,null,null,null,null,null,null,null,null,null,null,null,null,null,null,null,null,null,5078,0,0,0,0,0,0,0,0,{"$error":"#VALUE!"},{"$error":"#VALUE!"},{"$error":"#VALUE!"}]
[null,null,null,null,null,null,null,null,null,null,null,null,null,null,null,null,null,null,null,null,null,null,null,null,null,null,null,null,null,null,null,null,null,5081,0,0,0,0,0,0,0,0,{"$error":"#VALUE!"},{"$error":"#VALUE!"},{"$error":"#VALUE!"}]
[null,null,null,null,null,null,null,null,null,null,null,null,null,null,null,null,null,null,null,null,null,null,null,null,null,null,null,null,null,null,null,null,null,5096,0,0,0,0,0,0,0,0,{"$error":"#VALUE!"},{"$error":"#VALUE!"},{"$error":"#VALUE!"}]
[null,null,null,null,null,null,null,null,null,null,null,null,null,null,null,null,null,null,null,null,null,null,null,null,null,null,null,null,null,null,null,null,null,5102,0,0,0,0,0,0,0,0,{"$error":"#VALUE!"},{"$error":"#VALUE!"},{"$error":"#VALUE!"}]
[null,null,null,null,null,null,null,null,null,null,null,null,null,null,null,null,null,null,null,null,null,null,null,null,null,null,null,null,null,null,null,null,null,5113,0,0,0,0,0,0,0,0,{"$error":"#VALUE!"},{"$error":"#VALUE!"},{"$error":"#VALUE!"}]
[null,null,null,null,null,null,null,null,null,null,null,null,null,null,null,null,null,null,null,null,null,null,null,null,null,null,null,null,null,null,null,null,null,5128,0,0,0,0,0,0,0,0,{"$error":"#VALUE!"},{"$error":"#VALUE!"},{"$error":"#VALUE!"}]
[null,null,null,null,null,null,null,null,null,null,null,null,null,null,null,null,null,null,null,null,null,null,null,null,null,null,null,null,null,null,null,null,null,5139,0,0,0,0,0,0,0,0,{"$error":"#VALUE!"},{"$error":"#VALUE!"},{"$error":"#VALUE!"}]
[null,null,null,null,null,null,null,null,null,null,null,null,null,null,null,null,null,null,null,null,null,null,null,null,null,null,null,null,null,null,null,null,null,5149,0,0,0,0,0,0,0,0,{"$error":"#VALUE!"},{"$error":"#VALUE!"},{"$error":"#VALUE!"}]
[null,null,null,null,null,null,null,null,null,null,null,null,null,null,null,null,null,null,null,null,null,null,null,null,null,null,null,null,null,null,null,null,null,5156,0,0,0,0,0,0,0,0,{"$error":"#VALUE!"},{"$error":"#VALUE!"},{"$error":"#VALUE!"}]
[null,null,null,null,null,null,null,null,null,null,null,null,null,null,null,null,null,null,null,null,null,null,null,null,null,null,null,null,null,null,null,null,null,5171,0,0,0,0,0,0,0,0,{"$error":"#VALUE!"},{"$error":"#VALUE!"},{"$error":"#VALUE!"}]
[null,null,null,null,null,null,null,null,null,null,null,null,null,null,null,null,null,null,null,null,null,null,null,null,null,null,null,null,null,null,null,null,null,5176,{"$f":"IF(AND(AH5179>$C$41,AH5179<=$D$41),1,0)","v":0},0,0,0,0,0,{"$f":"AJ5179+AL5179+AN5179","v":0},{"$f":"AO5179*$H$17*$H$18/1000","v":0},{"$f":"$E$26/1000*AH5179*60","v":{"$error":"#VALUE!"}},{"$error":"#VALUE!"},{"$error":"#VALUE!"}]
[null,null,null,null,null,null,null,null,null,null,null,null,null,null,null,null,null,null,null,null,null,null,null,null,null,null,null,null,null,null,null,null,null,5189,0,0,0,0,0,0,0,0,{"$error":"#VALUE!"},{"$error":"#VALUE!"},{"$error":"#VALUE!"}]
[null,null,null,null,null,null,null,null,null,null,null,null,null,null,null,null,null,null,null,null,null,null,null,null,null,null,null,null,null,null,null,null,null,5193,0,0,0,0,0,0,0,0,{"$error":"#VALUE!"},{"$error":"#VALUE!"},{"$error":"#VALUE!"}]
[null,null,null,null,null,null,null,null,null,null,null,null,null,null,null,null,null,null,null,null,null,null,null,null,null,null,null,null,null,null,null,null,null,5208,0,0,0,0,0,0,0,0,{"$error":"#VALUE!"},{"$error":"#VALUE!"},{"$error":"#VALUE!"}]
[null,null,null,null,null,null,null,null,null,null,null,null,null,null,null,null,null,null,null,null,null,null,null,null,null,null,null,null,null,null,null,null,null,5220,0,0,0,0,0,0,0,0,{"$error":"#VALUE!"},{"$error":"#VALUE!"},{"$error":"#VALUE!"}]
[null,null,null,null,null,null,null,null,null,null,null,null,null,null,null,null,null,null,null,null,null,null,null,null,null,null,null,null,null,null,null,null,null,5225,0,0,0,0,0,0,0,0,{"$error":"#VALUE!"},{"$error":"#VALUE!"},{"$error":"#VALUE!"}]
[null,null,null,null,null,null,null,null,null,null,null,null,null,null,null,null,null,null,null,null,null,null,null,null,null,null,null,null,null,null,null,null,null,5236,0,0,0,0,0,0,0,0,{"$error":"#VALUE!"},{"$error":"#VALUE!"},{"$error":"#VALUE!"}]
[null,null,null,null,null,null,null,null,null,null,null,null,null,null,null,null,null,null,null,null,null,null,null,null,null,null,null,null,null,null,null,null,null,5251,0,0,0,0,0,0,0,0,{"$error":"#VALUE!"},{"$error":"#VALUE!"},{"$error":"#VALUE!"}]
[null,null,null,null,null,null,null,null,null,null,null,null,null,null,null,null,null,null,null,null,null,null,null,null,null,null,null,null,null,null,null,null,null,5256,0,0,0,0,0,0,0,0,{"$error":"#VALUE!"},{"$error":"#VALUE!"},{"$error":"#VALUE!"}]
[null,null,null,null,null,null,null,null,null,null,null,null,null,null,null,null,null,null,null,null,null,null,null,null,null,null,null,null,null,null,null,null,null,5268,0,0,0,0,0,0,0,0,{"$error":"#VALUE!"},{"$error":"#VALUE!"},{"$error":"#VALUE!"}]
[null,null,null,null,null,null,null,null,null,null,null,null,null,null,null,null,null,null,null,null,null,null,null,null,null,null,null,null,null,null,null,null,null,5283,0,0,0,0,0,0,0,0,{"$error":"#VALUE!"},{"$error":"#VALUE!"},{"$error":"#VALUE!"}]
[null,null,null,null,null,null,null,null,null,null,null,null,null,null,null,null,null,null,null,null,null,null,null,null,null,null,null,null,null,null,null,null,null,5288,0,0,0,0,0,0,0,0,{"$error":"#VALUE!"},{"$error":"#VALUE!"},{"$error":"#VALUE!"}]
[null,null,null,null,null,null,null,null,null,null,null,null,null,null,null,null,null,null,null,null,null,null,null,null,null,null,null,null,null,null,null,null,null,5296,0,0,0,0,0,0,0,0,{"$error":"#VALUE!"},{"$error":"#VALUE!"},{"$error":"#VALUE!"}]
[null,null,null,null,null,null,null,null,null,null,null,null,null,null,null,null,null,null,null,null,null,null,null,null,null,null,null,null,null,null,null,null,null,5315,0,0,0,0,0,0,0,0,{"$error":"#VALUE!"},{"$error":"#VALUE!"},{"$error":"#VALUE!"}]
[null,null,null,null,null,null,null,null,null,null,null,null,null,null,null,null,null,null,null,null,null,null,null,null,null,null,null,null,null,null,null,null,null,5316,0,0,0,0,0,0,0,0,{"$error":"#VALUE!"},{"$error":"#VALUE!"},{"$error":"#VALUE!"}]
[null,null,null,null,null,null,null,null,null,null,null,null,null,null,null,null,null,null,null,null,null,null,null,null,null,null,null,null,null,null,null,null,null,5327,0,0,0,0,0,0,0,0,{"$error":"#VALUE!"},{"$error":"#VALUE!"},{"$error":"#VALUE!"}]
[null,null,null,null,null,null,null,null,null,null,null,null,null,null,null,null,null,null,null,null,null,null,null,null,null,null,null,null,null,null,null,null,null,5337,0,0,0,0,0,0,0,0,{"$error":"#VALUE!"},{"$error":"#VALUE!"},{"$error":"#VALUE!"}]
[null,null,null,null,null,null,null,null,null,null,null,null,null,null,null,null,null,null,null,null,null,null,null,null,null,null,null,null,null,null,null,null,null,5348,0,0,0,0,0,0,0,0,{"$error":"#VALUE!"},{"$error":"#VALUE!"},{"$error":"#VALUE!"}]
[null,null,null,null,null,null,null,null,null,null,null,null,null,null,null,null,null,null,null,null,null,null,null,null,null,null,null,null,null,null,null,null,null,5363,0,0,0,0,0,0,0,0,{"$error":"#VALUE!"},{"$error":"#VALUE!"},{"$error":"#VALUE!"}]
[null,null,null,null,null,null,null,null,null,null,null,null,null,null,null,null,null,null,null,null,null,null,null,null,null,null,null,null,null,null,null,null,null,5367,0,0,0,0,0,0,0,0,{"$error":"#VALUE!"},{"$error":"#VALUE!"},{"$error":"#VALUE!"}]
[null,null,null,null,null,null,null,null,null,null,null,null,null,null,null,null,null,null,null,null,null,null,null,null,null,null,null,null,null,null,null,null,null,5380,0,0,0,0,0,0,0,0,{"$error":"#VALUE!"},{"$error":"#VALUE!"},{"$error":"#VALUE!"}]
[null,null,null,null,null,null,null,null,null,null,null,null,null,null,null,null,null,null,null,null,null,null,null,null,null,null,null,null,null,null,null,null,null,5395,0,0,0,0,0,0,0,0,{"$error":"#VALUE!"},{"$error":"#VALUE!"},{"$error":"#VALUE!"}]
[null,null,null,null,null,null,null,null,null,null,null,null,null,null,null,null,null,null,null,null,null,null,null,null,null,null,null,null,null,null,null,null,null,5406,0,0,0,0,0,0,0,0,{"$error":"#VALUE!"},{"$error":"#VALUE!"},{"$error":"#VALUE!"}]
[null,null,null,null,null,null,null,null,null,null,null,null,null,null,null,null,null,null,null,null,null,null,null,null,null,null,null,null,null,null,null,null,null,5414,0,0,0,0,0,0,0,0,{"$error":"#VALUE!"},{"$error":"#VALUE!"},{"$error":"#VALUE!"}]
[null,null,null,null,null,null,null,null,null,null,null,null,null,null,null,null,null,null,null,null,null,null,null,null,null,null,null,null,null,null,null,null,null,5427,0,0,0,0,0,0,0,0,{"$error":"#VALUE!"},{"$error":"#VALUE!"},{"$error":"#VALUE!"}]
[null,null,null,null,null,null,null,null,null,null,null,null,null,null,null,null,null,null,null,null,null,null,null,null,null,null,null,null,null,null,null,null,null,5438,0,0,0,0,0,0,0,0,{"$error":"#VALUE!"},{"$error":"#VALUE!"},{"$error":"#VALUE!"}]
[null,null,null,null,null,null,null,null,null,null,null,null,null,null,null,null,null,null,null,null,null,null,null,null,null,null,null,null,null,null,null,null,null,5445,0,0,0,0,0,0,0,0,{"$error":"#VALUE!"},{"$error":"#VALUE!"},{"$error":"#VALUE!"}]
[null,null,null,null,null,null,null,null,null,null,null,null,null,null,null,null,null,null,null,null,null,null,null,null,null,null,null,null,null,null,null,null,null,5455,0,0,0,0,0,0,0,0,{"$error":"#VALUE!"},{"$error":"#VALUE!"},{"$error":"#VALUE!"}]
[null,null,null,null,null,null,null,null,null,null,null,null,null,null,null,null,null,null,null,null,null,null,null,null,null,null,null,null,null,null,null,null,null,5460,0,0,0,0,0,0,0,0,{"$error":"#VALUE!"},{"$error":"#VALUE!"},{"$error":"#VALUE!"}]
[null,null,null,null,null,null,null,null,null,null,null,null,null,null,null,null,null,null,null,null,null,null,null,null,null,null,null,null,null,null,null,null,null,5475,0,0,0,0,0,0,0,0,{"$error":"#VALUE!"},{"$error":"#VALUE!"},{"$error":"#VALUE!"}]
[null,null,null,null,null,null,null,null,null,null,null,null,null,null,null,null,null,null,null,null,null,null,null,null,null,null,null,null,null,null,null,null,null,5485,0,0,0,0,0,0,0,0,{"$error":"#VALUE!"},{"$error":"#VALUE!"},{"$error":"#VALUE!"}]
[null,null,null,null,null,null,null,null,null,null,null,null,null,null,null,null,null,null,null,null,null,null,null,null,null,null,null,null,null,null,null,null,null,5492,0,0,0,0,0,0,0,0,{"$error":"#VALUE!"},{"$error":"#VALUE!"},{"$error":"#VALUE!"}]
[null,null,null,null,null,null,null,null,null,null,null,null,null,null,null,null,null,null,null,null,null,null,null,null,null,null,null,null,null,null,null,null,null,5503,0,0,0,0,0,0,0,0,{"$error":"#VALUE!"},{"$error":"#VALUE!"},{"$error":"#VALUE!"}]
[null,null,null,null,null,null,null,null,null,null,null,null,null,null,null,null,null,null,null,null,null,null,null,null,null,null,null,null,null,null,null,null,null,5518,0,0,0,0,0,0,0,0,{"$error":"#VALUE!"},{"$error":"#VALUE!"},{"$error":"#VALUE!"}]
[null,null,null,null,null,null,null,null,null,null,null,null,null,null,null,null,null,null,null,null,null,null,null,null,null,null,null,null,null,null,null,null,null,5521,0,0,0,0,0,0,0,0,{"$error":"#VALUE!"},{"$error":"#VALUE!"},{"$error":"#VALUE!"}]
[null,null,null,null,null,null,null,null,null,null,null,null,null,null,null,null,null,null,null,null,null,null,null,null,null,null,null,null,null,null,null,null,null,5535,0,0,0,0,0,0,0,0,{"$error":"#VALUE!"},{"$error":"#VALUE!"},{"$error":"#VALUE!"}]
[null,null,null,null,null,null,null,null,null,null,null,null,null,null,null,null,null,null,null,null,null,null,null,null,null,null,null,null,null,null,null,null,null,5550,0,0,0,0,0,0,0,0,{"$error":"#VALUE!"},{"$error":"#VALUE!"},{"$error":"#VALUE!"}]
[null,null,null,null,null,null,null,null,null,null,null,null,null,null,null,null,null,null,null,null,null,null,null,null,null,null,null,null,null,null,null,null,null,5552,0,0,0,0,0,0,0,0,{"$error":"#VALUE!"},{"$error":"#VALUE!"},{"$error":"#VALUE!"}]
[null,null,null,null,null,null,null,null,null,null,null,null,null,null,null,null,null,null,null,null,null,null,null,null,null,null,null,null,null,null,null,null,null,5567,0,0,0,0,0,0,0,0,{"$error":"#VALUE!"},{"$error":"#VALUE!"},{"$error":"#VALUE!"}]
[null,null,null,null,null,null,null,null,null,null,null,null,null,null,null,null,null,null,null,null,null,null,null,null,null,null,null,null,null,null,null,null,null,5582,0,0,0,0,0,0,0,0,{"$error":"#VALUE!"},{"$error":"#VALUE!"},{"$error":"#VALUE!"}]
[null,null,null,null,null,null,null,null,null,null,null,null,null,null,null,null,null,null,null,null,null,null,null,null,null,null,null,null,null,null,null,null,null,5583,0,0,0,0,0,0,0,0,{"$error":"#VALUE!"},{"$error":"#VALUE!"},{"$error":"#VALUE!"}]
[null,null,null,null,null,null,null,null,null,null,null,null,null,null,null,null,null,null,null,null,null,null,null,null,null,null,null,null,null,null,null,null,null,5603,0,0,0,0,0,0,0,0,{"$error":"#VALUE!"},{"$error":"#VALUE!"},{"$error":"#VALUE!"}]
[null,null,null,null,null,null,null,null,null,null,null,null,null,null,null,null,null,null,null,null,null,null,null,null,null,null,null,null,null,null,null,null,null,5604,0,0,0,0,0,0,0,0,{"$error":"#VALUE!"},{"$error":"#VALUE!"},{"$error":"#VALUE!"}]
[null,null,null,null,null,null,null,null,null,null,null,null,null,null,null,null,null,null,null,null,null,null,null,null,null,null,null,null,null,null,null,null,null,5615,0,0,0,0,0,0,0,0,{"$error":"#VALUE!"},{"$error":"#VALUE!"},{"$error":"#VALUE!"}]
[null,null,null,null,null,null,null,null,null,null,null,null,null,null,null,null,null,null,null,null,null,null,null,null,null,null,null,null,null,null,null,null,null,{"$f":"AH5636+1","v":5634},0,0,0,{"$f":"$E$42*((AH5637/60)^-$F$42*AH5637/60*AK5637)","v":0},0,{"$f":"$E$42*(AH5637/60)^-$F$42*AH5637/60*AM5637","v":0},0,0,{"$error":"#VALUE!"},{"$error":"#VALUE!"},{"$error":"#VALUE!"}]
[null,null,null,null,null,null,null,null,null,null,null,null,null,null,null,null,null,null,null,null,null,null,null,null,null,null,null,null,null,null,null,null,null,5635,0,0,0,0,0,0,0,0,{"$error":"#VALUE!"},{"$error":"#VALUE!"},{"$error":"#VALUE!"}]
[null,null,null,null,null,null,null,null,null,null,null,null,null,null,null,null,null,null,null,null,null,null,null,null,null,null,null,null,null,null,null,null,null,5636,0,0,0,0,0,0,0,0,{"$error":"#VALUE!"},{"$error":"#VALUE!"},{"$error":"#VALUE!"}]
[null,null,null,null,null,null,null,null,null,null,null,null,null,null,null,null,null,null,null,null,null,null,null,null,null,null,null,null,null,null,null,null,null,5637,0,0,0,0,0,0,0,0,{"$error":"#VALUE!"},{"$error":"#VALUE!"},{"$error":"#VALUE!"}]
[null,null,null,null,null,null,null,null,null,null,null,null,null,null,null,null,null,null,null,null,null,null,null,null,null,null,null,null,null,null,null,null,null,5638,0,0,0,0,0,0,0,0,{"$error":"#VALUE!"},{"$error":"#VALUE!"},{"$error":"#VALUE!"}]
[null,null,null,null,null,null,null,null,null,null,null,null,null,null,null,null,null,null,null,null,null,null,null,null,null,null,null,null,null,null,null,null,null,5639,0,0,0,0,0,0,0,0,{"$error":"#VALUE!"},{"$error":"#VALUE!"},{"$error":"#VALUE!"}]
[null,null,null,null,null,null,null,null,null,null,null,null,null,null,null,null,null,null,null,null,null,null,null,null,null,null,null,null,null,null,null,null,null,5640,0,0,0,0,0,0,0,0,{"$error":"#VALUE!"},{"$error":"#VALUE!"},{"$error":"#VALUE!"}]
[null,null,null,null,null,null,null,null,null,null,null,null,null,null,null,null,null,null,null,null,null,null,null,null,null,null,null,null,null,null,null,null,null,5641,0,0,0,0,0,0,0,0,{"$error":"#VALUE!"},{"$error":"#VALUE!"},{"$error":"#VALUE!"}]
[null,null,null,null,null,null,null,null,null,null,null,null,null,null,null,null,null,null,null,null,null,null,null,null,null,null,null,null,null,null,null,null,null,5642,0,0,0,0,0,0,0,0,{"$error":"#VALUE!"},{"$error":"#VALUE!"},{"$error":"#VALUE!"}]
[null,null,null,null,null,null,null,null,null,null,null,null,null,null,null,null,null,null,null,null,null,null,null,null,null,null,null,null,null,null,null,null,null,5643,0,0,0,0,0,0,0,0,{"$error":"#VALUE!"},{"$error":"#VALUE!"},{"$error":"#VALUE!"}]
[null,null,null,null,null,null,null,null,null,null,null,null,null,null,null,null,null,null,null,null,null,null,null,null,null,null,null,null,null,null,null,null,null,5644,0,0,0,0,0,0,0,0,{"$error":"#VALUE!"},{"$error":"#VALUE!"},{"$error":"#VALUE!"}]
[null,null,null,null,null,null,null,null,null,null,null,null,null,null,null,null,null,null,null,null,null,null,null,null,null,null,null,null,null,null,null,null,null,5645,0,0,0,0,0,0,0,0,{"$error":"#VALUE!"},{"$error":"#VALUE!"},{"$error":"#VALUE!"}]
[null,null,null,null,null,null,null,null,null,null,null,null,null,null,null,null,null,null,null,null,null,null,null,null,null,null,null,null,null,null,null,null,null,5646,0,0,0,0,0,0,0,0,{"$error":"#VALUE!"},{"$error":"#VALUE!"},{"$error":"#VALUE!"}]
[null,null,null,null,null,null,null,null,null,null,null,null,null,null,null,null,null,null,null,null,null,null,null,null,null,null,null,null,null,null,null,null,null,5647,0,0,0,0,0,0,0,0,{"$error":"#VALUE!"},{"$error":"#VALUE!"},{"$error":"#VALUE!"}]
[null,null,null,null,null,null,null,null,null,null,null,null,null,null,null,null,null,null,null,null,null,null,null,null,null,null,null,null,null,null,null,null,null,5648,0,0,0,0,0,0,0,0,{"$error":"#VALUE!"},{"$error":"#VALUE!"},{"$error":"#VALUE!"}]
[null,null,null,null,null,null,null,null,null,null,null,null,null,null,null,null,null,null,null,null,null,null,null,null,null,null,null,null,null,null,null,null,null,5649,0,0,0,0,0,0,0,0,{"$error":"#VALUE!"},{"$error":"#VALUE!"},{"$error":"#VALUE!"}]
[null,null,null,null,null,null,null,null,null,null,null,null,null,null,null,null,null,null,null,null,null,null,null,null,null,null,null,null,null,null,null,null,null,5650,0,0,0,0,0,0,0,0,{"$error":"#VALUE!"},{"$error":"#VALUE!"},{"$error":"#VALUE!"}]
[null,null,null,null,null,null,null,null,null,null,null,null,null,null,null,null,null,null,null,null,null,null,null,null,null,null,null,null,null,null,null,null,null,5651,0,0,0,0,0,0,0,0,{"$error":"#VALUE!"},{"$error":"#VALUE!"},{"$error":"#VALUE!"}]
[null,null,null,null,null,null,null,null,null,null,null,null,null,null,null,null,null,null,null,null,null,null,null,null,null,null,null,null,null,null,null,null,null,5652,0,0,0,0,0,0,0,0,{"$error":"#VALUE!"},{"$error":"#VALUE!"},{"$error":"#VALUE!"}]
[null,null,null,null,null,null,null,null,null,null,null,null,null,null,null,null,null,null,null,null,null,null,null,null,null,null,null,null,null,null,null,null,null,5653,0,0,0,0,0,0,0,0,{"$error":"#VALUE!"},{"$error":"#VALUE!"},{"$error":"#VALUE!"}]
[null,null,null,null,null,null,null,null,null,null,null,null,null,null,null,null,null,null,null,null,null,null,null,null,null,null,null,null,null,null,null,null,null,5654,0,0,0,0,0,0,0,0,{"$error":"#VALUE!"},{"$error":"#VALUE!"},{"$error":"#VALUE!"}]
[null,null,null,null,null,null,null,null,null,null,null,null,null,null,null,null,null,null,null,null,null,null,null,null,null,null,null,null,null,null,null,null,null,5655,0,0,0,0,0,0,0,0,{"$error":"#VALUE!"},{"$error":"#VALUE!"},{"$error":"#VALUE!"}]
[null,null,null,null,null,null,null,null,null,null,null,null,null,null,null,null,null,null,null,null,null,null,null,null,null,null,null,null,null,null,null,null,null,5656,0,0,0,0,0,0,0,0,{"$error":"#VALUE!"},{"$error":"#VALUE!"},{"$error":"#VALUE!"}]
[null,null,null,null,null,null,null,null,null,null,null,null,null,null,null,null,null,null,null,null,null,null,null,null,null,null,null,null,null,null,null,null,null,5657,0,0,0,0,0,0,0,0,{"$error":"#VALUE!"},{"$error":"#VALUE!"},{"$error":"#VALUE!"}]
[null,null,null,null,null,null,null,null,null,null,null,null,null,null,null,null,null,null,null,null,null,null,null,null,null,null,null,null,null,null,null,null,null,5658,0,0,0,0,0,0,0,0,{"$error":"#VALUE!"},{"$error":"#VALUE!"},{"$error":"#VALUE!"}]
[null,null,null,null,null,null,null,null,null,null,null,null,null,null,null,null,null,null,null,null,null,null,null,null,null,null,null,null,null,null,null,null,null,5659,0,0,0,0,0,0,0,0,{"$error":"#VALUE!"},{"$error":"#VALUE!"},{"$error":"#VALUE!"}]
[null,null,null,null,null,null,null,null,null,null,null,null,null,null,null,null,null,null,null,null,null,null,null,null,null,null,null,null,null,null,null,null,null,5660,0,0,0,0,0,0,0,0,{"$error":"#VALUE!"},{"$error":"#VALUE!"},{"$error":"#VALUE!"}]
[null,null,null,null,null,null,null,null,null,null,null,null,null,null,null,null,null,null,null,null,null,null,null,null,null,null,null,null,null,null,null,null,null,5661,0,0,0,0,0,0,0,0,{"$error":"#VALUE!"},{"$error":"#VALUE!"},{"$error":"#VALUE!"}]
[null,null,null,null,null,null,null,null,null,null,null,null,null,null,null,null,null,null,null,null,null,null,null,null,null,null,null,null,null,null,null,null,null,5662,0,0,0,0,0,0,0,0,{"$error":"#VALUE!"},{"$error":"#VALUE!"},{"$error":"#VALUE!"}]
[null,null,null,null,null,null,null,null,null,null,null,null,null,null,null,null,null,null,null,null,null,null,null,null,null,null,null,null,null,null,null,null,null,5663,0,0,0,0,0,0,0,0,{"$error":"#VALUE!"},{"$error":"#VALUE!"},{"$error":"#VALUE!"}]
[null,null,null,null,null,null,null,null,null,null,null,null,null,null,null,null,null,null,null,null,null,null,null,null,null,null,null,null,null,null,null,null,null,5664,0,0,0,0,0,0,0,0,{"$error":"#VALUE!"},{"$error":"#VALUE!"},{"$error":"#VALUE!"}]
[null,null,null,null,null,null,null,null,null,null,null,null,null,null,null,null,null,null,null,null,null,null,null,null,null,null,null,null,null,null,null,null,null,5665,0,0,0,0,0,0,0,0,{"$error":"#VALUE!"},{"$error":"#VALUE!"},{"$error":"#VALUE!"}]
[null,null,null,null,null,null,null,null,null,null,null,null,null,null,null,null,null,null,null,null,null,null,null,null,null,null,null,null,null,null,null,null,null,5666,0,0,0,0,0,0,0,0,{"$error":"#VALUE!"},{"$error":"#VALUE!"},{"$error":"#VALUE!"}]
[null,null,null,null,null,null,null,null,null,null,null,null,null,null,null,null,null,null,null,null,null,null,null,null,null,null,null,null,null,null,null,null,null,5667,0,0,0,0,0,0,0,0,{"$error":"#VALUE!"},{"$error":"#VALUE!"},{"$error":"#VALUE!"}]
[null,null,null,null,null,null,null,null,null,null,null,null,null,null,null,null,null,null,null,null,null,null,null,null,null,null,null,null,null,null,null,null,null,5668,0,0,0,0,0,0,0,0,{"$error":"#VALUE!"},{"$error":"#VALUE!"},{"$error":"#VALUE!"}]
[null,null,null,null,null,null,null,null,null,null,null,null,null,null,null,null,null,null,null,null,null,null,null,null,null,null,null,null,null,null,null,null,null,5669,0,0,0,0,0,0,0,0,{"$error":"#VALUE!"},{"$error":"#VALUE!"},{"$error":"#VALUE!"}]
[null,null,null,null,null,null,null,null,null,null,null,null,null,null,null,null,null,null,null,null,null,null,null,null,null,null,null,null,null,null,null,null,null,5670,0,0,0,0,0,0,0,0,{"$error":"#VALUE!"},{"$error":"#VALUE!"},{"$error":"#VALUE!"}]
[null,null,null,null,null,null,null,null,null,null,null,null,null,null,null,null,null,null,null,null,null,null,null,null,null,null,null,null,null,null,null,null,null,5671,0,0,0,0,0,0,0,0,{"$error":"#VALUE!"},{"$error":"#VALUE!"},{"$error":"#VALUE!"}]
[null,null,null,null,null,null,null,null,null,null,null,null,null,null,null,null,null,null,null,null,null,null,null,null,null,null,null,null,null,null,null,null,null,5672,0,0,0,0,0,0,0,0,{"$error":"#VALUE!"},{"$error":"#VALUE!"},{"$error":"#VALUE!"}]
[null,null,null,null,null,null,null,null,null,null,null,null,null,null,null,null,null,null,null,null,null,null,null,null,null,null,null,null,null,null,null,null,null,5673,0,0,0,0,0,0,0,0,{"$error":"#VALUE!"},{"$error":"#VALUE!"},{"$error":"#VALUE!"}]
[null,null,null,null,null,null,null,null,null,null,null,null,null,null,null,null,null,null,null,null,null,null,null,null,null,null,null,null,null,null,null,null,null,5674,0,0,0,0,0,0,0,0,{"$error":"#VALUE!"},{"$error":"#VALUE!"},{"$error":"#VALUE!"}]
[null,null,null,null,null,null,null,null,null,null,null,null,null,null,null,null,null,null,null,null,null,null,null,null,null,null,null,null,null,null,null,null,null,5675,0,0,0,0,0,0,0,0,{"$error":"#VALUE!"},{"$error":"#VALUE!"},{"$error":"#VALUE!"}]
[null,null,null,null,null,null,null,null,null,null,null,null,null,null,null,null,null,null,null,null,null,null,null,null,null,null,null,null,null,null,null,null,null,5676,0,0,0,0,0,0,0,0,{"$error":"#VALUE!"},{"$error":"#VALUE!"},{"$error":"#VALUE!"}]
[null,null,null,null,null,null,null,null,null,null,null,null,null,null,null,null,null,null,null,null,null,null,null,null,null,null,null,null,null,null,null,null,null,5677,0,0,0,0,0,0,0,0,{"$error":"#VALUE!"},{"$error":"#VALUE!"},{"$error":"#VALUE!"}]
[null,null,null,null,null,null,null,null,null,null,null,null,null,null,null,null,null,null,null,null,null,null,null,null,null,null,null,null,null,null,null,null,null,5678,0,0,0,0,0,0,0,0,{"$error":"#VALUE!"},{"$error":"#VALUE!"},{"$error":"#VALUE!"}]
[null,null,null,null,null,null,null,null,null,null,null,null,null,null,null,null,null,null,null,null,null,null,null,null,null,null,null,null,null,null,null,null,null,5679,0,0,0,0,0,0,0,0,{"$error":"#VALUE!"},{"$error":"#VALUE!"},{"$error":"#VALUE!"}]
[null,null,null,null,null,null,null,null,null,null,null,null,null,null,null,null,null,null,null,null,null,null,null,null,null,null,null,null,null,null,null,null,null,5680,0,0,0,0,0,0,0,0,{"$error":"#VALUE!"},{"$error":"#VALUE!"},{"$error":"#VALUE!"}]
[null,null,null,null,null,null,null,null,null,null,null,null,null,null,null,null,null,null,null,null,null,null,null,null,null,null,null,null,null,null,null,null,null,5681,0,0,0,0,0,0,0,0,{"$error":"#VALUE!"},{"$error":"#VALUE!"},{"$error":"#VALUE!"}]
[null,null,null,null,null,null,null,null,null,null,null,null,null,null,null,null,null,null,null,null,null,null,null,null,null,null,null,null,null,null,null,null,null,5682,0,0,0,0,0,0,0,0,{"$error":"#VALUE!"},{"$error":"#VALUE!"},{"$error":"#VALUE!"}]
[null,null,null,null,null,null,null,null,null,null,null,null,null,null,null,null,null,null,null,null,null,null,null,null,null,null,null,null,null,null,null,null,null,5683,0,0,0,0,0,0,0,0,{"$error":"#VALUE!"},{"$error":"#VALUE!"},{"$error":"#VALUE!"}]
[null,null,null,null,null,null,null,null,null,null,null,null,null,null,null,null,null,null,null,null,null,null,null,null,null,null,null,null,null,null,null,null,null,5684,0,0,0,0,0,0,0,0,{"$error":"#VALUE!"},{"$error":"#VALUE!"},{"$error":"#VALUE!"}]
[null,null,null,null,null,null,null,null,null,null,null,null,null,null,null,null,null,null,null,null,null,null,null,null,null,null,null,null,null,null,null,null,null,5685,0,0,0,0,0,0,0,0,{"$error":"#VALUE!"},{"$error":"#VALUE!"},{"$error":"#VALUE!"}]
[null,null,null,null,null,null,null,null,null,null,null,null,null,null,null,null,null,null,null,null,null,null,null,null,null,null,null,null,null,null,null,null,null,5686,0,0,0,0,0,0,0,0,{"$error":"#VALUE!"},{"$error":"#VALUE!"},{"$error":"#VALUE!"}]
[null,null,null,null,null,null,null,null,null,null,null,null,null,null,null,null,null,null,null,null,null,null,null,null,null,null,null,null,null,null,null,null,null,5687,0,0,0,0,0,0,0,0,{"$error":"#VALUE!"},{"$error":"#VALUE!"},{"$error":"#VALUE!"}]
[null,null,null,null,null,null,null,null,null,null,null,null,null,null,null,null,null,null,null,null,null,null,null,null,null,null,null,null,null,null,null,null,null,5688,{"$f":"IF(AND(AH5691>$C$41,AH5691<=$D$41),1,0)","v":0},0,0,0,0,0,{"$f":"AJ5691+AL5691+AN5691","v":0},{"$f":"AO5691*$H$17*$H$18/1000","v":0},{"$f":"$E$26/1000*AH5691*60","v":{"$error":"#VALUE!"}},{"$error":"#VALUE!"},{"$error":"#VALUE!"}]
[null,null,null,null,null,null,null,null,null,null,null,null,null,null,null,null,null,null,null,null,null,null,null,null,null,null,null,null,null,null,null,null,null,5689,0,0,0,0,0,0,0,0,{"$error":"#VALUE!"},{"$error":"#VALUE!"},{"$error":"#VALUE!"}]
[null,null,null,null,null,null,null,null,null,null,null,null,null,null,null,null,null,null,null,null,null,null,null,null,null,null,null,null,null,null,null,null,null,5690,0,0,0,0,0,0,0,0,{"$error":"#VALUE!"},{"$error":"#VALUE!"},{"$error":"#VALUE!"}]
[null,null,null,null,null,null,null,null,null,null,null,null,null,null,null,null,null,null,null,null,null,null,null,null,null,null,null,null,null,null,null,null,null,5691,0,0,0,0,0,0,0,0,{"$error":"#VALUE!"},{"$error":"#VALUE!"},{"$error":"#VALUE!"}]
[null,null,null,null,null,null,null,null,null,null,null,null,null,null,null,null,null,null,null,null,null,null,null,null,null,null,null,null,null,null,null,null,null,5692,0,0,0,0,0,0,0,0,{"$error":"#VALUE!"},{"$error":"#VALUE!"},{"$error":"#VALUE!"}]
[null,null,null,null,null,null,null,null,null,null,null,null,null,null,null,null,null,null,null,null,null,null,null,null,null,null,null,null,null,null,null,null,null,5693,0,0,0,0,0,0,0,0,{"$error":"#VALUE!"},{"$error":"#VALUE!"},{"$error":"#VALUE!"}]
[null,null,null,null,null,null,null,null,null,null,null,null,null,null,null,null,null,null,null,null,null,null,null,null,null,null,null,null,null,null,null,null,null,5694,0,0,0,0,0,0,0,0,{"$error":"#VALUE!"},{"$error":"#VALUE!"},{"$error":"#VALUE!"}]
[null,null,null,null,null,null,null,null,null,null,null,null,null,null,null,null,null,null,null,null,null,null,null,null,null,null,null,null,null,null,null,null,null,5695,0,0,0,0,0,0,0,0,{"$error":"#VALUE!"},{"$error":"#VALUE!"},{"$error":"#VALUE!"}]
[null,null,null,null,null,null,null,null,null,null,null,null,null,null,null,null,null,null,null,null,null,null,null,null,null,null,null,null,null,null,null,null,null,5696,0,0,{"$f":"IF(AI5699=1,0,IF(AND(AH5699>$C$42,AH5699<=$D$42),1,0))","v":0},0,0,0,0,0,{"$error":"#VALUE!"},{"$error":"#VALUE!"},{"$error":"#VALUE!"}]
[null,null,null,null,null,null,null,null,null,null,null,null,null,null,null,null,null,null,null,null,null,null,null,null,null,null,null,null,null,null,null,null,null,5697,0,{"$f":"$E$41*(AH5700/60)^-$F$41*AH5700/60*AI5700","v":0},0,0,{"$f":"IF(OR(AI5700=1,AK5700=1),0,IF(AND(AH5700>$C$43,AH5700<=$D$43),1,0))","v":0},0,0,0,{"$error":"#VALUE!"},{"$f":"AP5700-AQ5700","v":{"$error":"#VALUE!"}},{"$f":"IF(AR5700=MAX($AR$3:$AR$5762),AH5700,\"\")","v":{"$error":"#VALUE!"}}]
[null,null,null,null,null,null,null,null,null,null,null,null,null,null,null,null,null,null,null,null,null,null,null,null,null,null,null,null,null,null,null,null,null,{"$f":"AH5700+1","v":5698},0,0,0,{"$f":"$E$42*((AH5701/60)^-$F$42*AH5701/60*AK5701)","v":0},0,{"$f":"$E$42*(AH5701/60)^-$F$42*AH5701/60*AM5701","v":0},0,0,{"$error":"#VALUE!"},{"$error":"#VALUE!"},{"$error":"#VALUE!"}]
[null,null,null,null,null,null,null,null,null,null,null,null,null,null,null,null,null,null,null,null,null,null,null,null,null,null,null,null,null,null,null,null,null,5699,0,0,0,0,0,0,0,0,{"$error":"#VALUE!"},{"$error":"#VALUE!"},{"$error":"#VALUE!"}]
[null,null,null,null,null,null,null,null,null,null,null,null,null,null,null,null,null,null,null,null,null,null,null,null,null,null,null,null,null,null,null,null,null,5700,0,0,0,0,0,0,0,0,{"$error":"#VALUE!"},{"$error":"#VALUE!"},{"$error":"#VALUE!"}]
[null,null,null,null,null,null,null,null,null,null,null,null,null,null,null,null,null,null,null,null,null,null,null,null,null,null,null,null,null,null,null,null,null,5701,0,0,0,0,0,0,0,0,{"$error":"#VALUE!"},{"$error":"#VALUE!"},{"$error":"#VALUE!"}]
[null,null,null,null,null,null,null,null,null,null,null,null,null,null,null,null,null,null,null,null,null,null,null,null,null,null,null,null,null,null,null,null,null,5702,0,0,0,0,0,0,0,0,{"$error":"#VALUE!"},{"$error":"#VALUE!"},{"$error":"#VALUE!"}]
[null,null,null,null,null,null,null,null,null,null,null,null,null,null,null,null,null,null,null,null,null,null,null,null,null,null,null,null,null,null,null,null,null,5703,0,0,0,0,0,0,0,0,{"$error":"#VALUE!"},{"$error":"#VALUE!"},{"$error":"#VALUE!"}]
[null,null,null,null,null,null,null,null,null,null,null,null,null,null,null,null,null,null,null,null,null,null,null,null,null,null,null,null,null,null,null,null,null,5704,0,0,0,0,0,0,0,0,{"$error":"#VALUE!"},{"$error":"#VALUE!"},{"$error":"#VALUE!"}]
[null,null,null,null,null,null,null,null,null,null,null,null,null,null,null,null,null,null,null,null,null,null,null,null,null,null,null,null,null,null,null,null,null,5705,0,0,0,0,0,0,0,0,{"$error":"#VALUE!"},{"$error":"#VALUE!"},{"$error":"#VALUE!"}]
[null,null,null,null,null,null,null,null,null,null,null,null,null,null,null,null,null,null,null,null,null,null,null,null,null,null,null,null,null,null,null,null,null,5706,0,0,0,0,0,0,0,0,{"$error":"#VALUE!"},{"$error":"#VALUE!"},{"$error":"#VALUE!"}]
[null,null,null,null,null,null,null,null,null,null,null,null,null,null,null,null,null,null,null,null,null,null,null,null,null,null,null,null,null,null,null,null,null,5707,0,0,0,0,0,0,0,0,{"$error":"#VALUE!"},{"$error":"#VALUE!"},{"$error":"#VALUE!"}]
[null,null,null,null,null,null,null,null,null,null,null,null,null,null,null,null,null,null,null,null,null,null,null,null,null,null,null,null,null,null,null,null,null,5708,0,0,0,0,0,0,0,0,{"$error":"#VALUE!"},{"$error":"#VALUE!"},{"$error":"#VALUE!"}]
[null,null,null,null,null,null,null,null,null,null,null,null,null,null,null,null,null,null,null,null,null,null,null,null,null,null,null,null,null,null,null,null,null,5709,0,0,0,0,0,0,0,0,{"$error":"#VALUE!"},{"$error":"#VALUE!"},{"$error":"#VALUE!"}]
[null,null,null,null,null,null,null,null,null,null,null,null,null,null,null,null,null,null,null,null,null,null,null,null,null,null,null,null,null,null,null,null,null,5710,0,0,0,0,0,0,0,0,{"$error":"#VALUE!"},{"$error":"#VALUE!"},{"$error":"#VALUE!"}]
[null,null,null,null,null,null,null,null,null,null,null,null,null,null,null,null,null,null,null,null,null,null,null,null,null,null,null,null,null,null,null,null,null,5711,0,0,0,0,0,0,0,0,{"$error":"#VALUE!"},{"$error":"#VALUE!"},{"$error":"#VALUE!"}]
[null,null,null,null,null,null,null,null,null,null,null,null,null,null,null,null,null,null,null,null,null,null,null,null,null,null,null,null,null,null,null,null,null,5712,0,0,0,0,0,0,0,0,{"$error":"#VALUE!"},{"$error":"#VALUE!"},{"$error":"#VALUE!"}]
[null,null,null,null,null,null,null,null,null,null,null,null,null,null,null,null,null,null,null,null,null,null,null,null,null,null,null,null,null,null,null,null,null,5713,0,0,0,0,0,0,0,0,{"$error":"#VALUE!"},{"$error":"#VALUE!"},{"$error":"#VALUE!"}]
[null,null,null,null,null,null,null,null,null,null,null,null,null,null,null,null,null,null,null,null,null,null,null,null,null,null,null,null,null,null,null,null,null,5714,0,0,0,0,0,0,0,0,{"$error":"#VALUE!"},{"$error":"#VALUE!"},{"$error":"#VALUE!"}]
[null,null,null,null,null,null,null,null,null,null,null,null,null,null,null,null,null,null,null,null,null,null,null,null,null,null,null,null,null,null,null,null,null,5715,0,0,0,0,0,0,0,0,{"$error":"#VALUE!"},{"$error":"#VALUE!"},{"$error":"#VALUE!"}]
[null,null,null,null,null,null,null,null,null,null,null,null,null,null,null,null,null,null,null,null,null,null,null,null,null,null,null,null,null,null,null,null,null,5716,0,0,0,0,0,0,0,0,{"$error":"#VALUE!"},{"$error":"#VALUE!"},{"$error":"#VALUE!"}]
[null,null,null,null,null,null,null,null,null,null,null,null,null,null,null,null,null,null,null,null,null,null,null,null,null,null,null,null,null,null,null,null,null,5717,0,0,0,0,0,0,0,0,{"$error":"#VALUE!"},{"$error":"#VALUE!"},{"$error":"#VALUE!"}]
[null,null,null,null,null,null,null,null,null,null,null,null,null,null,null,null,null,null,null,null,null,null,null,null,null,null,null,null,null,null,null,null,null,5718,0,0,0,0,0,0,0,0,{"$error":"#VALUE!"},{"$error":"#VALUE!"},{"$error":"#VALUE!"}]
[null,null,null,null,null,null,null,null,null,null,null,null,null,null,null,null,null,null,null,null,null,null,null,null,null,null,null,null,null,null,null,null,null,5719,0,0,0,0,0,0,0,0,{"$error":"#VALUE!"},{"$error":"#VALUE!"},{"$error":"#VALUE!"}]
[null,null,null,null,null,null,null,null,null,null,null,null,null,null,null,null,null,null,null,null,null,null,null,null,null,null,null,null,null,null,null,null,null,5720,0,0,0,0,0,0,0,0,{"$error":"#VALUE!"},{"$error":"#VALUE!"},{"$error":"#VALUE!"}]
[null,null,null,null,null,null,null,null,null,null,null,null,null,null,null,null,null,null,null,null,null,null,null,null,null,null,null,null,null,null,null,null,null,5721,0,0,0,0,0,0,0,0,{"$error":"#VALUE!"},{"$error":"#VALUE!"},{"$error":"#VALUE!"}]
[null,null,null,null,null,null,null,null,null,null,null,null,null,null,null,null,null,null,null,null,null,null,null,null,null,null,null,null,null,null,null,null,null,5722,0,0,0,0,0,0,0,0,{"$error":"#VALUE!"},{"$error":"#VALUE!"},{"$error":"#VALUE!"}]
[null,null,null,null,null,null,null,null,null,null,null,null,null,null,null,null,null,null,null,null,null,null,null,null,null,null,null,null,null,null,null,null,null,5723,0,0,0,0,0,0,0,0,{"$error":"#VALUE!"},{"$error":"#VALUE!"},{"$error":"#VALUE!"}]
[null,null,null,null,null,null,null,null,null,null,null,null,null,null,null,null,null,null,null,null,null,null,null,null,null,null,null,null,null,null,null,null,null,5724,0,0,0,0,0,0,0,0,{"$error":"#VALUE!"},{"$error":"#VALUE!"},{"$error":"#VALUE!"}]
[null,null,null,null,null,null,null,null,null,null,null,null,null,null,null,null,null,null,null,null,null,null,null,null,null,null,null,null,null,null,null,null,null,5725,0,0,0,0,0,0,0,0,{"$error":"#VALUE!"},{"$error":"#VALUE!"},{"$error":"#VALUE!"}]
[null,null,null,null,null,null,null,null,null,null,null,null,null,null,null,null,null,null,null,null,null,null,null,null,null,null,null,null,null,null,null,null,null,5726,0,0,0,0,0,0,0,0,{"$error":"#VALUE!"},{"$error":"#VALUE!"},{"$error":"#VALUE!"}]
[null,null,null,null,null,null,null,null,null,null,null,null,null,null,null,null,null,null,null,null,null,null,null,null,null,null,null,null,null,null,null,null,null,5727,0,0,0,0,0,0,0,0,{"$error":"#VALUE!"},{"$error":"#VALUE!"},{"$error":"#VALUE!"}]
[null,null,null,null,null,null,null,null,null,null,null,null,null,null,null,null,null,null,null,null,null,null,null,null,null,null,null,null,null,null,null,null,null,5728,0,0,0,0,0,0,0,0,{"$error":"#VALUE!"},{"$error":"#VALUE!"},{"$error":"#VALUE!"}]
[null,null,null,null,null,null,null,null,null,null,null,null,null,null,null,null,null,null,null,null,null,null,null,null,null,null,null,null,null,null,null,null,null,5729,0,0,0,0,0,0,0,0,{"$error":"#VALUE!"},{"$error":"#VALUE!"},{"$error":"#VALUE!"}]
[null,null,null,null,null,null,null,null,null,null,null,null,null,null,null,null,null,null,null,null,null,null,null,null,null,null,null,null,null,null,null,null,null,5730,0,0,0,0,0,0,0,0,{"$error":"#VALUE!"},{"$error":"#VALUE!"},{"$error":"#VALUE!"}]
[null,null,null,null,null,null,null,null,null,null,null,null,null,null,null,null,null,null,null,null,null,null,null,null,null,null,null,null,null,null,null,null,null,5731,0,0,0,0,0,0,0,0,{"$error":"#VALUE!"},{"$error":"#VALUE!"},{"$error":"#VALUE!"}]
[null,null,null,null,null,null,null,null,null,null,null,null,null,null,null,null,null,null,null,null,null,null,null,null,null,null,null,null,null,null,null,null,null,5732,0,0,0,0,0,0,0,0,{"$error":"#VALUE!"},{"$error":"#VALUE!"},{"$error":"#VALUE!"}]
[null,null,null,null,null,null,null,null,null,null,null,null,null,null,null,null,null,null,null,null,null,null,null,null,null,null,null,null,null,null,null,null,null,5733,0,0,0,0,0,0,0,0,{"$error":"#VALUE!"},{"$error":"#VALUE!"},{"$error":"#VALUE!"}]
[null,null,null,null,null,null,null,null,null,null,null,null,null,null,null,null,null,null,null,null,null,null,null,null,null,null,null,null,null,null,null,null,null,5734,0,0,0,0,0,0,0,0,{"$error":"#VALUE!"},{"$error":"#VALUE!"},{"$error":"#VALUE!"}]
[null,null,null,null,null,null,null,null,null,null,null,null,null,null,null,null,null,null,null,null,null,null,null,null,null,null,null,null,null,null,null,null,null,5735,0,0,0,0,0,0,0,0,{"$error":"#VALUE!"},{"$error":"#VALUE!"},{"$error":"#VALUE!"}]
[null,null,null,null,null,null,null,null,null,null,null,null,null,null,null,null,null,null,null,null,null,null,null,null,null,null,null,null,null,null,null,null,null,5736,0,0,0,0,0,0,0,0,{"$error":"#VALUE!"},{"$error":"#VALUE!"},{"$error":"#VALUE!"}]
[null,null,null,null,null,null,null,null,null,null,null,null,null,null,null,null,null,null,null,null,null,null,null,null,null,null,null,null,null,null,null,null,null,5737,0,0,0,0,0,0,0,0,{"$error":"#VALUE!"},{"$error":"#VALUE!"},{"$error":"#VALUE!"}]
[null,null,null,null,null,null,null,null,null,null,null,null,null,null,null,null,null,null,null,null,null,null,null,null,null,null,null,null,null,null,null,null,null,5738,0,0,0,0,0,0,0,0,{"$error":"#VALUE!"},{"$error":"#VALUE!"},{"$error":"#VALUE!"}]
[null,null,null,null,null,null,null,null,null,null,null,null,null,null,null,null,null,null,null,null,null,null,null,null,null,null,null,null,null,null,null,null,null,5739,0,0,0,0,0,0,0,0,{"$error":"#VALUE!"},{"$error":"#VALUE!"},{"$error":"#VALUE!"}]
[null,null,null,null,null,null,null,null,null,null,null,null,null,null,null,null,null,null,null,null,null,null,null,null,null,null,null,null,null,null,null,null,null,5740,0,0,0,0,0,0,0,0,{"$error":"#VALUE!"},{"$error":"#VALUE!"},{"$error":"#VALUE!"}]
[null,null,null,null,null,null,null,null,null,null,null,null,null,null,null,null,null,null,null,null,null,null,null,null,null,null,null,null,null,null,null,null,null,5741,0,0,0,0,0,0,0,0,{"$error":"#VALUE!"},{"$error":"#VALUE!"},{"$error":"#VALUE!"}]
[null,null,null,null,null,null,null,null,null,null,null,null,null,null,null,null,null,null,null,null,null,null,null,null,null,null,null,null,null,null,null,null,null,5742,0,0,0,0,0,0,0,0,{"$error":"#VALUE!"},{"$error":"#VALUE!"},{"$error":"#VALUE!"}]
[null,null,null,null,null,null,null,null,null,null,null,null,null,null,null,null,null,null,null,null,null,null,null,null,null,null,null,null,null,null,null,null,null,5743,0,0,0,0,0,0,0,0,{"$error":"#VALUE!"},{"$error":"#VALUE!"},{"$error":"#VALUE!"}]
[null,null,null,null,null,null,null,null,null,null,null,null,null,null,null,null,null,null,null,null,null,null,null,null,null,null,null,null,null,null,null,null,null,5744,0,0,0,0,0,0,0,0,{"$error":"#VALUE!"},{"$error":"#VALUE!"},{"$error":"#VALUE!"}]
[null,null,null,null,null,null,null,null,null,null,null,null,null,null,null,null,null,null,null,null,null,null,null,null,null,null,null,null,null,null,null,null,null,5745,0,0,0,0,0,0,0,0,{"$error":"#VALUE!"},{"$error":"#VALUE!"},{"$error":"#VALUE!"}]
[null,null,null,null,null,null,null,null,null,null,null,null,null,null,null,null,null,null,null,null,null,null,null,null,null,null,null,null,null,null,null,null,null,5746,0,0,0,0,0,0,0,0,{"$error":"#VALUE!"},{"$error":"#VALUE!"},{"$error":"#VALUE!"}]
[null,null,null,null,null,null,null,null,null,null,null,null,null,null,null,null,null,null,null,null,null,null,null,null,null,null,null,null,null,null,null,null,null,5747,0,0,0,0,0,0,0,0,{"$error":"#VALUE!"},{"$error":"#VALUE!"},{"$error":"#VALUE!"}]
[null,null,null,null,null,null,null,null,null,null,null,null,null,null,null,null,null,null,null,null,null,null,null,null,null,null,null,null,null,null,null,null,null,5748,0,0,0,0,0,0,0,0,{"$error":"#VALUE!"},{"$error":"#VALUE!"},{"$error":"#VALUE!"}]
[null,null,null,null,null,null,null,null,null,null,null,null,null,null,null,null,null,null,null,null,null,null,null,null,null,null,null,null,null,null,null,null,null,5749,0,0,0,0,0,0,0,0,{"$error":"#VALUE!"},{"$error":"#VALUE!"},{"$error":"#VALUE!"}]
[null,null,null,null,null,null,null,null,null,null,null,null,null,null,null,null,null,null,null,null,null,null,null,null,null,null,null,null,null,null,null,null,null,5750,0,0,0,0,0,0,0,0,{"$error":"#VALUE!"},{"$error":"#VALUE!"},{"$error":"#VALUE!"}]
[null,null,null,null,null,null,null,null,null,null,null,null,null,null,null,null,null,null,null,null,null,null,null,null,null,null,null,null,null,null,null,null,null,5751,0,0,0,0,0,0,0,0,{"$error":"#VALUE!"},{"$error":"#VALUE!"},{"$error":"#VALUE!"}]
[null,null,null,null,null,null,null,null,null,null,null,null,null,null,null,null,null,null,null,null,null,null,null,null,null,null,null,null,null,null,null,null,null,5752,{"$f":"IF(AND(AH5755>$C$41,AH5755<=$D$41),1,0)","v":0},0,0,0,0,0,{"$f":"AJ5755+AL5755+AN5755","v":0},{"$f":"AO5755*$H$17*$H$18/1000","v":0},{"$f":"$E$26/1000*AH5755*60","v":{"$error":"#VALUE!"}},{"$error":"#VALUE!"},{"$error":"#VALUE!"}]
[null,null,null,null,null,null,null,null,null,null,null,null,null,null,null,null,null,null,null,null,null,null,null,null,null,null,null,null,null,null,null,null,null,5753,0,0,0,0,0,0,0,0,{"$error":"#VALUE!"},{"$error":"#VALUE!"},{"$error":"#VALUE!"}]
[null,null,null,null,null,null,null,null,null,null,null,null,null,null,null,null,null,null,null,null,null,null,null,null,null,null,null,null,null,null,null,null,null,5754,0,0,0,0,0,0,0,0,{"$error":"#VALUE!"},{"$error":"#VALUE!"},{"$error":"#VALUE!"}]
[null,null,null,null,null,null,null,null,null,null,null,null,null,null,null,null,null,null,null,null,null,null,null,null,null,null,null,null,null,null,null,null,null,5755,{"$f":"IF(AND(AH5758>$C$41,AH5758<=$D$41),1,0)","v":0},0,{"$f":"IF(AI5758=1,0,IF(AND(AH5758>$C$42,AH5758<=$D$42),1,0))","v":0},0,{"$f":"IF(OR(AI5758=1,AK5758=1),0,IF(AND(AH5758>$C$43,AH5758<=$D$43),1,0))","v":0},0,{"$f":"AJ5758+AL5758+AN5758","v":0},{"$f":"AO5758*$H$17*$H$18/1000","v":0},{"$f":"$E$26/1000*AH5758*60","v":{"$error":"#VALUE!"}},{"$error":"#VALUE!"},{"$error":"#VALUE!"}]
[null,null,null,null,null,null,null,null,null,null,null,null,null,null,null,null,null,null,null,null,null,null,null,null,null,null,null,null,null,null,null,null,null,5756,0,0,0,0,0,0,0,0,{"$error":"#VALUE!"},{"$error":"#VALUE!"},{"$error":"#VALUE!"}]
[null,null,null,null,null,null,null,null,null,null,null,null,null,null,null,null,null,null,null,null,null,null,null,null,null,null,null,null,null,null,null,null,null,5757,0,0,0,0,0,0,0,0,{"$error":"#VALUE!"},{"$error":"#VALUE!"},{"$error":"#VALUE!"}]
[null,null,null,null,null,null,null,null,null,null,null,null,null,null,null,null,null,null,null,null,null,null,null,null,null,null,null,null,null,null,null,null,null,5758,0,0,0,0,0,0,0,0,{"$error":"#VALUE!"},{"$error":"#VALUE!"},{"$error":"#VALUE!"}]
[null,null,null,null,null,null,null,null,null,null,null,null,null,null,null,null,null,null,null,null,null,null,null,null,null,null,null,null,null,null,null,null,null,5759,{"$f":"IF(AND(AH5762>$C$41,AH5762<=$D$41),1,0)","v":0},0,{"$f":"IF(AI5762=1,0,IF(AND(AH5762>$C$42,AH5762<=$D$42),1,0))","v":0},0,{"$f":"IF(OR(AI5762=1,AK5762=1),0,IF(AND(AH5762>$C$43,AH5762<=$D$43),1,0))","v":0},0,{"$f":"AJ5762+AL5762+AN5762","v":0},{"$f":"AO5762*$H$17*$H$18/1000","v":0},{"$f":"$E$26/1000*AH5762*60","v":{"$error":"#VALUE!"}},{"$error":"#VALUE!"},{"$error":"#VALUE!"}]

{"sheet":"Orifice_Qfixe","index":7,"n_rows":47,"n_cols":13,"rows_kept":47,"cut":false,"hidden":true,"merged":[[46,8,46,9],[1,1,1,9],[2,3,2,9],[3,0,3,2],[3,3,3,9],[2,0,2,2],[18,1,18,6],[19,1,19,6],[21,1,21,6],[4,0,4,1],[6,0,6,9],[8,0,8,9],[9,0,9,9],[10,0,10,9],[11,0,11,9],[14,0,14,9],[16,1,16,6],[20,1,20,6],[17,1,17,6],[31,1,31,6],[32,1,32,6],[30,1,30,6],[29,1,29,6],[24,0,24,9],[26,1,26,6],[27,1,27,6],[28,1,28,6]]}
["N° Fiche",null,null,null,null,null,null,null,null,null,null,"TestQR1 (données entrées)",{"$f":"IF(AND(B1<>\"\",D3<>\"\",D4<>\"\",H17<>\"\",H18<>\"\",H19<>\"\"),TRUE,FALSE)","v":false}]
["Nom Projet",{"$f":"IF(Projet!C1=TRUE,Projet!C6,\"\")","v":""},null,null,null,null,null,null,null,null,null,"TestQR2 (données entrées)",{"$f":"IF(AND(H17<>\"\",H18<>\"\",H19<>\"\"),TRUE,FALSE)","v":false}]
["Nom du BV",null,null,null,null,null,null,null,null,null,null,"TestQR3 (données entrées)",{"$f":"IF(AND(H28<>\"\",H29<>\"\",H30<>\"\",H27<>\"\"),TRUE,FALSE)","v":false}]
["Nom Orifice",null,null,{"$f":"IF(D3<>\"\",CONCATENATE(\"O_\",D3),\"\")","v":""}]
["Zone pluviométrique",null,{"$f":"IF(Projet!C1=TRUE,Projet!C7,\"\")","v":""}]
[]
["Description synthétique de la régulation"]
[]
[]
[]
[]
[]
[]
[]
["Orifice circulaire"]
[]
[null,"Q  : Débit de fuite maxi (l/s)",null,null,null,null,null,null,null,null,null,"Optimisation"]
[null,"H : Hauteur d'eau maxi. / fil d'eau orifice (m)",null,null,null,null,null,null,null,null,null,"D",0.24789709721254313]
[null,"Coefficient de débit  m",null,null,null,null,null,null,null,null,null,"Q objectif",{"$f":"H17/1000","v":0}]
[null,null,null,null,null,null,null,null,null,null,null,"Q optimisation",{"$f":"H19*3.1416*(M18/2)^2*SQRT(2*9.81*(H18-M18/2))","v":{"$error":"#NUM!"}}]
[null,"D : Diamètre de l'orifice circulaire équivalent (cm)",null,null,null,null,null,null,null,null,null,"Ecart",{"$f":"M19-M20","v":{"$error":"#NUM!"}}]
[null,"S : Surface de l'orifice (cm²)"]
[]
[]
["Orifice rectangulaire"]
[]
[null,"Q : Débit de fuite maxi (l/s)",null,null,null,null,null,null,null,null,null,"Optimisation"]
[null,"H : Hauteur d'eau maxi. / fil d'eau orifice (m)",null,null,null,null,null,null,null,null,null,"L",0.23797385382117742]
[null,"Coefficient de débit  m",null,null,null,null,null,null,null,null,null,"Q objectif",{"$f":"H27/1000","v":0}]
[null,"ho : hauteur de l'orifice (cm)",null,null,null,null,null,null,null,null,null,"Q optimisation",{"$f":"H29*(M28*H30/100)*SQRT(2*9.81*(H28-H30/100/2))","v":0}]
[null,null,null,null,null,null,null,null,null,null,null,"Ecart",{"$f":"M29-M30","v":0}]
[null,"lo : largeur de l'orifice (cm)"]
[null,"Surface de l'orifice (cm²)"]
[]
[]
[]
[]
[]
[]
[]
[]
[]
[]
[]
[]
[]
[{"$f":"CONCATENATE(\"Version \",(MAX('Liste versions'!$B$4:$B$30)),\" de la feuille Excel du \",DAY(MAX('Liste versions'!$A$4:$A$30)),\"/\",MONTH(MAX('Liste versions'!$A$4:$A$30)),\"/\",YEAR(MAX('Liste versions'!$A$4:$A$30)),\" -  hydro-expertise.com\")","v":"Version 5 de la feuille Excel du 21/4/2025 -  hydro-expertise.com"},null,null,null,null,null,null,null,{"$f":"Introduction!$H$43","v":"DEAL Réunion"}]

{"sheet":"Orifice_Qvar","index":8,"n_rows":99,"n_cols":30,"rows_kept":99,"cut":false,"hidden":true,"merged":[[57,11,57,13],[44,11,44,13],[48,11,48,13],[49,11,49,13],[55,11,55,13],[56,11,56,13],[45,11,45,13],[50,11,50,13],[52,11,52,13],[54,11,54,13],[53,11,53,13],[46,11,46,13],[47,11,47,13],[51,11,51,13],[61,8,61,9],[2,0,2,2],[4,0,4,1],[6,0,6,9],[23,0,23,9],[13,1,13,6],[20,0,20,2],[21,0,21,2],[12,1,12,8],[16,1,16,3],[17,1,17,3],[15,1,15,3],[7,0,7,9],[8,0,8,9],[9,0,9,9],[10,0,10,9],[11,0,11,9],[1,1,1,9],[2,3,2,9],[3,0,3,2],[3,3,3,9],[0,21,0,29],[8,21,8,29],[16,21,16,29],[24,21,24,29],[32,21,32,29],[19,1,19,8],[40,1,40,3],[41,1,41,3],[25,0,25,2],[26,0,26,2],[27,0,27,2],[28,0,28,2],[37,1,37,3],[30,0,30,2],[38,1,38,3],[36,1,36,3],[35,1,35,3],[33,0,33,9],[34,1,34,3]]}
["N° Fiche",null,null,null,null,null,null,null,null,null,null,"Verif entrée données",null,null,null,null,null,null,null,null,null,"Interpolation volume 2 ans sur loi H-V bassin"]
["Nom Projet",{"$f":"IF(Projet!C1=TRUE,Projet!C6,\"\")","v":""},null,null,null,null,null,null,null,null,null,null,null,null,null,null,null,null,null,null,null,null,null,"Intervalle",0,1,2,3,4,5]
["Nom du BV",null,null,null,null,null,null,null,null,null,null,"Test Données entrées",{"$f":"IF(AND(H14<>\"\",E17<>\"\",F17<>\"\",G17<>\"\",H17<>\"\",I17<>\"\",E18<>\"\",F18<>\"\",G18<>\"\",H18<>\"\",I18<>\"\",E21<>\"\",E22<>\"\"),TRUE,FALSE)","v":false},null,null,null,null,null,null,null,null,"Données entrante",{"$f":"E18","v":0},"Données X",{"$f":"D22","v":0},0,0,0,0,0]
["Nom Orifice variable",null,null,{"$f":"IF(D3<>\"\",CONCATENATE(\"Ov_\",D3),\"\")","v":""},null,null,null,null,null,null,null,"Test données 2 orifices",{"$f":"IF(AND(E28<>\"\",D28<>\"\"),TRUE,FALSE)","v":false},null,"Test données 1 orifice",{"$f":"IF(D28<>\"\",TRUE,FALSE)","v":false},null,null,null,null,null,"Données interpollée",{"$f":"MAX(Y7:AC7)","v":{"$error":"#DIV/0!"}},"Données Y",{"$f":"D21","v":0},0.01,0,0,0,0]
["Zone pluviométrique",null,{"$f":"IF(Projet!C1=TRUE,Projet!C7,\"\")","v":""},null,null,null,null,null,null,null,null,"Test actuel/volume",{"$f":"IF(AND(E17<>\"\",F17<>\"\",G17<>\"\",H17<>\"\",I17<>\"\",E18<>\"\",F18<>\"\",G18<>\"\",H18<>\"\",I18<>\"\"),TRUE,FALSE)","v":false},null,null,null,null,null,null,null,null,"Données sortante",null,"Test intervalle",{"$f":"IF(AND(W3>=Y3,W3<=Z3),TRUE,FALSE)","v":true},{"$f":"IF(AND(W3>Z3,W3<=AA3),TRUE,FALSE)","v":false},{"$f":"IF(AND(W3>AA3,W3<=AB3),TRUE,FALSE)","v":false},{"$f":"IF(AND(W3>AB3,W3<=AC3),TRUE,FALSE)","v":false},{"$f":"IF(AND(W3>AC3,W3<=AD3),TRUE,FALSE)","v":false}]
[null,null,null,null,null,null,null,null,null,null,null,"Données bassin croissant",null,null,null,null,null,null,null,null,null,null,null,"Pente Intervalle",{"$f":"(Z4-Y4)/(Z3-Y3)","v":{"$error":"#DIV/0!"}},{"$f":"(AA4-Z4)/(AA3-Z3)","v":{"$error":"#DIV/0!"}},{"$error":"#DIV/0!"},{"$error":"#DIV/0!"},{"$error":"#DIV/0!"}]
["Description synthétique de la régulation",null,null,null,null,null,null,null,null,null,null,"Test données Hauteur",{"$f":"IF(E21<>\"\",TRUE,FALSE)","v":true},{"$f":"IF(F21<>\"\",TRUE,FALSE)","v":false},{"$f":"IF(G21<>\"\",TRUE,FALSE)","v":false},{"$f":"IF(H21<>\"\",TRUE,FALSE)","v":false},{"$f":"IF(I21<>\"\",TRUE,FALSE)","v":false},null,null,null,null,null,null,"Interpolation",{"$f":"IF(Y5,(W3-Y3)*Y6+Y4,\"\")","v":{"$error":"#DIV/0!"}},{"$f":"IF(Z5,(W3-Z3)*Z6+Z4,\"\")","v":""},{"$f":"IF(AA5,(W3-AA3)*AA6+AA4,\"\")","v":""},{"$f":"IF(AB5,(W3-AB3)*AB6+AB4,\"\")","v":""},{"$f":"IF(AC5,(W3-AC3)*AC6+AC4,\"\")","v":""}]
[null,null,null,null,null,null,null,null,null,null,null,"Test croissance",{"$f":"IF(M7=FALSE,TRUE,IF(E21>D21,TRUE,FALSE))","v":true},{"$f":"IF(N7=FALSE,TRUE,IF(F21>E21,TRUE,FALSE))","v":true},{"$f":"IF(O7=FALSE,TRUE,IF(G21>F21,TRUE,FALSE))","v":true},{"$f":"IF(P7=FALSE,TRUE,IF(H21>G21,TRUE,FALSE))","v":true},{"$f":"IF(Q7=FALSE,TRUE,IF(I21>H21,TRUE,FALSE))","v":true}]
[null,null,null,null,null,null,null,null,null,null,null,null,null,null,null,null,null,null,null,null,null,"Interpolation volume 5 ans sur loi H-V bassin"]
[null,null,null,null,null,null,null,null,null,null,null,null,null,null,null,null,null,null,null,null,null,null,null,"Intervalle",{"$f":"Y2","v":0},1,2,3,4,5]
[null,null,null,null,null,null,null,null,null,null,null,"Test données volume",{"$f":"IF(E22<>\"\",TRUE,FALSE)","v":false},{"$f":"IF(F22<>\"\",TRUE,FALSE)","v":false},{"$f":"IF(G22<>\"\",TRUE,FALSE)","v":false},{"$f":"IF(H22<>\"\",TRUE,FALSE)","v":false},{"$f":"IF(I22<>\"\",TRUE,FALSE)","v":false},null,null,null,null,"Données entrante",{"$f":"F18","v":0},"Données X",0,0,0,0,0,0]
["Données",null,null,null,null,null,null,null,null,null,null,"Test croissance",{"$f":"IF(M11=FALSE,TRUE,IF(E22>D22,TRUE,FALSE))","v":true},{"$f":"IF(N11=FALSE,TRUE,IF(F22>E22,TRUE,FALSE))","v":true},{"$f":"IF(O11=FALSE,TRUE,IF(G22>F22,TRUE,FALSE))","v":true},{"$f":"IF(P11=FALSE,TRUE,IF(H22>G22,TRUE,FALSE))","v":true},{"$f":"IF(Q11=FALSE,TRUE,IF(I22>H22,TRUE,FALSE))","v":true},null,null,null,null,"Données sortante",{"$f":"MAX(Y15:AC15)","v":{"$error":"#DIV/0!"}},"Données Y",0,0.01,0,0,0,0]
[null,"Objectifs hydrauliques",null,null,null,null,null,null,null,null,null,"TestQR2 (données croissante)",{"$f":"AND(M8,N8,O8,P8,Q8,M12,N12,O12,P12,Q12)","v":true},null,null,null,null,null,null,null,null,null,null,"Test intervalle",{"$f":"IF(AND(W11>=Y11,W11<=Z11),TRUE,FALSE)","v":true},{"$f":"IF(AND(W11>Z11,W11<=AA11),TRUE,FALSE)","v":false},{"$f":"IF(AND(W11>AA11,W11<=AB11),TRUE,FALSE)","v":false},{"$f":"IF(AND(W11>AB11,W11<=AC11),TRUE,FALSE)","v":false},{"$f":"IF(AND(W11>AC11,W11<=AD11),TRUE,FALSE)","v":false}]
[null,"Période retour dimensionnement compensation (année)",null,null,null,null,null,null,null,null,null,null,null,null,null,null,null,null,null,null,null,null,null,"Pente Intervalle",{"$f":"(Z12-Y12)/(Z11-Y11)","v":{"$error":"#DIV/0!"}},{"$f":"(AA12-Z12)/(AA11-Z11)","v":{"$error":"#DIV/0!"}},{"$error":"#DIV/0!"},{"$error":"#DIV/0!"},{"$error":"#DIV/0!"}]
[null,null,null,null,null,null,null,null,null,null,null,"V max >=Và stocker",null,null,null,null,null,null,null,null,null,null,null,"Interpolation",{"$f":"IF(Y13,(W11-Y11)*Y14+Y12,\"\")","v":{"$error":"#DIV/0!"}},{"$f":"IF(Z13,(W11-Z11)*Z14+Z12,\"\")","v":""},{"$f":"IF(AA13,(W11-AA11)*AA14+AA12,\"\")","v":""},{"$f":"IF(AB13,(W11-AB11)*AB14+AB12,\"\")","v":""},{"$f":"IF(AC13,(W11-AC11)*AC14+AC12,\"\")","v":""}]
[null,"Période de retour",null,null,"2 ans","5 ans","10 ans","20 ans","30 ans",null,null,"V à stocker",{"$f":"_xlfn.IFS(H14=\"\",10000,H14=2,E18,H14=5,F18,H14=10,G18,H14=20,H18,H14=30,I18)","v":10000}]
[null,"Débit initial (l/s)",null,null,null,null,null,null,null,null,null,"Vmax",{"$f":"MAX(E22:I22)","v":0},null,null,null,null,null,null,null,null,"Interpolation volume 10 ans sur loi H-V bassin"]
[null,"Volume mini à stocker (m3)\n(pourQfuite débit inital)",null,null,null,null,null,null,null,null,null,"TestQR3 (volume suffisant)",{"$f":"IF(M17>=M16,TRUE,FALSE)","v":false},null,null,null,null,null,null,null,null,null,null,"Intervalle",{"$f":"Y10","v":0},{"$f":"Z10","v":1},2,3,4,5]
[null,"Voir observation 1 (dans l'encadrée à droite)",null,null,null,null,null,null,null,null,null,null,null,null,null,null,null,null,null,null,null,"Données entrante",{"$f":"G18","v":0},"Données X",{"$f":"Y11","v":0},0,0,0,0,0]
[null,"Caractéristiques du bassin",null,null,null,null,null,null,null,null,null,"Données entrée et valides",null,null,null,null,null,null,null,null,null,"Données sortante",{"$f":"MAX(Y23:AC23)","v":{"$error":"#DIV/0!"}},"Données Y",{"$f":"Y12","v":0},0.01,0,0,0,0]
["Hauteur d'eau dans le stockage (m)",null,null,0,0.01,null,null,null,null,null,null,"TestQR4 total 1 orifice",{"$f":"AND(M3,M13,M18,M5)","v":false},null,null,null,null,null,null,null,null,null,null,"Test intervalle",{"$f":"IF(AND(W19>=Y19,W19<=Z19),TRUE,FALSE)","v":true},{"$f":"IF(AND(W19>Z19,W19<=AA19),TRUE,FALSE)","v":false},{"$f":"IF(AND(W19>AA19,W19<=AB19),TRUE,FALSE)","v":false},{"$f":"IF(AND(W19>AB19,W19<=AC19),TRUE,FALSE)","v":false},{"$f":"IF(AND(W19>AC19,W19<=AD19),TRUE,FALSE)","v":false}]
["Volume du bassin (m3)",null,null,0,null,null,null,null,null,null,null,"TestQR4 2 orifices",{"$f":"AND(M3,P4,M5,M13,M18,M4)","v":false},null,null,null,null,null,null,null,null,null,null,"Pente Intervalle",{"$f":"(Z20-Y20)/(Z19-Y19)","v":{"$error":"#DIV/0!"}},{"$f":"(AA20-Z20)/(AA19-Z19)","v":{"$error":"#DIV/0!"}},{"$error":"#DIV/0!"},{"$error":"#DIV/0!"},{"$error":"#DIV/0!"}]
["Voir observation 2 (dans l'encadrée à droite)",null,null,null,null,null,null,null,null,null,null,null,null,null,null,null,null,null,null,null,null,null,null,"Interpolation",{"$f":"IF(Y21,(W19-Y19)*Y22+Y20,\"\")","v":{"$error":"#DIV/0!"}},{"$f":"IF(Z21,(W19-Z19)*Z22+Z20,\"\")","v":""},{"$f":"IF(AA21,(W19-AA19)*AA22+AA20,\"\")","v":""},{"$f":"IF(AB21,(W19-AB19)*AB22+AB20,\"\")","v":""},{"$f":"IF(AC21,(W19-AC19)*AC22+AC20,\"\")","v":""}]
["Caractéristiques orifice(s)",null,null,null,null,null,null,null,null,null,null,"Test affichage résultats suivant objectif et présence de données valides"]
[null,null,null,"Orifice 1","Orifice 2",null,null,null,null,null,null,"Période de retour",2,5,10,20,30,null,null,null,null,"Interpolation volume 20 ans sur loi H-V bassin"]
["Surface orifice (cm²)",null,null,null,null,null,null,null,null,null,null,"Test",{"$f":"IF(M25<=$H$14,TRUE,FALSE)","v":false},{"$f":"IF(N25<=$H$14,TRUE,FALSE)","v":false},{"$f":"IF(O25<=$H$14,TRUE,FALSE)","v":false},{"$f":"IF(P25<=$H$14,TRUE,FALSE)","v":false},{"$f":"IF(Q25<=$H$14,TRUE,FALSE)","v":false},null,null,null,null,null,null,"Intervalle",{"$f":"Y18","v":0},{"$f":"Z18","v":1},2,3,4,5]
["Diamètre equ. (cm)",null,null,{"$f":"IF(D26<>\"\",2*SQRT(D26/3.1416),\"\")","v":""},{"$f":"IF(E26<>\"\",2*SQRT(E26/3.1416),\"\")","v":""},null,null,null,null,null,null,"TestQR5",{"$f":"AND($M$3,$M$13,M18,M26)","v":false},{"$f":"AND($M$3,$M$13,M18,N26)","v":false},{"$f":"AND($M$3,$M$13,M18,O26)","v":false},{"$f":"AND($M$3,$M$13,M18,P26)","v":false},{"$f":"AND($M$3,$M$13,M18,Q26)","v":false},null,null,null,null,"Données entrante",{"$f":"H18","v":0},"Données X",{"$f":"Y19","v":0},0,0,0,0,0]
["Coefficient de débit  m*",null,null,null,null,"*m voir valeurs Fiche Orifice_Qfixe",null,null,null,null,null,null,null,null,null,null,null,null,null,null,null,"Données sortante",{"$f":"MAX(Y31:AC31)","v":{"$error":"#DIV/0!"}},"Données Y",{"$f":"Y20","v":0},0.01,0,0,0,0]
["Fil d'eau orifice / fond (m)**",null,null,0,null,"** Voir schéma -->",null,null,null,null,null,null,null,null,null,null,null,null,null,null,null,null,null,"Test intervalle",{"$f":"IF(AND(W27>=Y27,W27<=Z27),TRUE,FALSE)","v":true},{"$f":"IF(AND(W27>Z27,W27<=AA27),TRUE,FALSE)","v":false},{"$f":"IF(AND(W27>AA27,W27<=AB27),TRUE,FALSE)","v":false},{"$f":"IF(AND(W27>AB27,W27<=AC27),TRUE,FALSE)","v":false},{"$f":"IF(AND(W27>AC27,W27<=AD27),TRUE,FALSE)","v":false}]
[null,null,null,null,null,null,null,null,null,null,null,null,null,null,null,null,null,null,null,null,null,null,null,"Pente Intervalle",{"$f":"(Z28-Y28)/(Z27-Y27)","v":{"$error":"#DIV/0!"}},{"$f":"(AA28-Z28)/(AA27-Z27)","v":{"$error":"#DIV/0!"}},{"$error":"#DIV/0!"},{"$error":"#DIV/0!"},{"$error":"#DIV/0!"}]
["Surface orifice minimum (cm²)",null,null,null,null,null,null,null,null,null,null,null,null,null,null,null,null,null,null,null,null,null,null,"Interpolation",{"$f":"IF(Y29,(W27-Y27)*Y30+Y28,\"\")","v":{"$error":"#DIV/0!"}},{"$f":"IF(Z29,(W27-Z27)*Z30+Z28,\"\")","v":""},{"$f":"IF(AA29,(W27-AA27)*AA30+AA28,\"\")","v":""},{"$f":"IF(AB29,(W27-AB27)*AB30+AB28,\"\")","v":""},{"$f":"IF(AC29,(W27-AC27)*AC30+AC28,\"\")","v":""}]
["Voir observation 3 (dans l'encadré à droite)"]
[null,null,null,null,null,null,null,null,null,null,null,"Analyse solveur","2 ans","5 ans","10 ans","20 ans","30 ans","Somme",null,null,null,"Interpolation volume 30 ans sur loi H-V bassin"]
["Résultats",null,null,null,null,null,null,null,null,null,null,"Ecart",{"$f":"IF(O50<>\"\",O58/E17,\"\")","v":""},{"$f":"IF(P50<>\"\",P58/F17,\"\")","v":""},{"$f":"IF(Q50<>\"\",Q58/G17,\"\")","v":""},{"$f":"IF(R50<>\"\",R58/H17,\"\")","v":""},{"$f":"IF(S50<>\"\",S58/I17,\"\")","v":""},{"$f":"SUM(M34:Q34)","v":0},null,null,null,null,null,"Intervalle",{"$f":"Y26","v":0},{"$f":"Z26","v":1},2,3,4,5]
[null,"Période de retour",null,null,"2 ans","5 ans","10 ans","20 ans","30 ans",null,null,"Ecart absolu",{"$f":"IF(M34<>\"\",ABS(M34),0)","v":0},{"$f":"IF(N34<>\"\",ABS(N34),0)","v":0},0,0,0,{"$f":"SUM(M35:Q35)","v":0},null,null,null,"Données entrante",{"$f":"I18","v":0},"Données X",{"$f":"Y27","v":0},0,0,0,0,0]
[null,"Heau dans le bassin (m)",null,null,{"$f":"IF(M27,W4,\"\")","v":""},{"$f":"IF(N27,W12,\"\")","v":""},{"$f":"IF(O27,W20,\"\")","v":""},{"$f":"IF(P27,W28,\"\")","v":""},{"$f":"IF(Q27,W36,\"\")","v":""},null,null,null,null,null,null,null,null,null,null,null,null,"Données sortante",{"$f":"MAX(Y39:AC39)","v":{"$error":"#DIV/0!"}},"Données Y",{"$f":"Y28","v":0},0.01,0,0,0,0]
[null,"Q Orifice1 (l/s)",null,null,{"$f":"O50","v":""},{"$f":"P50","v":""},"","","",null,null,"Min orifice",{"$f":"D31","v":0},null,null,null,null,null,null,null,null,null,null,"Test intervalle",{"$f":"IF(AND(W35>=Y35,W35<=Z35),TRUE,FALSE)","v":true},{"$f":"IF(AND(W35>Z35,W35<=AA35),TRUE,FALSE)","v":false},{"$f":"IF(AND(W35>AA35,W35<=AB35),TRUE,FALSE)","v":false},{"$f":"IF(AND(W35>AB35,W35<=AC35),TRUE,FALSE)","v":false},{"$f":"IF(AND(W35>AC35,W35<=AD35),TRUE,FALSE)","v":false}]
[null,"Q Orifice2 (l/s)",null,null,{"$f":"O56","v":""},{"$f":"P56","v":""},"","","",null,null,"Max orifice",{"$f":"I17/SQRT(2*9.81)/0.5/SQRT(M40)*100*100/1000","v":0},null,null,null,null,null,null,null,null,null,null,"Pente Intervalle",{"$f":"(Z36-Y36)/(Z35-Y35)","v":{"$error":"#DIV/0!"}},{"$f":"(AA36-Z36)/(AA35-Z35)","v":{"$error":"#DIV/0!"}},{"$error":"#DIV/0!"},{"$error":"#DIV/0!"},{"$error":"#DIV/0!"}]
[null,"Q Orifice 1+2 (l/s)",null,null,{"$f":"O57","v":""},{"$f":"P57","v":""},"","","",null,null,"Min hauteur orifice",0,null,null,null,null,null,null,null,null,null,null,"Interpolation",{"$f":"IF(Y37,(W35-Y35)*Y38+Y36,\"\")","v":{"$error":"#DIV/0!"}},{"$f":"IF(Z37,(W35-Z35)*Z38+Z36,\"\")","v":""},{"$f":"IF(AA37,(W35-AA35)*AA38+AA36,\"\")","v":""},{"$f":"IF(AB37,(W35-AB35)*AB38+AB36,\"\")","v":""},{"$f":"IF(AC37,(W35-AC35)*AC38+AC36,\"\")","v":""}]
[null,null,null,null,null,null,null,null,null,null,null,"Max hauteur orifice",{"$f":"MAX(D21:I21)","v":0.01}]
[null,"Q rejeté-Qinitial (l/s)",null,null,{"$f":"IF(E$37<>\"\",E39-E17,\"\")","v":""},{"$f":"IF(F$37<>\"\",F39-F17,\"\")","v":""},{"$f":"IF(G$37<>\"\",G39-G17,\"\")","v":""},{"$f":"IF(H$37<>\"\",H39-H17,\"\")","v":""},{"$f":"IF(I$37<>\"\",I39-I17,\"\")","v":""},null,null,"ZOrifice 2",{"$f":"E27+E29/100/2","v":{"$error":"#VALUE!"}}]
[null,"Ecart en %",null,null,{"$f":"IF(E37<>\"\",E41/E17,\"\")","v":""},{"$f":"IF(F37<>\"\",F41/F17,\"\")","v":""},{"$f":"IF(G37<>\"\",G41/G17,\"\")","v":""},{"$f":"IF(H37<>\"\",H41/H17,\"\")","v":""},{"$f":"IF(I37<>\"\",I41/I17,\"\")","v":""},null,null,"Zmax Orifice2",{"$f":"M40","v":0.01}]
[]
[null,"Volume max bassin (m3)",null,null,{"$f":"IF(M21,MAX(E22:I22),\"\")","v":""},"Volume à stocker  (m3)",null,null,{"$f":"IF(M21, IF(H14=2, E18,IF(H14=5, F18, IF(H14=10, G18, IF(H14=20, H18, IF(H14=30, I18, \"\"))))),\"\")","v":""}]
[null,"Vmax bassin - Và stocker (m3)",null,null,null,{"$f":"IF(M21,E44-I44,\"\")","v":""},null,null,null,null,null,"Période de retour",null,null,"2 ans","5 ans","10 ans","20 ans","30 ans"]
[null,null,null,null,null,null,null,null,null,null,null,"Test QR5",null,null,{"$f":"AND($M$21,M27)","v":false},{"$f":"N27","v":false},false,false,false]
[null,null,null,null,null,null,null,null,null,null,null,"Test Surface orifice1 présent",null,null,{"$f":"IF($D$26<>\"\",TRUE,FALSE)","v":false},{"$f":"IF($D$26<>\"\",TRUE,FALSE)","v":false},false,false,false]
[null,null,null,null,null,null,null,null,null,null,null,"Calcul possible Orifice 1",null,null,{"$f":"AND(O46,O47,$P$4)","v":false},{"$f":"AND(P46,P47,$P$4)","v":false},false,false,false]
[null,null,null,null,null,null,null,null,null,null,null,"Heau dans le bassin (m) / orifice 1",null,null,{"$f":"E36","v":""},{"$f":"F36","v":""},{"$f":"G36","v":""},{"$f":"H36","v":""},{"$f":"I36","v":""}]
[null,null,null,null,null,null,null,null,null,null,null,"Q Orifice1 (l/s)",null,null,{"$f":"IF(O48,$D$26*$D$28/(100*100)*SQRT(2*9.81*(O49-$D$27/2/100))*1000,\"\")","v":""},{"$f":"IF(P48,$D$26*$D$28/(100*100)*SQRT(2*9.81*(P49-$D$27/2/100))*1000,\"\")","v":""},"","",""]
[null,null,null,null,null,null,null,null,null,null,null,"Heau dans le bassin (m) / orifice 2",null,null,{"$f":"IF(O46,O49-$E$29,\"\")","v":""},{"$f":"IF(P46,P49-$E$29,\"\")","v":""},{"$f":"IF(Q46,Q49-$E$29,\"\")","v":""},{"$f":"IF(R46,R49-$E$29,\"\")","v":""},{"$f":"IF(S46,S49-$E$29,\"\")","v":""}]
[null,null,null,null,null,null,null,null,null,null,null,"Test Surface orifice2 présent",null,null,{"$f":"IF($E$26<>\"\",TRUE, FALSE)","v":false},{"$f":"IF($E$26<>\"\",TRUE, FALSE)","v":false},false,false,false]
[null,null,null,null,null,null,null,null,null,null,null,"Test calcul orifice 2",null,null,{"$f":"AND(O46,$M$22,O52)","v":false},{"$f":"AND(P46,$M$22,P52)","v":false},false,false,false]
[null,null,null,null,null,null,null,null,null,null,null,"Diamètre orifice",null,null,{"$f":"IF($M$22,$E$27,0)","v":0},{"$f":"IF($M$22,$E$27,0)","v":0},0,0,0]
[null,null,null,null,null,null,null,null,null,null,null,"Test Horifice 2>D/2",null,null,{"$f":"IF(O53,IF(O51>O54/2/100,TRUE, FALSE))","v":false},{"$f":"IF(P53,IF(P51>P54/2/100,TRUE, FALSE))","v":false},false,false,false]
[null,null,null,null,null,null,null,null,null,null,null,"Q Orifice2 (l/s)",null,null,{"$f":"IF(AND(O53,O55),$E$26*$E$28/(100*100)*SQRT(2*9.81*(O51-$E$27/2/100))*1000,\"\")","v":""},{"$f":"IF(AND(P53,P55),$E$26*$E$28/(100*100)*SQRT(2*9.81*(P51-$E$27/2/100))*1000,\"\")","v":""},{"$f":"IF(AND(Q53,Q55),$E$26*$E$28/(100*100)*SQRT(2*9.81*(Q51-$E$27/2/100))*1000,\"\")","v":""},{"$f":"IF(AND(R53,R55),$E$26*$E$28/(100*100)*SQRT(2*9.81*(R51-$E$27/2/100))*1000,\"\")","v":""},{"$f":"IF(AND(S53,S55),$E$26*$E$28/(100*100)*SQRT(2*9.81*(S51-$E$27/2/100))*1000,\"\")","v":""}]
[null,null,null,null,null,null,null,null,null,null,null,"Q Orifice 1+2 (l/s)",null,null,{"$f":"IF(AND(O48,O53,O55),O50+O56,IF(O48=TRUE,O50,\"\"))","v":""},{"$f":"IF(AND(P48,P53,P55),P50+P56,IF(P48=TRUE,P50,\"\"))","v":""},"","",""]
[null,null,null,null,null,null,null,null,null,null,null,"Q rejeté-Qinitial (l/s)",null,null,{"$f":"IF(O50<>\"\",O57-E17,\"\")","v":""},{"$f":"IF(P50<>\"\",P57-F17,\"\")","v":""},{"$f":"IF(Q50<>\"\",Q57-G17,\"\")","v":""},{"$f":"IF(R50<>\"\",R57-H17,\"\")","v":""},{"$f":"IF(S50<>\"\",S57-I17,\"\")","v":""}]
[]
[]
[]
[{"$f":"CONCATENATE(\"Version \",(MAX('Liste versions'!$B$4:$B$30)),\" de la feuille Excel du \",DAY(MAX('Liste versions'!$A$4:$A$30)),\"/\",MONTH(MAX('Liste versions'!$A$4:$A$30)),\"/\",YEAR(MAX('Liste versions'!$A$4:$A$30)),\" -  hydro-expertise.com\")","v":"Version 5 de la feuille Excel du 21/4/2025 -  hydro-expertise.com"},null,null,null,null,null,null,null,{"$f":"Introduction!$H$43","v":"DEAL Réunion"}]
[]
[]
[]
[]
[]
[]
[]
[]
[]
[]
[]
[]
[]
[]
[]
[]
[]
[]
[]
[]
[]
[]
[]
[]
[]
[]
[]
[]
[]
[]
[]
[]
[]
[]
[]
[]
[null,null,null,null,0]

{"sheet":"Deversoir","index":9,"n_rows":42,"n_cols":13,"rows_kept":42,"cut":false,"hidden":true,"merged":[[27,1,27,6],[17,1,17,6],[18,1,18,6],[19,1,19,6],[22,0,22,9],[24,1,24,6],[41,8,41,9],[16,1,16,6],[1,1,1,9],[2,3,2,9],[3,0,3,2],[3,3,3,9],[4,0,4,1],[6,0,6,9],[8,0,8,9],[9,0,9,9],[10,0,10,9],[11,0,11,9],[14,0,14,9],[2,0,2,2],[25,1,25,6],[26,1,26,6]]}
["N° Fiche",null,null,null,null,null,null,null,null,null,null,"TestQR1 (données entrées)",{"$f":"IF(AND(H17<>\"\",H18<>\"\",H19<>\"\"),TRUE,FALSE)","v":false}]
["Nom Projet",{"$f":"IF(Projet!C1=TRUE,Projet!C6,\"\")","v":""},null,null,null,null,null,null,null,null,null,"TestQR2 (données entrées)",{"$f":"IF(AND(H25<>\"\",H26<>\"\",H27<>\"\"),TRUE,FALSE)","v":false}]
["Nom du BV"]
["Nom Déversoir",null,null,{"$f":"IF(D3<>\"\",CONCATENATE(\"Od_\",D3),\"\")","v":""}]
["Zone pluviométrique",null,{"$f":"IF(Projet!C1=TRUE,Projet!C7,\"\")","v":""}]
[]
["Description synthétique de la surverse"]
[]
[]
[]
[]
[]
[]
[]
["1: Débit et hauteur de surverse connus"]
[]
[null,"Q : Débit de surverse (l/s)"]
[null,"H : Hauteur d'eau sur déversoir (m)"]
[null,"Coefficient de débit  m"]
[null,"L :Linéaire de surverse (m)",null,null,null,null,null,{"$f":"IF(M1=TRUE,H17/(H19*SQRT(2*9.81)*H18^1.5*1000),\"\")","v":""}]
[]
[]
["2: Débit et longueur de surverse connus"]
[]
[null,"Q : Débit de surverse (l/s)"]
[null,"L :Linéaire de surverse (m)"]
[null,"Coefficient de débit  m"]
[null,"H : Hauteur d'eau sur déversoir (m)",null,null,null,null,null,{"$f":"IF(M2=TRUE,(H25/1000/(H26*H27*SQRT(2*9.81))^(2/3)),\"\")","v":""}]
[]
[]
[]
[]
[]
[]
[]
[]
[]
[]
[]
[]
[]
[{"$f":"CONCATENATE(\"Version \",(MAX('Liste versions'!$B$4:$B$30)),\" de la feuille Excel du \",DAY(MAX('Liste versions'!$A$4:$A$30)),\"/\",MONTH(MAX('Liste versions'!$A$4:$A$30)),\"/\",YEAR(MAX('Liste versions'!$A$4:$A$30)),\" -  hydro-expertise.com\")","v":"Version 5 de la feuille Excel du 21/4/2025 -  hydro-expertise.com"},null,null,null,null,null,null,null,{"$f":"Introduction!$H$43","v":"DEAL Réunion"}]

{"sheet":"Réseau","index":10,"n_rows":59,"n_cols":13,"rows_kept":59,"cut":false,"hidden":true,"merged":[[39,0,40,0],[39,1,39,2],[39,4,39,5],[39,7,39,8],[40,1,40,2],[40,4,40,5],[40,7,40,8],[58,8,58,9],[34,7,34,8],[35,1,35,2],[35,4,35,5],[35,7,35,8],[36,1,36,2],[36,4,36,5],[36,7,36,8],[37,1,37,2],[37,4,37,5],[37,7,37,8],[20,4,22,4],[20,5,22,5],[21,1,22,1],[21,2,22,2],[34,1,34,2],[34,4,34,5],[9,0,9,9],[10,0,10,9],[11,0,11,9],[14,0,14,9],[18,1,18,2],[18,4,18,5],[18,7,18,8],[8,0,8,9],[1,1,1,9],[4,0,4,1],[6,0,6,9],[2,2,2,9],[2,0,2,1],[3,2,3,9],[3,0,3,1]]}
["N° Fiche",null,null,null,null,null,null,null,null,null,null,"TestQR1 (données entrées)",{"$f":"IF(AND(C20<>0,C22<>0,C25<>0,C26<>0,C21<>0),TRUE,FALSE)","v":false}]
["Nom Projet","",null,null,null,null,null,null,null,null,null,"TestQR2 (données entrées)",{"$f":"IF(AND(F20<>0,F21<>0,F25<>0,F26<>0),TRUE,FALSE)","v":false}]
["Nom du BV",null,null,null,null,null,null,null,null,null,null,"TestQR3 (données entrées)",{"$f":"IF(AND(I20<>0,I22<>0,I23<>0,I25<>0,I26<>0,I21>0),TRUE,FALSE)","v":false}]
["Nom Ouvrage réseau",null,{"$f":"IF(C3<>\"\",CONCATENATE(\"Or_\",C3),\"\")","v":""}]
["Zone pluviométrique",null,{"$f":"IF(Projet!C1=TRUE,Projet!C7,\"\")","v":""}]
[]
["Description"]
[]
[]
[]
[]
[]
[]
[]
["Calcul de la capacité d'un ouvrage"]
[]
["Voir observations ci-contre sur les limites de la méthode de calcul."]
[]
[null,"Ouvrage cadre",null,null,"Collecteur circulaire",null,null,"Fossé"]
[null,"Heau (m)",null,null,"Heau (m)",null,null,"Heau (m)"]
[null,"Hauteur ouvrage (m)",null,null,"Diamètre (m)",null,null,"Hauteur ouvrage (m)"]
[null,"Largeur (m)",null,null,null,null,null,"Largeur en fond (m)"]
[null,null,null,null,null,null,null,"Fruit talus (H/V)"]
[]
[null,"Strickler",null,null,"Strickler",null,null,"Strickler"]
[null,"Pente (m/m)",null,null,"Pente (m/m)",null,null,"Pente (m/m)"]
[null,null,null,null,null,null,null,"Largeur en crête (m)",{"$f":"IF(M3=TRUE,I21*I23*2+I22,\"\")","v":""}]
[null,null,0,null,null,{"$f":"2*ACOS((F29/(F21/2))-1)","v":{"$error":"#DIV/0!"}},null,null,{"$f":"I22+2*SQRT(I20^2+(I20*I23)^2)","v":0}]
[null,null,{"$f":"C22+2*SQRT(C20^2+(C28*C20)^2)","v":0},null,null,{"$f":"F21-F20","v":0},null,null,{"$f":"I22*I20+I20*I23*I20","v":0}]
[null,null,{"$f":"C22*C20+C20*C28*C20","v":0},null,null,{"$f":"F28*F21/2","v":{"$error":"#DIV/0!"}},null,null,{"$f":"I29/I28","v":{"$error":"#DIV/0!"}}]
[null,null,{"$f":"C30/C29","v":{"$error":"#DIV/0!"}},null,null,{"$f":"(F21/2)^2*(F28-SIN(F28))/2","v":{"$error":"#DIV/0!"}},null,null,{"$f":"I22+2*I20*I23","v":0}]
[null,null,null,null,null,{"$f":"IF(F20=0,0,F31/F30)","v":0}]
[null,null,null,null,null,{"$f":"F21*SIN(F28/2)","v":{"$error":"#DIV/0!"}}]
[]
["Débit (l/s)",{"$f":"IF(M1=TRUE,C25*SQRT(C26)*C30*C31^(2/3)*1000,\"\")","v":""},null,null,{"$f":"IF(M2=TRUE,F25*SQRT(F26)*F31*F32^(2/3)*1000,\"\")","v":""},null,null,{"$f":"IF(M3=TRUE,I25*SQRT(I26)*I29*I30^(2/3)*1000,\"\")","v":""}]
["Vitesse (m/s)",{"$f":"IF(M1=TRUE,IF(B35=0,0,B35/1000/C30),\"\")","v":""},null,null,{"$f":"IF(M2=TRUE,IF(E35=0,0,E35/1000/F31),\"\")","v":""},null,null,{"$f":"IF(M3=TRUE,H35/1000/I29,\"\")","v":""}]
["Hauteur de charge (m)",{"$f":"IF(M1=TRUE,C20+B36^2/20,\"\")","v":""},null,null,{"$f":"IF(M2=TRUE,F20+E36^2/20,\"\")","v":""},null,null,{"$f":"IF(M3=TRUE,I20+H36^2/20,\"\")","v":""}]
["Froude",{"$f":"IF(M1=TRUE,SQRT((B35/1000)^2*C22/9.81/C30^3),\"\")","v":""},null,null,{"$f":"IF(M2=TRUE,SQRT((E35/1000)^2*F33/9.81/F31^3),\"\")","v":""},null,null,{"$f":"IF(M3=TRUE,SQRT((H35/1000)^2*I31/(9.81*I29^3)),\"\")","v":""}]
[]
["Observations",{"$f":"IF(AND(M1,B36>4),\"Vitesse élevée > 4 m/s\",\"\")","v":""},null,null,{"$f":"IF(AND(M2,E36>4),\"Vitesse élevée > 4 m/s\",\"\")","v":""},null,null,{"$f":"IF(AND(M3,H36>4),\"Vitesse élevée > 4 m/s\",\"\")","v":""}]
[null,{"$f":"IF(AND(M1,B37>C21),\"H Charge > Sous face ouvrage\",\"\")","v":""},null,null,{"$f":"IF(AND(M2,E37>F21),\"H Charge > sous-face\",\"\")","v":""},null,null,{"$f":"IF(AND(M3,H37>I21),\"H charge > hauteur fossé\",\"\")","v":""}]
[]
[]
[]
[]
[]
[]
[]
[]
[]
[]
[]
[]
[]
[]
[]
[]
[]
[{"$f":"CONCATENATE(\"Version \",(MAX('Liste versions'!$B$4:$B$30)),\" de la feuille Excel du \",DAY(MAX('Liste versions'!$A$4:$A$30)),\"/\",MONTH(MAX('Liste versions'!$A$4:$A$30)),\"/\",YEAR(MAX('Liste versions'!$A$4:$A$30)),\" -  hydro-expertise.com\")","v":"Version 5 de la feuille Excel du 21/4/2025 -  hydro-expertise.com"},null,null,null,null,null,null,null,{"$f":"Introduction!$H$43","v":"DEAL Réunion"}]